Workbook

Sheet Quick Start Guide
B7: ="Version "&ChangeLog!B23 -> Version 3.7.6
A11: The Spreadsheet Tabs | B11: Description
A12: Project Info | B12: Inputs required for a range of indicators
A13: Building Inputs | B13: Inputs for the building prototypes that form the building blocks for the Dev Types
A14: Dev Type Streets | B14: Inputs for the street and block characteristics of each Dev Type
A15: Dev Type Inputs | B15: Combine building types to create Dev Types
A16: Dev Type Attributes | B16: Detailed characteristics about each Dev Type
A17: Summary New | B17: New Growth Summary outputs for all 5 Scenarios
A18: Summary Total | B18: Total Development Summary outputs for all 5 Scenarios
A19: SCENARIO1 | B19: Detailed Development Type outputs of Scenario 1
A20: SCENARIO2 | B20: Detailed Development Type outputs of Scenario 2
A21: SCENARIO3 | B21: Detailed Development Type outputs of Scenario 3
A22: SCENARIO4 | B22: Detailed Development Type outputs of Scenario 4
A23: SCENARIO5 | B23: Detailed Development Type outputs of Scenario 5
A24: BUILDING1 | B24: Detailed Building-level outputs of Scenario 1
A25: BUILDING2 | B25: Detailed Building-level outputs of Scenario 2
A26: BUILDING3 | B26: Detailed Building-level outputs of Scenario 3
A27: BUILDING4 | B27: Detailed Building-level outputs of Scenario 4
A28: BUILDING5 | B28: Detailed Building-level outputs of Scenario 5
A30: Tab Color Definition
A31: Input Tab
A32: Output Tab
A33: Reference Tab
A35: Cell Color Definition
A36: Input Cell
A37: Header Cell
A38: Subheader Cell
A39: Output Cell | B39: [white]
A41: Available Indicators | B41: Location
A42: Developed Acres | B42: Summary New Tab, Summary Total Tab
A43: Infill Development | B43: Summary New Tab, Summary Total Tab
A44: Building Square Footage Mix | B44: Summary New Tab
A45: Land Area Mix | B45: Summary New Tab, Summary Total Tab
A46: Population | B46: Summary New Tab, Summary Total Tab
A47: Net New Growth | B47: Summary Total Tab
A48: Displacement From Redevelopment | B48: Summary Total Tab
A49: Housing Mix | B49: Summary New Tab, Summary Total Tab
A50: Affordability | B50: Summary New Tab, Summary Total Tab
A51: Housing Distribution By Income | B51: Summary New Tab
A52: Housing By Building Type | B52: Summary New Tab
A53: Employment Mix | B53: Summary New Tab, Summary Total Tab
A54: Jobs/Housing Balance | B54: Summary New Tab, Summary Total Tab
A55: Affordability (H+T+E) | B55: Summary Total Tab, MXD Travel App, HH Travel App
A56: Density | B56: Summary New Tab, Summary Total Tab
A57: Income | B57: Summary New Tab
A58: Walk and Transit Friendliness | B58: Summary New Tab
A59: Parking | B59: Summary New Tab
A60: Financial | B60: Summary New Tab
A61: Subsidy | B61: Summary New Tab
A62: New Infrastructure | B62: Summary New Tab
A63: Tax Revenue | B63: Summary New Tab, Summary Total Tab
A64: Sustainability | B64: Summary New Tab, Summary Total Tab
A65: Bike Trips | B65: MXD Travel App, HH Travel App
A66: Walk Trips | B66: MXD Travel App, HH Travel App
A67: Transit Trips | B67: MXD Travel App, HH Travel App
A68: Vehicle Trips | B68: MXD Travel App, HH Travel App
A69: Internal Trips | B69: MXD Travel App
A70: External Trips | B70: MXD Travel App, HH Travel App
A71: Vehicle Miles Traveled (VMT) | B71: MXD Travel App, HH Travel App
A72: Traffic Accidents | B72: MXD Travel App, HH Travel App
A73: ULI Shared Parking Savings | B73: MXD Travel App
A74: Transportation Affordability | B74: MXD Travel App
A75: Daily Emissions | B75: MXD Travel App, HH Travel App
A76: Tax Revenue Per New Housing Unit | B76: Fiscal Impact Tool (FIT) App
A77: Operations and Maintenance Costs | B77: Fiscal Impact Tool (FIT) App
A78: Capital Outlays | B78: Fiscal Impact Tool (FIT) App
A79: Cost to Revenue Ratio | B79: Fiscal Impact Tool (FIT) App

Sheet Project Info
A2: Select Project Location (or nearest location)
A3: Micropolitan Statistical Area | B3: Akron OH Micropolitan Statistical Area
A6: Household / Population Assumptions | B6: Existing Households | D6: New Development Population Generation Rates | G6: Avg. Household Size (New Development)
B7: Avg. Unit Size | C7: Avg. HH Size | D7: Gross Sq Ft per Resident | E7: Max Household Size | F7: Vacancy Rate | G7: Scenario 1 | H7: Scenario 2 | I7: Scenario 2 | J7: Scenario 4 | K7: Scenario 5
A8: Multifamily | B8: 800 | C8: 2.5 | D8: 499 | E8: 2.25 | F8: 0.06 | G8: ='Summary New'!B181 -> 0 | H8: ='Summary New'!D181 -> 0 | I8: ='Summary New'!F181 -> 0 | J8: ='Summary New'!H181 -> 0 | K8: ='Summary New'!J181 -> 0
A9: Townhome | B9: 1200 | C9: 2.85 | D9: 599 | E9: 2.5 | F9: 0.06
A10: Single Family Small Lot | B10: 1800 | C10: 3.25
A11: Single Family Conventional Lot | B11: 2500 | C11: 3.5 | D11: 699 | E11: 3 | F11: 0.08
A12: Single Family Large Lot | B12: 3000 | C12: 3.6
A13: Mobile Home | B13: 500 | C13: 3.25 | D13: 699 | E13: 2.8 | F13: 0.1
A16: Existing Average Household Incomes | B16: $ / Year
A18: Multifamily | B18: 50000
A19: Townhome | B19: 55000
A20: Single Family Small Lot | B20: 60000
A21: Single Family Conventional Lot | B21: 65000
A22: Single Family Large Lot | B22: 70000
A23: Mobile Home | B23: 45000
A26: Average Workers per Household | B26: Study Area Totals
A27: Workers | B27: =SUMIF('Metro CDD HDD'!A2:A373,Metro_Select,'Metro CDD HDD'!H2:H373) -> 336642
A28: Population | B28: =SUMIF('Metro CDD HDD'!A2:A373,Metro_Select,'Metro CDD HDD'!G2:G373) -> 700222
A29: Workers per Resident | B29: =B27/B28 -> 0.4807646718
A32: Wage Estimator | F32: Envision Wage Estimates
A33: Industry description | B33: Annual payroll ($1,000) | C33: Number of paid employees for pay period | D33: Average Wage | F33: Envision Employment Categories | G33: Adjusted Income ($/yr)
A34: Forestry, fishing, and related activities | D34: =IF(C34=0,0,B34*1000/C34) -> 0 | F34: Retail | G34: =IFERROR(((C40*D40)+(C52*D52))/SUM(C40,C52),0) -> 0
A35: Mining | D35: 0 | F35: Office/Public | G35: =IFERROR(((C36*D36)+(C42*D42)+(C43*D43)+(C45*D45)+(C46*D46)+(C49*D49))/SUM(C36,C42,C43,C45,C46,C49),0) -> 0
A36: Utilities | D36: 0 | F36: Industrial | G36: =IFERROR(((C35*D35)+(C38*D38)+(C41*D41))/SUM(C35,C38,C41),0) -> 0
A37: Construction | D37: 0 | F37: Education | G37: =IFERROR(((C48*D48))/SUM(C48),0) -> 0
A38: Manufacturing | D38: 0 | F38: Hotel | G38: =IFERROR(((C52*D52))/SUM(C52),0) -> 0
A39: Wholesale trade | D39: 0
A40: Retail trade | D40: 0
A41: Transportation and warehousing | D41: 0
A42: Information | D42: 0
A43: Finance and insurance | D43: 0
A44: Real estate and rental and leasing | D44: 0
A45: Professional, scientific, and technical services | D45: 0
A46: Management of companies and enterprises | D46: 0
A47: Administrative and waste services | D47: 0
A48: Educational services | D48: 0
A49: Health care and social assistance | D49: 0
A50: Arts, entertainment, and recreation | D50: 0
A51: Accommodation and food services | D51: 0
A52: Accommodation | D52: 0
A53: Food Services | D53: 0
A54: Other services, except public administration | D54: 0
A55: Government and government enterprises | D55: 0
A56: Total | D56: =IFERROR((SUM(D34:D55*C34:C55)/SUM(C34:C55)),0) -> 0
A59: Existing Average Monthly Housing Costs (Rent or Mortgage) | B59: $ / Month
A61: Multifamily | B61: 650
A62: Townhome | B62: 750
A63: Single Family Small Lot | B63: 1000
A64: Single Family Conventional Lot | B64: 1200
A65: Single Family Large Lot | B65: 1400
A66: Mobile Home | B66: 450
A67: Weighted Average | B67: =IFERROR(IF(B68=0,SUMPRODUCT(B61:B66,EX_Res_by_Type)/SUM(EX_Res_by_Type),B68),0) -> 0
A68: Manual Overide Average
A71: Affordability Standards | B71: Maxiumum Housing Expenditures
B72: Owner | C72: Renter
A73: % of Income for Housing | B73: 0.26 | C73: 0.3
A74: Maximum LTV | B74: 0.8
A75: Mortgage Years | B75: 30
A76: Mortgage Interest Rate | B76: 0.06
A79: Single Family Lot Size Assumptions | B79: Sq Ft
A80: Small Lot Single Family | B80: 5000 | C80: or below
A81: Conventional Lot Single Family | B81: =B80 & " - " & B82 -> 5000 - 7001
A82: Large Lot Single Family | B82: 7001 | C82: or above
A85: Student Generation Rates | B85: Units | C85: Public School | G85: Private School
A86: Residential Housing Type | C86: Public School Generation Rate | D86: K-5 | E86: ="6 - 8" -> 6 - 8 | F86: ="9 - 12" -> 9 - 12
A87: Fewer than 8 Units per Acre | B87: 8 | C87: 0.45 | D87: 0.157 | E87: 0.135 | F87: 0.1575 | G87: 0.0582
A88: 9-14 Units per Acre | B88: 14 | C88: 0.21 | D88: 0.0735 | E88: 0.063 | F88: 0.0735 | G88: 0.0482
A89: 15+ Unis per Acre | B89: 15 | C89: 0.15 | D89: 0.0525 | E89: 0.045 | F89: 0.0525 | G89: 0.0451
A90: Table 7-6. Planner's Estimating Guide. Projecting Land-Use and Facility Needs. Arthur C. Nelson. 2004.
A93: Sales Tax | B93: Annual Sales Tax Revenue per Retail Sq Ft
A94: Sales Tax Rate | B94: 0.065
A95: Sales per Sq Ft | B95: 318
A98: New Infrastructure Costs (Capital Costs only) | B98: Unit | C98: Cost
A99: New Roadway | B99: Lane Mile | C99: 2250000
A100: Streetscape | B100: Lane Mile
A101: Sewerage | B101: Lineal Foot | C101: 100
A102: Utilities - above-ground | B102: Mile | C102: 600000
A103: Water Lines | B103: Lineal Foot | C103: 227
A106: Electrical Energy Fuel Mix | B106: Fuel Mix (%) | C106: CO2 per Million BTU
C107: kg | D107: Pounds | E107: Tons
A108: Coal (anthracite) | C108: 103.69 | D108: =C108*2.20462 -> 228.5970478 | E108: =D108*0.00045359237 -> 0.1036898767
A109: Coal (bituminous) | B109: 1 | C109: 93.28 | D109: 205.6469536 | E109: 0.09327988907
A110: Coal (subbituminous) | C110: 97.17 | D110: 214.2229254 | E110: 0.09716988444
A111: Coal (lignite) | C111: 97.72 | D111: 215.4354664 | E111: 0.09771988379
A112: Diesel fuel & heating oil | C112: 73.15 | D112: 161.267953 | E112: 0.07314991301
A113: Propane | C113: 63.07 | D113: 139.0453834 | E113: 0.06306992499
A114: Natural gas | C114: 53.06 | D114: 116.9771372 | E114: 0.0530599369
A115: Nuclear life-cycle (Gen I - IV Mix)* | C115: 225.03 | D115: 496.1056386 | E115: 0.2250297324
A116: Hydroelectric life-cycle* | C116: 34 | D116: 74.95708 | E116: 0.03399995957
A117: Renewable (Avg emission of Wind and soar pv)* | C117: 69 | D117: 152.11878 | E117: 0.06899991794
A118: http://www.eia.doe.gov/oiaf/1605/coefficients.html
A119: *Benjamin K. Sovacool. Valuing the greenhouse gas emissions from nuclear power: A critical survey. Energy Policy, Vol. 36, 2008, p. 2950.
A120: **Fuel Mix from USEIA Statewide Report Nebraska | B120: http://www.eia.gov/state/data.cfm?sid=NE#ConsumptionExpenditures
A122: Energy Costs | B122: $ / 1000 BTU
A123: Residential | B123: 12
A124: Commercial | B124: 12
A127: Landscaping Water Consumption
A128: Water per Sq Foot of Lawn Area | B128: 0.05 | C128: Gallons/Sq Ft
A129: Maximum Watered Lawn Area | B129: 0.25 | C129: Acres
A132: Internal Water Consumption
A133: Building Type/Use | B133: Water Use (G/Day)
B134: Resident | C134: Employee
A135: Multifamily Residential | B135: 60
A136: Townhome | B136: 80
A137: Typical Single Family | B137: 100
A138: Large Single Family | B138: 120
A139: Retail | C139: 68
A140: Office | C140: 106
A141: Industrial | C141: 133
A142: Vickers, Amy. Handbook of Water Use and Conservation. (2001)
A144: Waste Water Production
A145: Building Type/Use | B145: Water Waste (G/Day)
B146: Resident | C146: Employee
A147: Multifamily Residential | B147: 35
A148: Townhome | B148: 50
A149: Typical Single Family | B149: 70
A150: Large Single Family | B150: 90
A151: Retail | C151: 38
A152: Office | C152: 49
A153: Industrial | C153: 49
A154: Adapted from Metcalf and Eddy (1991) Wastewater Engineering. Treatment Disposal Reuse, G. Tchobanoglous and F.L. Burton (Eds.), 1820 pp. New York: McGraw-Hill.
A155: http://www.eolss.net/EolssSampleChapters/C06/E6-13-04-05/E6-13-04-05-T14.htm
A157: Solid Waste Production
A158: Building Type/Use | B158: Solid Waste (lbs/Day)
B159: Resident | C159: Employee
A160: Multifamily Residential | B160: 1.5
A161: Townhome | B161: 2
A162: Typical Single Family | B162: 3
A163: Large Single Family | B163: 4
A164: Retail | C164: 5
A165: Office | C165: 3.5
A166: Industrial | C166: 9
A167: http://www.calrecycle.ca.gov/wastechar/wastegenrates/default.htm
A170: Green Infrastructure Water Inputs
A171: Average annual rainfall (in) | B171: 33.65
A172: Green Infrastructure Energy Inputs
A173: Annual Cooling degree days | B173: 3016 | C173: http://www.ncdc.noaa.gov/oa/documentlibrary/hcs/hcs.html
A174: Annual Heating degree days | B174: 1688 | C174: http://www.ncdc.noaa.gov/oa/documentlibrary/hcs/hcs.html
A175: R conventional (SF F hrs/BTU) | B175: =11.34 -> 11.34 | C175: http://www.cnt.org/repository/gi-values-guide.pdf
A176: R green roof (SF F hrs/Btu) | B176: 23.4 | C176: http://www.cnt.org/repository/gi-values-guide.pdf
A177: Cost per kWh (electricity -- cooling) ($/kWh) | B177: 0.0959 | C177: 0.0959 | D177: US EIA 2010 national rate | E177: http://www.eia.gov/oiaf/aeo/pdf/0383(2010).pdf
A178: Cost per BUT (natural gas -- heating) ($/Btu) | B178: 1.23e-05 | C178: 0.0959 | D178: US EIA 2010 national rate | E178: http://www.eia.gov/oiaf/aeo/pdf/0383(2010).pdf
A179: Green Infrastructure Air Quality Inputs
A180: Avg Annual NO2 uptake/depositions (lbs/SF) | B180: 0.0003 | C180: Source: http://link.springer.com/article/10.1007%2Fs11252-008-0054-y?LI=true
A181: Avg Annual O3 uptake/depositions (lbs/SF) | B181: 0.000588 | C181: Source: http://link.springer.com/article/10.1007%2Fs11252-008-0054-y?LI=true
A182: Avg Annual SO2 uptake/depositions (lbs/SF) | B182: 0.000229 | C182: Source: http://link.springer.com/article/10.1007%2Fs11252-008-0054-y?LI=true
A183: Avg Annual PM-10 uptake/depositions (lbs/SF) | B183: 0.000114 | C183: Source: http://link.springer.com/article/10.1007%2Fs11252-008-0054-y?LI=true
A184: Electricity Emmission rates NO2 (lbs/KWh) | B184: =6.6835/1000 -> 0.0066835 | C184: 0.001937 | D184: USEPA national rate (for more localized rates, see eGRID) | E184: http://cfpub.epa.gov/egridweb/
A185: Electricity Emmission rates SO2 (lbs/KWh) | B185: =34.7566/1000 -> 0.0347566 | C185: 0.00525 | D185: USEPA national rate (for more localized rates, see eGRID) | E185: http://cfpub.epa.gov/egridweb/
A186: Natural Gas Emmission rates NO2 (lbs/BTU) | B186: =0.4565/1000000 -> 4.565e-07 | C186: 7.21e-07 | D186: USEPA national rate (for more localized rates, see eGRID) | E186: http://cfpub.epa.gov/egridweb/
A187: Natural Gas Emmission rates SO2 (lbs/BTU) | B187: =2.3739/1000000 -> 2.3739e-06 | C187: 2.66e-07 | D187: USEPA national rate (for more localized rates, see eGRID) | E187: http://cfpub.epa.gov/egridweb/
A188: US Forest Service NO2 ($/lb) Recommendations | B188: 3.34 | C188: http://www.cnt.org/repository/gi-values-guide.pdf
A189: US Forest Service O3 ($/lb) Recommendations | B189: 3.34 | C189: http://www.cnt.org/repository/gi-values-guide.pdf
A190: US Forest Service SO2 ($/lb) Recommendations | B190: 2.06 | C190: http://www.cnt.org/repository/gi-values-guide.pdf
A191: US Forest Service PM-10 ($/lb) Recommendations | B191: 2.84 | C191: http://www.cnt.org/repository/gi-values-guide.pdf
A192: Green Infrastructure Climate Change Inputs
A193: Avg amount of carbon sequestered by plants (lbs/SF) | B193: 0.0332 | C193: http://www.cnt.org/repository/gi-values-guide.pdf | D193: General study for species in midwest
A194: Electricity Emmission rate CO2 (lbs/Co2/kWh) | B194: =2962.84/1000 -> 2.96284 | C194: =1329.35/1000 -> 1.32935 | D194: USEPA national rate (for more localized rates, see eGRID) | E194: http://cfpub.epa.gov/egridweb/
A195: Natural Gas Emmission rate CO2 (lbs/Co2/BTU) | B195: =202.36/1000000 -> 0.00020236 | C195: =182.29/1000000 -> 0.00018229 | D195: USEPA national rate (for more localized rates, see eGRID) | E195: http://cfpub.epa.gov/egridweb/
A196: EU Emissions Trading System Price of CO2 ($/lb) lower bound | B196: 0.00756 | C196: http://www.cnt.org/repository/gi-values-guide.pdf
A197: based on Center for Neighborhood Technology Value of Green Infrastructure
A198: http://www.cnt.org/repository/gi-values-guide.pdf

Sheet Building Inputs
B1: 1. Load your Prototype buildings | FC1: Green Roofs | FZ1: Biofiltration | GM1: Water Harvesting | GO1: TOTAL GREEN INFRASTRUCTURE
C2: Building and Site Characteristics | J2: Building Square Footage Mix (%) | AA2: Residential | AF2: Housing Type | AJ2: Residential Rent | AL2: Residential Sales Price | AO2: Household Characteristics | AV2: Employment | AY2: Retail | BC2: Office | BG2: Industrial | BK2: Public / Civic | BO2: Educational | BS2: Hotel / Hospitality | CA2: Commercial Parking | CE2: Parking | CJ2: Residential Energy Use (Million BTU / Yr) | CN2: Commercial Energy Use (Million BTU / Yr) | CT2: Total Building Energy Use | CU2: Energy Cost | CV2: Carbon Emissions (Tons / Yr) | CY2: Landscaping Water Consumption | DA2: Internal Water Consumption | DE2: Waste Water | DI2: Solid Waste | DM2: Land Cost | DP2: Improvement Cost | DS2: Total Project Value | DU2: Rent Curve | DX2: Subsidy | EA2: Impact Fees / SDCs | EC2: Return on Investment | EE2: Property Tax Revenue | EG2: Sales Tax Revenue | EI2: Redevelopment Rate | EJ2: Stormwater/ Green Infrastructure Water Quality | EU2: Stormwater/ Green Infrastructure Water Quality per Acre | FC2: Water | FE2: Energy | FI2: Air Quality | FV2: Climate Change | FZ2: Water | GB2: Air Quality | GK2: Climate Change | GM2: Water | GO2: Water | GQ2: Energy | GR2: Air Quality | HB2: Climate Change | HD2: Water Quality Volume | HI2: Stormwater Pollution Capture | HQ2: Stormwater Pollution Capture per Acre | HY2: Trip Generation
A3: # | B3: Building Name | C3: Lot Size (Sq Ft) | D3: Building Lot Coverage | E3: Landscaping Lot Coverage | F3: Parking Lot Coverage | G3: Height (Stories) | H3: Floor Area Ratio (FAR) | I3: Bldg Sq Ft | J3: Residential | K3: Multifamily | L3: Townhome | M3: Single Family | N3: Small Lot Single Family | O3: Medium Lot Single Family | P3: Large Lot Single Family | Q3: Mobile Home | R3: Employment | S3: Retail | T3: Office | U3: Industrial | V3: Public / Civic | W3: Educational | X3: Hotel / Hospitality | Y3: Commercial Parking | Z3: Internal / Structured Parking | AA3: Residential Sq Ft | AB3: Net Sq Ft per Unit | AC3: Gross Sq Ft per Unit | AD3: Dwelling Units / Building | AE3: Dwelling Units / Acre | AF3: Type of Housing | AG3: Percent Renter | AH3: Percent Owner | AI3: Percent Affordable | AJ3: Rent ($/SqFt) | AK3: Avg Rent ($/Mo.) | AL3: Sales Price ($/SqFt) | AM3: Avg Sales Price ($) | AN3: Avg Monthly Mortgage Payment ($) | AO3: Vacancy Rate | AP3: Households per Acre | AQ3: Average Household Size | AR3: Average Number of Workers in HH | AS3: Average School Age Children per Household | AT3: Estimated Household Income Based on Housing Costs | AU3: Estimated Average Employee Wage Based on Employment | AV3: Total Employment Sq Ft | AW3: Total Jobs / Building | AX3: Total Jobs / Acre | AY3: Retail Gross Sq Ft | AZ3: Retail Lease Rate ($/SqFt) | BA3: Space per Employee | BB3: Retail Employees / Acre | BC3: Office Gross Sq Ft | BD3: Office Lease Rate ($/SqFt) | BE3: Space per Employee | BF3: Office Employees / Acre | BG3: Industrial Gross Sq Ft | BH3: Industrial Lease Rate ($/SqFt) | BI3: Space per Employee | BJ3: Industrial Employees / Acre | BK3: Public / Civic Gross Sq Ft | BL3: Pubic / Civic Lease Rate ($/SqFt) | BM3: Space per Employee | BN3: Public / Civic Employees / Acre | BO3: Educational Gross Sq Ft | BP3: Educational Lease Rate ($/SqFt) | BQ3: Space per Employee | BR3: Educational Employees / Acre | BS3: Hospitality Gross Sq Ft | BT3: Hospitality Nighly Rate ($/rm) | BU3: Space per Employee | BV3: Hospitality Employees / Acre | BW3: Net Space per Hotel Room | BX3: Gross Space per Hotel Room | BY3: Hotel Rooms per Building | BZ3: Hotel Rooms / Acre | CA3: Commercial Parking Gross Sq Ft | CB3: Parking Hourly Rate ($/space) | CC3: Space per Employee | CD3: Commercial Parking Employees / Acre | CE3: Parking Spaces | CF3: Total Parking SqFt | CG3: Internal / Structured Parking SqFt | CH3: Parking Cost ($) | CI3: % Parking Costs | CJ3: Space Heating (per unit) | CK3: Space Cooling (per unit) | CL3: Other Energy (per unit) | CM3: Total per Unit | CN3: Space Heating (per building) | CO3: Space Cooling (per building) | CP3: Other Energy (per building) | CQ3: Total per Commercial Area | CR3: per Employee | CS3: per Sq Ft | CT3: Total Energy Use | CU3: Residential Energy Cost ($ / Mo) | CV3: Per Unit | CW3: Per Employee | CX3: Total CO2 Emissions per Building | CY3: Landscaping Water Use (G/Unit/Day) | CZ3: Landscaping Water Use (G/Building/Day) | DA3: Per Resident (G/Resident/Day) | DB3: Per Unit (G/Day) | DC3: Per Employee (G/Employee/Day) | DD3: Total Per Building (G/Day/Building) | DE3: Waste Water (G/Resident/Day) | DF3: Per Unit (G/Day) | DG3: Waste Water (G/Employee/Day) | DH3: Waste Water (G/Day/Building) | DI3: Solid Waste (lbs/Resident/Day) | DJ3: Per Unit (lbs/Day) | DK3: Solid Waste (lbs/Employee/Day) | DL3: Solid Waste (lbs/Day/Building) | DM3: Land Cost ($/SqFt) | DN3: Total Site Cost ($) | DO3: Site Cost ($/Acre) | DP3: Land Cost ($/SqFt) | DQ3: Total Site Cost ($) | DR3: Site Cost ($/Acre) | DS3: Total Project Value ($) | DT3: Total Project Value per Acre ($/Acre) | DU3: Y-Intercept | DV3: Slope | DW3: Product Type | DX3: Project Subsidy ($) | DY3: Subsidy per Unit | DZ3: Project Subsidy per Acre ($/Acre) | EA3: Total Impact Fees ($) | EB3: Total Impact Fees per Acre ($/Acre) | EC3: Internal Rate of Return (Rental) | ED3: Project Return (Owner) | EE3: Property Tax Revenue ($/yr) | EF3: Property Tax Revenue ($/yr/Acre) | EG3: Sales Tax Revenue ($/yr) | EH3: Sales Tax Revenue ($/yr/Acre) | EI3: Relative Value (0-1 scale) | EJ3: Green Roof (Sq Ft) | EK3: Green Roof Efficiency | EL3: Green Roof Water Volume (gal) | EM3: Biofiltration (Sq Ft) | EN3: Biofiltration Efficiency | EO3: Biofiltration Water Volume (gal) | EP3: Green Roof Water Harvesting (Sq Ft) | EQ3: Green Roof Water Harvesting Efficiency | ER3: Rainwater Harvesting (Sq Ft) | ES3: Rainwater Harvesting Efficiency | ET3: Rainwater Harvesting Volume (gal) | EU3: Green Roof (Sq Ft/ Acre) | EV3: Biofiltration (Sq Ft/Acre) | EW3: Biofiltration % | EX3: Green Roof Water Harvesting (Sq Ft/Acre) | EY3: Rainwater Harvesting (Sq Ft/Acre) | EZ3: Green Roof Volume (Gal/ Acre) | FA3: Biofiltration Volume (Gal/Acre) | FB3: Rainwater Harvesting Volume (Gal/Acre) | FC3: Annual Reduction in Runoff (gal/ acre) | FD3: Avoided stormwater costs | FE3: Annual cooling (kWh/ acre) | FF3: Annual cooling savings ($/ acre) | FG3: Annual heating Savings (BTU/ acre) | FH3: Annual heating savings ($/ acre) | FI3: Annual NO2 uptake/ deposition (lbs/ acre) | FJ3: Annual O3 uptake/ deposition (lbs/ acre) | FK3: Annual SO2 uptake/ deposition (lbs/ acre) | FL3: Annual PM-10 uptake/ deposition (lbs/ acre) | FM3: NO2 Reduction from Lower Energy Production (lbs/ acre) | FN3: SO2 Reduction from Lower Energy Production (lbs/ acre) | FO3: Total NO2 Reduction (lbs/ acre) | FP3: Total SO2 Reduction (lbs/ acre) | FQ3: Value of NO2 Reduction per acre | FR3: Value of O3 Reduction per acre | FS3: Value of SO2 Reduction per acre | FT3: Value of PM-10 Reduction per acre | FU3: Total Value of Pollutant Reduction per acre | FV3: Annual Amount of CO2 Sequestered (lbs/ acre) | FW3: Avoided CO2 Emissions from Energy Savings (lbs/ acre) | FX3: Total CO2 Sequestered/ avoided per acre | FY3: Annual Climage Benefit ($/ acre) | FZ3: Annual Reduction in Runoff (gal/ acre) | GA3: Avoided stormwater costs | GB3: Annual NO2 uptake/ deposition (lbs/ acre) | GC3: Annual O3 uptake/ deposition (lbs/ acre) | GD3: Annual SO2 uptake/ deposition (lbs/ acre) | GE3: Annual PM-10 uptake/ deposition (lbs/ acre) | GF3: Value of NO2 Reduction per acre | GG3: Value of O3 Reduction per acre | GH3: Value of SO2 Reduction per acre | GI3: Value of PM-10 Reduction per acre | GJ3: Total Value of Pollutant Reduction per acre | GK3: Annual Amount of Carbon Sequestered (lbs/ acre) | GL3: Annual Climage Benefit ($/ acre) | GM3: Annual Reduction in Runoff (gal/ acre) | GN3: Avoided stormwater costs | GO3: Annual Reduction in Runoff (gal/ acre) | GP3: Avoided stormwater costs | GQ3: Total Energy Savings ($/ acre) | GR3: Total NO2 Reduction (lbs/ acre) | GS3: Total O3 reduction (lbs/ acre) | GT3: Total SO2 Reduction (lbs/ acre) | GU3: Total PM-10 reduction (lbs/ acre) | GV3: Total Pollutant reduction (lbs/ acre) | GW3: Value of NO2 Reduction per acre | GX3: Value of O3 Reduction per acre | GY3: Value of SO2 Reductionper acre | GZ3: Value of PM-10 Reduction per acre | HA3: Total Value of Pollutant Reduction ($/ acre) | HB3: Total CO2 Sequestered/ avoided (lbs/ acre) | HC3: Annual Climate Benefit ($/ acre) | HD3: Required Water Quality Volume (gal) | HE3: Conventional Water Quality Volume (gal) | HF3: Required Water Quality Volume (gal/ acre) | HG3: Conventional Facility Runoff Capture (gal/ acre) | HH3: Green Infrastructure Runoff Capture (gal/ acre) | HI3: Total Suspended Solids load (lbs) | HJ3: Total Nitrogen load (lbs) | HK3: Total Lead load (lbs) | HL3: F Coli load (1,000 colonies) | HM3: Total Suspended Solids removed (lbs) | HN3: Total Nitrogen removed (lbs) | HO3: Total Lead removed (lbs) | HP3: F Coli removed (1,000 colonies) | HQ3: Total Suspended Solids load (lbs/ acre) | HR3: Total Nitrogen load (lbs/ acre) | HS3: Total Lead load (lbs/ acre) | HT3: F Coli load (1,000 colonies/ acre) | HU3: Total Suspended Solids removed (lbs/ acre) | HV3: Total Nitrogen removed (lbs/ acre) | HW3: Total Lead removed (lbs/ acre) | HX3: F Coli removed (1,000 colonies/ acre) | HY3: EPA MXD Daily Residential Trips | HZ3: EPA MXD Daily Retail Trips | IA3: EPA MXD Daily Office/Public Trips | IB3: EPA MXD Daily Education Trips | IC3: EPA MXD Daily Other Trips | ID3: EPA MXD Daily Residential VMT | IE3: EPA MXD Daily Retail VMT | IF3: EPA MXD Daily Office/Public VMT | IG3: EPA MXD Daily Education VMT | IH3: EPA MXD Daily Other VMT
A4: 1 | I4: =B_Lot_Size*B_FAR -> 0 | K4: =IF(B_Housing_Type="MF",B_Res_per,0) -> 0 | L4: =IF(B_Housing_Type="TH",B_Res_per,0) -> 0 | M4: =IF(B_Housing_Type="SF",B_Res_per,0) -> 0 | N4: =IF(B_SF_per>0,IF((B_Lot_Size/B_HU_Building)<=SF_Small_Lot_Size,B_SF_per,0),0) -> 0 | O4: =IF(B_SF_per>0,IF(AND((B_Lot_Size/B_HU_Building)>SF_Small_Lot_Size,(B_Lot_Size/B_HU_Building)<SF_Large_Lot_Size),B_SF_per,0),0) -> 0 | P4: =IF(B_SF_per>0,IF((B_Lot_Size/B_HU_Building)>=SF_Large_Lot_Size,B_SF_per,0),0) -> 0 | Q4: =IF(B_Housing_Type="MH",B_Res_per,0) -> 0 | R4: =SUM(S4:Y4) -> 0 | AA4: =B_Gross_Bldg_Sq_Ft*B_Res_per -> 0 | AD4: =IF(B_Gross_Sq_Ft_per_Unit=0,0,(B_Residential_Sq_Ft/B_Gross_Sq_Ft_per_Unit)) -> 0 | AE4: =IF(B_Gross_Sq_Ft_per_Unit=0,0,(B_Residential_Sq_Ft/B_Gross_Sq_Ft_per_Unit)*(43560/B_Lot_Size)) -> 0 | AH4: =IF(B_Pct_Renter="",0,IF(B_HU_Acre=0,0,IF(B_Pct_Renter=1,0,IF(B_Pct_Renter=0,1,1-B_Pct_Renter)))) -> 0 | AK4: =IF(B_Pct_Renter=0,0,B_Net_Sq_Ft_per_Unit*B_Rent_SqFt) -> 0 | AM4: =IF(B_Pct_Owner=0,0,B_Sales_Price_SqFt*B_Net_Sq_Ft_per_Unit) -> 0 | AN4: =IF(B_Avg_Sales_Price>0,(B_HH_Income*HCost_Max_per_Income_Owner)/12,0) -> 0 | AO4: =IF(B_Housing_Type="",0,IF(B_Housing_Type="MF",Info_Vac_Rate_MF,IF(B_Housing_Type="TH",Info_Vac_Rate_TH,IF(B_Housing_Type="SF",Info_Vac_Rate_SF,IF(B_Housing_Type="MH",Info_Vac_Rate_MH,0))))) -> 0 | AP4: =B_HU_Acre*(1-B_Vacancy_Rate) -> 0 | AQ4: =IF(B_Housing_Type="MF",IF((B_Net_Sq_Ft_per_Unit/Info_Sq_Ft_Res_MF)>Info_Max_HH_Size_MF,Info_Max_HH_Size_MF,B_Net_Sq_Ft_per_Unit/Info_Sq_Ft_Res_MF),IF(B_Housing_Type="TH",IF((B_Net_Sq_Ft_per_Unit/Info_Sq_Ft_Res_TH)>Info_Max_HH_Size_TH,Info_Max_HH_Size_TH,B_Net_Sq_Ft_per_Unit/Info_Sq_Ft_Res_TH),IF(B_Housing_Type="SF",IF((B_Net_Sq_Ft_per_Unit/Info_Sq_Ft_Res_SF)>Info_Max_HH_Size_SF,Info_Max_HH_Size_SF,B_Net_Sq_Ft_per_Unit/Info_Sq_Ft_Res_SF),IF(B_Housing_Type="MH",IF((B_Net_Sq_Ft_per_Unit/Info_Sq_Ft_Res_MH)>Info_Max_HH_Size_MH,Info_Max_HH_Size_MH,B_Net_Sq_Ft_per_Unit/Info_Sq_Ft_Res_MH),0)))) -> 0 | AR4: =B_HH_Size*WorkersHH -> 0 | AS4: =IF(B_HU_Acre=0,0,IF(B_HU_Acre<School_Children_SF_Den,SUM(School_Children_Pub_SF,School_Children_Priv_SF),IF(B_HU_Acre<School_Children_TH_Den,SUM(School_Children_Pub_TH,School_Children_Priv_TH),IF(B_HU_Acre>=School_Children_TH_Den,SUM(School_Children_Pub_MF,School_Children_Priv_MF),0)))) -> 0 | AT4: =IF(B_Pct_Renter=1,B_Avg_Rent*12/HCost_Max_per_Income_Renter,IF(B_Pct_Renter=0,(12/HCost_Max_per_Income_Owner)*(B_Avg_Sales_Price*((HCost_Interest_Rate/12*POWER(1+HCost_Interest_Rate/12,12*HCost_Mortgage_Yrs))/(POWER(1+HCost_Interest_Rate/12,12*HCost_Mortgage_Yrs)-1))),IF(OR(B_Pct_Renter>0,B_Pct_Renter<1),(B_Pct_Renter*B_Avg_Rent*(12/HCost_Max_per_Income_Renter))+(B_Pct_Owner*(12/HCost_Max_per_Income_Owner)*(B_Avg_Sales_Price*((HCost_Interest_Rate/12*POWER(1+HCost_Interest_Rate/12,12*HCost_Mortgage_Yrs))/(POWER(1+HCost_Interest_Rate/12,12*HCost_Mortgage_Yrs)-1))))))) -> 0 | AU4: =IF(B_EMP_Acre=0,0,((B_Ret_Emp_Acre/B_EMP_Acre*Wage_RET)+(B_OFF_Emp_Acre/B_EMP_Acre*Wage_OFF)+(B_IND_Emp_Acre/B_EMP_Acre*Wage_IND)+(B_Pub_Emp_Acre/B_EMP_Acre*Wage_OFF)+(B_Edu_Emp_Acre/B_EMP_Acre*Wage_EDU)+(B_Hotel_Emp_Acre/B_EMP_Acre*Wage_HOTEL))) -> 0 | AV4: =B_RET_Gross_Sq_Ft+B_OFF_Gross_Sq_Ft+B_IND_Gross_Sq_Ft+B_PUB_Gross_Sq_Ft+B_EDU_Gross_Sq_Ft+B_Hotel_Gross_Sq_Ft+B_COMPRKG_Gross_Sq_Ft -> 0 | AW4: =B_EMP_Acre*(B_Lot_Size/43560) -> 0 | AX4: =B_Ret_Emp_Acre+B_OFF_Emp_Acre+B_IND_Emp_Acre+B_Pub_Emp_Acre+B_Edu_Emp_Acre+B_Hotel_Emp_Acre+B_COMPRKG_Emp_Acre -> 0 | AY4: =B_Ret_per*B_Gross_Bldg_Sq_Ft -> 0 | BB4: =IF(B_Ret_SqFt_per_EMP=0,0,(B_RET_Gross_Sq_Ft/B_Ret_SqFt_per_EMP)*(43560/B_Lot_Size)) -> 0 | BC4: =B_OFF_per*B_Gross_Bldg_Sq_Ft -> 0 | BF4: =IF(B_Off_SqFt_per_EMP=0,0,(B_OFF_Gross_Sq_Ft/B_Off_SqFt_per_EMP)*(43560/B_Lot_Size)) -> 0 | BG4: =B_IND_per*B_Gross_Bldg_Sq_Ft -> 0 | BJ4: =IF(B_IND_SqFt_per_EMP=0,0,(B_IND_Gross_Sq_Ft/B_IND_SqFt_per_EMP)*(43560/B_Lot_Size)) -> 0 | BK4: =B_Pub_Per*B_Gross_Bldg_Sq_Ft -> 0 | BN4: =IF(B_Pub_SqFt_per_EMP=0,0,(B_PUB_Gross_Sq_Ft/B_Pub_SqFt_per_EMP)*(43560/B_Lot_Size)) -> 0 | BO4: =B_Edu_Per*B_Gross_Bldg_Sq_Ft -> 0 | BR4: =IF(B_Edu_SqFt_per_EMP=0,0,(B_EDU_Gross_Sq_Ft/B_Edu_SqFt_per_EMP)*(43560/B_Lot_Size)) -> 0 | BS4: =B_Hotel_Per*B_Gross_Bldg_Sq_Ft -> 0 | BV4: =IF(B_Hotel_SqFt_per_EMP=0,0,(B_Hotel_Gross_Sq_Ft/B_Hotel_SqFt_per_EMP)*(43560/B_Lot_Size)) -> 0 | BY4: =IF(B_Hotel_Room_Gross=0,0,(B_Hotel_Gross_Sq_Ft/B_Hotel_Room_Gross)) -> 0 | BZ4: =IF(B_Hotel_Room_Gross=0,0,(B_Hotel_Gross_Sq_Ft/B_Hotel_Room_Gross)*(43560/B_Lot_Size)) -> 0 | CA4: =B_COMPRKG_per*B_Gross_Bldg_Sq_Ft -> 0 | CD4: =IF(B_COMPRKG_SqFt_per_EMP=0,0,(B_COMPRKG_Gross_Sq_Ft/B_COMPRKG_SqFt_per_EMP)*(43560/B_Lot_Size)) -> 0 | CI4: =IF(B_Project_Value=0,0,B_Parking_Cost/B_Project_Value) -> 0 | CJ4: =IFERROR(IF(B_Housing_Type="SF",EXP('Residential Energy Coefficients'!$B$3+'Residential Energy Coefficients'!$B$4*LN(B_Net_Sq_Ft_per_Unit)+'Residential Energy Coefficients'!$B$9+'Residential Energy Coefficients'!$B$10*LN(B_HH_Income)+'Residential Energy Coefficients'!$B$16*LN(Residential_Energy_Cost)+'Residential Energy Coefficients'!$B$20+'Residential Energy Coefficients'!$B$24*IFERROR(LOOKUP(Metro_Select,Energy_Metro_Lookup,HDD),0)),IF(B_Housing_Type="TH",EXP('Residential Energy Coefficients'!$E$3+'Residential Energy Coefficients'!$E$4*LN(B_Net_Sq_Ft_per_Unit)+'Residential Energy Coefficients'!$E$9+'Residential Energy Coefficients'!$E$16*LN(Residential_Energy_Cost)+'Residential Energy Coefficients'!$E$19+'Residential Energy Coefficients'!$E$20+'Residential Energy Coefficients'!$E$24*IFERROR(LOOKUP(Metro_Select,Energy_Metro_Lookup,HDD),0)),IF(B_Housing_Type="MF",EXP('Residential Energy Coefficients'!$H$3+'Residential Energy Coefficients'!$H$4*LN(B_Net_Sq_Ft_per_Unit)+'Residential Energy Coefficients'!$H$9+IF(B_Pct_Owner=1,'Residential Energy Coefficients'!$H$12,0)+'Residential Energy Coefficients'!$H$16*LN(Residential_Energy_Cost)+'Residential Energy Coefficients'!$H$20+'Residential Energy Coefficients'!$H$24*IFERROR(LOOKUP(Metro_Select,Energy_Metro_Lookup,HDD),0)),IF(B_Hotel_Room_Acre>0,EXP('Residential Energy Coefficients'!$H$3+'Residential Energy Coefficients'!$H$4*LN(B_Hotel_Room_Net)+'Residential Energy Coefficients'!$H$9+'Residential Energy Coefficients'!$H$16*LN(Residential_Energy_Cost)+'Residential Energy Coefficients'!$H$20+'Residential Energy Coefficients'!$H$24*IFERROR(LOOKUP(Metro_Select,Energy_Metro_Lookup,HDD),0)),IF(B_Housing_Type="MH",EXP('Residential Energy Coefficients'!$K$3+'Residential Energy Coefficients'!$K$16*LN(Residential_Energy_Cost)+'Residential Energy Coefficients'!$K$24*IFERROR(LOOKUP(Metro_Select,Energy_Metro_Lookup,HDD),0)),0)))))/1000,0) -> 0 | CK4: =IFERROR(IF(B_Housing_Type="SF",EXP('Residential Energy Coefficients'!$C$3+'Residential Energy Coefficients'!$C$4*LN(B_Net_Sq_Ft_per_Unit)+'Residential Energy Coefficients'!$C$10*LN(B_HH_Income)+'Residential Energy Coefficients'!$C$11*B_HH_Size+'Residential Energy Coefficients'!$C$16*LN(Residential_Energy_Cost)+'Residential Energy Coefficients'!$C$19+'Residential Energy Coefficients'!$C$22+'Residential Energy Coefficients'!$C$25*IFERROR(LOOKUP(Metro_Select,Energy_Metro_Lookup,CDD),0)),IF(B_Housing_Type="TH",EXP('Residential Energy Coefficients'!$F$3+'Residential Energy Coefficients'!$F$4*LN(B_Net_Sq_Ft_per_Unit)+'Residential Energy Coefficients'!$F$10*LN(B_HH_Income)+'Residential Energy Coefficients'!$F$11*B_HH_Size+IF(B_Pct_Owner=1,'Residential Energy Coefficients'!$F$12,0)+'Residential Energy Coefficients'!$F$16*LN(Residential_Energy_Cost)+'Residential Energy Coefficients'!$F$22+'Residential Energy Coefficients'!$F$25*IFERROR(LOOKUP(Metro_Select,Energy_Metro_Lookup,CDD),0)),IF(B_Housing_Type="MF",EXP('Residential Energy Coefficients'!$I$3+'Residential Energy Coefficients'!$I$4*LN(B_Net_Sq_Ft_per_Unit)+'Residential Energy Coefficients'!$I$9+'Residential Energy Coefficients'!$I$11*B_HH_Size+'Residential Energy Coefficients'!$I$16*LN(Residential_Energy_Cost)+'Residential Energy Coefficients'!$I$22+'Residential Energy Coefficients'!$I$25*IFERROR(LOOKUP(Metro_Select,Energy_Metro_Lookup,CDD),0)),IF(B_Hotel_Room_Acre>0,EXP('Residential Energy Coefficients'!$I$3+'Residential Energy Coefficients'!$I$4*LN(B_Hotel_Room_Net)+'Residential Energy Coefficients'!$I$9+'Residential Energy Coefficients'!$I$11*1.25+'Residential Energy Coefficients'!$I$16*LN(Residential_Energy_Cost)+'Residential Energy Coefficients'!$I$22+'Residential Energy Coefficients'!$I$25*IFERROR(LOOKUP(Metro_Select,Energy_Metro_Lookup,CDD),0)),IF(B_Housing_Type="MH",EXP('Residential Energy Coefficients'!$L$3+'Residential Energy Coefficients'!$L$11*B_HH_Size+'Residential Energy Coefficients'!$L$16*LN(Residential_Energy_Cost)+'Residential Energy Coefficients'!$L$22+'Residential Energy Coefficients'!$L$25*IFERROR(LOOKUP(Metro_Select,Energy_Metro_Lookup,CDD),0)),0)))))/1000,0) -> 0 | CL4: =IFERROR(IF(B_Housing_Type="SF",EXP('Residential Energy Coefficients'!$D$3+'Residential Energy Coefficients'!$D$4*LN(B_Net_Sq_Ft_per_Unit)+'Residential Energy Coefficients'!$D$9+'Residential Energy Coefficients'!$D$10*LN(B_HH_Income)+'Residential Energy Coefficients'!$D$11*B_HH_Size+IF(B_Pct_Owner=1,'Residential Energy Coefficients'!$D$12,0)+'Residential Energy Coefficients'!$D$16*LN(Residential_Energy_Cost)),IF(B_Housing_Type="TH",EXP('Residential Energy Coefficients'!$G$3+'Residential Energy Coefficients'!$G$4*LN(B_Net_Sq_Ft_per_Unit)+'Residential Energy Coefficients'!$G$10*LN(B_HH_Income)+'Residential Energy Coefficients'!$G$11*B_HH_Size+'Residential Energy Coefficients'!$G$16*LN(Residential_Energy_Cost)),IF(B_Housing_Type="MF",EXP('Residential Energy Coefficients'!$J$3+'Residential Energy Coefficients'!$J$4*LN(B_Net_Sq_Ft_per_Unit)+'Residential Energy Coefficients'!$J$10*LN(B_HH_Income)+'Residential Energy Coefficients'!$J$11*B_HH_Size+IF(B_Pct_Owner=1,'Residential Energy Coefficients'!$J$12,0)+'Residential Energy Coefficients'!$J$16*LN(Residential_Energy_Cost)+'Residential Energy Coefficients'!$J$19),IF(B_Hotel_Room_Acre>0,EXP('Residential Energy Coefficients'!$J$3+'Residential Energy Coefficients'!$J$4*LN(B_Hotel_Room_Net)+'Residential Energy Coefficients'!$J$16*LN(Residential_Energy_Cost)+'Residential Energy Coefficients'!$J$19),IF(B_Housing_Type="MH",EXP('Residential Energy Coefficients'!$M$3+'Residential Energy Coefficients'!$M$4*LN(B_Net_Sq_Ft_per_Unit)+'Residential Energy Coefficients'!$M$11*B_HH_Size+'Residential Energy Coefficients'!$M$16*LN(Residential_Energy_Cost)+'Residential Energy Coefficients'!$M$19),0)))))/1000,0) -> 0 | CM4: =SUM(CJ4:CL4) -> 0 | CN4: =(IFERROR(EXP('Commercial Energy Coefficients'!$B$3+LN(B_RET_Gross_Sq_Ft)*'Commercial Energy Coefficients'!$B$4+'Commercial Energy Coefficients'!$B$11+'Commercial Energy Coefficients'!$B$14+'Commercial Energy Coefficients'!$B$18*LN((B_Ret_Emp_Acre)*(B_Lot_Size/43560))+'Commercial Energy Coefficients'!$B$19*LN(40)+'Commercial Energy Coefficients'!$B$21+'Commercial Energy Coefficients'!$B$22*LN(Commercial_Energy_Cost)+'Commercial Energy Coefficients'!$B$23*IFERROR(LOOKUP(Metro_Select,Energy_Metro_Lookup,HDD),0)),0)+IFERROR(EXP('Commercial Energy Coefficients'!$E$3+LN(B_OFF_Gross_Sq_Ft)*'Commercial Energy Coefficients'!$E$4+'Commercial Energy Coefficients'!$E$11+'Commercial Energy Coefficients'!$E$14+'Commercial Energy Coefficients'!$E$18*LN((B_OFF_Emp_Acre)*(B_Lot_Size/43560))+'Commercial Energy Coefficients'!$E$19*LN(40)+'Commercial Energy Coefficients'!$E$21+'Commercial Energy Coefficients'!$E$22*LN(Commercial_Energy_Cost)+'Commercial Energy Coefficients'!$E$23*IFERROR(LOOKUP(Metro_Select,Energy_Metro_Lookup,HDD),0)),0)+IFERROR(EXP('Commercial Energy Coefficients'!$H$3+LN(B_PUB_Gross_Sq_Ft)*'Commercial Energy Coefficients'!$H$4+'Commercial Energy Coefficients'!$H$11+'Commercial Energy Coefficients'!$H$14+'Commercial Energy Coefficients'!$H$18*LN((B_Pub_Emp_Acre)*(B_Lot_Size/43560))+'Commercial Energy Coefficients'!$H$19*LN(40)+'Commercial Energy Coefficients'!$H$21+'Commercial Energy Coefficients'!$H$22*LN(Commercial_Energy_Cost)+'Commercial Energy Coefficients'!$H$23*IFERROR(LOOKUP(Metro_Select,Energy_Metro_Lookup,HDD),0)),0))/1000 -> 0 | CO4: =(IFERROR(EXP('Commercial Energy Coefficients'!$C$3+LN((B_RET_Gross_Sq_Ft))*'Commercial Energy Coefficients'!$C$4+'Commercial Energy Coefficients'!$C$11+'Commercial Energy Coefficients'!$C$14+'Commercial Energy Coefficients'!$C$18*LN((B_Ret_Emp_Acre)*(B_Lot_Size/43560))+'Commercial Energy Coefficients'!$C$19*LN(40)+'Commercial Energy Coefficients'!$C$21+'Commercial Energy Coefficients'!$C$22*LN(Commercial_Energy_Cost)+'Commercial Energy Coefficients'!$C$24*IFERROR(LOOKUP(Metro_Select,Energy_Metro_Lookup,CDD),0)),0)+IFERROR(EXP('Commercial Energy Coefficients'!$F$3+LN((B_OFF_Gross_Sq_Ft))*'Commercial Energy Coefficients'!$F$4+'Commercial Energy Coefficients'!$F$11+'Commercial Energy Coefficients'!$F$14+'Commercial Energy Coefficients'!$F$18*LN((B_OFF_Emp_Acre)*(B_Lot_Size/43560))+'Commercial Energy Coefficients'!$F$19*LN(40)+'Commercial Energy Coefficients'!$F$21+'Commercial Energy Coefficients'!$F$22*LN(Commercial_Energy_Cost)+'Commercial Energy Coefficients'!$F$24*IFERROR(LOOKUP(Metro_Select,Energy_Metro_Lookup,CDD),0)),0)+IFERROR(EXP('Commercial Energy Coefficients'!$I$3+LN((B_PUB_Gross_Sq_Ft))*'Commercial Energy Coefficients'!$I$4+'Commercial Energy Coefficients'!$I$11+'Commercial Energy Coefficients'!$I$14+'Commercial Energy Coefficients'!$I$18*LN((B_Pub_Emp_Acre)*(B_Lot_Size/43560))+'Commercial Energy Coefficients'!$I$19*LN(40)+'Commercial Energy Coefficients'!$I$21+'Commercial Energy Coefficients'!$I$22*LN(Commercial_Energy_Cost)+'Commercial Energy Coefficients'!$I$24*IFERROR(LOOKUP(Metro_Select,Energy_Metro_Lookup,CDD),0)),0))/1000 -> 0 | CP4: =(IFERROR(EXP('Commercial Energy Coefficients'!$D$3+LN((B_RET_Gross_Sq_Ft))*'Commercial Energy Coefficients'!$D$4+'Commercial Energy Coefficients'!$D$14+'Commercial Energy Coefficients'!$D$18*LN((B_Ret_Emp_Acre)*(B_Lot_Size/43560))+'Commercial Energy Coefficients'!$D$19*LN(40)+'Commercial Energy Coefficients'!$D$21+'Commercial Energy Coefficients'!$D$22*LN(Commercial_Energy_Cost)),0)+IFERROR(EXP('Commercial Energy Coefficients'!$G$3+LN((B_OFF_Gross_Sq_Ft))*'Commercial Energy Coefficients'!$G$4+'Commercial Energy Coefficients'!$G$14+'Commercial Energy Coefficients'!$G$18*LN((B_OFF_Emp_Acre)*(B_Lot_Size/43560))+'Commercial Energy Coefficients'!$G$19*LN(40)+'Commercial Energy Coefficients'!$G$21+'Commercial Energy Coefficients'!$G$22*LN(Commercial_Energy_Cost)),0)+IFERROR(EXP('Commercial Energy Coefficients'!$J$3+LN((B_PUB_Gross_Sq_Ft))*'Commercial Energy Coefficients'!$J$4+'Commercial Energy Coefficients'!$J$14+'Commercial Energy Coefficients'!$J$18*LN((B_Pub_Emp_Acre)*(B_Lot_Size/43560))+'Commercial Energy Coefficients'!$J$19*LN(40)+'Commercial Energy Coefficients'!$J$21+'Commercial Energy Coefficients'!$J$22*LN(Commercial_Energy_Cost)),0))/1000 -> 0 | CQ4: =SUM(CN4:CP4) -> 0 | CR4: =IFERROR(B_Com_Energy_Use/B_EMP_Building,0) -> 0 | CS4: =IFERROR(B_Com_Energy_Use/B_Tot_EMP_SqFt,0) -> 0 | CT4: =(B_res_energy_use*(B_Hotel_Rooms_per_Building+B_HU_Building))+B_Com_Energy_Use -> 0 | CU4: =(B_res_energy_use*Residential_Energy_Cost)/12 -> 0 | CV4: =IFERROR((B_res_energy_use*SUMPRODUCT(Energy_Carbon_perMMBTU,Energy_Fuel_Mix)),0) -> 0 | CW4: =IFERROR((B_Com_Energy_Use_per_Emp*SUMPRODUCT(Energy_Carbon_perMMBTU,Energy_Fuel_Mix)),0) -> 0 | CX4: =B_Total_Bldg_Energy_Use*SUMPRODUCT(Energy_Carbon_perMMBTU,Energy_Fuel_Mix) -> 0 | CY4: =IFERROR(B_LW_Bldg/B_HU_Building,0) -> 0 | CZ4: =IF((B_Lot_Size*B_Landscaping_Lot_Coverage)>Maximum_Watered_Lawn_Area*43560,Maximum_Watered_Lawn_Area*43560*Water_per_Sq_Foot_of_Lawn_Area,B_Lot_Size*B_Landscaping_Lot_Coverage*Water_per_Sq_Foot_of_Lawn_Area) -> 0 | DA4: =IF(OR(B_Housing_Type="MF",B_Hotel_Room_Acre>0),Info_IW_MF,IF(B_Housing_Type="TH",Info_IW_TH,IF(AND(OR(B_Housing_Type="SF",B_Housing_Type="MH"),B_Net_Sq_Ft_per_Unit>0,B_Net_Sq_Ft_per_Unit<3000),Info_IW_MD_SF,IF(AND(OR(B_Housing_Type="SF",B_Housing_Type="MH"),B_Net_Sq_Ft_per_Unit>=3000),Info_IW_LRG_SF,0)))) -> 0 | DB4: =(B_IW_Res*B_HH_Size) -> 0 | DC4: =IF(B_EMP_Acre=0,0,(B_Ret_Emp_Acre/B_EMP_Acre*Info_IW_RET)+(B_OFF_Emp_Acre/B_EMP_Acre*Info_IW_OFF)+(B_IND_Emp_Acre/B_EMP_Acre*Info_IW_IND)) -> 0 | DD4: =(B_HU_Building*B_IW_Res)+(B_EMP_Building*B_IW_Emp) -> 0 | DE4: =IF(B_Housing_Type="",0,IF(B_Housing_Type="MF",Info_WW_MF,IF(B_Housing_Type="TH",Info_WW_TH,IF(AND(B_Housing_Type="SF",B_Net_Sq_Ft_per_Unit>0,B_Net_Sq_Ft_per_Unit<3000),Info_WW_MD_SF,IF(AND(B_Housing_Type="SF",B_Net_Sq_Ft_per_Unit>=3000),Info_WW_LRG_SF))))) -> 0 | DF4: =(B_WW_Res*B_HH_Size) -> 0 | DG4: =IF(B_EMP_Acre=0,0,(B_Ret_Emp_Acre/B_EMP_Acre*Info_WW_RET)+(B_OFF_Emp_Acre/B_EMP_Acre*Info_WW_OFF)+(B_IND_Emp_Acre/B_EMP_Acre*Info_WW_IND)) -> 0 | DH4: =(B_HU_Building*B_WW_Res)+(B_EMP_Building*B_WW_Emp) -> 0 | DI4: =IF(B_Housing_Type="",0,IF(B_Housing_Type="MF",'Project Info'!$B$160,IF(B_Housing_Type="TH",'Project Info'!$B$161,IF(AND(B_Housing_Type="SF",B_Net_Sq_Ft_per_Unit>0,B_Net_Sq_Ft_per_Unit<3000),'Project Info'!$B$162,IF(AND(B_Housing_Type="SF",B_Net_Sq_Ft_per_Unit>=3000),'Project Info'!$B$163))))) -> 0 | DJ4: =(B_SW_Res*B_HH_Size) -> 0 | DK4: =IF(B_EMP_Acre=0,0,(B_Ret_Emp_Acre/B_EMP_Acre*Info_SW_RET)+(B_OFF_Emp_Acre/B_EMP_Acre*Info_SW_OFF)+(B_IND_Emp_Acre/B_EMP_Acre*Info_SW_IND)) -> 0 | DL4: =(B_HU_Building*B_SW_Res)+(B_EMP_Building*B_SW_Emp) -> 0 | DN4: =B_Land_Cost_SqFt*B_Lot_Size -> 0 | DO4: =IF(B_Lot_Size=0,0,B_Land_Cost_Lot*(43560/B_Lot_Size)) -> 0 | DQ4: =B_Land_Cost_SqFt*B_Lot_Size -> 0 | DR4: =IF(B_Lot_Size=0,0,B_Land_Cost_Lot*(43560/B_Lot_Size)) -> 0 | DT4: =IF(B_Lot_Size=0,0,B_Project_Value*(43560/B_Lot_Size)) -> 0 | DY4: =IF(B_HU_Building=0,0,(B_Res_per*B_Subsidy)/B_HU_Building) -> 0 | DZ4: =IF(B_Lot_Size=0,0,B_Project_Subsidy*(43560/B_Lot_Size)) -> 0 | EB4: =IF(B_Lot_Size=0,0,B_Impact_Fees*(43560/B_Lot_Size)) -> 0 | EF4: =IFERROR(B_Property_Tax_Revenue*(43560/B_Lot_Size),0) -> 0 | EG4: =Sales_Tax_Rate*Sales_per_SqFt*B_RET_Gross_Sq_Ft -> 0 | EH4: =IFERROR(B_Sales_Tax_Revenue*(43560/B_Lot_Size),0) -> 0 | EI4: =IFERROR(B_FAR/MAX(B_FAR),0) -> 0 | EU4: =EJ4*C4/43560 -> 0 | EV4: =EM4*$C4/43560 -> 0 | EX4: =EP4*$C4/43560 -> 0 | EY4: =ER4*$C4/43560 -> 0 | EZ4: =EL4*G4/43560 -> 0 | FA4: =EO4*$C4/43560 -> 0 | FB4: =ET4*$C4/43560 -> 0 | FC4: =Average_annual_rainfall_in*$EU4*$EK4*144*0.00433 -> 0 | FE4: =Annual_Cooling_degree_days*24*(1/R_conventional_SF_F_hrs_BTU-1/R_green_roof_SF_F_hrs_Btu)/3412*'Building Inputs'!$EU4 -> 0 | FF4: =FE4*Cost_per_kWh -> 0 | FG4: =Annual_Heating_degree_days*24*(1/R_conventional_SF_F_hrs_BTU-1/R_green_roof_SF_F_hrs_Btu)*'Building Inputs'!$EU4 -> 0 | FH4: =FG4*Cost_per_BUT -> 0 | FI4: =Avg_Annual_NO2_uptake*'Building Inputs'!$EU4 -> 0 | FJ4: =Avg_Annual_O3_uptake*'Building Inputs'!$EU4 -> 0 | FK4: =Avg_Annual_SO2_uptake*'Building Inputs'!$EU4 -> 0 | FL4: =Avg_Annual_PM_10_uptake*'Building Inputs'!$EU4 -> 0 | FM4: =FE4*Electricity_Emmission_rates_NO2+FG4*Natural_Gas_Emmission_rates_NO2 -> 0 | FN4: =FE4*Electricity_Emmission_rates_SO2+FG4*Natural_Gas_Emmission_rates_SO2 -> 0 | FO4: =FI4+FM4 -> 0 | FP4: =FK4+FN4 -> 0 | FQ4: =FO4*NO2_price_lb -> 0 | FR4: =FJ4*O3_price_lb -> 0 | FS4: =FP4*SO2_price_lb -> 0 | FT4: =FL4*PM_10_price_lb -> 0 | FU4: =SUM(FQ4:FT4) -> 0 | FV4: =Avg_amount_of_carbon_sequestered_lbs_SF*'Building Inputs'!$EU4*3.67 -> 0 | FW4: =FE4*Electricity_Emmission_rate_CO2+FG4*Natural_gas_Emmission_rate_CO2 -> 0 | FX4: =FV4+FW4 -> 0 | FY4: =FX4*CO2_price_lb -> 0 | FZ4: =Average_annual_rainfall_in*($C4*(1-$E4)+$EM4-$EJ4-$ER4)*$C4/43560*'Building Inputs'!$EN4*144*0.00433 -> 0 | GB4: =Avg_Annual_NO2_uptake*'Building Inputs'!$EV4 -> 0 | GC4: =Avg_Annual_O3_uptake*'Building Inputs'!$EV4 -> 0 | GD4: =Avg_Annual_SO2_uptake*'Building Inputs'!$EV4 -> 0 | GE4: =Avg_Annual_PM_10_uptake*'Building Inputs'!$EV4 -> 0 | GF4: =GB4*NO2_price_lb -> 0 | GG4: =GC4*O3_price_lb -> 0 | GH4: =GD4*SO2_price_lb -> 0 | GI4: =GE4*PM_10_price_lb -> 0 | GJ4: =SUM(GF4:GI4) -> 0 | GK4: =Avg_amount_of_carbon_sequestered_lbs_SF*'Building Inputs'!$EV4*3.67 -> 0 | GL4: =GK4*CO2_price_lb -> 0 | GM4: =Average_annual_rainfall_in*('Building Inputs'!$EX4*'Building Inputs'!$EQ4+'Building Inputs'!$EY4*'Building Inputs'!$ES4)*144*0.00433 -> 0 | GN4: ? | GO4: =FC4+FZ4+GM4 -> 0 | GQ4: =FF4+FH4 -> 0 | GR4: =FO4+GB4 -> 0 | GS4: =FJ4+GC4 -> 0 | GT4: =FP4+GD4 -> 0 | GU4: =FL4+GE4 -> 0 | GV4: =SUM(GR4:GU4) -> 0 | GW4: =GR4*NO2_price_lb -> 0 | GX4: =GS4*O3_price_lb -> 0 | GY4: =GT4*SO2_price_lb -> 0 | GZ4: =GU4*PM_10_price_lb -> 0 | HA4: =SUM(GW4:GZ4) -> 0 | HB4: =FX4+GK4 -> 0 | HC4: =HB4*CO2_price_lb -> 0 | HF4: =HD4*C4/43560 -> 0 | HG4: =HE4*C4/43560 -> 0 | HH4: =(EL4+EO4+ET4)*C4/43560 -> 0 | HQ4: =HI4*$C4/43560 -> 0 | HR4: 0 | HS4: 0 | HT4: 0 | HU4: =HM4*$C4/43560 -> 0 | HV4: =HN4*$C4/43560 -> 0 | HW4: =HO4*$C4/43560 -> 0 | HX4: =HP4*$C4/43560 -> 0
A5: 2 | I5: 0 | K5: 0 | L5: 0 | M5: 0 | N5: 0 | O5: 0 | P5: 0 | Q5: 0 | R5: 0 | AA5: 0 | AD5: 0 | AE5: 0 | AH5: 0 | AK5: 0 | AM5: 0 | AN5: 0 | AO5: 0 | AP5: 0 | AQ5: 0 | AR5: 0 | AS5: 0 | AT5: 0 | AU5: 0 | AV5: 0 | AW5: 0 | AX5: 0 | AY5: 0 | BB5: 0 | BC5: 0 | BF5: 0 | BG5: 0 | BJ5: 0 | BK5: 0 | BN5: 0 | BO5: 0 | BR5: 0 | BS5: 0 | BV5: 0 | BY5: 0 | BZ5: 0 | CA5: 0 | CD5: 0 | CI5: 0 | CJ5: =IFERROR(IF(B_Housing_Type="SF",EXP('Residential Energy Coefficients'!$B$3+'Residential Energy Coefficients'!$B$4*LN(B_Net_Sq_Ft_per_Unit)+'Residential Energy Coefficients'!$B$9+'Residential Energy Coefficients'!$B$10*LN(B_HH_Income)+'Residential Energy Coefficients'!$B$16*LN(Residential_Energy_Cost)+'Residential Energy Coefficients'!$B$20+'Residential Energy Coefficients'!$B$24*IFERROR(LOOKUP(Metro_Select,Energy_Metro_Lookup,HDD),0)),IF(B_Housing_Type="TH",EXP('Residential Energy Coefficients'!$E$3+'Residential Energy Coefficients'!$E$4*LN(B_Net_Sq_Ft_per_Unit)+'Residential Energy Coefficients'!$E$9+'Residential Energy Coefficients'!$E$16*LN(Residential_Energy_Cost)+'Residential Energy Coefficients'!$E$19+'Residential Energy Coefficients'!$E$20+'Residential Energy Coefficients'!$E$24*IFERROR(LOOKUP(Metro_Select,Energy_Metro_Lookup,HDD),0)),IF(B_Housing_Type="MF",EXP('Residential Energy Coefficients'!$H$3+'Residential Energy Coefficients'!$H$4*LN(B_Net_Sq_Ft_per_Unit)+'Residential Energy Coefficients'!$H$9+IF(B_Pct_Owner=1,'Residential Energy Coefficients'!$H$12,0)+'Residential Energy Coefficients'!$H$16*LN(Residential_Energy_Cost)+'Residential Energy Coefficients'!$H$20+'Residential Energy Coefficients'!$H$24*IFERROR(LOOKUP(Metro_Select,Energy_Metro_Lookup,HDD),0)),IF(B_Hotel_Room_Acre>0,EXP('Residential Energy Coefficients'!$H$3+'Residential Energy Coefficients'!$H$4*LN(B_Hotel_Room_Net)+'Residential Energy Coefficients'!$H$9+'Residential Energy Coefficients'!$H$16*LN(Residential_Energy_Cost)+'Residential Energy Coefficients'!$H$20+'Residential Energy Coefficients'!$H$24*IFERROR(LOOKUP(Metro_Select,Energy_Metro_Lookup,HDD),0)),IF(B_Housing_Type="MH",EXP('Residential Energy Coefficients'!$K$3+'Residential Energy Coefficients'!$K$16*LN(Residential_Energy_Cost)+'Residential Energy Coefficients'!$K$24*IFERROR(LOOKUP(Metro_Select,Energy_Metro_Lookup,HDD),0)),0)))))/1000,0) -> 0 | CK5: =IFERROR(IF(B_Housing_Type="SF",EXP('Residential Energy Coefficients'!$C$3+'Residential Energy Coefficients'!$C$4*LN(B_Net_Sq_Ft_per_Unit)+'Residential Energy Coefficients'!$C$10*LN(B_HH_Income)+'Residential Energy Coefficients'!$C$11*B_HH_Size+'Residential Energy Coefficients'!$C$16*LN(Residential_Energy_Cost)+'Residential Energy Coefficients'!$C$19+'Residential Energy Coefficients'!$C$22+'Residential Energy Coefficients'!$C$25*IFERROR(LOOKUP(Metro_Select,Energy_Metro_Lookup,CDD),0)),IF(B_Housing_Type="TH",EXP('Residential Energy Coefficients'!$F$3+'Residential Energy Coefficients'!$F$4*LN(B_Net_Sq_Ft_per_Unit)+'Residential Energy Coefficients'!$F$10*LN(B_HH_Income)+'Residential Energy Coefficients'!$F$11*B_HH_Size+IF(B_Pct_Owner=1,'Residential Energy Coefficients'!$F$12,0)+'Residential Energy Coefficients'!$F$16*LN(Residential_Energy_Cost)+'Residential Energy Coefficients'!$F$22+'Residential Energy Coefficients'!$F$25*IFERROR(LOOKUP(Metro_Select,Energy_Metro_Lookup,CDD),0)),IF(B_Housing_Type="MF",EXP('Residential Energy Coefficients'!$I$3+'Residential Energy Coefficients'!$I$4*LN(B_Net_Sq_Ft_per_Unit)+'Residential Energy Coefficients'!$I$9+'Residential Energy Coefficients'!$I$11*B_HH_Size+'Residential Energy Coefficients'!$I$16*LN(Residential_Energy_Cost)+'Residential Energy Coefficients'!$I$22+'Residential Energy Coefficients'!$I$25*IFERROR(LOOKUP(Metro_Select,Energy_Metro_Lookup,CDD),0)),IF(B_Hotel_Room_Acre>0,EXP('Residential Energy Coefficients'!$I$3+'Residential Energy Coefficients'!$I$4*LN(B_Hotel_Room_Net)+'Residential Energy Coefficients'!$I$9+'Residential Energy Coefficients'!$I$11*1.25+'Residential Energy Coefficients'!$I$16*LN(Residential_Energy_Cost)+'Residential Energy Coefficients'!$I$22+'Residential Energy Coefficients'!$I$25*IFERROR(LOOKUP(Metro_Select,Energy_Metro_Lookup,CDD),0)),IF(B_Housing_Type="MH",EXP('Residential Energy Coefficients'!$L$3+'Residential Energy Coefficients'!$L$11*B_HH_Size+'Residential Energy Coefficients'!$L$16*LN(Residential_Energy_Cost)+'Residential Energy Coefficients'!$L$22+'Residential Energy Coefficients'!$L$25*IFERROR(LOOKUP(Metro_Select,Energy_Metro_Lookup,CDD),0)),0)))))/1000,0) -> 0 | CL5: =IFERROR(IF(B_Housing_Type="SF",EXP('Residential Energy Coefficients'!$D$3+'Residential Energy Coefficients'!$D$4*LN(B_Net_Sq_Ft_per_Unit)+'Residential Energy Coefficients'!$D$9+'Residential Energy Coefficients'!$D$10*LN(B_HH_Income)+'Residential Energy Coefficients'!$D$11*B_HH_Size+IF(B_Pct_Owner=1,'Residential Energy Coefficients'!$D$12,0)+'Residential Energy Coefficients'!$D$16*LN(Residential_Energy_Cost)),IF(B_Housing_Type="TH",EXP('Residential Energy Coefficients'!$G$3+'Residential Energy Coefficients'!$G$4*LN(B_Net_Sq_Ft_per_Unit)+'Residential Energy Coefficients'!$G$10*LN(B_HH_Income)+'Residential Energy Coefficients'!$G$11*B_HH_Size+'Residential Energy Coefficients'!$G$16*LN(Residential_Energy_Cost)),IF(B_Housing_Type="MF",EXP('Residential Energy Coefficients'!$J$3+'Residential Energy Coefficients'!$J$4*LN(B_Net_Sq_Ft_per_Unit)+'Residential Energy Coefficients'!$J$10*LN(B_HH_Income)+'Residential Energy Coefficients'!$J$11*B_HH_Size+IF(B_Pct_Owner=1,'Residential Energy Coefficients'!$J$12,0)+'Residential Energy Coefficients'!$J$16*LN(Residential_Energy_Cost)+'Residential Energy Coefficients'!$J$19),IF(B_Hotel_Room_Acre>0,EXP('Residential Energy Coefficients'!$J$3+'Residential Energy Coefficients'!$J$4*LN(B_Hotel_Room_Net)+'Residential Energy Coefficients'!$J$16*LN(Residential_Energy_Cost)+'Residential Energy Coefficients'!$J$19),IF(B_Housing_Type="MH",EXP('Residential Energy Coefficients'!$M$3+'Residential Energy Coefficients'!$M$4*LN(B_Net_Sq_Ft_per_Unit)+'Residential Energy Coefficients'!$M$11*B_HH_Size+'Residential Energy Coefficients'!$M$16*LN(Residential_Energy_Cost)+'Residential Energy Coefficients'!$M$19),0)))))/1000,0) -> 0 | CM5: =SUM(CJ5:CL5) -> 0 | CN5: =(IFERROR(EXP('Commercial Energy Coefficients'!$B$3+LN(B_RET_Gross_Sq_Ft)*'Commercial Energy Coefficients'!$B$4+'Commercial Energy Coefficients'!$B$11+'Commercial Energy Coefficients'!$B$14+'Commercial Energy Coefficients'!$B$18*LN((B_Ret_Emp_Acre)*(B_Lot_Size/43560))+'Commercial Energy Coefficients'!$B$19*LN(40)+'Commercial Energy Coefficients'!$B$21+'Commercial Energy Coefficients'!$B$22*LN(Commercial_Energy_Cost)+'Commercial Energy Coefficients'!$B$23*IFERROR(LOOKUP(Metro_Select,Energy_Metro_Lookup,HDD),0)),0)+IFERROR(EXP('Commercial Energy Coefficients'!$E$3+LN(B_OFF_Gross_Sq_Ft)*'Commercial Energy Coefficients'!$E$4+'Commercial Energy Coefficients'!$E$11+'Commercial Energy Coefficients'!$E$14+'Commercial Energy Coefficients'!$E$18*LN((B_OFF_Emp_Acre)*(B_Lot_Size/43560))+'Commercial Energy Coefficients'!$E$19*LN(40)+'Commercial Energy Coefficients'!$E$21+'Commercial Energy Coefficients'!$E$22*LN(Commercial_Energy_Cost)+'Commercial Energy Coefficients'!$E$23*IFERROR(LOOKUP(Metro_Select,Energy_Metro_Lookup,HDD),0)),0)+IFERROR(EXP('Commercial Energy Coefficients'!$H$3+LN(B_PUB_Gross_Sq_Ft)*'Commercial Energy Coefficients'!$H$4+'Commercial Energy Coefficients'!$H$11+'Commercial Energy Coefficients'!$H$14+'Commercial Energy Coefficients'!$H$18*LN((B_Pub_Emp_Acre)*(B_Lot_Size/43560))+'Commercial Energy Coefficients'!$H$19*LN(40)+'Commercial Energy Coefficients'!$H$21+'Commercial Energy Coefficients'!$H$22*LN(Commercial_Energy_Cost)+'Commercial Energy Coefficients'!$H$23*IFERROR(LOOKUP(Metro_Select,Energy_Metro_Lookup,HDD),0)),0))/1000 -> 0 | CO5: =(IFERROR(EXP('Commercial Energy Coefficients'!$C$3+LN((B_RET_Gross_Sq_Ft))*'Commercial Energy Coefficients'!$C$4+'Commercial Energy Coefficients'!$C$11+'Commercial Energy Coefficients'!$C$14+'Commercial Energy Coefficients'!$C$18*LN((B_Ret_Emp_Acre)*(B_Lot_Size/43560))+'Commercial Energy Coefficients'!$C$19*LN(40)+'Commercial Energy Coefficients'!$C$21+'Commercial Energy Coefficients'!$C$22*LN(Commercial_Energy_Cost)+'Commercial Energy Coefficients'!$C$24*IFERROR(LOOKUP(Metro_Select,Energy_Metro_Lookup,CDD),0)),0)+IFERROR(EXP('Commercial Energy Coefficients'!$F$3+LN((B_OFF_Gross_Sq_Ft))*'Commercial Energy Coefficients'!$F$4+'Commercial Energy Coefficients'!$F$11+'Commercial Energy Coefficients'!$F$14+'Commercial Energy Coefficients'!$F$18*LN((B_OFF_Emp_Acre)*(B_Lot_Size/43560))+'Commercial Energy Coefficients'!$F$19*LN(40)+'Commercial Energy Coefficients'!$F$21+'Commercial Energy Coefficients'!$F$22*LN(Commercial_Energy_Cost)+'Commercial Energy Coefficients'!$F$24*IFERROR(LOOKUP(Metro_Select,Energy_Metro_Lookup,CDD),0)),0)+IFERROR(EXP('Commercial Energy Coefficients'!$I$3+LN((B_PUB_Gross_Sq_Ft))*'Commercial Energy Coefficients'!$I$4+'Commercial Energy Coefficients'!$I$11+'Commercial Energy Coefficients'!$I$14+'Commercial Energy Coefficients'!$I$18*LN((B_Pub_Emp_Acre)*(B_Lot_Size/43560))+'Commercial Energy Coefficients'!$I$19*LN(40)+'Commercial Energy Coefficients'!$I$21+'Commercial Energy Coefficients'!$I$22*LN(Commercial_Energy_Cost)+'Commercial Energy Coefficients'!$I$24*IFERROR(LOOKUP(Metro_Select,Energy_Metro_Lookup,CDD),0)),0))/1000 -> 0 | CP5: =(IFERROR(EXP('Commercial Energy Coefficients'!$D$3+LN((B_RET_Gross_Sq_Ft))*'Commercial Energy Coefficients'!$D$4+'Commercial Energy Coefficients'!$D$14+'Commercial Energy Coefficients'!$D$18*LN((B_Ret_Emp_Acre)*(B_Lot_Size/43560))+'Commercial Energy Coefficients'!$D$19*LN(40)+'Commercial Energy Coefficients'!$D$21+'Commercial Energy Coefficients'!$D$22*LN(Commercial_Energy_Cost)),0)+IFERROR(EXP('Commercial Energy Coefficients'!$G$3+LN((B_OFF_Gross_Sq_Ft))*'Commercial Energy Coefficients'!$G$4+'Commercial Energy Coefficients'!$G$14+'Commercial Energy Coefficients'!$G$18*LN((B_OFF_Emp_Acre)*(B_Lot_Size/43560))+'Commercial Energy Coefficients'!$G$19*LN(40)+'Commercial Energy Coefficients'!$G$21+'Commercial Energy Coefficients'!$G$22*LN(Commercial_Energy_Cost)),0)+IFERROR(EXP('Commercial Energy Coefficients'!$J$3+LN((B_PUB_Gross_Sq_Ft))*'Commercial Energy Coefficients'!$J$4+'Commercial Energy Coefficients'!$J$14+'Commercial Energy Coefficients'!$J$18*LN((B_Pub_Emp_Acre)*(B_Lot_Size/43560))+'Commercial Energy Coefficients'!$J$19*LN(40)+'Commercial Energy Coefficients'!$J$21+'Commercial Energy Coefficients'!$J$22*LN(Commercial_Energy_Cost)),0))/1000 -> 0 | CQ5: =SUM(CN5:CP5) -> 0 | CR5: 0 | CS5: 0 | CT5: 0 | CU5: 0 | CV5: 0 | CW5: 0 | CX5: 0 | CY5: 0 | CZ5: 0 | DA5: 0 | DB5: 0 | DC5: 0 | DD5: 0 | DE5: 0 | DF5: 0 | DG5: 0 | DH5: 0 | DI5: =IF(B_Housing_Type="",0,IF(B_Housing_Type="MF",'Project Info'!$B$160,IF(B_Housing_Type="TH",'Project Info'!$B$161,IF(AND(B_Housing_Type="SF",B_Net_Sq_Ft_per_Unit>0,B_Net_Sq_Ft_per_Unit<3000),'Project Info'!$B$162,IF(AND(B_Housing_Type="SF",B_Net_Sq_Ft_per_Unit>=3000),'Project Info'!$B$163))))) -> 0 | DJ5: 0 | DK5: 0 | DL5: 0 | DN5: 0 | DO5: 0 | DQ5: 0 | DR5: 0 | DT5: 0 | DY5: 0 | DZ5: 0 | EB5: 0 | EF5: 0 | EG5: 0 | EH5: 0 | EI5: =IFERROR(B_FAR/MAX(B_FAR),0) -> 0 | EU5: 0 | EV5: 0 | EX5: 0 | EY5: =ER5*$C5/43560 -> 0 | EZ5: 0 | FA5: =EO5*$C5/43560 -> 0 | FB5: =ET5*$C5/43560 -> 0 | FC5: 0 | FE5: =Annual_Cooling_degree_days*24*(1/R_conventional_SF_F_hrs_BTU-1/R_green_roof_SF_F_hrs_Btu)/3412*'Building Inputs'!$EU5 -> 0 | FF5: 0 | FG5: =Annual_Heating_degree_days*24*(1/R_conventional_SF_F_hrs_BTU-1/R_green_roof_SF_F_hrs_Btu)*'Building Inputs'!$EU5 -> 0 | FH5: 0 | FI5: =Avg_Annual_NO2_uptake*'Building Inputs'!$EU5 -> 0 | FJ5: =Avg_Annual_O3_uptake*'Building Inputs'!$EU5 -> 0 | FK5: =Avg_Annual_SO2_uptake*'Building Inputs'!$EU5 -> 0 | FL5: =Avg_Annual_PM_10_uptake*'Building Inputs'!$EU5 -> 0 | FM5: 0 | FN5: 0 | FO5: =FI5+FM5 -> 0 | FP5: =FK5+FN5 -> 0 | FQ5: 0 | FR5: 0 | FS5: 0 | FT5: 0 | FU5: =SUM(FQ5:FT5) -> 0 | FV5: =Avg_amount_of_carbon_sequestered_lbs_SF*'Building Inputs'!$EU5*3.67 -> 0 | FW5: 0 | FX5: =FV5+FW5 -> 0 | FY5: 0 | FZ5: =Average_annual_rainfall_in*($C5*(1-$E5)+$EM5-$EJ5-$ER5)*$C5/43560*'Building Inputs'!$EN5*144*0.00433 -> 0 | GB5: =Avg_Annual_NO2_uptake*'Building Inputs'!$EV5 -> 0 | GC5: =Avg_Annual_O3_uptake*'Building Inputs'!$EV5 -> 0 | GD5: =Avg_Annual_SO2_uptake*'Building Inputs'!$EV5 -> 0 | GE5: =Avg_Annual_PM_10_uptake*'Building Inputs'!$EV5 -> 0 | GF5: 0 | GG5: 0 | GH5: 0 | GI5: 0 | GJ5: =SUM(GF5:GI5) -> 0 | GK5: =Avg_amount_of_carbon_sequestered_lbs_SF*'Building Inputs'!$EV5*3.67 -> 0 | GL5: 0 | GM5: =Average_annual_rainfall_in*('Building Inputs'!$EX5*'Building Inputs'!$EQ5+'Building Inputs'!$EY5*'Building Inputs'!$ES5)*144*0.00433 -> 0 | GO5: =FC5+FZ5+GM5 -> 0 | GQ5: =FF5+FH5 -> 0 | GR5: 0 | GS5: =FJ5+GG5 -> 0 | GT5: 0 | GU5: 0 | GV5: =SUM(GR5:GU5) -> 0 | GW5: 0 | GX5: 0 | GY5: 0 | GZ5: 0 | HA5: =SUM(GW5:GZ5) -> 0 | HB5: 0 | HC5: 0 | HF5: 0 | HG5: 0 | HH5: 0 | HQ5: 0 | HR5: 0 | HS5: 0 | HT5: 0 | HU5: 0 | HV5: 0 | HW5: 0 | HX5: 0
A6: 3 | I6: 0 | K6: 0 | L6: 0 | M6: 0 | N6: 0 | O6: 0 | P6: 0 | Q6: 0 | R6: 0 | AA6: 0 | AD6: 0 | AE6: 0 | AH6: 0 | AK6: 0 | AM6: 0 | AN6: 0 | AO6: 0 | AP6: 0 | AQ6: 0 | AR6: 0 | AS6: 0 | AT6: 0 | AU6: 0 | AV6: 0 | AW6: 0 | AX6: 0 | AY6: 0 | BB6: 0 | BC6: 0 | BF6: 0 | BG6: 0 | BJ6: 0 | BK6: 0 | BN6: 0 | BO6: 0 | BR6: 0 | BS6: 0 | BV6: 0 | BY6: 0 | BZ6: 0 | CA6: 0 | CD6: 0 | CI6: 0 | CJ6: =IFERROR(IF(B_Housing_Type="SF",EXP('Residential Energy Coefficients'!$B$3+'Residential Energy Coefficients'!$B$4*LN(B_Net_Sq_Ft_per_Unit)+'Residential Energy Coefficients'!$B$9+'Residential Energy Coefficients'!$B$10*LN(B_HH_Income)+'Residential Energy Coefficients'!$B$16*LN(Residential_Energy_Cost)+'Residential Energy Coefficients'!$B$20+'Residential Energy Coefficients'!$B$24*IFERROR(LOOKUP(Metro_Select,Energy_Metro_Lookup,HDD),0)),IF(B_Housing_Type="TH",EXP('Residential Energy Coefficients'!$E$3+'Residential Energy Coefficients'!$E$4*LN(B_Net_Sq_Ft_per_Unit)+'Residential Energy Coefficients'!$E$9+'Residential Energy Coefficients'!$E$16*LN(Residential_Energy_Cost)+'Residential Energy Coefficients'!$E$19+'Residential Energy Coefficients'!$E$20+'Residential Energy Coefficients'!$E$24*IFERROR(LOOKUP(Metro_Select,Energy_Metro_Lookup,HDD),0)),IF(B_Housing_Type="MF",EXP('Residential Energy Coefficients'!$H$3+'Residential Energy Coefficients'!$H$4*LN(B_Net_Sq_Ft_per_Unit)+'Residential Energy Coefficients'!$H$9+IF(B_Pct_Owner=1,'Residential Energy Coefficients'!$H$12,0)+'Residential Energy Coefficients'!$H$16*LN(Residential_Energy_Cost)+'Residential Energy Coefficients'!$H$20+'Residential Energy Coefficients'!$H$24*IFERROR(LOOKUP(Metro_Select,Energy_Metro_Lookup,HDD),0)),IF(B_Hotel_Room_Acre>0,EXP('Residential Energy Coefficients'!$H$3+'Residential Energy Coefficients'!$H$4*LN(B_Hotel_Room_Net)+'Residential Energy Coefficients'!$H$9+'Residential Energy Coefficients'!$H$16*LN(Residential_Energy_Cost)+'Residential Energy Coefficients'!$H$20+'Residential Energy Coefficients'!$H$24*IFERROR(LOOKUP(Metro_Select,Energy_Metro_Lookup,HDD),0)),IF(B_Housing_Type="MH",EXP('Residential Energy Coefficients'!$K$3+'Residential Energy Coefficients'!$K$16*LN(Residential_Energy_Cost)+'Residential Energy Coefficients'!$K$24*IFERROR(LOOKUP(Metro_Select,Energy_Metro_Lookup,HDD),0)),0)))))/1000,0) -> 0 | CK6: =IFERROR(IF(B_Housing_Type="SF",EXP('Residential Energy Coefficients'!$C$3+'Residential Energy Coefficients'!$C$4*LN(B_Net_Sq_Ft_per_Unit)+'Residential Energy Coefficients'!$C$10*LN(B_HH_Income)+'Residential Energy Coefficients'!$C$11*B_HH_Size+'Residential Energy Coefficients'!$C$16*LN(Residential_Energy_Cost)+'Residential Energy Coefficients'!$C$19+'Residential Energy Coefficients'!$C$22+'Residential Energy Coefficients'!$C$25*IFERROR(LOOKUP(Metro_Select,Energy_Metro_Lookup,CDD),0)),IF(B_Housing_Type="TH",EXP('Residential Energy Coefficients'!$F$3+'Residential Energy Coefficients'!$F$4*LN(B_Net_Sq_Ft_per_Unit)+'Residential Energy Coefficients'!$F$10*LN(B_HH_Income)+'Residential Energy Coefficients'!$F$11*B_HH_Size+IF(B_Pct_Owner=1,'Residential Energy Coefficients'!$F$12,0)+'Residential Energy Coefficients'!$F$16*LN(Residential_Energy_Cost)+'Residential Energy Coefficients'!$F$22+'Residential Energy Coefficients'!$F$25*IFERROR(LOOKUP(Metro_Select,Energy_Metro_Lookup,CDD),0)),IF(B_Housing_Type="MF",EXP('Residential Energy Coefficients'!$I$3+'Residential Energy Coefficients'!$I$4*LN(B_Net_Sq_Ft_per_Unit)+'Residential Energy Coefficients'!$I$9+'Residential Energy Coefficients'!$I$11*B_HH_Size+'Residential Energy Coefficients'!$I$16*LN(Residential_Energy_Cost)+'Residential Energy Coefficients'!$I$22+'Residential Energy Coefficients'!$I$25*IFERROR(LOOKUP(Metro_Select,Energy_Metro_Lookup,CDD),0)),IF(B_Hotel_Room_Acre>0,EXP('Residential Energy Coefficients'!$I$3+'Residential Energy Coefficients'!$I$4*LN(B_Hotel_Room_Net)+'Residential Energy Coefficients'!$I$9+'Residential Energy Coefficients'!$I$11*1.25+'Residential Energy Coefficients'!$I$16*LN(Residential_Energy_Cost)+'Residential Energy Coefficients'!$I$22+'Residential Energy Coefficients'!$I$25*IFERROR(LOOKUP(Metro_Select,Energy_Metro_Lookup,CDD),0)),IF(B_Housing_Type="MH",EXP('Residential Energy Coefficients'!$L$3+'Residential Energy Coefficients'!$L$11*B_HH_Size+'Residential Energy Coefficients'!$L$16*LN(Residential_Energy_Cost)+'Residential Energy Coefficients'!$L$22+'Residential Energy Coefficients'!$L$25*IFERROR(LOOKUP(Metro_Select,Energy_Metro_Lookup,CDD),0)),0)))))/1000,0) -> 0 | CL6: =IFERROR(IF(B_Housing_Type="SF",EXP('Residential Energy Coefficients'!$D$3+'Residential Energy Coefficients'!$D$4*LN(B_Net_Sq_Ft_per_Unit)+'Residential Energy Coefficients'!$D$9+'Residential Energy Coefficients'!$D$10*LN(B_HH_Income)+'Residential Energy Coefficients'!$D$11*B_HH_Size+IF(B_Pct_Owner=1,'Residential Energy Coefficients'!$D$12,0)+'Residential Energy Coefficients'!$D$16*LN(Residential_Energy_Cost)),IF(B_Housing_Type="TH",EXP('Residential Energy Coefficients'!$G$3+'Residential Energy Coefficients'!$G$4*LN(B_Net_Sq_Ft_per_Unit)+'Residential Energy Coefficients'!$G$10*LN(B_HH_Income)+'Residential Energy Coefficients'!$G$11*B_HH_Size+'Residential Energy Coefficients'!$G$16*LN(Residential_Energy_Cost)),IF(B_Housing_Type="MF",EXP('Residential Energy Coefficients'!$J$3+'Residential Energy Coefficients'!$J$4*LN(B_Net_Sq_Ft_per_Unit)+'Residential Energy Coefficients'!$J$10*LN(B_HH_Income)+'Residential Energy Coefficients'!$J$11*B_HH_Size+IF(B_Pct_Owner=1,'Residential Energy Coefficients'!$J$12,0)+'Residential Energy Coefficients'!$J$16*LN(Residential_Energy_Cost)+'Residential Energy Coefficients'!$J$19),IF(B_Hotel_Room_Acre>0,EXP('Residential Energy Coefficients'!$J$3+'Residential Energy Coefficients'!$J$4*LN(B_Hotel_Room_Net)+'Residential Energy Coefficients'!$J$16*LN(Residential_Energy_Cost)+'Residential Energy Coefficients'!$J$19),IF(B_Housing_Type="MH",EXP('Residential Energy Coefficients'!$M$3+'Residential Energy Coefficients'!$M$4*LN(B_Net_Sq_Ft_per_Unit)+'Residential Energy Coefficients'!$M$11*B_HH_Size+'Residential Energy Coefficients'!$M$16*LN(Residential_Energy_Cost)+'Residential Energy Coefficients'!$M$19),0)))))/1000,0) -> 0 | CM6: 0 | CN6: =(IFERROR(EXP('Commercial Energy Coefficients'!$B$3+LN(B_RET_Gross_Sq_Ft)*'Commercial Energy Coefficients'!$B$4+'Commercial Energy Coefficients'!$B$11+'Commercial Energy Coefficients'!$B$14+'Commercial Energy Coefficients'!$B$18*LN((B_Ret_Emp_Acre)*(B_Lot_Size/43560))+'Commercial Energy Coefficients'!$B$19*LN(40)+'Commercial Energy Coefficients'!$B$21+'Commercial Energy Coefficients'!$B$22*LN(Commercial_Energy_Cost)+'Commercial Energy Coefficients'!$B$23*IFERROR(LOOKUP(Metro_Select,Energy_Metro_Lookup,HDD),0)),0)+IFERROR(EXP('Commercial Energy Coefficients'!$E$3+LN(B_OFF_Gross_Sq_Ft)*'Commercial Energy Coefficients'!$E$4+'Commercial Energy Coefficients'!$E$11+'Commercial Energy Coefficients'!$E$14+'Commercial Energy Coefficients'!$E$18*LN((B_OFF_Emp_Acre)*(B_Lot_Size/43560))+'Commercial Energy Coefficients'!$E$19*LN(40)+'Commercial Energy Coefficients'!$E$21+'Commercial Energy Coefficients'!$E$22*LN(Commercial_Energy_Cost)+'Commercial Energy Coefficients'!$E$23*IFERROR(LOOKUP(Metro_Select,Energy_Metro_Lookup,HDD),0)),0)+IFERROR(EXP('Commercial Energy Coefficients'!$H$3+LN(B_PUB_Gross_Sq_Ft)*'Commercial Energy Coefficients'!$H$4+'Commercial Energy Coefficients'!$H$11+'Commercial Energy Coefficients'!$H$14+'Commercial Energy Coefficients'!$H$18*LN((B_Pub_Emp_Acre)*(B_Lot_Size/43560))+'Commercial Energy Coefficients'!$H$19*LN(40)+'Commercial Energy Coefficients'!$H$21+'Commercial Energy Coefficients'!$H$22*LN(Commercial_Energy_Cost)+'Commercial Energy Coefficients'!$H$23*IFERROR(LOOKUP(Metro_Select,Energy_Metro_Lookup,HDD),0)),0))/1000 -> 0 | CO6: =(IFERROR(EXP('Commercial Energy Coefficients'!$C$3+LN((B_RET_Gross_Sq_Ft))*'Commercial Energy Coefficients'!$C$4+'Commercial Energy Coefficients'!$C$11+'Commercial Energy Coefficients'!$C$14+'Commercial Energy Coefficients'!$C$18*LN((B_Ret_Emp_Acre)*(B_Lot_Size/43560))+'Commercial Energy Coefficients'!$C$19*LN(40)+'Commercial Energy Coefficients'!$C$21+'Commercial Energy Coefficients'!$C$22*LN(Commercial_Energy_Cost)+'Commercial Energy Coefficients'!$C$24*IFERROR(LOOKUP(Metro_Select,Energy_Metro_Lookup,CDD),0)),0)+IFERROR(EXP('Commercial Energy Coefficients'!$F$3+LN((B_OFF_Gross_Sq_Ft))*'Commercial Energy Coefficients'!$F$4+'Commercial Energy Coefficients'!$F$11+'Commercial Energy Coefficients'!$F$14+'Commercial Energy Coefficients'!$F$18*LN((B_OFF_Emp_Acre)*(B_Lot_Size/43560))+'Commercial Energy Coefficients'!$F$19*LN(40)+'Commercial Energy Coefficients'!$F$21+'Commercial Energy Coefficients'!$F$22*LN(Commercial_Energy_Cost)+'Commercial Energy Coefficients'!$F$24*IFERROR(LOOKUP(Metro_Select,Energy_Metro_Lookup,CDD),0)),0)+IFERROR(EXP('Commercial Energy Coefficients'!$I$3+LN((B_PUB_Gross_Sq_Ft))*'Commercial Energy Coefficients'!$I$4+'Commercial Energy Coefficients'!$I$11+'Commercial Energy Coefficients'!$I$14+'Commercial Energy Coefficients'!$I$18*LN((B_Pub_Emp_Acre)*(B_Lot_Size/43560))+'Commercial Energy Coefficients'!$I$19*LN(40)+'Commercial Energy Coefficients'!$I$21+'Commercial Energy Coefficients'!$I$22*LN(Commercial_Energy_Cost)+'Commercial Energy Coefficients'!$I$24*IFERROR(LOOKUP(Metro_Select,Energy_Metro_Lookup,CDD),0)),0))/1000 -> 0 | CP6: =(IFERROR(EXP('Commercial Energy Coefficients'!$D$3+LN((B_RET_Gross_Sq_Ft))*'Commercial Energy Coefficients'!$D$4+'Commercial Energy Coefficients'!$D$14+'Commercial Energy Coefficients'!$D$18*LN((B_Ret_Emp_Acre)*(B_Lot_Size/43560))+'Commercial Energy Coefficients'!$D$19*LN(40)+'Commercial Energy Coefficients'!$D$21+'Commercial Energy Coefficients'!$D$22*LN(Commercial_Energy_Cost)),0)+IFERROR(EXP('Commercial Energy Coefficients'!$G$3+LN((B_OFF_Gross_Sq_Ft))*'Commercial Energy Coefficients'!$G$4+'Commercial Energy Coefficients'!$G$14+'Commercial Energy Coefficients'!$G$18*LN((B_OFF_Emp_Acre)*(B_Lot_Size/43560))+'Commercial Energy Coefficients'!$G$19*LN(40)+'Commercial Energy Coefficients'!$G$21+'Commercial Energy Coefficients'!$G$22*LN(Commercial_Energy_Cost)),0)+IFERROR(EXP('Commercial Energy Coefficients'!$J$3+LN((B_PUB_Gross_Sq_Ft))*'Commercial Energy Coefficients'!$J$4+'Commercial Energy Coefficients'!$J$14+'Commercial Energy Coefficients'!$J$18*LN((B_Pub_Emp_Acre)*(B_Lot_Size/43560))+'Commercial Energy Coefficients'!$J$19*LN(40)+'Commercial Energy Coefficients'!$J$21+'Commercial Energy Coefficients'!$J$22*LN(Commercial_Energy_Cost)),0))/1000 -> 0 | CQ6: 0 | CR6: 0 | CS6: 0 | CT6: 0 | CU6: 0 | CV6: 0 | CW6: 0 | CX6: 0 | CY6: 0 | CZ6: 0 | DA6: 0 | DB6: 0 | DC6: 0 | DD6: 0 | DE6: 0 | DF6: 0 | DG6: 0 | DH6: 0 | DI6: =IF(B_Housing_Type="",0,IF(B_Housing_Type="MF",'Project Info'!$B$160,IF(B_Housing_Type="TH",'Project Info'!$B$161,IF(AND(B_Housing_Type="SF",B_Net_Sq_Ft_per_Unit>0,B_Net_Sq_Ft_per_Unit<3000),'Project Info'!$B$162,IF(AND(B_Housing_Type="SF",B_Net_Sq_Ft_per_Unit>=3000),'Project Info'!$B$163))))) -> 0 | DJ6: 0 | DK6: 0 | DL6: 0 | DN6: 0 | DO6: 0 | DQ6: 0 | DR6: 0 | DT6: 0 | DY6: 0 | DZ6: 0 | EB6: 0 | EF6: 0 | EG6: 0 | EH6: 0 | EI6: 0 | EU6: 0 | EV6: 0 | EX6: 0 | EY6: 0 | EZ6: 0 | FA6: 0 | FB6: 0 | FC6: 0 | FE6: =Annual_Cooling_degree_days*24*(1/R_conventional_SF_F_hrs_BTU-1/R_green_roof_SF_F_hrs_Btu)/3412*'Building Inputs'!$EU6 -> 0 | FF6: 0 | FG6: =Annual_Heating_degree_days*24*(1/R_conventional_SF_F_hrs_BTU-1/R_green_roof_SF_F_hrs_Btu)*'Building Inputs'!$EU6 -> 0 | FH6: 0 | FI6: =Avg_Annual_NO2_uptake*'Building Inputs'!$EU6 -> 0 | FJ6: =Avg_Annual_O3_uptake*'Building Inputs'!$EU6 -> 0 | FK6: =Avg_Annual_SO2_uptake*'Building Inputs'!$EU6 -> 0 | FL6: =Avg_Annual_PM_10_uptake*'Building Inputs'!$EU6 -> 0 | FM6: 0 | FN6: 0 | FO6: 0 | FP6: 0 | FQ6: 0 | FR6: 0 | FS6: 0 | FT6: 0 | FU6: 0 | FV6: =Avg_amount_of_carbon_sequestered_lbs_SF*'Building Inputs'!$EU6*3.67 -> 0 | FW6: 0 | FX6: 0 | FY6: 0 | FZ6: =Average_annual_rainfall_in*($C6*(1-$E6)+$EM6-$EJ6-$ER6)*$C6/43560*'Building Inputs'!$EN6*144*0.00433 -> 0 | GB6: =Avg_Annual_NO2_uptake*'Building Inputs'!$EV6 -> 0 | GC6: =Avg_Annual_O3_uptake*'Building Inputs'!$EV6 -> 0 | GD6: =Avg_Annual_SO2_uptake*'Building Inputs'!$EV6 -> 0 | GE6: =Avg_Annual_PM_10_uptake*'Building Inputs'!$EV6 -> 0 | GF6: 0 | GG6: 0 | GH6: 0 | GI6: 0 | GJ6: 0 | GK6: =Avg_amount_of_carbon_sequestered_lbs_SF*'Building Inputs'!$EV6*3.67 -> 0 | GL6: 0 | GM6: =Average_annual_rainfall_in*('Building Inputs'!$EX6*'Building Inputs'!$EQ6+'Building Inputs'!$EY6*'Building Inputs'!$ES6)*144*0.00433 -> 0 | GO6: 0 | GQ6: 0 | GR6: 0 | GS6: 0 | GT6: 0 | GU6: 0 | GV6: 0 | GW6: 0 | GX6: 0 | GY6: 0 | GZ6: 0 | HA6: 0 | HB6: 0 | HC6: 0 | HF6: 0 | HG6: 0 | HH6: 0 | HQ6: 0 | HR6: 0 | HS6: 0 | HT6: 0 | HU6: 0 | HV6: 0 | HW6: 0 | HX6: 0
A7: 4 | I7: 0 | K7: 0 | L7: 0 | M7: 0 | N7: 0 | O7: 0 | P7: 0 | Q7: 0 | R7: 0 | AA7: 0 | AD7: 0 | AE7: 0 | AH7: 0 | AK7: 0 | AM7: 0 | AN7: 0 | AO7: 0 | AP7: 0 | AQ7: 0 | AR7: 0 | AS7: 0 | AT7: 0 | AU7: 0 | AV7: 0 | AW7: 0 | AX7: 0 | AY7: 0 | BB7: 0 | BC7: 0 | BF7: 0 | BG7: 0 | BJ7: 0 | BK7: 0 | BN7: 0 | BO7: 0 | BR7: 0 | BS7: 0 | BV7: 0 | BY7: 0 | BZ7: 0 | CA7: 0 | CD7: 0 | CI7: 0 | CJ7: =IFERROR(IF(B_Housing_Type="SF",EXP('Residential Energy Coefficients'!$B$3+'Residential Energy Coefficients'!$B$4*LN(B_Net_Sq_Ft_per_Unit)+'Residential Energy Coefficients'!$B$9+'Residential Energy Coefficients'!$B$10*LN(B_HH_Income)+'Residential Energy Coefficients'!$B$16*LN(Residential_Energy_Cost)+'Residential Energy Coefficients'!$B$20+'Residential Energy Coefficients'!$B$24*IFERROR(LOOKUP(Metro_Select,Energy_Metro_Lookup,HDD),0)),IF(B_Housing_Type="TH",EXP('Residential Energy Coefficients'!$E$3+'Residential Energy Coefficients'!$E$4*LN(B_Net_Sq_Ft_per_Unit)+'Residential Energy Coefficients'!$E$9+'Residential Energy Coefficients'!$E$16*LN(Residential_Energy_Cost)+'Residential Energy Coefficients'!$E$19+'Residential Energy Coefficients'!$E$20+'Residential Energy Coefficients'!$E$24*IFERROR(LOOKUP(Metro_Select,Energy_Metro_Lookup,HDD),0)),IF(B_Housing_Type="MF",EXP('Residential Energy Coefficients'!$H$3+'Residential Energy Coefficients'!$H$4*LN(B_Net_Sq_Ft_per_Unit)+'Residential Energy Coefficients'!$H$9+IF(B_Pct_Owner=1,'Residential Energy Coefficients'!$H$12,0)+'Residential Energy Coefficients'!$H$16*LN(Residential_Energy_Cost)+'Residential Energy Coefficients'!$H$20+'Residential Energy Coefficients'!$H$24*IFERROR(LOOKUP(Metro_Select,Energy_Metro_Lookup,HDD),0)),IF(B_Hotel_Room_Acre>0,EXP('Residential Energy Coefficients'!$H$3+'Residential Energy Coefficients'!$H$4*LN(B_Hotel_Room_Net)+'Residential Energy Coefficients'!$H$9+'Residential Energy Coefficients'!$H$16*LN(Residential_Energy_Cost)+'Residential Energy Coefficients'!$H$20+'Residential Energy Coefficients'!$H$24*IFERROR(LOOKUP(Metro_Select,Energy_Metro_Lookup,HDD),0)),IF(B_Housing_Type="MH",EXP('Residential Energy Coefficients'!$K$3+'Residential Energy Coefficients'!$K$16*LN(Residential_Energy_Cost)+'Residential Energy Coefficients'!$K$24*IFERROR(LOOKUP(Metro_Select,Energy_Metro_Lookup,HDD),0)),0)))))/1000,0) -> 0 | CK7: =IFERROR(IF(B_Housing_Type="SF",EXP('Residential Energy Coefficients'!$C$3+'Residential Energy Coefficients'!$C$4*LN(B_Net_Sq_Ft_per_Unit)+'Residential Energy Coefficients'!$C$10*LN(B_HH_Income)+'Residential Energy Coefficients'!$C$11*B_HH_Size+'Residential Energy Coefficients'!$C$16*LN(Residential_Energy_Cost)+'Residential Energy Coefficients'!$C$19+'Residential Energy Coefficients'!$C$22+'Residential Energy Coefficients'!$C$25*IFERROR(LOOKUP(Metro_Select,Energy_Metro_Lookup,CDD),0)),IF(B_Housing_Type="TH",EXP('Residential Energy Coefficients'!$F$3+'Residential Energy Coefficients'!$F$4*LN(B_Net_Sq_Ft_per_Unit)+'Residential Energy Coefficients'!$F$10*LN(B_HH_Income)+'Residential Energy Coefficients'!$F$11*B_HH_Size+IF(B_Pct_Owner=1,'Residential Energy Coefficients'!$F$12,0)+'Residential Energy Coefficients'!$F$16*LN(Residential_Energy_Cost)+'Residential Energy Coefficients'!$F$22+'Residential Energy Coefficients'!$F$25*IFERROR(LOOKUP(Metro_Select,Energy_Metro_Lookup,CDD),0)),IF(B_Housing_Type="MF",EXP('Residential Energy Coefficients'!$I$3+'Residential Energy Coefficients'!$I$4*LN(B_Net_Sq_Ft_per_Unit)+'Residential Energy Coefficients'!$I$9+'Residential Energy Coefficients'!$I$11*B_HH_Size+'Residential Energy Coefficients'!$I$16*LN(Residential_Energy_Cost)+'Residential Energy Coefficients'!$I$22+'Residential Energy Coefficients'!$I$25*IFERROR(LOOKUP(Metro_Select,Energy_Metro_Lookup,CDD),0)),IF(B_Hotel_Room_Acre>0,EXP('Residential Energy Coefficients'!$I$3+'Residential Energy Coefficients'!$I$4*LN(B_Hotel_Room_Net)+'Residential Energy Coefficients'!$I$9+'Residential Energy Coefficients'!$I$11*1.25+'Residential Energy Coefficients'!$I$16*LN(Residential_Energy_Cost)+'Residential Energy Coefficients'!$I$22+'Residential Energy Coefficients'!$I$25*IFERROR(LOOKUP(Metro_Select,Energy_Metro_Lookup,CDD),0)),IF(B_Housing_Type="MH",EXP('Residential Energy Coefficients'!$L$3+'Residential Energy Coefficients'!$L$11*B_HH_Size+'Residential Energy Coefficients'!$L$16*LN(Residential_Energy_Cost)+'Residential Energy Coefficients'!$L$22+'Residential Energy Coefficients'!$L$25*IFERROR(LOOKUP(Metro_Select,Energy_Metro_Lookup,CDD),0)),0)))))/1000,0) -> 0 | CL7: =IFERROR(IF(B_Housing_Type="SF",EXP('Residential Energy Coefficients'!$D$3+'Residential Energy Coefficients'!$D$4*LN(B_Net_Sq_Ft_per_Unit)+'Residential Energy Coefficients'!$D$9+'Residential Energy Coefficients'!$D$10*LN(B_HH_Income)+'Residential Energy Coefficients'!$D$11*B_HH_Size+IF(B_Pct_Owner=1,'Residential Energy Coefficients'!$D$12,0)+'Residential Energy Coefficients'!$D$16*LN(Residential_Energy_Cost)),IF(B_Housing_Type="TH",EXP('Residential Energy Coefficients'!$G$3+'Residential Energy Coefficients'!$G$4*LN(B_Net_Sq_Ft_per_Unit)+'Residential Energy Coefficients'!$G$10*LN(B_HH_Income)+'Residential Energy Coefficients'!$G$11*B_HH_Size+'Residential Energy Coefficients'!$G$16*LN(Residential_Energy_Cost)),IF(B_Housing_Type="MF",EXP('Residential Energy Coefficients'!$J$3+'Residential Energy Coefficients'!$J$4*LN(B_Net_Sq_Ft_per_Unit)+'Residential Energy Coefficients'!$J$10*LN(B_HH_Income)+'Residential Energy Coefficients'!$J$11*B_HH_Size+IF(B_Pct_Owner=1,'Residential Energy Coefficients'!$J$12,0)+'Residential Energy Coefficients'!$J$16*LN(Residential_Energy_Cost)+'Residential Energy Coefficients'!$J$19),IF(B_Hotel_Room_Acre>0,EXP('Residential Energy Coefficients'!$J$3+'Residential Energy Coefficients'!$J$4*LN(B_Hotel_Room_Net)+'Residential Energy Coefficients'!$J$16*LN(Residential_Energy_Cost)+'Residential Energy Coefficients'!$J$19),IF(B_Housing_Type="MH",EXP('Residential Energy Coefficients'!$M$3+'Residential Energy Coefficients'!$M$4*LN(B_Net_Sq_Ft_per_Unit)+'Residential Energy Coefficients'!$M$11*B_HH_Size+'Residential Energy Coefficients'!$M$16*LN(Residential_Energy_Cost)+'Residential Energy Coefficients'!$M$19),0)))))/1000,0) -> 0 | CM7: 0 | CN7: =(IFERROR(EXP('Commercial Energy Coefficients'!$B$3+LN(B_RET_Gross_Sq_Ft)*'Commercial Energy Coefficients'!$B$4+'Commercial Energy Coefficients'!$B$11+'Commercial Energy Coefficients'!$B$14+'Commercial Energy Coefficients'!$B$18*LN((B_Ret_Emp_Acre)*(B_Lot_Size/43560))+'Commercial Energy Coefficients'!$B$19*LN(40)+'Commercial Energy Coefficients'!$B$21+'Commercial Energy Coefficients'!$B$22*LN(Commercial_Energy_Cost)+'Commercial Energy Coefficients'!$B$23*IFERROR(LOOKUP(Metro_Select,Energy_Metro_Lookup,HDD),0)),0)+IFERROR(EXP('Commercial Energy Coefficients'!$E$3+LN(B_OFF_Gross_Sq_Ft)*'Commercial Energy Coefficients'!$E$4+'Commercial Energy Coefficients'!$E$11+'Commercial Energy Coefficients'!$E$14+'Commercial Energy Coefficients'!$E$18*LN((B_OFF_Emp_Acre)*(B_Lot_Size/43560))+'Commercial Energy Coefficients'!$E$19*LN(40)+'Commercial Energy Coefficients'!$E$21+'Commercial Energy Coefficients'!$E$22*LN(Commercial_Energy_Cost)+'Commercial Energy Coefficients'!$E$23*IFERROR(LOOKUP(Metro_Select,Energy_Metro_Lookup,HDD),0)),0)+IFERROR(EXP('Commercial Energy Coefficients'!$H$3+LN(B_PUB_Gross_Sq_Ft)*'Commercial Energy Coefficients'!$H$4+'Commercial Energy Coefficients'!$H$11+'Commercial Energy Coefficients'!$H$14+'Commercial Energy Coefficients'!$H$18*LN((B_Pub_Emp_Acre)*(B_Lot_Size/43560))+'Commercial Energy Coefficients'!$H$19*LN(40)+'Commercial Energy Coefficients'!$H$21+'Commercial Energy Coefficients'!$H$22*LN(Commercial_Energy_Cost)+'Commercial Energy Coefficients'!$H$23*IFERROR(LOOKUP(Metro_Select,Energy_Metro_Lookup,HDD),0)),0))/1000 -> 0 | CO7: =(IFERROR(EXP('Commercial Energy Coefficients'!$C$3+LN((B_RET_Gross_Sq_Ft))*'Commercial Energy Coefficients'!$C$4+'Commercial Energy Coefficients'!$C$11+'Commercial Energy Coefficients'!$C$14+'Commercial Energy Coefficients'!$C$18*LN((B_Ret_Emp_Acre)*(B_Lot_Size/43560))+'Commercial Energy Coefficients'!$C$19*LN(40)+'Commercial Energy Coefficients'!$C$21+'Commercial Energy Coefficients'!$C$22*LN(Commercial_Energy_Cost)+'Commercial Energy Coefficients'!$C$24*IFERROR(LOOKUP(Metro_Select,Energy_Metro_Lookup,CDD),0)),0)+IFERROR(EXP('Commercial Energy Coefficients'!$F$3+LN((B_OFF_Gross_Sq_Ft))*'Commercial Energy Coefficients'!$F$4+'Commercial Energy Coefficients'!$F$11+'Commercial Energy Coefficients'!$F$14+'Commercial Energy Coefficients'!$F$18*LN((B_OFF_Emp_Acre)*(B_Lot_Size/43560))+'Commercial Energy Coefficients'!$F$19*LN(40)+'Commercial Energy Coefficients'!$F$21+'Commercial Energy Coefficients'!$F$22*LN(Commercial_Energy_Cost)+'Commercial Energy Coefficients'!$F$24*IFERROR(LOOKUP(Metro_Select,Energy_Metro_Lookup,CDD),0)),0)+IFERROR(EXP('Commercial Energy Coefficients'!$I$3+LN((B_PUB_Gross_Sq_Ft))*'Commercial Energy Coefficients'!$I$4+'Commercial Energy Coefficients'!$I$11+'Commercial Energy Coefficients'!$I$14+'Commercial Energy Coefficients'!$I$18*LN((B_Pub_Emp_Acre)*(B_Lot_Size/43560))+'Commercial Energy Coefficients'!$I$19*LN(40)+'Commercial Energy Coefficients'!$I$21+'Commercial Energy Coefficients'!$I$22*LN(Commercial_Energy_Cost)+'Commercial Energy Coefficients'!$I$24*IFERROR(LOOKUP(Metro_Select,Energy_Metro_Lookup,CDD),0)),0))/1000 -> 0 | CP7: =(IFERROR(EXP('Commercial Energy Coefficients'!$D$3+LN((B_RET_Gross_Sq_Ft))*'Commercial Energy Coefficients'!$D$4+'Commercial Energy Coefficients'!$D$14+'Commercial Energy Coefficients'!$D$18*LN((B_Ret_Emp_Acre)*(B_Lot_Size/43560))+'Commercial Energy Coefficients'!$D$19*LN(40)+'Commercial Energy Coefficients'!$D$21+'Commercial Energy Coefficients'!$D$22*LN(Commercial_Energy_Cost)),0)+IFERROR(EXP('Commercial Energy Coefficients'!$G$3+LN((B_OFF_Gross_Sq_Ft))*'Commercial Energy Coefficients'!$G$4+'Commercial Energy Coefficients'!$G$14+'Commercial Energy Coefficients'!$G$18*LN((B_OFF_Emp_Acre)*(B_Lot_Size/43560))+'Commercial Energy Coefficients'!$G$19*LN(40)+'Commercial Energy Coefficients'!$G$21+'Commercial Energy Coefficients'!$G$22*LN(Commercial_Energy_Cost)),0)+IFERROR(EXP('Commercial Energy Coefficients'!$J$3+LN((B_PUB_Gross_Sq_Ft))*'Commercial Energy Coefficients'!$J$4+'Commercial Energy Coefficients'!$J$14+'Commercial Energy Coefficients'!$J$18*LN((B_Pub_Emp_Acre)*(B_Lot_Size/43560))+'Commercial Energy Coefficients'!$J$19*LN(40)+'Commercial Energy Coefficients'!$J$21+'Commercial Energy Coefficients'!$J$22*LN(Commercial_Energy_Cost)),0))/1000 -> 0 | CQ7: 0 | CR7: 0 | CS7: 0 | CT7: 0 | CU7: 0 | CV7: 0 | CW7: 0 | CX7: 0 | CY7: 0 | CZ7: 0 | DA7: 0 | DB7: 0 | DC7: 0 | DD7: 0 | DE7: 0 | DF7: 0 | DG7: 0 | DH7: 0 | DI7: =IF(B_Housing_Type="",0,IF(B_Housing_Type="MF",'Project Info'!$B$160,IF(B_Housing_Type="TH",'Project Info'!$B$161,IF(AND(B_Housing_Type="SF",B_Net_Sq_Ft_per_Unit>0,B_Net_Sq_Ft_per_Unit<3000),'Project Info'!$B$162,IF(AND(B_Housing_Type="SF",B_Net_Sq_Ft_per_Unit>=3000),'Project Info'!$B$163))))) -> 0 | DJ7: 0 | DK7: 0 | DL7: 0 | DN7: 0 | DO7: 0 | DQ7: 0 | DR7: 0 | DT7: 0 | DY7: 0 | DZ7: 0 | EB7: 0 | EF7: 0 | EG7: 0 | EH7: 0 | EI7: 0 | EU7: 0 | EV7: 0 | EX7: 0 | EY7: 0 | EZ7: 0 | FA7: 0 | FB7: 0 | FC7: 0 | FE7: =Annual_Cooling_degree_days*24*(1/R_conventional_SF_F_hrs_BTU-1/R_green_roof_SF_F_hrs_Btu)/3412*'Building Inputs'!$EU7 -> 0 | FF7: 0 | FG7: =Annual_Heating_degree_days*24*(1/R_conventional_SF_F_hrs_BTU-1/R_green_roof_SF_F_hrs_Btu)*'Building Inputs'!$EU7 -> 0 | FH7: 0 | FI7: =Avg_Annual_NO2_uptake*'Building Inputs'!$EU7 -> 0 | FJ7: =Avg_Annual_O3_uptake*'Building Inputs'!$EU7 -> 0 | FK7: =Avg_Annual_SO2_uptake*'Building Inputs'!$EU7 -> 0 | FL7: =Avg_Annual_PM_10_uptake*'Building Inputs'!$EU7 -> 0 | FM7: 0 | FN7: 0 | FO7: =FI7+FM7 -> 0 | FP7: =FK7+FN7 -> 0 | FQ7: 0 | FR7: 0 | FS7: 0 | FT7: 0 | FU7: =SUM(FQ7:FT7) -> 0 | FV7: =Avg_amount_of_carbon_sequestered_lbs_SF*'Building Inputs'!$EU7*3.67 -> 0 | FW7: 0 | FX7: =FV7+FW7 -> 0 | FY7: 0 | FZ7: =Average_annual_rainfall_in*($C7*(1-$E7)+$EM7-$EJ7-$ER7)*$C7/43560*'Building Inputs'!$EN7*144*0.00433 -> 0 | GB7: =Avg_Annual_NO2_uptake*'Building Inputs'!$EV7 -> 0 | GC7: =Avg_Annual_O3_uptake*'Building Inputs'!$EV7 -> 0 | GD7: =Avg_Annual_SO2_uptake*'Building Inputs'!$EV7 -> 0 | GE7: =Avg_Annual_PM_10_uptake*'Building Inputs'!$EV7 -> 0 | GF7: 0 | GG7: 0 | GH7: 0 | GI7: 0 | GJ7: 0 | GK7: =Avg_amount_of_carbon_sequestered_lbs_SF*'Building Inputs'!$EV7*3.67 -> 0 | GL7: 0 | GM7: =Average_annual_rainfall_in*('Building Inputs'!$EX7*'Building Inputs'!$EQ7+'Building Inputs'!$EY7*'Building Inputs'!$ES7)*144*0.00433 -> 0 | GO7: 0 | GQ7: 0 | GR7: 0 | GS7: 0 | GT7: 0 | GU7: 0 | GV7: 0 | GW7: 0 | GX7: 0 | GY7: 0 | GZ7: 0 | HA7: 0 | HB7: 0 | HC7: 0 | HF7: 0 | HG7: 0 | HH7: 0 | HQ7: 0 | HR7: 0 | HS7: 0 | HT7: 0 | HU7: 0 | HV7: 0 | HW7: 0 | HX7: 0
A8: 5 | I8: 0 | K8: 0 | L8: 0 | M8: 0 | N8: 0 | O8: 0 | P8: 0 | Q8: 0 | R8: 0 | AA8: 0 | AD8: 0 | AE8: 0 | AH8: 0 | AK8: 0 | AM8: 0 | AN8: 0 | AO8: 0 | AP8: 0 | AQ8: 0 | AR8: 0 | AS8: 0 | AT8: 0 | AU8: 0 | AV8: 0 | AW8: 0 | AX8: 0 | AY8: 0 | BB8: 0 | BC8: 0 | BF8: 0 | BG8: 0 | BJ8: 0 | BK8: 0 | BN8: 0 | BO8: 0 | BR8: 0 | BS8: 0 | BV8: 0 | BY8: 0 | BZ8: 0 | CA8: 0 | CD8: 0 | CI8: 0 | CJ8: =IFERROR(IF(B_Housing_Type="SF",EXP('Residential Energy Coefficients'!$B$3+'Residential Energy Coefficients'!$B$4*LN(B_Net_Sq_Ft_per_Unit)+'Residential Energy Coefficients'!$B$9+'Residential Energy Coefficients'!$B$10*LN(B_HH_Income)+'Residential Energy Coefficients'!$B$16*LN(Residential_Energy_Cost)+'Residential Energy Coefficients'!$B$20+'Residential Energy Coefficients'!$B$24*IFERROR(LOOKUP(Metro_Select,Energy_Metro_Lookup,HDD),0)),IF(B_Housing_Type="TH",EXP('Residential Energy Coefficients'!$E$3+'Residential Energy Coefficients'!$E$4*LN(B_Net_Sq_Ft_per_Unit)+'Residential Energy Coefficients'!$E$9+'Residential Energy Coefficients'!$E$16*LN(Residential_Energy_Cost)+'Residential Energy Coefficients'!$E$19+'Residential Energy Coefficients'!$E$20+'Residential Energy Coefficients'!$E$24*IFERROR(LOOKUP(Metro_Select,Energy_Metro_Lookup,HDD),0)),IF(B_Housing_Type="MF",EXP('Residential Energy Coefficients'!$H$3+'Residential Energy Coefficients'!$H$4*LN(B_Net_Sq_Ft_per_Unit)+'Residential Energy Coefficients'!$H$9+IF(B_Pct_Owner=1,'Residential Energy Coefficients'!$H$12,0)+'Residential Energy Coefficients'!$H$16*LN(Residential_Energy_Cost)+'Residential Energy Coefficients'!$H$20+'Residential Energy Coefficients'!$H$24*IFERROR(LOOKUP(Metro_Select,Energy_Metro_Lookup,HDD),0)),IF(B_Hotel_Room_Acre>0,EXP('Residential Energy Coefficients'!$H$3+'Residential Energy Coefficients'!$H$4*LN(B_Hotel_Room_Net)+'Residential Energy Coefficients'!$H$9+'Residential Energy Coefficients'!$H$16*LN(Residential_Energy_Cost)+'Residential Energy Coefficients'!$H$20+'Residential Energy Coefficients'!$H$24*IFERROR(LOOKUP(Metro_Select,Energy_Metro_Lookup,HDD),0)),IF(B_Housing_Type="MH",EXP('Residential Energy Coefficients'!$K$3+'Residential Energy Coefficients'!$K$16*LN(Residential_Energy_Cost)+'Residential Energy Coefficients'!$K$24*IFERROR(LOOKUP(Metro_Select,Energy_Metro_Lookup,HDD),0)),0)))))/1000,0) -> 0 | CK8: =IFERROR(IF(B_Housing_Type="SF",EXP('Residential Energy Coefficients'!$C$3+'Residential Energy Coefficients'!$C$4*LN(B_Net_Sq_Ft_per_Unit)+'Residential Energy Coefficients'!$C$10*LN(B_HH_Income)+'Residential Energy Coefficients'!$C$11*B_HH_Size+'Residential Energy Coefficients'!$C$16*LN(Residential_Energy_Cost)+'Residential Energy Coefficients'!$C$19+'Residential Energy Coefficients'!$C$22+'Residential Energy Coefficients'!$C$25*IFERROR(LOOKUP(Metro_Select,Energy_Metro_Lookup,CDD),0)),IF(B_Housing_Type="TH",EXP('Residential Energy Coefficients'!$F$3+'Residential Energy Coefficients'!$F$4*LN(B_Net_Sq_Ft_per_Unit)+'Residential Energy Coefficients'!$F$10*LN(B_HH_Income)+'Residential Energy Coefficients'!$F$11*B_HH_Size+IF(B_Pct_Owner=1,'Residential Energy Coefficients'!$F$12,0)+'Residential Energy Coefficients'!$F$16*LN(Residential_Energy_Cost)+'Residential Energy Coefficients'!$F$22+'Residential Energy Coefficients'!$F$25*IFERROR(LOOKUP(Metro_Select,Energy_Metro_Lookup,CDD),0)),IF(B_Housing_Type="MF",EXP('Residential Energy Coefficients'!$I$3+'Residential Energy Coefficients'!$I$4*LN(B_Net_Sq_Ft_per_Unit)+'Residential Energy Coefficients'!$I$9+'Residential Energy Coefficients'!$I$11*B_HH_Size+'Residential Energy Coefficients'!$I$16*LN(Residential_Energy_Cost)+'Residential Energy Coefficients'!$I$22+'Residential Energy Coefficients'!$I$25*IFERROR(LOOKUP(Metro_Select,Energy_Metro_Lookup,CDD),0)),IF(B_Hotel_Room_Acre>0,EXP('Residential Energy Coefficients'!$I$3+'Residential Energy Coefficients'!$I$4*LN(B_Hotel_Room_Net)+'Residential Energy Coefficients'!$I$9+'Residential Energy Coefficients'!$I$11*1.25+'Residential Energy Coefficients'!$I$16*LN(Residential_Energy_Cost)+'Residential Energy Coefficients'!$I$22+'Residential Energy Coefficients'!$I$25*IFERROR(LOOKUP(Metro_Select,Energy_Metro_Lookup,CDD),0)),IF(B_Housing_Type="MH",EXP('Residential Energy Coefficients'!$L$3+'Residential Energy Coefficients'!$L$11*B_HH_Size+'Residential Energy Coefficients'!$L$16*LN(Residential_Energy_Cost)+'Residential Energy Coefficients'!$L$22+'Residential Energy Coefficients'!$L$25*IFERROR(LOOKUP(Metro_Select,Energy_Metro_Lookup,CDD),0)),0)))))/1000,0) -> 0 | CL8: =IFERROR(IF(B_Housing_Type="SF",EXP('Residential Energy Coefficients'!$D$3+'Residential Energy Coefficients'!$D$4*LN(B_Net_Sq_Ft_per_Unit)+'Residential Energy Coefficients'!$D$9+'Residential Energy Coefficients'!$D$10*LN(B_HH_Income)+'Residential Energy Coefficients'!$D$11*B_HH_Size+IF(B_Pct_Owner=1,'Residential Energy Coefficients'!$D$12,0)+'Residential Energy Coefficients'!$D$16*LN(Residential_Energy_Cost)),IF(B_Housing_Type="TH",EXP('Residential Energy Coefficients'!$G$3+'Residential Energy Coefficients'!$G$4*LN(B_Net_Sq_Ft_per_Unit)+'Residential Energy Coefficients'!$G$10*LN(B_HH_Income)+'Residential Energy Coefficients'!$G$11*B_HH_Size+'Residential Energy Coefficients'!$G$16*LN(Residential_Energy_Cost)),IF(B_Housing_Type="MF",EXP('Residential Energy Coefficients'!$J$3+'Residential Energy Coefficients'!$J$4*LN(B_Net_Sq_Ft_per_Unit)+'Residential Energy Coefficients'!$J$10*LN(B_HH_Income)+'Residential Energy Coefficients'!$J$11*B_HH_Size+IF(B_Pct_Owner=1,'Residential Energy Coefficients'!$J$12,0)+'Residential Energy Coefficients'!$J$16*LN(Residential_Energy_Cost)+'Residential Energy Coefficients'!$J$19),IF(B_Hotel_Room_Acre>0,EXP('Residential Energy Coefficients'!$J$3+'Residential Energy Coefficients'!$J$4*LN(B_Hotel_Room_Net)+'Residential Energy Coefficients'!$J$16*LN(Residential_Energy_Cost)+'Residential Energy Coefficients'!$J$19),IF(B_Housing_Type="MH",EXP('Residential Energy Coefficients'!$M$3+'Residential Energy Coefficients'!$M$4*LN(B_Net_Sq_Ft_per_Unit)+'Residential Energy Coefficients'!$M$11*B_HH_Size+'Residential Energy Coefficients'!$M$16*LN(Residential_Energy_Cost)+'Residential Energy Coefficients'!$M$19),0)))))/1000,0) -> 0 | CM8: 0 | CN8: =(IFERROR(EXP('Commercial Energy Coefficients'!$B$3+LN(B_RET_Gross_Sq_Ft)*'Commercial Energy Coefficients'!$B$4+'Commercial Energy Coefficients'!$B$11+'Commercial Energy Coefficients'!$B$14+'Commercial Energy Coefficients'!$B$18*LN((B_Ret_Emp_Acre)*(B_Lot_Size/43560))+'Commercial Energy Coefficients'!$B$19*LN(40)+'Commercial Energy Coefficients'!$B$21+'Commercial Energy Coefficients'!$B$22*LN(Commercial_Energy_Cost)+'Commercial Energy Coefficients'!$B$23*IFERROR(LOOKUP(Metro_Select,Energy_Metro_Lookup,HDD),0)),0)+IFERROR(EXP('Commercial Energy Coefficients'!$E$3+LN(B_OFF_Gross_Sq_Ft)*'Commercial Energy Coefficients'!$E$4+'Commercial Energy Coefficients'!$E$11+'Commercial Energy Coefficients'!$E$14+'Commercial Energy Coefficients'!$E$18*LN((B_OFF_Emp_Acre)*(B_Lot_Size/43560))+'Commercial Energy Coefficients'!$E$19*LN(40)+'Commercial Energy Coefficients'!$E$21+'Commercial Energy Coefficients'!$E$22*LN(Commercial_Energy_Cost)+'Commercial Energy Coefficients'!$E$23*IFERROR(LOOKUP(Metro_Select,Energy_Metro_Lookup,HDD),0)),0)+IFERROR(EXP('Commercial Energy Coefficients'!$H$3+LN(B_PUB_Gross_Sq_Ft)*'Commercial Energy Coefficients'!$H$4+'Commercial Energy Coefficients'!$H$11+'Commercial Energy Coefficients'!$H$14+'Commercial Energy Coefficients'!$H$18*LN((B_Pub_Emp_Acre)*(B_Lot_Size/43560))+'Commercial Energy Coefficients'!$H$19*LN(40)+'Commercial Energy Coefficients'!$H$21+'Commercial Energy Coefficients'!$H$22*LN(Commercial_Energy_Cost)+'Commercial Energy Coefficients'!$H$23*IFERROR(LOOKUP(Metro_Select,Energy_Metro_Lookup,HDD),0)),0))/1000 -> 0 | CO8: =(IFERROR(EXP('Commercial Energy Coefficients'!$C$3+LN((B_RET_Gross_Sq_Ft))*'Commercial Energy Coefficients'!$C$4+'Commercial Energy Coefficients'!$C$11+'Commercial Energy Coefficients'!$C$14+'Commercial Energy Coefficients'!$C$18*LN((B_Ret_Emp_Acre)*(B_Lot_Size/43560))+'Commercial Energy Coefficients'!$C$19*LN(40)+'Commercial Energy Coefficients'!$C$21+'Commercial Energy Coefficients'!$C$22*LN(Commercial_Energy_Cost)+'Commercial Energy Coefficients'!$C$24*IFERROR(LOOKUP(Metro_Select,Energy_Metro_Lookup,CDD),0)),0)+IFERROR(EXP('Commercial Energy Coefficients'!$F$3+LN((B_OFF_Gross_Sq_Ft))*'Commercial Energy Coefficients'!$F$4+'Commercial Energy Coefficients'!$F$11+'Commercial Energy Coefficients'!$F$14+'Commercial Energy Coefficients'!$F$18*LN((B_OFF_Emp_Acre)*(B_Lot_Size/43560))+'Commercial Energy Coefficients'!$F$19*LN(40)+'Commercial Energy Coefficients'!$F$21+'Commercial Energy Coefficients'!$F$22*LN(Commercial_Energy_Cost)+'Commercial Energy Coefficients'!$F$24*IFERROR(LOOKUP(Metro_Select,Energy_Metro_Lookup,CDD),0)),0)+IFERROR(EXP('Commercial Energy Coefficients'!$I$3+LN((B_PUB_Gross_Sq_Ft))*'Commercial Energy Coefficients'!$I$4+'Commercial Energy Coefficients'!$I$11+'Commercial Energy Coefficients'!$I$14+'Commercial Energy Coefficients'!$I$18*LN((B_Pub_Emp_Acre)*(B_Lot_Size/43560))+'Commercial Energy Coefficients'!$I$19*LN(40)+'Commercial Energy Coefficients'!$I$21+'Commercial Energy Coefficients'!$I$22*LN(Commercial_Energy_Cost)+'Commercial Energy Coefficients'!$I$24*IFERROR(LOOKUP(Metro_Select,Energy_Metro_Lookup,CDD),0)),0))/1000 -> 0 | CP8: =(IFERROR(EXP('Commercial Energy Coefficients'!$D$3+LN((B_RET_Gross_Sq_Ft))*'Commercial Energy Coefficients'!$D$4+'Commercial Energy Coefficients'!$D$14+'Commercial Energy Coefficients'!$D$18*LN((B_Ret_Emp_Acre)*(B_Lot_Size/43560))+'Commercial Energy Coefficients'!$D$19*LN(40)+'Commercial Energy Coefficients'!$D$21+'Commercial Energy Coefficients'!$D$22*LN(Commercial_Energy_Cost)),0)+IFERROR(EXP('Commercial Energy Coefficients'!$G$3+LN((B_OFF_Gross_Sq_Ft))*'Commercial Energy Coefficients'!$G$4+'Commercial Energy Coefficients'!$G$14+'Commercial Energy Coefficients'!$G$18*LN((B_OFF_Emp_Acre)*(B_Lot_Size/43560))+'Commercial Energy Coefficients'!$G$19*LN(40)+'Commercial Energy Coefficients'!$G$21+'Commercial Energy Coefficients'!$G$22*LN(Commercial_Energy_Cost)),0)+IFERROR(EXP('Commercial Energy Coefficients'!$J$3+LN((B_PUB_Gross_Sq_Ft))*'Commercial Energy Coefficients'!$J$4+'Commercial Energy Coefficients'!$J$14+'Commercial Energy Coefficients'!$J$18*LN((B_Pub_Emp_Acre)*(B_Lot_Size/43560))+'Commercial Energy Coefficients'!$J$19*LN(40)+'Commercial Energy Coefficients'!$J$21+'Commercial Energy Coefficients'!$J$22*LN(Commercial_Energy_Cost)),0))/1000 -> 0 | CQ8: 0 | CR8: 0 | CS8: 0 | CT8: 0 | CU8: 0 | CV8: 0 | CW8: 0 | CX8: 0 | CY8: 0 | CZ8: 0 | DA8: 0 | DB8: 0 | DC8: 0 | DD8: 0 | DE8: 0 | DF8: 0 | DG8: 0 | DH8: 0 | DI8: =IF(B_Housing_Type="",0,IF(B_Housing_Type="MF",'Project Info'!$B$160,IF(B_Housing_Type="TH",'Project Info'!$B$161,IF(AND(B_Housing_Type="SF",B_Net_Sq_Ft_per_Unit>0,B_Net_Sq_Ft_per_Unit<3000),'Project Info'!$B$162,IF(AND(B_Housing_Type="SF",B_Net_Sq_Ft_per_Unit>=3000),'Project Info'!$B$163))))) -> 0 | DJ8: 0 | DK8: 0 | DL8: 0 | DN8: 0 | DO8: 0 | DQ8: 0 | DR8: 0 | DT8: 0 | DY8: 0 | DZ8: 0 | EB8: 0 | EF8: 0 | EG8: 0 | EH8: 0 | EI8: 0 | EU8: 0 | EV8: 0 | EX8: 0 | EY8: 0 | EZ8: 0 | FA8: 0 | FB8: 0 | FC8: 0 | FE8: =Annual_Cooling_degree_days*24*(1/R_conventional_SF_F_hrs_BTU-1/R_green_roof_SF_F_hrs_Btu)/3412*'Building Inputs'!$EU8 -> 0 | FF8: 0 | FG8: =Annual_Heating_degree_days*24*(1/R_conventional_SF_F_hrs_BTU-1/R_green_roof_SF_F_hrs_Btu)*'Building Inputs'!$EU8 -> 0 | FH8: 0 | FI8: =Avg_Annual_NO2_uptake*'Building Inputs'!$EU8 -> 0 | FJ8: =Avg_Annual_O3_uptake*'Building Inputs'!$EU8 -> 0 | FK8: =Avg_Annual_SO2_uptake*'Building Inputs'!$EU8 -> 0 | FL8: =Avg_Annual_PM_10_uptake*'Building Inputs'!$EU8 -> 0 | FM8: 0 | FN8: 0 | FO8: =FI8+FM8 -> 0 | FP8: =FK8+FN8 -> 0 | FQ8: 0 | FR8: 0 | FS8: 0 | FT8: 0 | FU8: =SUM(FQ8:FT8) -> 0 | FV8: =Avg_amount_of_carbon_sequestered_lbs_SF*'Building Inputs'!$EU8*3.67 -> 0 | FW8: 0 | FX8: =FV8+FW8 -> 0 | FY8: 0 | FZ8: =Average_annual_rainfall_in*($C8*(1-$E8)+$EM8-$EJ8-$ER8)*$C8/43560*'Building Inputs'!$EN8*144*0.00433 -> 0 | GB8: =Avg_Annual_NO2_uptake*'Building Inputs'!$EV8 -> 0 | GC8: =Avg_Annual_O3_uptake*'Building Inputs'!$EV8 -> 0 | GD8: =Avg_Annual_SO2_uptake*'Building Inputs'!$EV8 -> 0 | GE8: =Avg_Annual_PM_10_uptake*'Building Inputs'!$EV8 -> 0 | GF8: 0 | GG8: 0 | GH8: 0 | GI8: 0 | GJ8: 0 | GK8: =Avg_amount_of_carbon_sequestered_lbs_SF*'Building Inputs'!$EV8*3.67 -> 0 | GL8: 0 | GM8: =Average_annual_rainfall_in*('Building Inputs'!$EX8*'Building Inputs'!$EQ8+'Building Inputs'!$EY8*'Building Inputs'!$ES8)*144*0.00433 -> 0 | GO8: 0 | GQ8: 0 | GR8: 0 | GS8: 0 | GT8: 0 | GU8: 0 | GV8: 0 | GW8: 0 | GX8: 0 | GY8: 0 | GZ8: 0 | HA8: 0 | HB8: 0 | HC8: 0 | HF8: 0 | HG8: 0 | HH8: 0 | HQ8: 0 | HR8: 0 | HS8: 0 | HT8: 0 | HU8: 0 | HV8: 0 | HW8: 0 | HX8: 0
A9: 6 | I9: 0 | K9: 0 | L9: 0 | M9: 0 | N9: 0 | O9: 0 | P9: 0 | Q9: 0 | R9: 0 | AA9: 0 | AD9: 0 | AE9: 0 | AH9: 0 | AK9: 0 | AM9: 0 | AN9: 0 | AO9: 0 | AP9: 0 | AQ9: 0 | AR9: 0 | AS9: 0 | AT9: 0 | AU9: 0 | AV9: 0 | AW9: 0 | AX9: 0 | AY9: 0 | BB9: 0 | BC9: 0 | BF9: 0 | BG9: 0 | BJ9: 0 | BK9: 0 | BN9: 0 | BO9: 0 | BR9: 0 | BS9: 0 | BV9: 0 | BY9: 0 | BZ9: 0 | CA9: 0 | CD9: 0 | CI9: 0 | CJ9: =IFERROR(IF(B_Housing_Type="SF",EXP('Residential Energy Coefficients'!$B$3+'Residential Energy Coefficients'!$B$4*LN(B_Net_Sq_Ft_per_Unit)+'Residential Energy Coefficients'!$B$9+'Residential Energy Coefficients'!$B$10*LN(B_HH_Income)+'Residential Energy Coefficients'!$B$16*LN(Residential_Energy_Cost)+'Residential Energy Coefficients'!$B$20+'Residential Energy Coefficients'!$B$24*IFERROR(LOOKUP(Metro_Select,Energy_Metro_Lookup,HDD),0)),IF(B_Housing_Type="TH",EXP('Residential Energy Coefficients'!$E$3+'Residential Energy Coefficients'!$E$4*LN(B_Net_Sq_Ft_per_Unit)+'Residential Energy Coefficients'!$E$9+'Residential Energy Coefficients'!$E$16*LN(Residential_Energy_Cost)+'Residential Energy Coefficients'!$E$19+'Residential Energy Coefficients'!$E$20+'Residential Energy Coefficients'!$E$24*IFERROR(LOOKUP(Metro_Select,Energy_Metro_Lookup,HDD),0)),IF(B_Housing_Type="MF",EXP('Residential Energy Coefficients'!$H$3+'Residential Energy Coefficients'!$H$4*LN(B_Net_Sq_Ft_per_Unit)+'Residential Energy Coefficients'!$H$9+IF(B_Pct_Owner=1,'Residential Energy Coefficients'!$H$12,0)+'Residential Energy Coefficients'!$H$16*LN(Residential_Energy_Cost)+'Residential Energy Coefficients'!$H$20+'Residential Energy Coefficients'!$H$24*IFERROR(LOOKUP(Metro_Select,Energy_Metro_Lookup,HDD),0)),IF(B_Hotel_Room_Acre>0,EXP('Residential Energy Coefficients'!$H$3+'Residential Energy Coefficients'!$H$4*LN(B_Hotel_Room_Net)+'Residential Energy Coefficients'!$H$9+'Residential Energy Coefficients'!$H$16*LN(Residential_Energy_Cost)+'Residential Energy Coefficients'!$H$20+'Residential Energy Coefficients'!$H$24*IFERROR(LOOKUP(Metro_Select,Energy_Metro_Lookup,HDD),0)),IF(B_Housing_Type="MH",EXP('Residential Energy Coefficients'!$K$3+'Residential Energy Coefficients'!$K$16*LN(Residential_Energy_Cost)+'Residential Energy Coefficients'!$K$24*IFERROR(LOOKUP(Metro_Select,Energy_Metro_Lookup,HDD),0)),0)))))/1000,0) -> 0 | CK9: =IFERROR(IF(B_Housing_Type="SF",EXP('Residential Energy Coefficients'!$C$3+'Residential Energy Coefficients'!$C$4*LN(B_Net_Sq_Ft_per_Unit)+'Residential Energy Coefficients'!$C$10*LN(B_HH_Income)+'Residential Energy Coefficients'!$C$11*B_HH_Size+'Residential Energy Coefficients'!$C$16*LN(Residential_Energy_Cost)+'Residential Energy Coefficients'!$C$19+'Residential Energy Coefficients'!$C$22+'Residential Energy Coefficients'!$C$25*IFERROR(LOOKUP(Metro_Select,Energy_Metro_Lookup,CDD),0)),IF(B_Housing_Type="TH",EXP('Residential Energy Coefficients'!$F$3+'Residential Energy Coefficients'!$F$4*LN(B_Net_Sq_Ft_per_Unit)+'Residential Energy Coefficients'!$F$10*LN(B_HH_Income)+'Residential Energy Coefficients'!$F$11*B_HH_Size+IF(B_Pct_Owner=1,'Residential Energy Coefficients'!$F$12,0)+'Residential Energy Coefficients'!$F$16*LN(Residential_Energy_Cost)+'Residential Energy Coefficients'!$F$22+'Residential Energy Coefficients'!$F$25*IFERROR(LOOKUP(Metro_Select,Energy_Metro_Lookup,CDD),0)),IF(B_Housing_Type="MF",EXP('Residential Energy Coefficients'!$I$3+'Residential Energy Coefficients'!$I$4*LN(B_Net_Sq_Ft_per_Unit)+'Residential Energy Coefficients'!$I$9+'Residential Energy Coefficients'!$I$11*B_HH_Size+'Residential Energy Coefficients'!$I$16*LN(Residential_Energy_Cost)+'Residential Energy Coefficients'!$I$22+'Residential Energy Coefficients'!$I$25*IFERROR(LOOKUP(Metro_Select,Energy_Metro_Lookup,CDD),0)),IF(B_Hotel_Room_Acre>0,EXP('Residential Energy Coefficients'!$I$3+'Residential Energy Coefficients'!$I$4*LN(B_Hotel_Room_Net)+'Residential Energy Coefficients'!$I$9+'Residential Energy Coefficients'!$I$11*1.25+'Residential Energy Coefficients'!$I$16*LN(Residential_Energy_Cost)+'Residential Energy Coefficients'!$I$22+'Residential Energy Coefficients'!$I$25*IFERROR(LOOKUP(Metro_Select,Energy_Metro_Lookup,CDD),0)),IF(B_Housing_Type="MH",EXP('Residential Energy Coefficients'!$L$3+'Residential Energy Coefficients'!$L$11*B_HH_Size+'Residential Energy Coefficients'!$L$16*LN(Residential_Energy_Cost)+'Residential Energy Coefficients'!$L$22+'Residential Energy Coefficients'!$L$25*IFERROR(LOOKUP(Metro_Select,Energy_Metro_Lookup,CDD),0)),0)))))/1000,0) -> 0 | CL9: =IFERROR(IF(B_Housing_Type="SF",EXP('Residential Energy Coefficients'!$D$3+'Residential Energy Coefficients'!$D$4*LN(B_Net_Sq_Ft_per_Unit)+'Residential Energy Coefficients'!$D$9+'Residential Energy Coefficients'!$D$10*LN(B_HH_Income)+'Residential Energy Coefficients'!$D$11*B_HH_Size+IF(B_Pct_Owner=1,'Residential Energy Coefficients'!$D$12,0)+'Residential Energy Coefficients'!$D$16*LN(Residential_Energy_Cost)),IF(B_Housing_Type="TH",EXP('Residential Energy Coefficients'!$G$3+'Residential Energy Coefficients'!$G$4*LN(B_Net_Sq_Ft_per_Unit)+'Residential Energy Coefficients'!$G$10*LN(B_HH_Income)+'Residential Energy Coefficients'!$G$11*B_HH_Size+'Residential Energy Coefficients'!$G$16*LN(Residential_Energy_Cost)),IF(B_Housing_Type="MF",EXP('Residential Energy Coefficients'!$J$3+'Residential Energy Coefficients'!$J$4*LN(B_Net_Sq_Ft_per_Unit)+'Residential Energy Coefficients'!$J$10*LN(B_HH_Income)+'Residential Energy Coefficients'!$J$11*B_HH_Size+IF(B_Pct_Owner=1,'Residential Energy Coefficients'!$J$12,0)+'Residential Energy Coefficients'!$J$16*LN(Residential_Energy_Cost)+'Residential Energy Coefficients'!$J$19),IF(B_Hotel_Room_Acre>0,EXP('Residential Energy Coefficients'!$J$3+'Residential Energy Coefficients'!$J$4*LN(B_Hotel_Room_Net)+'Residential Energy Coefficients'!$J$16*LN(Residential_Energy_Cost)+'Residential Energy Coefficients'!$J$19),IF(B_Housing_Type="MH",EXP('Residential Energy Coefficients'!$M$3+'Residential Energy Coefficients'!$M$4*LN(B_Net_Sq_Ft_per_Unit)+'Residential Energy Coefficients'!$M$11*B_HH_Size+'Residential Energy Coefficients'!$M$16*LN(Residential_Energy_Cost)+'Residential Energy Coefficients'!$M$19),0)))))/1000,0) -> 0 | CM9: 0 | CN9: =(IFERROR(EXP('Commercial Energy Coefficients'!$B$3+LN(B_RET_Gross_Sq_Ft)*'Commercial Energy Coefficients'!$B$4+'Commercial Energy Coefficients'!$B$11+'Commercial Energy Coefficients'!$B$14+'Commercial Energy Coefficients'!$B$18*LN((B_Ret_Emp_Acre)*(B_Lot_Size/43560))+'Commercial Energy Coefficients'!$B$19*LN(40)+'Commercial Energy Coefficients'!$B$21+'Commercial Energy Coefficients'!$B$22*LN(Commercial_Energy_Cost)+'Commercial Energy Coefficients'!$B$23*IFERROR(LOOKUP(Metro_Select,Energy_Metro_Lookup,HDD),0)),0)+IFERROR(EXP('Commercial Energy Coefficients'!$E$3+LN(B_OFF_Gross_Sq_Ft)*'Commercial Energy Coefficients'!$E$4+'Commercial Energy Coefficients'!$E$11+'Commercial Energy Coefficients'!$E$14+'Commercial Energy Coefficients'!$E$18*LN((B_OFF_Emp_Acre)*(B_Lot_Size/43560))+'Commercial Energy Coefficients'!$E$19*LN(40)+'Commercial Energy Coefficients'!$E$21+'Commercial Energy Coefficients'!$E$22*LN(Commercial_Energy_Cost)+'Commercial Energy Coefficients'!$E$23*IFERROR(LOOKUP(Metro_Select,Energy_Metro_Lookup,HDD),0)),0)+IFERROR(EXP('Commercial Energy Coefficients'!$H$3+LN(B_PUB_Gross_Sq_Ft)*'Commercial Energy Coefficients'!$H$4+'Commercial Energy Coefficients'!$H$11+'Commercial Energy Coefficients'!$H$14+'Commercial Energy Coefficients'!$H$18*LN((B_Pub_Emp_Acre)*(B_Lot_Size/43560))+'Commercial Energy Coefficients'!$H$19*LN(40)+'Commercial Energy Coefficients'!$H$21+'Commercial Energy Coefficients'!$H$22*LN(Commercial_Energy_Cost)+'Commercial Energy Coefficients'!$H$23*IFERROR(LOOKUP(Metro_Select,Energy_Metro_Lookup,HDD),0)),0))/1000 -> 0 | CO9: =(IFERROR(EXP('Commercial Energy Coefficients'!$C$3+LN((B_RET_Gross_Sq_Ft))*'Commercial Energy Coefficients'!$C$4+'Commercial Energy Coefficients'!$C$11+'Commercial Energy Coefficients'!$C$14+'Commercial Energy Coefficients'!$C$18*LN((B_Ret_Emp_Acre)*(B_Lot_Size/43560))+'Commercial Energy Coefficients'!$C$19*LN(40)+'Commercial Energy Coefficients'!$C$21+'Commercial Energy Coefficients'!$C$22*LN(Commercial_Energy_Cost)+'Commercial Energy Coefficients'!$C$24*IFERROR(LOOKUP(Metro_Select,Energy_Metro_Lookup,CDD),0)),0)+IFERROR(EXP('Commercial Energy Coefficients'!$F$3+LN((B_OFF_Gross_Sq_Ft))*'Commercial Energy Coefficients'!$F$4+'Commercial Energy Coefficients'!$F$11+'Commercial Energy Coefficients'!$F$14+'Commercial Energy Coefficients'!$F$18*LN((B_OFF_Emp_Acre)*(B_Lot_Size/43560))+'Commercial Energy Coefficients'!$F$19*LN(40)+'Commercial Energy Coefficients'!$F$21+'Commercial Energy Coefficients'!$F$22*LN(Commercial_Energy_Cost)+'Commercial Energy Coefficients'!$F$24*IFERROR(LOOKUP(Metro_Select,Energy_Metro_Lookup,CDD),0)),0)+IFERROR(EXP('Commercial Energy Coefficients'!$I$3+LN((B_PUB_Gross_Sq_Ft))*'Commercial Energy Coefficients'!$I$4+'Commercial Energy Coefficients'!$I$11+'Commercial Energy Coefficients'!$I$14+'Commercial Energy Coefficients'!$I$18*LN((B_Pub_Emp_Acre)*(B_Lot_Size/43560))+'Commercial Energy Coefficients'!$I$19*LN(40)+'Commercial Energy Coefficients'!$I$21+'Commercial Energy Coefficients'!$I$22*LN(Commercial_Energy_Cost)+'Commercial Energy Coefficients'!$I$24*IFERROR(LOOKUP(Metro_Select,Energy_Metro_Lookup,CDD),0)),0))/1000 -> 0 | CP9: =(IFERROR(EXP('Commercial Energy Coefficients'!$D$3+LN((B_RET_Gross_Sq_Ft))*'Commercial Energy Coefficients'!$D$4+'Commercial Energy Coefficients'!$D$14+'Commercial Energy Coefficients'!$D$18*LN((B_Ret_Emp_Acre)*(B_Lot_Size/43560))+'Commercial Energy Coefficients'!$D$19*LN(40)+'Commercial Energy Coefficients'!$D$21+'Commercial Energy Coefficients'!$D$22*LN(Commercial_Energy_Cost)),0)+IFERROR(EXP('Commercial Energy Coefficients'!$G$3+LN((B_OFF_Gross_Sq_Ft))*'Commercial Energy Coefficients'!$G$4+'Commercial Energy Coefficients'!$G$14+'Commercial Energy Coefficients'!$G$18*LN((B_OFF_Emp_Acre)*(B_Lot_Size/43560))+'Commercial Energy Coefficients'!$G$19*LN(40)+'Commercial Energy Coefficients'!$G$21+'Commercial Energy Coefficients'!$G$22*LN(Commercial_Energy_Cost)),0)+IFERROR(EXP('Commercial Energy Coefficients'!$J$3+LN((B_PUB_Gross_Sq_Ft))*'Commercial Energy Coefficients'!$J$4+'Commercial Energy Coefficients'!$J$14+'Commercial Energy Coefficients'!$J$18*LN((B_Pub_Emp_Acre)*(B_Lot_Size/43560))+'Commercial Energy Coefficients'!$J$19*LN(40)+'Commercial Energy Coefficients'!$J$21+'Commercial Energy Coefficients'!$J$22*LN(Commercial_Energy_Cost)),0))/1000 -> 0 | CQ9: 0 | CR9: 0 | CS9: 0 | CT9: 0 | CU9: 0 | CV9: 0 | CW9: 0 | CX9: 0 | CY9: 0 | CZ9: 0 | DA9: 0 | DB9: 0 | DC9: 0 | DD9: 0 | DE9: 0 | DF9: 0 | DG9: 0 | DH9: 0 | DI9: =IF(B_Housing_Type="",0,IF(B_Housing_Type="MF",'Project Info'!$B$160,IF(B_Housing_Type="TH",'Project Info'!$B$161,IF(AND(B_Housing_Type="SF",B_Net_Sq_Ft_per_Unit>0,B_Net_Sq_Ft_per_Unit<3000),'Project Info'!$B$162,IF(AND(B_Housing_Type="SF",B_Net_Sq_Ft_per_Unit>=3000),'Project Info'!$B$163))))) -> 0 | DJ9: 0 | DK9: 0 | DL9: 0 | DN9: 0 | DO9: 0 | DQ9: 0 | DR9: 0 | DT9: 0 | DY9: 0 | DZ9: 0 | EB9: 0 | EF9: 0 | EG9: 0 | EH9: 0 | EI9: 0 | EU9: 0 | EV9: 0 | EX9: 0 | EY9: 0 | EZ9: 0 | FA9: 0 | FB9: 0 | FC9: 0 | FE9: =Annual_Cooling_degree_days*24*(1/R_conventional_SF_F_hrs_BTU-1/R_green_roof_SF_F_hrs_Btu)/3412*'Building Inputs'!$EU9 -> 0 | FF9: 0 | FG9: =Annual_Heating_degree_days*24*(1/R_conventional_SF_F_hrs_BTU-1/R_green_roof_SF_F_hrs_Btu)*'Building Inputs'!$EU9 -> 0 | FH9: 0 | FI9: =Avg_Annual_NO2_uptake*'Building Inputs'!$EU9 -> 0 | FJ9: =Avg_Annual_O3_uptake*'Building Inputs'!$EU9 -> 0 | FK9: =Avg_Annual_SO2_uptake*'Building Inputs'!$EU9 -> 0 | FL9: =Avg_Annual_PM_10_uptake*'Building Inputs'!$EU9 -> 0 | FM9: 0 | FN9: 0 | FO9: 0 | FP9: 0 | FQ9: 0 | FR9: 0 | FS9: 0 | FT9: 0 | FU9: 0 | FV9: =Avg_amount_of_carbon_sequestered_lbs_SF*'Building Inputs'!$EU9*3.67 -> 0 | FW9: 0 | FX9: 0 | FY9: 0 | FZ9: =Average_annual_rainfall_in*($C9*(1-$E9)+$EM9-$EJ9-$ER9)*$C9/43560*'Building Inputs'!$EN9*144*0.00433 -> 0 | GB9: =Avg_Annual_NO2_uptake*'Building Inputs'!$EV9 -> 0 | GC9: =Avg_Annual_O3_uptake*'Building Inputs'!$EV9 -> 0 | GD9: =Avg_Annual_SO2_uptake*'Building Inputs'!$EV9 -> 0 | GE9: =Avg_Annual_PM_10_uptake*'Building Inputs'!$EV9 -> 0 | GF9: 0 | GG9: 0 | GH9: 0 | GI9: 0 | GJ9: 0 | GK9: =Avg_amount_of_carbon_sequestered_lbs_SF*'Building Inputs'!$EV9*3.67 -> 0 | GL9: 0 | GM9: =Average_annual_rainfall_in*('Building Inputs'!$EX9*'Building Inputs'!$EQ9+'Building Inputs'!$EY9*'Building Inputs'!$ES9)*144*0.00433 -> 0 | GO9: 0 | GQ9: 0 | GR9: 0 | GS9: 0 | GT9: 0 | GU9: 0 | GV9: 0 | GW9: 0 | GX9: 0 | GY9: 0 | GZ9: 0 | HA9: 0 | HB9: 0 | HC9: 0 | HF9: 0 | HG9: 0 | HH9: 0 | HQ9: 0 | HR9: 0 | HS9: 0 | HT9: 0 | HU9: 0 | HV9: 0 | HW9: 0 | HX9: 0
A10: 7 | I10: 0 | K10: 0 | L10: 0 | M10: 0 | N10: 0 | O10: 0 | P10: 0 | Q10: 0 | R10: 0 | AA10: 0 | AD10: 0 | AE10: 0 | AH10: 0 | AK10: 0 | AM10: 0 | AN10: 0 | AO10: 0 | AP10: 0 | AQ10: 0 | AR10: 0 | AS10: 0 | AT10: 0 | AU10: 0 | AV10: 0 | AW10: 0 | AX10: 0 | AY10: 0 | BB10: 0 | BC10: 0 | BF10: 0 | BG10: 0 | BJ10: 0 | BK10: 0 | BN10: 0 | BO10: 0 | BR10: 0 | BS10: 0 | BV10: 0 | BY10: 0 | BZ10: 0 | CA10: 0 | CD10: 0 | CI10: 0 | CJ10: =IFERROR(IF(B_Housing_Type="SF",EXP('Residential Energy Coefficients'!$B$3+'Residential Energy Coefficients'!$B$4*LN(B_Net_Sq_Ft_per_Unit)+'Residential Energy Coefficients'!$B$9+'Residential Energy Coefficients'!$B$10*LN(B_HH_Income)+'Residential Energy Coefficients'!$B$16*LN(Residential_Energy_Cost)+'Residential Energy Coefficients'!$B$20+'Residential Energy Coefficients'!$B$24*IFERROR(LOOKUP(Metro_Select,Energy_Metro_Lookup,HDD),0)),IF(B_Housing_Type="TH",EXP('Residential Energy Coefficients'!$E$3+'Residential Energy Coefficients'!$E$4*LN(B_Net_Sq_Ft_per_Unit)+'Residential Energy Coefficients'!$E$9+'Residential Energy Coefficients'!$E$16*LN(Residential_Energy_Cost)+'Residential Energy Coefficients'!$E$19+'Residential Energy Coefficients'!$E$20+'Residential Energy Coefficients'!$E$24*IFERROR(LOOKUP(Metro_Select,Energy_Metro_Lookup,HDD),0)),IF(B_Housing_Type="MF",EXP('Residential Energy Coefficients'!$H$3+'Residential Energy Coefficients'!$H$4*LN(B_Net_Sq_Ft_per_Unit)+'Residential Energy Coefficients'!$H$9+IF(B_Pct_Owner=1,'Residential Energy Coefficients'!$H$12,0)+'Residential Energy Coefficients'!$H$16*LN(Residential_Energy_Cost)+'Residential Energy Coefficients'!$H$20+'Residential Energy Coefficients'!$H$24*IFERROR(LOOKUP(Metro_Select,Energy_Metro_Lookup,HDD),0)),IF(B_Hotel_Room_Acre>0,EXP('Residential Energy Coefficients'!$H$3+'Residential Energy Coefficients'!$H$4*LN(B_Hotel_Room_Net)+'Residential Energy Coefficients'!$H$9+'Residential Energy Coefficients'!$H$16*LN(Residential_Energy_Cost)+'Residential Energy Coefficients'!$H$20+'Residential Energy Coefficients'!$H$24*IFERROR(LOOKUP(Metro_Select,Energy_Metro_Lookup,HDD),0)),IF(B_Housing_Type="MH",EXP('Residential Energy Coefficients'!$K$3+'Residential Energy Coefficients'!$K$16*LN(Residential_Energy_Cost)+'Residential Energy Coefficients'!$K$24*IFERROR(LOOKUP(Metro_Select,Energy_Metro_Lookup,HDD),0)),0)))))/1000,0) -> 0 | CK10: =IFERROR(IF(B_Housing_Type="SF",EXP('Residential Energy Coefficients'!$C$3+'Residential Energy Coefficients'!$C$4*LN(B_Net_Sq_Ft_per_Unit)+'Residential Energy Coefficients'!$C$10*LN(B_HH_Income)+'Residential Energy Coefficients'!$C$11*B_HH_Size+'Residential Energy Coefficients'!$C$16*LN(Residential_Energy_Cost)+'Residential Energy Coefficients'!$C$19+'Residential Energy Coefficients'!$C$22+'Residential Energy Coefficients'!$C$25*IFERROR(LOOKUP(Metro_Select,Energy_Metro_Lookup,CDD),0)),IF(B_Housing_Type="TH",EXP('Residential Energy Coefficients'!$F$3+'Residential Energy Coefficients'!$F$4*LN(B_Net_Sq_Ft_per_Unit)+'Residential Energy Coefficients'!$F$10*LN(B_HH_Income)+'Residential Energy Coefficients'!$F$11*B_HH_Size+IF(B_Pct_Owner=1,'Residential Energy Coefficients'!$F$12,0)+'Residential Energy Coefficients'!$F$16*LN(Residential_Energy_Cost)+'Residential Energy Coefficients'!$F$22+'Residential Energy Coefficients'!$F$25*IFERROR(LOOKUP(Metro_Select,Energy_Metro_Lookup,CDD),0)),IF(B_Housing_Type="MF",EXP('Residential Energy Coefficients'!$I$3+'Residential Energy Coefficients'!$I$4*LN(B_Net_Sq_Ft_per_Unit)+'Residential Energy Coefficients'!$I$9+'Residential Energy Coefficients'!$I$11*B_HH_Size+'Residential Energy Coefficients'!$I$16*LN(Residential_Energy_Cost)+'Residential Energy Coefficients'!$I$22+'Residential Energy Coefficients'!$I$25*IFERROR(LOOKUP(Metro_Select,Energy_Metro_Lookup,CDD),0)),IF(B_Hotel_Room_Acre>0,EXP('Residential Energy Coefficients'!$I$3+'Residential Energy Coefficients'!$I$4*LN(B_Hotel_Room_Net)+'Residential Energy Coefficients'!$I$9+'Residential Energy Coefficients'!$I$11*1.25+'Residential Energy Coefficients'!$I$16*LN(Residential_Energy_Cost)+'Residential Energy Coefficients'!$I$22+'Residential Energy Coefficients'!$I$25*IFERROR(LOOKUP(Metro_Select,Energy_Metro_Lookup,CDD),0)),IF(B_Housing_Type="MH",EXP('Residential Energy Coefficients'!$L$3+'Residential Energy Coefficients'!$L$11*B_HH_Size+'Residential Energy Coefficients'!$L$16*LN(Residential_Energy_Cost)+'Residential Energy Coefficients'!$L$22+'Residential Energy Coefficients'!$L$25*IFERROR(LOOKUP(Metro_Select,Energy_Metro_Lookup,CDD),0)),0)))))/1000,0) -> 0 | CL10: =IFERROR(IF(B_Housing_Type="SF",EXP('Residential Energy Coefficients'!$D$3+'Residential Energy Coefficients'!$D$4*LN(B_Net_Sq_Ft_per_Unit)+'Residential Energy Coefficients'!$D$9+'Residential Energy Coefficients'!$D$10*LN(B_HH_Income)+'Residential Energy Coefficients'!$D$11*B_HH_Size+IF(B_Pct_Owner=1,'Residential Energy Coefficients'!$D$12,0)+'Residential Energy Coefficients'!$D$16*LN(Residential_Energy_Cost)),IF(B_Housing_Type="TH",EXP('Residential Energy Coefficients'!$G$3+'Residential Energy Coefficients'!$G$4*LN(B_Net_Sq_Ft_per_Unit)+'Residential Energy Coefficients'!$G$10*LN(B_HH_Income)+'Residential Energy Coefficients'!$G$11*B_HH_Size+'Residential Energy Coefficients'!$G$16*LN(Residential_Energy_Cost)),IF(B_Housing_Type="MF",EXP('Residential Energy Coefficients'!$J$3+'Residential Energy Coefficients'!$J$4*LN(B_Net_Sq_Ft_per_Unit)+'Residential Energy Coefficients'!$J$10*LN(B_HH_Income)+'Residential Energy Coefficients'!$J$11*B_HH_Size+IF(B_Pct_Owner=1,'Residential Energy Coefficients'!$J$12,0)+'Residential Energy Coefficients'!$J$16*LN(Residential_Energy_Cost)+'Residential Energy Coefficients'!$J$19),IF(B_Hotel_Room_Acre>0,EXP('Residential Energy Coefficients'!$J$3+'Residential Energy Coefficients'!$J$4*LN(B_Hotel_Room_Net)+'Residential Energy Coefficients'!$J$16*LN(Residential_Energy_Cost)+'Residential Energy Coefficients'!$J$19),IF(B_Housing_Type="MH",EXP('Residential Energy Coefficients'!$M$3+'Residential Energy Coefficients'!$M$4*LN(B_Net_Sq_Ft_per_Unit)+'Residential Energy Coefficients'!$M$11*B_HH_Size+'Residential Energy Coefficients'!$M$16*LN(Residential_Energy_Cost)+'Residential Energy Coefficients'!$M$19),0)))))/1000,0) -> 0 | CM10: 0 | CN10: =(IFERROR(EXP('Commercial Energy Coefficients'!$B$3+LN(B_RET_Gross_Sq_Ft)*'Commercial Energy Coefficients'!$B$4+'Commercial Energy Coefficients'!$B$11+'Commercial Energy Coefficients'!$B$14+'Commercial Energy Coefficients'!$B$18*LN((B_Ret_Emp_Acre)*(B_Lot_Size/43560))+'Commercial Energy Coefficients'!$B$19*LN(40)+'Commercial Energy Coefficients'!$B$21+'Commercial Energy Coefficients'!$B$22*LN(Commercial_Energy_Cost)+'Commercial Energy Coefficients'!$B$23*IFERROR(LOOKUP(Metro_Select,Energy_Metro_Lookup,HDD),0)),0)+IFERROR(EXP('Commercial Energy Coefficients'!$E$3+LN(B_OFF_Gross_Sq_Ft)*'Commercial Energy Coefficients'!$E$4+'Commercial Energy Coefficients'!$E$11+'Commercial Energy Coefficients'!$E$14+'Commercial Energy Coefficients'!$E$18*LN((B_OFF_Emp_Acre)*(B_Lot_Size/43560))+'Commercial Energy Coefficients'!$E$19*LN(40)+'Commercial Energy Coefficients'!$E$21+'Commercial Energy Coefficients'!$E$22*LN(Commercial_Energy_Cost)+'Commercial Energy Coefficients'!$E$23*IFERROR(LOOKUP(Metro_Select,Energy_Metro_Lookup,HDD),0)),0)+IFERROR(EXP('Commercial Energy Coefficients'!$H$3+LN(B_PUB_Gross_Sq_Ft)*'Commercial Energy Coefficients'!$H$4+'Commercial Energy Coefficients'!$H$11+'Commercial Energy Coefficients'!$H$14+'Commercial Energy Coefficients'!$H$18*LN((B_Pub_Emp_Acre)*(B_Lot_Size/43560))+'Commercial Energy Coefficients'!$H$19*LN(40)+'Commercial Energy Coefficients'!$H$21+'Commercial Energy Coefficients'!$H$22*LN(Commercial_Energy_Cost)+'Commercial Energy Coefficients'!$H$23*IFERROR(LOOKUP(Metro_Select,Energy_Metro_Lookup,HDD),0)),0))/1000 -> 0 | CO10: =(IFERROR(EXP('Commercial Energy Coefficients'!$C$3+LN((B_RET_Gross_Sq_Ft))*'Commercial Energy Coefficients'!$C$4+'Commercial Energy Coefficients'!$C$11+'Commercial Energy Coefficients'!$C$14+'Commercial Energy Coefficients'!$C$18*LN((B_Ret_Emp_Acre)*(B_Lot_Size/43560))+'Commercial Energy Coefficients'!$C$19*LN(40)+'Commercial Energy Coefficients'!$C$21+'Commercial Energy Coefficients'!$C$22*LN(Commercial_Energy_Cost)+'Commercial Energy Coefficients'!$C$24*IFERROR(LOOKUP(Metro_Select,Energy_Metro_Lookup,CDD),0)),0)+IFERROR(EXP('Commercial Energy Coefficients'!$F$3+LN((B_OFF_Gross_Sq_Ft))*'Commercial Energy Coefficients'!$F$4+'Commercial Energy Coefficients'!$F$11+'Commercial Energy Coefficients'!$F$14+'Commercial Energy Coefficients'!$F$18*LN((B_OFF_Emp_Acre)*(B_Lot_Size/43560))+'Commercial Energy Coefficients'!$F$19*LN(40)+'Commercial Energy Coefficients'!$F$21+'Commercial Energy Coefficients'!$F$22*LN(Commercial_Energy_Cost)+'Commercial Energy Coefficients'!$F$24*IFERROR(LOOKUP(Metro_Select,Energy_Metro_Lookup,CDD),0)),0)+IFERROR(EXP('Commercial Energy Coefficients'!$I$3+LN((B_PUB_Gross_Sq_Ft))*'Commercial Energy Coefficients'!$I$4+'Commercial Energy Coefficients'!$I$11+'Commercial Energy Coefficients'!$I$14+'Commercial Energy Coefficients'!$I$18*LN((B_Pub_Emp_Acre)*(B_Lot_Size/43560))+'Commercial Energy Coefficients'!$I$19*LN(40)+'Commercial Energy Coefficients'!$I$21+'Commercial Energy Coefficients'!$I$22*LN(Commercial_Energy_Cost)+'Commercial Energy Coefficients'!$I$24*IFERROR(LOOKUP(Metro_Select,Energy_Metro_Lookup,CDD),0)),0))/1000 -> 0 | CP10: =(IFERROR(EXP('Commercial Energy Coefficients'!$D$3+LN((B_RET_Gross_Sq_Ft))*'Commercial Energy Coefficients'!$D$4+'Commercial Energy Coefficients'!$D$14+'Commercial Energy Coefficients'!$D$18*LN((B_Ret_Emp_Acre)*(B_Lot_Size/43560))+'Commercial Energy Coefficients'!$D$19*LN(40)+'Commercial Energy Coefficients'!$D$21+'Commercial Energy Coefficients'!$D$22*LN(Commercial_Energy_Cost)),0)+IFERROR(EXP('Commercial Energy Coefficients'!$G$3+LN((B_OFF_Gross_Sq_Ft))*'Commercial Energy Coefficients'!$G$4+'Commercial Energy Coefficients'!$G$14+'Commercial Energy Coefficients'!$G$18*LN((B_OFF_Emp_Acre)*(B_Lot_Size/43560))+'Commercial Energy Coefficients'!$G$19*LN(40)+'Commercial Energy Coefficients'!$G$21+'Commercial Energy Coefficients'!$G$22*LN(Commercial_Energy_Cost)),0)+IFERROR(EXP('Commercial Energy Coefficients'!$J$3+LN((B_PUB_Gross_Sq_Ft))*'Commercial Energy Coefficients'!$J$4+'Commercial Energy Coefficients'!$J$14+'Commercial Energy Coefficients'!$J$18*LN((B_Pub_Emp_Acre)*(B_Lot_Size/43560))+'Commercial Energy Coefficients'!$J$19*LN(40)+'Commercial Energy Coefficients'!$J$21+'Commercial Energy Coefficients'!$J$22*LN(Commercial_Energy_Cost)),0))/1000 -> 0 | CQ10: 0 | CR10: 0 | CS10: 0 | CT10: 0 | CU10: 0 | CV10: 0 | CW10: 0 | CX10: 0 | CY10: 0 | CZ10: 0 | DA10: 0 | DB10: 0 | DC10: 0 | DD10: 0 | DE10: 0 | DF10: 0 | DG10: 0 | DH10: 0 | DI10: =IF(B_Housing_Type="",0,IF(B_Housing_Type="MF",'Project Info'!$B$160,IF(B_Housing_Type="TH",'Project Info'!$B$161,IF(AND(B_Housing_Type="SF",B_Net_Sq_Ft_per_Unit>0,B_Net_Sq_Ft_per_Unit<3000),'Project Info'!$B$162,IF(AND(B_Housing_Type="SF",B_Net_Sq_Ft_per_Unit>=3000),'Project Info'!$B$163))))) -> 0 | DJ10: 0 | DK10: 0 | DL10: 0 | DN10: 0 | DO10: 0 | DQ10: 0 | DR10: 0 | DT10: 0 | DY10: 0 | DZ10: 0 | EB10: 0 | EF10: 0 | EG10: 0 | EH10: 0 | EI10: 0 | EU10: 0 | EV10: 0 | EX10: 0 | EY10: 0 | EZ10: 0 | FA10: 0 | FB10: 0 | FC10: 0 | FE10: =Annual_Cooling_degree_days*24*(1/R_conventional_SF_F_hrs_BTU-1/R_green_roof_SF_F_hrs_Btu)/3412*'Building Inputs'!$EU10 -> 0 | FF10: 0 | FG10: =Annual_Heating_degree_days*24*(1/R_conventional_SF_F_hrs_BTU-1/R_green_roof_SF_F_hrs_Btu)*'Building Inputs'!$EU10 -> 0 | FH10: 0 | FI10: =Avg_Annual_NO2_uptake*'Building Inputs'!$EU10 -> 0 | FJ10: =Avg_Annual_O3_uptake*'Building Inputs'!$EU10 -> 0 | FK10: =Avg_Annual_SO2_uptake*'Building Inputs'!$EU10 -> 0 | FL10: =Avg_Annual_PM_10_uptake*'Building Inputs'!$EU10 -> 0 | FM10: 0 | FN10: 0 | FO10: 0 | FP10: 0 | FQ10: 0 | FR10: 0 | FS10: 0 | FT10: 0 | FU10: 0 | FV10: =Avg_amount_of_carbon_sequestered_lbs_SF*'Building Inputs'!$EU10*3.67 -> 0 | FW10: 0 | FX10: 0 | FY10: 0 | FZ10: =Average_annual_rainfall_in*($C10*(1-$E10)+$EM10-$EJ10-$ER10)*$C10/43560*'Building Inputs'!$EN10*144*0.00433 -> 0 | GB10: =Avg_Annual_NO2_uptake*'Building Inputs'!$EV10 -> 0 | GC10: =Avg_Annual_O3_uptake*'Building Inputs'!$EV10 -> 0 | GD10: =Avg_Annual_SO2_uptake*'Building Inputs'!$EV10 -> 0 | GE10: =Avg_Annual_PM_10_uptake*'Building Inputs'!$EV10 -> 0 | GF10: 0 | GG10: 0 | GH10: 0 | GI10: 0 | GJ10: 0 | GK10: =Avg_amount_of_carbon_sequestered_lbs_SF*'Building Inputs'!$EV10*3.67 -> 0 | GL10: 0 | GM10: =Average_annual_rainfall_in*('Building Inputs'!$EX10*'Building Inputs'!$EQ10+'Building Inputs'!$EY10*'Building Inputs'!$ES10)*144*0.00433 -> 0 | GO10: 0 | GQ10: 0 | GR10: 0 | GS10: 0 | GT10: 0 | GU10: 0 | GV10: 0 | GW10: 0 | GX10: 0 | GY10: 0 | GZ10: 0 | HA10: 0 | HB10: 0 | HC10: 0 | HF10: 0 | HG10: 0 | HH10: 0 | HQ10: 0 | HR10: 0 | HS10: 0 | HT10: 0 | HU10: 0 | HV10: 0 | HW10: 0 | HX10: 0
A11: 8 | I11: 0 | K11: 0 | L11: 0 | M11: 0 | N11: 0 | O11: 0 | P11: 0 | Q11: 0 | R11: 0 | AA11: 0 | AD11: 0 | AE11: 0 | AH11: 0 | AK11: 0 | AM11: 0 | AN11: 0 | AO11: 0 | AP11: 0 | AQ11: 0 | AR11: 0 | AS11: 0 | AT11: 0 | AU11: 0 | AV11: 0 | AW11: 0 | AX11: 0 | AY11: 0 | BB11: 0 | BC11: 0 | BF11: 0 | BG11: 0 | BJ11: 0 | BK11: 0 | BN11: 0 | BO11: 0 | BR11: 0 | BS11: 0 | BV11: 0 | BY11: 0 | BZ11: 0 | CA11: 0 | CD11: 0 | CI11: 0 | CJ11: =IFERROR(IF(B_Housing_Type="SF",EXP('Residential Energy Coefficients'!$B$3+'Residential Energy Coefficients'!$B$4*LN(B_Net_Sq_Ft_per_Unit)+'Residential Energy Coefficients'!$B$9+'Residential Energy Coefficients'!$B$10*LN(B_HH_Income)+'Residential Energy Coefficients'!$B$16*LN(Residential_Energy_Cost)+'Residential Energy Coefficients'!$B$20+'Residential Energy Coefficients'!$B$24*IFERROR(LOOKUP(Metro_Select,Energy_Metro_Lookup,HDD),0)),IF(B_Housing_Type="TH",EXP('Residential Energy Coefficients'!$E$3+'Residential Energy Coefficients'!$E$4*LN(B_Net_Sq_Ft_per_Unit)+'Residential Energy Coefficients'!$E$9+'Residential Energy Coefficients'!$E$16*LN(Residential_Energy_Cost)+'Residential Energy Coefficients'!$E$19+'Residential Energy Coefficients'!$E$20+'Residential Energy Coefficients'!$E$24*IFERROR(LOOKUP(Metro_Select,Energy_Metro_Lookup,HDD),0)),IF(B_Housing_Type="MF",EXP('Residential Energy Coefficients'!$H$3+'Residential Energy Coefficients'!$H$4*LN(B_Net_Sq_Ft_per_Unit)+'Residential Energy Coefficients'!$H$9+IF(B_Pct_Owner=1,'Residential Energy Coefficients'!$H$12,0)+'Residential Energy Coefficients'!$H$16*LN(Residential_Energy_Cost)+'Residential Energy Coefficients'!$H$20+'Residential Energy Coefficients'!$H$24*IFERROR(LOOKUP(Metro_Select,Energy_Metro_Lookup,HDD),0)),IF(B_Hotel_Room_Acre>0,EXP('Residential Energy Coefficients'!$H$3+'Residential Energy Coefficients'!$H$4*LN(B_Hotel_Room_Net)+'Residential Energy Coefficients'!$H$9+'Residential Energy Coefficients'!$H$16*LN(Residential_Energy_Cost)+'Residential Energy Coefficients'!$H$20+'Residential Energy Coefficients'!$H$24*IFERROR(LOOKUP(Metro_Select,Energy_Metro_Lookup,HDD),0)),IF(B_Housing_Type="MH",EXP('Residential Energy Coefficients'!$K$3+'Residential Energy Coefficients'!$K$16*LN(Residential_Energy_Cost)+'Residential Energy Coefficients'!$K$24*IFERROR(LOOKUP(Metro_Select,Energy_Metro_Lookup,HDD),0)),0)))))/1000,0) -> 0 | CK11: =IFERROR(IF(B_Housing_Type="SF",EXP('Residential Energy Coefficients'!$C$3+'Residential Energy Coefficients'!$C$4*LN(B_Net_Sq_Ft_per_Unit)+'Residential Energy Coefficients'!$C$10*LN(B_HH_Income)+'Residential Energy Coefficients'!$C$11*B_HH_Size+'Residential Energy Coefficients'!$C$16*LN(Residential_Energy_Cost)+'Residential Energy Coefficients'!$C$19+'Residential Energy Coefficients'!$C$22+'Residential Energy Coefficients'!$C$25*IFERROR(LOOKUP(Metro_Select,Energy_Metro_Lookup,CDD),0)),IF(B_Housing_Type="TH",EXP('Residential Energy Coefficients'!$F$3+'Residential Energy Coefficients'!$F$4*LN(B_Net_Sq_Ft_per_Unit)+'Residential Energy Coefficients'!$F$10*LN(B_HH_Income)+'Residential Energy Coefficients'!$F$11*B_HH_Size+IF(B_Pct_Owner=1,'Residential Energy Coefficients'!$F$12,0)+'Residential Energy Coefficients'!$F$16*LN(Residential_Energy_Cost)+'Residential Energy Coefficients'!$F$22+'Residential Energy Coefficients'!$F$25*IFERROR(LOOKUP(Metro_Select,Energy_Metro_Lookup,CDD),0)),IF(B_Housing_Type="MF",EXP('Residential Energy Coefficients'!$I$3+'Residential Energy Coefficients'!$I$4*LN(B_Net_Sq_Ft_per_Unit)+'Residential Energy Coefficients'!$I$9+'Residential Energy Coefficients'!$I$11*B_HH_Size+'Residential Energy Coefficients'!$I$16*LN(Residential_Energy_Cost)+'Residential Energy Coefficients'!$I$22+'Residential Energy Coefficients'!$I$25*IFERROR(LOOKUP(Metro_Select,Energy_Metro_Lookup,CDD),0)),IF(B_Hotel_Room_Acre>0,EXP('Residential Energy Coefficients'!$I$3+'Residential Energy Coefficients'!$I$4*LN(B_Hotel_Room_Net)+'Residential Energy Coefficients'!$I$9+'Residential Energy Coefficients'!$I$11*1.25+'Residential Energy Coefficients'!$I$16*LN(Residential_Energy_Cost)+'Residential Energy Coefficients'!$I$22+'Residential Energy Coefficients'!$I$25*IFERROR(LOOKUP(Metro_Select,Energy_Metro_Lookup,CDD),0)),IF(B_Housing_Type="MH",EXP('Residential Energy Coefficients'!$L$3+'Residential Energy Coefficients'!$L$11*B_HH_Size+'Residential Energy Coefficients'!$L$16*LN(Residential_Energy_Cost)+'Residential Energy Coefficients'!$L$22+'Residential Energy Coefficients'!$L$25*IFERROR(LOOKUP(Metro_Select,Energy_Metro_Lookup,CDD),0)),0)))))/1000,0) -> 0 | CL11: =IFERROR(IF(B_Housing_Type="SF",EXP('Residential Energy Coefficients'!$D$3+'Residential Energy Coefficients'!$D$4*LN(B_Net_Sq_Ft_per_Unit)+'Residential Energy Coefficients'!$D$9+'Residential Energy Coefficients'!$D$10*LN(B_HH_Income)+'Residential Energy Coefficients'!$D$11*B_HH_Size+IF(B_Pct_Owner=1,'Residential Energy Coefficients'!$D$12,0)+'Residential Energy Coefficients'!$D$16*LN(Residential_Energy_Cost)),IF(B_Housing_Type="TH",EXP('Residential Energy Coefficients'!$G$3+'Residential Energy Coefficients'!$G$4*LN(B_Net_Sq_Ft_per_Unit)+'Residential Energy Coefficients'!$G$10*LN(B_HH_Income)+'Residential Energy Coefficients'!$G$11*B_HH_Size+'Residential Energy Coefficients'!$G$16*LN(Residential_Energy_Cost)),IF(B_Housing_Type="MF",EXP('Residential Energy Coefficients'!$J$3+'Residential Energy Coefficients'!$J$4*LN(B_Net_Sq_Ft_per_Unit)+'Residential Energy Coefficients'!$J$10*LN(B_HH_Income)+'Residential Energy Coefficients'!$J$11*B_HH_Size+IF(B_Pct_Owner=1,'Residential Energy Coefficients'!$J$12,0)+'Residential Energy Coefficients'!$J$16*LN(Residential_Energy_Cost)+'Residential Energy Coefficients'!$J$19),IF(B_Hotel_Room_Acre>0,EXP('Residential Energy Coefficients'!$J$3+'Residential Energy Coefficients'!$J$4*LN(B_Hotel_Room_Net)+'Residential Energy Coefficients'!$J$16*LN(Residential_Energy_Cost)+'Residential Energy Coefficients'!$J$19),IF(B_Housing_Type="MH",EXP('Residential Energy Coefficients'!$M$3+'Residential Energy Coefficients'!$M$4*LN(B_Net_Sq_Ft_per_Unit)+'Residential Energy Coefficients'!$M$11*B_HH_Size+'Residential Energy Coefficients'!$M$16*LN(Residential_Energy_Cost)+'Residential Energy Coefficients'!$M$19),0)))))/1000,0) -> 0 | CM11: 0 | CN11: =(IFERROR(EXP('Commercial Energy Coefficients'!$B$3+LN(B_RET_Gross_Sq_Ft)*'Commercial Energy Coefficients'!$B$4+'Commercial Energy Coefficients'!$B$11+'Commercial Energy Coefficients'!$B$14+'Commercial Energy Coefficients'!$B$18*LN((B_Ret_Emp_Acre)*(B_Lot_Size/43560))+'Commercial Energy Coefficients'!$B$19*LN(40)+'Commercial Energy Coefficients'!$B$21+'Commercial Energy Coefficients'!$B$22*LN(Commercial_Energy_Cost)+'Commercial Energy Coefficients'!$B$23*IFERROR(LOOKUP(Metro_Select,Energy_Metro_Lookup,HDD),0)),0)+IFERROR(EXP('Commercial Energy Coefficients'!$E$3+LN(B_OFF_Gross_Sq_Ft)*'Commercial Energy Coefficients'!$E$4+'Commercial Energy Coefficients'!$E$11+'Commercial Energy Coefficients'!$E$14+'Commercial Energy Coefficients'!$E$18*LN((B_OFF_Emp_Acre)*(B_Lot_Size/43560))+'Commercial Energy Coefficients'!$E$19*LN(40)+'Commercial Energy Coefficients'!$E$21+'Commercial Energy Coefficients'!$E$22*LN(Commercial_Energy_Cost)+'Commercial Energy Coefficients'!$E$23*IFERROR(LOOKUP(Metro_Select,Energy_Metro_Lookup,HDD),0)),0)+IFERROR(EXP('Commercial Energy Coefficients'!$H$3+LN(B_PUB_Gross_Sq_Ft)*'Commercial Energy Coefficients'!$H$4+'Commercial Energy Coefficients'!$H$11+'Commercial Energy Coefficients'!$H$14+'Commercial Energy Coefficients'!$H$18*LN((B_Pub_Emp_Acre)*(B_Lot_Size/43560))+'Commercial Energy Coefficients'!$H$19*LN(40)+'Commercial Energy Coefficients'!$H$21+'Commercial Energy Coefficients'!$H$22*LN(Commercial_Energy_Cost)+'Commercial Energy Coefficients'!$H$23*IFERROR(LOOKUP(Metro_Select,Energy_Metro_Lookup,HDD),0)),0))/1000 -> 0 | CO11: =(IFERROR(EXP('Commercial Energy Coefficients'!$C$3+LN((B_RET_Gross_Sq_Ft))*'Commercial Energy Coefficients'!$C$4+'Commercial Energy Coefficients'!$C$11+'Commercial Energy Coefficients'!$C$14+'Commercial Energy Coefficients'!$C$18*LN((B_Ret_Emp_Acre)*(B_Lot_Size/43560))+'Commercial Energy Coefficients'!$C$19*LN(40)+'Commercial Energy Coefficients'!$C$21+'Commercial Energy Coefficients'!$C$22*LN(Commercial_Energy_Cost)+'Commercial Energy Coefficients'!$C$24*IFERROR(LOOKUP(Metro_Select,Energy_Metro_Lookup,CDD),0)),0)+IFERROR(EXP('Commercial Energy Coefficients'!$F$3+LN((B_OFF_Gross_Sq_Ft))*'Commercial Energy Coefficients'!$F$4+'Commercial Energy Coefficients'!$F$11+'Commercial Energy Coefficients'!$F$14+'Commercial Energy Coefficients'!$F$18*LN((B_OFF_Emp_Acre)*(B_Lot_Size/43560))+'Commercial Energy Coefficients'!$F$19*LN(40)+'Commercial Energy Coefficients'!$F$21+'Commercial Energy Coefficients'!$F$22*LN(Commercial_Energy_Cost)+'Commercial Energy Coefficients'!$F$24*IFERROR(LOOKUP(Metro_Select,Energy_Metro_Lookup,CDD),0)),0)+IFERROR(EXP('Commercial Energy Coefficients'!$I$3+LN((B_PUB_Gross_Sq_Ft))*'Commercial Energy Coefficients'!$I$4+'Commercial Energy Coefficients'!$I$11+'Commercial Energy Coefficients'!$I$14+'Commercial Energy Coefficients'!$I$18*LN((B_Pub_Emp_Acre)*(B_Lot_Size/43560))+'Commercial Energy Coefficients'!$I$19*LN(40)+'Commercial Energy Coefficients'!$I$21+'Commercial Energy Coefficients'!$I$22*LN(Commercial_Energy_Cost)+'Commercial Energy Coefficients'!$I$24*IFERROR(LOOKUP(Metro_Select,Energy_Metro_Lookup,CDD),0)),0))/1000 -> 0 | CP11: =(IFERROR(EXP('Commercial Energy Coefficients'!$D$3+LN((B_RET_Gross_Sq_Ft))*'Commercial Energy Coefficients'!$D$4+'Commercial Energy Coefficients'!$D$14+'Commercial Energy Coefficients'!$D$18*LN((B_Ret_Emp_Acre)*(B_Lot_Size/43560))+'Commercial Energy Coefficients'!$D$19*LN(40)+'Commercial Energy Coefficients'!$D$21+'Commercial Energy Coefficients'!$D$22*LN(Commercial_Energy_Cost)),0)+IFERROR(EXP('Commercial Energy Coefficients'!$G$3+LN((B_OFF_Gross_Sq_Ft))*'Commercial Energy Coefficients'!$G$4+'Commercial Energy Coefficients'!$G$14+'Commercial Energy Coefficients'!$G$18*LN((B_OFF_Emp_Acre)*(B_Lot_Size/43560))+'Commercial Energy Coefficients'!$G$19*LN(40)+'Commercial Energy Coefficients'!$G$21+'Commercial Energy Coefficients'!$G$22*LN(Commercial_Energy_Cost)),0)+IFERROR(EXP('Commercial Energy Coefficients'!$J$3+LN((B_PUB_Gross_Sq_Ft))*'Commercial Energy Coefficients'!$J$4+'Commercial Energy Coefficients'!$J$14+'Commercial Energy Coefficients'!$J$18*LN((B_Pub_Emp_Acre)*(B_Lot_Size/43560))+'Commercial Energy Coefficients'!$J$19*LN(40)+'Commercial Energy Coefficients'!$J$21+'Commercial Energy Coefficients'!$J$22*LN(Commercial_Energy_Cost)),0))/1000 -> 0 | CQ11: 0 | CR11: 0 | CS11: 0 | CT11: 0 | CU11: 0 | CV11: 0 | CW11: 0 | CX11: 0 | CY11: 0 | CZ11: 0 | DA11: 0 | DB11: 0 | DC11: 0 | DD11: 0 | DE11: 0 | DF11: 0 | DG11: 0 | DH11: 0 | DI11: =IF(B_Housing_Type="",0,IF(B_Housing_Type="MF",'Project Info'!$B$160,IF(B_Housing_Type="TH",'Project Info'!$B$161,IF(AND(B_Housing_Type="SF",B_Net_Sq_Ft_per_Unit>0,B_Net_Sq_Ft_per_Unit<3000),'Project Info'!$B$162,IF(AND(B_Housing_Type="SF",B_Net_Sq_Ft_per_Unit>=3000),'Project Info'!$B$163))))) -> 0 | DJ11: 0 | DK11: 0 | DL11: 0 | DN11: 0 | DO11: 0 | DQ11: 0 | DR11: 0 | DT11: 0 | DY11: 0 | DZ11: 0 | EB11: 0 | EF11: 0 | EG11: 0 | EH11: 0 | EI11: 0 | EU11: 0 | EV11: 0 | EX11: 0 | EY11: 0 | EZ11: 0 | FA11: 0 | FB11: 0 | FC11: 0 | FE11: =Annual_Cooling_degree_days*24*(1/R_conventional_SF_F_hrs_BTU-1/R_green_roof_SF_F_hrs_Btu)/3412*'Building Inputs'!$EU11 -> 0 | FF11: 0 | FG11: =Annual_Heating_degree_days*24*(1/R_conventional_SF_F_hrs_BTU-1/R_green_roof_SF_F_hrs_Btu)*'Building Inputs'!$EU11 -> 0 | FH11: 0 | FI11: =Avg_Annual_NO2_uptake*'Building Inputs'!$EU11 -> 0 | FJ11: =Avg_Annual_O3_uptake*'Building Inputs'!$EU11 -> 0 | FK11: =Avg_Annual_SO2_uptake*'Building Inputs'!$EU11 -> 0 | FL11: =Avg_Annual_PM_10_uptake*'Building Inputs'!$EU11 -> 0 | FM11: 0 | FN11: 0 | FO11: 0 | FP11: 0 | FQ11: 0 | FR11: 0 | FS11: 0 | FT11: 0 | FU11: 0 | FV11: =Avg_amount_of_carbon_sequestered_lbs_SF*'Building Inputs'!$EU11*3.67 -> 0 | FW11: 0 | FX11: 0 | FY11: 0 | FZ11: =Average_annual_rainfall_in*($C11*(1-$E11)+$EM11-$EJ11-$ER11)*$C11/43560*'Building Inputs'!$EN11*144*0.00433 -> 0 | GB11: =Avg_Annual_NO2_uptake*'Building Inputs'!$EV11 -> 0 | GC11: =Avg_Annual_O3_uptake*'Building Inputs'!$EV11 -> 0 | GD11: =Avg_Annual_SO2_uptake*'Building Inputs'!$EV11 -> 0 | GE11: =Avg_Annual_PM_10_uptake*'Building Inputs'!$EV11 -> 0 | GF11: 0 | GG11: 0 | GH11: 0 | GI11: 0 | GJ11: 0 | GK11: =Avg_amount_of_carbon_sequestered_lbs_SF*'Building Inputs'!$EV11*3.67 -> 0 | GL11: 0 | GM11: =Average_annual_rainfall_in*('Building Inputs'!$EX11*'Building Inputs'!$EQ11+'Building Inputs'!$EY11*'Building Inputs'!$ES11)*144*0.00433 -> 0 | GO11: 0 | GQ11: 0 | GR11: 0 | GS11: 0 | GT11: 0 | GU11: 0 | GV11: 0 | GW11: 0 | GX11: 0 | GY11: 0 | GZ11: 0 | HA11: 0 | HB11: 0 | HC11: 0 | HF11: 0 | HG11: 0 | HH11: 0 | HQ11: 0 | HR11: 0 | HS11: 0 | HT11: 0 | HU11: 0 | HV11: 0 | HW11: 0 | HX11: 0
A12: 9 | I12: 0 | K12: 0 | L12: 0 | M12: 0 | N12: 0 | O12: 0 | P12: 0 | Q12: 0 | R12: 0 | AA12: 0 | AD12: 0 | AE12: 0 | AH12: 0 | AK12: 0 | AM12: 0 | AN12: 0 | AO12: 0 | AP12: 0 | AQ12: 0 | AR12: 0 | AS12: 0 | AT12: 0 | AU12: 0 | AV12: 0 | AW12: 0 | AX12: 0 | AY12: 0 | BB12: 0 | BC12: 0 | BF12: 0 | BG12: 0 | BJ12: 0 | BK12: 0 | BN12: 0 | BO12: 0 | BR12: 0 | BS12: 0 | BV12: 0 | BY12: 0 | BZ12: 0 | CA12: 0 | CD12: 0 | CI12: 0 | CJ12: =IFERROR(IF(B_Housing_Type="SF",EXP('Residential Energy Coefficients'!$B$3+'Residential Energy Coefficients'!$B$4*LN(B_Net_Sq_Ft_per_Unit)+'Residential Energy Coefficients'!$B$9+'Residential Energy Coefficients'!$B$10*LN(B_HH_Income)+'Residential Energy Coefficients'!$B$16*LN(Residential_Energy_Cost)+'Residential Energy Coefficients'!$B$20+'Residential Energy Coefficients'!$B$24*IFERROR(LOOKUP(Metro_Select,Energy_Metro_Lookup,HDD),0)),IF(B_Housing_Type="TH",EXP('Residential Energy Coefficients'!$E$3+'Residential Energy Coefficients'!$E$4*LN(B_Net_Sq_Ft_per_Unit)+'Residential Energy Coefficients'!$E$9+'Residential Energy Coefficients'!$E$16*LN(Residential_Energy_Cost)+'Residential Energy Coefficients'!$E$19+'Residential Energy Coefficients'!$E$20+'Residential Energy Coefficients'!$E$24*IFERROR(LOOKUP(Metro_Select,Energy_Metro_Lookup,HDD),0)),IF(B_Housing_Type="MF",EXP('Residential Energy Coefficients'!$H$3+'Residential Energy Coefficients'!$H$4*LN(B_Net_Sq_Ft_per_Unit)+'Residential Energy Coefficients'!$H$9+IF(B_Pct_Owner=1,'Residential Energy Coefficients'!$H$12,0)+'Residential Energy Coefficients'!$H$16*LN(Residential_Energy_Cost)+'Residential Energy Coefficients'!$H$20+'Residential Energy Coefficients'!$H$24*IFERROR(LOOKUP(Metro_Select,Energy_Metro_Lookup,HDD),0)),IF(B_Hotel_Room_Acre>0,EXP('Residential Energy Coefficients'!$H$3+'Residential Energy Coefficients'!$H$4*LN(B_Hotel_Room_Net)+'Residential Energy Coefficients'!$H$9+'Residential Energy Coefficients'!$H$16*LN(Residential_Energy_Cost)+'Residential Energy Coefficients'!$H$20+'Residential Energy Coefficients'!$H$24*IFERROR(LOOKUP(Metro_Select,Energy_Metro_Lookup,HDD),0)),IF(B_Housing_Type="MH",EXP('Residential Energy Coefficients'!$K$3+'Residential Energy Coefficients'!$K$16*LN(Residential_Energy_Cost)+'Residential Energy Coefficients'!$K$24*IFERROR(LOOKUP(Metro_Select,Energy_Metro_Lookup,HDD),0)),0)))))/1000,0) -> 0 | CK12: =IFERROR(IF(B_Housing_Type="SF",EXP('Residential Energy Coefficients'!$C$3+'Residential Energy Coefficients'!$C$4*LN(B_Net_Sq_Ft_per_Unit)+'Residential Energy Coefficients'!$C$10*LN(B_HH_Income)+'Residential Energy Coefficients'!$C$11*B_HH_Size+'Residential Energy Coefficients'!$C$16*LN(Residential_Energy_Cost)+'Residential Energy Coefficients'!$C$19+'Residential Energy Coefficients'!$C$22+'Residential Energy Coefficients'!$C$25*IFERROR(LOOKUP(Metro_Select,Energy_Metro_Lookup,CDD),0)),IF(B_Housing_Type="TH",EXP('Residential Energy Coefficients'!$F$3+'Residential Energy Coefficients'!$F$4*LN(B_Net_Sq_Ft_per_Unit)+'Residential Energy Coefficients'!$F$10*LN(B_HH_Income)+'Residential Energy Coefficients'!$F$11*B_HH_Size+IF(B_Pct_Owner=1,'Residential Energy Coefficients'!$F$12,0)+'Residential Energy Coefficients'!$F$16*LN(Residential_Energy_Cost)+'Residential Energy Coefficients'!$F$22+'Residential Energy Coefficients'!$F$25*IFERROR(LOOKUP(Metro_Select,Energy_Metro_Lookup,CDD),0)),IF(B_Housing_Type="MF",EXP('Residential Energy Coefficients'!$I$3+'Residential Energy Coefficients'!$I$4*LN(B_Net_Sq_Ft_per_Unit)+'Residential Energy Coefficients'!$I$9+'Residential Energy Coefficients'!$I$11*B_HH_Size+'Residential Energy Coefficients'!$I$16*LN(Residential_Energy_Cost)+'Residential Energy Coefficients'!$I$22+'Residential Energy Coefficients'!$I$25*IFERROR(LOOKUP(Metro_Select,Energy_Metro_Lookup,CDD),0)),IF(B_Hotel_Room_Acre>0,EXP('Residential Energy Coefficients'!$I$3+'Residential Energy Coefficients'!$I$4*LN(B_Hotel_Room_Net)+'Residential Energy Coefficients'!$I$9+'Residential Energy Coefficients'!$I$11*1.25+'Residential Energy Coefficients'!$I$16*LN(Residential_Energy_Cost)+'Residential Energy Coefficients'!$I$22+'Residential Energy Coefficients'!$I$25*IFERROR(LOOKUP(Metro_Select,Energy_Metro_Lookup,CDD),0)),IF(B_Housing_Type="MH",EXP('Residential Energy Coefficients'!$L$3+'Residential Energy Coefficients'!$L$11*B_HH_Size+'Residential Energy Coefficients'!$L$16*LN(Residential_Energy_Cost)+'Residential Energy Coefficients'!$L$22+'Residential Energy Coefficients'!$L$25*IFERROR(LOOKUP(Metro_Select,Energy_Metro_Lookup,CDD),0)),0)))))/1000,0) -> 0 | CL12: =IFERROR(IF(B_Housing_Type="SF",EXP('Residential Energy Coefficients'!$D$3+'Residential Energy Coefficients'!$D$4*LN(B_Net_Sq_Ft_per_Unit)+'Residential Energy Coefficients'!$D$9+'Residential Energy Coefficients'!$D$10*LN(B_HH_Income)+'Residential Energy Coefficients'!$D$11*B_HH_Size+IF(B_Pct_Owner=1,'Residential Energy Coefficients'!$D$12,0)+'Residential Energy Coefficients'!$D$16*LN(Residential_Energy_Cost)),IF(B_Housing_Type="TH",EXP('Residential Energy Coefficients'!$G$3+'Residential Energy Coefficients'!$G$4*LN(B_Net_Sq_Ft_per_Unit)+'Residential Energy Coefficients'!$G$10*LN(B_HH_Income)+'Residential Energy Coefficients'!$G$11*B_HH_Size+'Residential Energy Coefficients'!$G$16*LN(Residential_Energy_Cost)),IF(B_Housing_Type="MF",EXP('Residential Energy Coefficients'!$J$3+'Residential Energy Coefficients'!$J$4*LN(B_Net_Sq_Ft_per_Unit)+'Residential Energy Coefficients'!$J$10*LN(B_HH_Income)+'Residential Energy Coefficients'!$J$11*B_HH_Size+IF(B_Pct_Owner=1,'Residential Energy Coefficients'!$J$12,0)+'Residential Energy Coefficients'!$J$16*LN(Residential_Energy_Cost)+'Residential Energy Coefficients'!$J$19),IF(B_Hotel_Room_Acre>0,EXP('Residential Energy Coefficients'!$J$3+'Residential Energy Coefficients'!$J$4*LN(B_Hotel_Room_Net)+'Residential Energy Coefficients'!$J$16*LN(Residential_Energy_Cost)+'Residential Energy Coefficients'!$J$19),IF(B_Housing_Type="MH",EXP('Residential Energy Coefficients'!$M$3+'Residential Energy Coefficients'!$M$4*LN(B_Net_Sq_Ft_per_Unit)+'Residential Energy Coefficients'!$M$11*B_HH_Size+'Residential Energy Coefficients'!$M$16*LN(Residential_Energy_Cost)+'Residential Energy Coefficients'!$M$19),0)))))/1000,0) -> 0 | CM12: 0 | CN12: =(IFERROR(EXP('Commercial Energy Coefficients'!$B$3+LN(B_RET_Gross_Sq_Ft)*'Commercial Energy Coefficients'!$B$4+'Commercial Energy Coefficients'!$B$11+'Commercial Energy Coefficients'!$B$14+'Commercial Energy Coefficients'!$B$18*LN((B_Ret_Emp_Acre)*(B_Lot_Size/43560))+'Commercial Energy Coefficients'!$B$19*LN(40)+'Commercial Energy Coefficients'!$B$21+'Commercial Energy Coefficients'!$B$22*LN(Commercial_Energy_Cost)+'Commercial Energy Coefficients'!$B$23*IFERROR(LOOKUP(Metro_Select,Energy_Metro_Lookup,HDD),0)),0)+IFERROR(EXP('Commercial Energy Coefficients'!$E$3+LN(B_OFF_Gross_Sq_Ft)*'Commercial Energy Coefficients'!$E$4+'Commercial Energy Coefficients'!$E$11+'Commercial Energy Coefficients'!$E$14+'Commercial Energy Coefficients'!$E$18*LN((B_OFF_Emp_Acre)*(B_Lot_Size/43560))+'Commercial Energy Coefficients'!$E$19*LN(40)+'Commercial Energy Coefficients'!$E$21+'Commercial Energy Coefficients'!$E$22*LN(Commercial_Energy_Cost)+'Commercial Energy Coefficients'!$E$23*IFERROR(LOOKUP(Metro_Select,Energy_Metro_Lookup,HDD),0)),0)+IFERROR(EXP('Commercial Energy Coefficients'!$H$3+LN(B_PUB_Gross_Sq_Ft)*'Commercial Energy Coefficients'!$H$4+'Commercial Energy Coefficients'!$H$11+'Commercial Energy Coefficients'!$H$14+'Commercial Energy Coefficients'!$H$18*LN((B_Pub_Emp_Acre)*(B_Lot_Size/43560))+'Commercial Energy Coefficients'!$H$19*LN(40)+'Commercial Energy Coefficients'!$H$21+'Commercial Energy Coefficients'!$H$22*LN(Commercial_Energy_Cost)+'Commercial Energy Coefficients'!$H$23*IFERROR(LOOKUP(Metro_Select,Energy_Metro_Lookup,HDD),0)),0))/1000 -> 0 | CO12: =(IFERROR(EXP('Commercial Energy Coefficients'!$C$3+LN((B_RET_Gross_Sq_Ft))*'Commercial Energy Coefficients'!$C$4+'Commercial Energy Coefficients'!$C$11+'Commercial Energy Coefficients'!$C$14+'Commercial Energy Coefficients'!$C$18*LN((B_Ret_Emp_Acre)*(B_Lot_Size/43560))+'Commercial Energy Coefficients'!$C$19*LN(40)+'Commercial Energy Coefficients'!$C$21+'Commercial Energy Coefficients'!$C$22*LN(Commercial_Energy_Cost)+'Commercial Energy Coefficients'!$C$24*IFERROR(LOOKUP(Metro_Select,Energy_Metro_Lookup,CDD),0)),0)+IFERROR(EXP('Commercial Energy Coefficients'!$F$3+LN((B_OFF_Gross_Sq_Ft))*'Commercial Energy Coefficients'!$F$4+'Commercial Energy Coefficients'!$F$11+'Commercial Energy Coefficients'!$F$14+'Commercial Energy Coefficients'!$F$18*LN((B_OFF_Emp_Acre)*(B_Lot_Size/43560))+'Commercial Energy Coefficients'!$F$19*LN(40)+'Commercial Energy Coefficients'!$F$21+'Commercial Energy Coefficients'!$F$22*LN(Commercial_Energy_Cost)+'Commercial Energy Coefficients'!$F$24*IFERROR(LOOKUP(Metro_Select,Energy_Metro_Lookup,CDD),0)),0)+IFERROR(EXP('Commercial Energy Coefficients'!$I$3+LN((B_PUB_Gross_Sq_Ft))*'Commercial Energy Coefficients'!$I$4+'Commercial Energy Coefficients'!$I$11+'Commercial Energy Coefficients'!$I$14+'Commercial Energy Coefficients'!$I$18*LN((B_Pub_Emp_Acre)*(B_Lot_Size/43560))+'Commercial Energy Coefficients'!$I$19*LN(40)+'Commercial Energy Coefficients'!$I$21+'Commercial Energy Coefficients'!$I$22*LN(Commercial_Energy_Cost)+'Commercial Energy Coefficients'!$I$24*IFERROR(LOOKUP(Metro_Select,Energy_Metro_Lookup,CDD),0)),0))/1000 -> 0 | CP12: =(IFERROR(EXP('Commercial Energy Coefficients'!$D$3+LN((B_RET_Gross_Sq_Ft))*'Commercial Energy Coefficients'!$D$4+'Commercial Energy Coefficients'!$D$14+'Commercial Energy Coefficients'!$D$18*LN((B_Ret_Emp_Acre)*(B_Lot_Size/43560))+'Commercial Energy Coefficients'!$D$19*LN(40)+'Commercial Energy Coefficients'!$D$21+'Commercial Energy Coefficients'!$D$22*LN(Commercial_Energy_Cost)),0)+IFERROR(EXP('Commercial Energy Coefficients'!$G$3+LN((B_OFF_Gross_Sq_Ft))*'Commercial Energy Coefficients'!$G$4+'Commercial Energy Coefficients'!$G$14+'Commercial Energy Coefficients'!$G$18*LN((B_OFF_Emp_Acre)*(B_Lot_Size/43560))+'Commercial Energy Coefficients'!$G$19*LN(40)+'Commercial Energy Coefficients'!$G$21+'Commercial Energy Coefficients'!$G$22*LN(Commercial_Energy_Cost)),0)+IFERROR(EXP('Commercial Energy Coefficients'!$J$3+LN((B_PUB_Gross_Sq_Ft))*'Commercial Energy Coefficients'!$J$4+'Commercial Energy Coefficients'!$J$14+'Commercial Energy Coefficients'!$J$18*LN((B_Pub_Emp_Acre)*(B_Lot_Size/43560))+'Commercial Energy Coefficients'!$J$19*LN(40)+'Commercial Energy Coefficients'!$J$21+'Commercial Energy Coefficients'!$J$22*LN(Commercial_Energy_Cost)),0))/1000 -> 0 | CQ12: 0 | CR12: 0 | CS12: 0 | CT12: 0 | CU12: 0 | CV12: 0 | CW12: 0 | CX12: 0 | CY12: 0 | CZ12: 0 | DA12: 0 | DB12: 0 | DC12: 0 | DD12: 0 | DE12: 0 | DF12: 0 | DG12: 0 | DH12: 0 | DI12: =IF(B_Housing_Type="",0,IF(B_Housing_Type="MF",'Project Info'!$B$160,IF(B_Housing_Type="TH",'Project Info'!$B$161,IF(AND(B_Housing_Type="SF",B_Net_Sq_Ft_per_Unit>0,B_Net_Sq_Ft_per_Unit<3000),'Project Info'!$B$162,IF(AND(B_Housing_Type="SF",B_Net_Sq_Ft_per_Unit>=3000),'Project Info'!$B$163))))) -> 0 | DJ12: 0 | DK12: 0 | DL12: 0 | DN12: 0 | DO12: 0 | DQ12: 0 | DR12: 0 | DT12: 0 | DY12: 0 | DZ12: 0 | EB12: 0 | EF12: 0 | EG12: 0 | EH12: 0 | EI12: 0 | EU12: 0 | EV12: 0 | EX12: 0 | EY12: 0 | EZ12: 0 | FA12: 0 | FB12: 0 | FC12: 0 | FE12: =Annual_Cooling_degree_days*24*(1/R_conventional_SF_F_hrs_BTU-1/R_green_roof_SF_F_hrs_Btu)/3412*'Building Inputs'!$EU12 -> 0 | FF12: 0 | FG12: =Annual_Heating_degree_days*24*(1/R_conventional_SF_F_hrs_BTU-1/R_green_roof_SF_F_hrs_Btu)*'Building Inputs'!$EU12 -> 0 | FH12: 0 | FI12: =Avg_Annual_NO2_uptake*'Building Inputs'!$EU12 -> 0 | FJ12: =Avg_Annual_O3_uptake*'Building Inputs'!$EU12 -> 0 | FK12: =Avg_Annual_SO2_uptake*'Building Inputs'!$EU12 -> 0 | FL12: =Avg_Annual_PM_10_uptake*'Building Inputs'!$EU12 -> 0 | FM12: 0 | FN12: 0 | FO12: 0 | FP12: 0 | FQ12: 0 | FR12: 0 | FS12: 0 | FT12: 0 | FU12: 0 | FV12: =Avg_amount_of_carbon_sequestered_lbs_SF*'Building Inputs'!$EU12*3.67 -> 0 | FW12: 0 | FX12: 0 | FY12: 0 | FZ12: =Average_annual_rainfall_in*($C12*(1-$E12)+$EM12-$EJ12-$ER12)*$C12/43560*'Building Inputs'!$EN12*144*0.00433 -> 0 | GB12: =Avg_Annual_NO2_uptake*'Building Inputs'!$EV12 -> 0 | GC12: =Avg_Annual_O3_uptake*'Building Inputs'!$EV12 -> 0 | GD12: =Avg_Annual_SO2_uptake*'Building Inputs'!$EV12 -> 0 | GE12: =Avg_Annual_PM_10_uptake*'Building Inputs'!$EV12 -> 0 | GF12: 0 | GG12: 0 | GH12: 0 | GI12: 0 | GJ12: 0 | GK12: =Avg_amount_of_carbon_sequestered_lbs_SF*'Building Inputs'!$EV12*3.67 -> 0 | GL12: 0 | GM12: =Average_annual_rainfall_in*('Building Inputs'!$EX12*'Building Inputs'!$EQ12+'Building Inputs'!$EY12*'Building Inputs'!$ES12)*144*0.00433 -> 0 | GO12: 0 | GQ12: 0 | GR12: 0 | GS12: 0 | GT12: 0 | GU12: 0 | GV12: 0 | GW12: 0 | GX12: 0 | GY12: 0 | GZ12: 0 | HA12: 0 | HB12: 0 | HC12: 0 | HF12: 0 | HG12: 0 | HH12: 0 | HQ12: 0 | HR12: 0 | HS12: 0 | HT12: 0 | HU12: 0 | HV12: 0 | HW12: 0 | HX12: 0
A13: 10 | I13: 0 | K13: 0 | L13: 0 | M13: 0 | N13: 0 | O13: 0 | P13: 0 | Q13: 0 | R13: 0 | AA13: 0 | AD13: 0 | AE13: 0 | AH13: 0 | AK13: 0 | AM13: 0 | AN13: 0 | AO13: 0 | AP13: 0 | AQ13: 0 | AR13: 0 | AS13: 0 | AT13: 0 | AU13: 0 | AV13: 0 | AW13: 0 | AX13: 0 | AY13: 0 | BB13: 0 | BC13: 0 | BF13: 0 | BG13: 0 | BJ13: 0 | BK13: 0 | BN13: 0 | BO13: 0 | BR13: 0 | BS13: 0 | BV13: 0 | BY13: 0 | BZ13: 0 | CA13: 0 | CD13: 0 | CI13: 0 | CJ13: =IFERROR(IF(B_Housing_Type="SF",EXP('Residential Energy Coefficients'!$B$3+'Residential Energy Coefficients'!$B$4*LN(B_Net_Sq_Ft_per_Unit)+'Residential Energy Coefficients'!$B$9+'Residential Energy Coefficients'!$B$10*LN(B_HH_Income)+'Residential Energy Coefficients'!$B$16*LN(Residential_Energy_Cost)+'Residential Energy Coefficients'!$B$20+'Residential Energy Coefficients'!$B$24*IFERROR(LOOKUP(Metro_Select,Energy_Metro_Lookup,HDD),0)),IF(B_Housing_Type="TH",EXP('Residential Energy Coefficients'!$E$3+'Residential Energy Coefficients'!$E$4*LN(B_Net_Sq_Ft_per_Unit)+'Residential Energy Coefficients'!$E$9+'Residential Energy Coefficients'!$E$16*LN(Residential_Energy_Cost)+'Residential Energy Coefficients'!$E$19+'Residential Energy Coefficients'!$E$20+'Residential Energy Coefficients'!$E$24*IFERROR(LOOKUP(Metro_Select,Energy_Metro_Lookup,HDD),0)),IF(B_Housing_Type="MF",EXP('Residential Energy Coefficients'!$H$3+'Residential Energy Coefficients'!$H$4*LN(B_Net_Sq_Ft_per_Unit)+'Residential Energy Coefficients'!$H$9+IF(B_Pct_Owner=1,'Residential Energy Coefficients'!$H$12,0)+'Residential Energy Coefficients'!$H$16*LN(Residential_Energy_Cost)+'Residential Energy Coefficients'!$H$20+'Residential Energy Coefficients'!$H$24*IFERROR(LOOKUP(Metro_Select,Energy_Metro_Lookup,HDD),0)),IF(B_Hotel_Room_Acre>0,EXP('Residential Energy Coefficients'!$H$3+'Residential Energy Coefficients'!$H$4*LN(B_Hotel_Room_Net)+'Residential Energy Coefficients'!$H$9+'Residential Energy Coefficients'!$H$16*LN(Residential_Energy_Cost)+'Residential Energy Coefficients'!$H$20+'Residential Energy Coefficients'!$H$24*IFERROR(LOOKUP(Metro_Select,Energy_Metro_Lookup,HDD),0)),IF(B_Housing_Type="MH",EXP('Residential Energy Coefficients'!$K$3+'Residential Energy Coefficients'!$K$16*LN(Residential_Energy_Cost)+'Residential Energy Coefficients'!$K$24*IFERROR(LOOKUP(Metro_Select,Energy_Metro_Lookup,HDD),0)),0)))))/1000,0) -> 0 | CK13: =IFERROR(IF(B_Housing_Type="SF",EXP('Residential Energy Coefficients'!$C$3+'Residential Energy Coefficients'!$C$4*LN(B_Net_Sq_Ft_per_Unit)+'Residential Energy Coefficients'!$C$10*LN(B_HH_Income)+'Residential Energy Coefficients'!$C$11*B_HH_Size+'Residential Energy Coefficients'!$C$16*LN(Residential_Energy_Cost)+'Residential Energy Coefficients'!$C$19+'Residential Energy Coefficients'!$C$22+'Residential Energy Coefficients'!$C$25*IFERROR(LOOKUP(Metro_Select,Energy_Metro_Lookup,CDD),0)),IF(B_Housing_Type="TH",EXP('Residential Energy Coefficients'!$F$3+'Residential Energy Coefficients'!$F$4*LN(B_Net_Sq_Ft_per_Unit)+'Residential Energy Coefficients'!$F$10*LN(B_HH_Income)+'Residential Energy Coefficients'!$F$11*B_HH_Size+IF(B_Pct_Owner=1,'Residential Energy Coefficients'!$F$12,0)+'Residential Energy Coefficients'!$F$16*LN(Residential_Energy_Cost)+'Residential Energy Coefficients'!$F$22+'Residential Energy Coefficients'!$F$25*IFERROR(LOOKUP(Metro_Select,Energy_Metro_Lookup,CDD),0)),IF(B_Housing_Type="MF",EXP('Residential Energy Coefficients'!$I$3+'Residential Energy Coefficients'!$I$4*LN(B_Net_Sq_Ft_per_Unit)+'Residential Energy Coefficients'!$I$9+'Residential Energy Coefficients'!$I$11*B_HH_Size+'Residential Energy Coefficients'!$I$16*LN(Residential_Energy_Cost)+'Residential Energy Coefficients'!$I$22+'Residential Energy Coefficients'!$I$25*IFERROR(LOOKUP(Metro_Select,Energy_Metro_Lookup,CDD),0)),IF(B_Hotel_Room_Acre>0,EXP('Residential Energy Coefficients'!$I$3+'Residential Energy Coefficients'!$I$4*LN(B_Hotel_Room_Net)+'Residential Energy Coefficients'!$I$9+'Residential Energy Coefficients'!$I$11*1.25+'Residential Energy Coefficients'!$I$16*LN(Residential_Energy_Cost)+'Residential Energy Coefficients'!$I$22+'Residential Energy Coefficients'!$I$25*IFERROR(LOOKUP(Metro_Select,Energy_Metro_Lookup,CDD),0)),IF(B_Housing_Type="MH",EXP('Residential Energy Coefficients'!$L$3+'Residential Energy Coefficients'!$L$11*B_HH_Size+'Residential Energy Coefficients'!$L$16*LN(Residential_Energy_Cost)+'Residential Energy Coefficients'!$L$22+'Residential Energy Coefficients'!$L$25*IFERROR(LOOKUP(Metro_Select,Energy_Metro_Lookup,CDD),0)),0)))))/1000,0) -> 0 | CL13: =IFERROR(IF(B_Housing_Type="SF",EXP('Residential Energy Coefficients'!$D$3+'Residential Energy Coefficients'!$D$4*LN(B_Net_Sq_Ft_per_Unit)+'Residential Energy Coefficients'!$D$9+'Residential Energy Coefficients'!$D$10*LN(B_HH_Income)+'Residential Energy Coefficients'!$D$11*B_HH_Size+IF(B_Pct_Owner=1,'Residential Energy Coefficients'!$D$12,0)+'Residential Energy Coefficients'!$D$16*LN(Residential_Energy_Cost)),IF(B_Housing_Type="TH",EXP('Residential Energy Coefficients'!$G$3+'Residential Energy Coefficients'!$G$4*LN(B_Net_Sq_Ft_per_Unit)+'Residential Energy Coefficients'!$G$10*LN(B_HH_Income)+'Residential Energy Coefficients'!$G$11*B_HH_Size+'Residential Energy Coefficients'!$G$16*LN(Residential_Energy_Cost)),IF(B_Housing_Type="MF",EXP('Residential Energy Coefficients'!$J$3+'Residential Energy Coefficients'!$J$4*LN(B_Net_Sq_Ft_per_Unit)+'Residential Energy Coefficients'!$J$10*LN(B_HH_Income)+'Residential Energy Coefficients'!$J$11*B_HH_Size+IF(B_Pct_Owner=1,'Residential Energy Coefficients'!$J$12,0)+'Residential Energy Coefficients'!$J$16*LN(Residential_Energy_Cost)+'Residential Energy Coefficients'!$J$19),IF(B_Hotel_Room_Acre>0,EXP('Residential Energy Coefficients'!$J$3+'Residential Energy Coefficients'!$J$4*LN(B_Hotel_Room_Net)+'Residential Energy Coefficients'!$J$16*LN(Residential_Energy_Cost)+'Residential Energy Coefficients'!$J$19),IF(B_Housing_Type="MH",EXP('Residential Energy Coefficients'!$M$3+'Residential Energy Coefficients'!$M$4*LN(B_Net_Sq_Ft_per_Unit)+'Residential Energy Coefficients'!$M$11*B_HH_Size+'Residential Energy Coefficients'!$M$16*LN(Residential_Energy_Cost)+'Residential Energy Coefficients'!$M$19),0)))))/1000,0) -> 0 | CM13: 0 | CN13: =(IFERROR(EXP('Commercial Energy Coefficients'!$B$3+LN(B_RET_Gross_Sq_Ft)*'Commercial Energy Coefficients'!$B$4+'Commercial Energy Coefficients'!$B$11+'Commercial Energy Coefficients'!$B$14+'Commercial Energy Coefficients'!$B$18*LN((B_Ret_Emp_Acre)*(B_Lot_Size/43560))+'Commercial Energy Coefficients'!$B$19*LN(40)+'Commercial Energy Coefficients'!$B$21+'Commercial Energy Coefficients'!$B$22*LN(Commercial_Energy_Cost)+'Commercial Energy Coefficients'!$B$23*IFERROR(LOOKUP(Metro_Select,Energy_Metro_Lookup,HDD),0)),0)+IFERROR(EXP('Commercial Energy Coefficients'!$E$3+LN(B_OFF_Gross_Sq_Ft)*'Commercial Energy Coefficients'!$E$4+'Commercial Energy Coefficients'!$E$11+'Commercial Energy Coefficients'!$E$14+'Commercial Energy Coefficients'!$E$18*LN((B_OFF_Emp_Acre)*(B_Lot_Size/43560))+'Commercial Energy Coefficients'!$E$19*LN(40)+'Commercial Energy Coefficients'!$E$21+'Commercial Energy Coefficients'!$E$22*LN(Commercial_Energy_Cost)+'Commercial Energy Coefficients'!$E$23*IFERROR(LOOKUP(Metro_Select,Energy_Metro_Lookup,HDD),0)),0)+IFERROR(EXP('Commercial Energy Coefficients'!$H$3+LN(B_PUB_Gross_Sq_Ft)*'Commercial Energy Coefficients'!$H$4+'Commercial Energy Coefficients'!$H$11+'Commercial Energy Coefficients'!$H$14+'Commercial Energy Coefficients'!$H$18*LN((B_Pub_Emp_Acre)*(B_Lot_Size/43560))+'Commercial Energy Coefficients'!$H$19*LN(40)+'Commercial Energy Coefficients'!$H$21+'Commercial Energy Coefficients'!$H$22*LN(Commercial_Energy_Cost)+'Commercial Energy Coefficients'!$H$23*IFERROR(LOOKUP(Metro_Select,Energy_Metro_Lookup,HDD),0)),0))/1000 -> 0 | CO13: =(IFERROR(EXP('Commercial Energy Coefficients'!$C$3+LN((B_RET_Gross_Sq_Ft))*'Commercial Energy Coefficients'!$C$4+'Commercial Energy Coefficients'!$C$11+'Commercial Energy Coefficients'!$C$14+'Commercial Energy Coefficients'!$C$18*LN((B_Ret_Emp_Acre)*(B_Lot_Size/43560))+'Commercial Energy Coefficients'!$C$19*LN(40)+'Commercial Energy Coefficients'!$C$21+'Commercial Energy Coefficients'!$C$22*LN(Commercial_Energy_Cost)+'Commercial Energy Coefficients'!$C$24*IFERROR(LOOKUP(Metro_Select,Energy_Metro_Lookup,CDD),0)),0)+IFERROR(EXP('Commercial Energy Coefficients'!$F$3+LN((B_OFF_Gross_Sq_Ft))*'Commercial Energy Coefficients'!$F$4+'Commercial Energy Coefficients'!$F$11+'Commercial Energy Coefficients'!$F$14+'Commercial Energy Coefficients'!$F$18*LN((B_OFF_Emp_Acre)*(B_Lot_Size/43560))+'Commercial Energy Coefficients'!$F$19*LN(40)+'Commercial Energy Coefficients'!$F$21+'Commercial Energy Coefficients'!$F$22*LN(Commercial_Energy_Cost)+'Commercial Energy Coefficients'!$F$24*IFERROR(LOOKUP(Metro_Select,Energy_Metro_Lookup,CDD),0)),0)+IFERROR(EXP('Commercial Energy Coefficients'!$I$3+LN((B_PUB_Gross_Sq_Ft))*'Commercial Energy Coefficients'!$I$4+'Commercial Energy Coefficients'!$I$11+'Commercial Energy Coefficients'!$I$14+'Commercial Energy Coefficients'!$I$18*LN((B_Pub_Emp_Acre)*(B_Lot_Size/43560))+'Commercial Energy Coefficients'!$I$19*LN(40)+'Commercial Energy Coefficients'!$I$21+'Commercial Energy Coefficients'!$I$22*LN(Commercial_Energy_Cost)+'Commercial Energy Coefficients'!$I$24*IFERROR(LOOKUP(Metro_Select,Energy_Metro_Lookup,CDD),0)),0))/1000 -> 0 | CP13: =(IFERROR(EXP('Commercial Energy Coefficients'!$D$3+LN((B_RET_Gross_Sq_Ft))*'Commercial Energy Coefficients'!$D$4+'Commercial Energy Coefficients'!$D$14+'Commercial Energy Coefficients'!$D$18*LN((B_Ret_Emp_Acre)*(B_Lot_Size/43560))+'Commercial Energy Coefficients'!$D$19*LN(40)+'Commercial Energy Coefficients'!$D$21+'Commercial Energy Coefficients'!$D$22*LN(Commercial_Energy_Cost)),0)+IFERROR(EXP('Commercial Energy Coefficients'!$G$3+LN((B_OFF_Gross_Sq_Ft))*'Commercial Energy Coefficients'!$G$4+'Commercial Energy Coefficients'!$G$14+'Commercial Energy Coefficients'!$G$18*LN((B_OFF_Emp_Acre)*(B_Lot_Size/43560))+'Commercial Energy Coefficients'!$G$19*LN(40)+'Commercial Energy Coefficients'!$G$21+'Commercial Energy Coefficients'!$G$22*LN(Commercial_Energy_Cost)),0)+IFERROR(EXP('Commercial Energy Coefficients'!$J$3+LN((B_PUB_Gross_Sq_Ft))*'Commercial Energy Coefficients'!$J$4+'Commercial Energy Coefficients'!$J$14+'Commercial Energy Coefficients'!$J$18*LN((B_Pub_Emp_Acre)*(B_Lot_Size/43560))+'Commercial Energy Coefficients'!$J$19*LN(40)+'Commercial Energy Coefficients'!$J$21+'Commercial Energy Coefficients'!$J$22*LN(Commercial_Energy_Cost)),0))/1000 -> 0 | CQ13: 0 | CR13: 0 | CS13: 0 | CT13: 0 | CU13: 0 | CV13: 0 | CW13: 0 | CX13: 0 | CY13: 0 | CZ13: 0 | DA13: 0 | DB13: 0 | DC13: 0 | DD13: 0 | DE13: 0 | DF13: 0 | DG13: 0 | DH13: 0 | DI13: =IF(B_Housing_Type="",0,IF(B_Housing_Type="MF",'Project Info'!$B$160,IF(B_Housing_Type="TH",'Project Info'!$B$161,IF(AND(B_Housing_Type="SF",B_Net_Sq_Ft_per_Unit>0,B_Net_Sq_Ft_per_Unit<3000),'Project Info'!$B$162,IF(AND(B_Housing_Type="SF",B_Net_Sq_Ft_per_Unit>=3000),'Project Info'!$B$163))))) -> 0 | DJ13: 0 | DK13: 0 | DL13: 0 | DN13: 0 | DO13: 0 | DQ13: 0 | DR13: 0 | DT13: 0 | DY13: 0 | DZ13: 0 | EB13: 0 | EF13: 0 | EG13: 0 | EH13: 0 | EI13: 0 | EU13: 0 | EV13: 0 | EX13: 0 | EY13: 0 | EZ13: 0 | FA13: 0 | FB13: 0 | FC13: 0 | FE13: =Annual_Cooling_degree_days*24*(1/R_conventional_SF_F_hrs_BTU-1/R_green_roof_SF_F_hrs_Btu)/3412*'Building Inputs'!$EU13 -> 0 | FF13: 0 | FG13: =Annual_Heating_degree_days*24*(1/R_conventional_SF_F_hrs_BTU-1/R_green_roof_SF_F_hrs_Btu)*'Building Inputs'!$EU13 -> 0 | FH13: 0 | FI13: =Avg_Annual_NO2_uptake*'Building Inputs'!$EU13 -> 0 | FJ13: =Avg_Annual_O3_uptake*'Building Inputs'!$EU13 -> 0 | FK13: =Avg_Annual_SO2_uptake*'Building Inputs'!$EU13 -> 0 | FL13: =Avg_Annual_PM_10_uptake*'Building Inputs'!$EU13 -> 0 | FM13: 0 | FN13: 0 | FO13: 0 | FP13: 0 | FQ13: 0 | FR13: 0 | FS13: 0 | FT13: 0 | FU13: 0 | FV13: =Avg_amount_of_carbon_sequestered_lbs_SF*'Building Inputs'!$EU13*3.67 -> 0 | FW13: 0 | FX13: 0 | FY13: 0 | FZ13: =Average_annual_rainfall_in*($C13*(1-$E13)+$EM13-$EJ13-$ER13)*$C13/43560*'Building Inputs'!$EN13*144*0.00433 -> 0 | GB13: =Avg_Annual_NO2_uptake*'Building Inputs'!$EV13 -> 0 | GC13: =Avg_Annual_O3_uptake*'Building Inputs'!$EV13 -> 0 | GD13: =Avg_Annual_SO2_uptake*'Building Inputs'!$EV13 -> 0 | GE13: =Avg_Annual_PM_10_uptake*'Building Inputs'!$EV13 -> 0 | GF13: 0 | GG13: 0 | GH13: 0 | GI13: 0 | GJ13: 0 | GK13: =Avg_amount_of_carbon_sequestered_lbs_SF*'Building Inputs'!$EV13*3.67 -> 0 | GL13: 0 | GM13: =Average_annual_rainfall_in*('Building Inputs'!$EX13*'Building Inputs'!$EQ13+'Building Inputs'!$EY13*'Building Inputs'!$ES13)*144*0.00433 -> 0 | GO13: 0 | GQ13: 0 | GR13: 0 | GS13: 0 | GT13: 0 | GU13: 0 | GV13: 0 | GW13: 0 | GX13: 0 | GY13: 0 | GZ13: 0 | HA13: 0 | HB13: 0 | HC13: 0 | HF13: 0 | HG13: 0 | HH13: 0 | HQ13: 0 | HR13: 0 | HS13: 0 | HT13: 0 | HU13: 0 | HV13: 0 | HW13: 0 | HX13: 0
A14: 11 | I14: 0 | K14: 0 | L14: 0 | M14: 0 | N14: 0 | O14: 0 | P14: 0 | Q14: 0 | R14: 0 | AA14: 0 | AD14: 0 | AE14: 0 | AH14: 0 | AK14: 0 | AM14: 0 | AN14: 0 | AO14: 0 | AP14: 0 | AQ14: 0 | AR14: 0 | AS14: 0 | AT14: 0 | AU14: 0 | AV14: 0 | AW14: 0 | AX14: 0 | AY14: 0 | BB14: 0 | BC14: 0 | BF14: 0 | BG14: 0 | BJ14: 0 | BK14: 0 | BN14: 0 | BO14: 0 | BR14: 0 | BS14: 0 | BV14: 0 | BY14: 0 | BZ14: 0 | CA14: 0 | CD14: 0 | CI14: 0 | CJ14: =IFERROR(IF(B_Housing_Type="SF",EXP('Residential Energy Coefficients'!$B$3+'Residential Energy Coefficients'!$B$4*LN(B_Net_Sq_Ft_per_Unit)+'Residential Energy Coefficients'!$B$9+'Residential Energy Coefficients'!$B$10*LN(B_HH_Income)+'Residential Energy Coefficients'!$B$16*LN(Residential_Energy_Cost)+'Residential Energy Coefficients'!$B$20+'Residential Energy Coefficients'!$B$24*IFERROR(LOOKUP(Metro_Select,Energy_Metro_Lookup,HDD),0)),IF(B_Housing_Type="TH",EXP('Residential Energy Coefficients'!$E$3+'Residential Energy Coefficients'!$E$4*LN(B_Net_Sq_Ft_per_Unit)+'Residential Energy Coefficients'!$E$9+'Residential Energy Coefficients'!$E$16*LN(Residential_Energy_Cost)+'Residential Energy Coefficients'!$E$19+'Residential Energy Coefficients'!$E$20+'Residential Energy Coefficients'!$E$24*IFERROR(LOOKUP(Metro_Select,Energy_Metro_Lookup,HDD),0)),IF(B_Housing_Type="MF",EXP('Residential Energy Coefficients'!$H$3+'Residential Energy Coefficients'!$H$4*LN(B_Net_Sq_Ft_per_Unit)+'Residential Energy Coefficients'!$H$9+IF(B_Pct_Owner=1,'Residential Energy Coefficients'!$H$12,0)+'Residential Energy Coefficients'!$H$16*LN(Residential_Energy_Cost)+'Residential Energy Coefficients'!$H$20+'Residential Energy Coefficients'!$H$24*IFERROR(LOOKUP(Metro_Select,Energy_Metro_Lookup,HDD),0)),IF(B_Hotel_Room_Acre>0,EXP('Residential Energy Coefficients'!$H$3+'Residential Energy Coefficients'!$H$4*LN(B_Hotel_Room_Net)+'Residential Energy Coefficients'!$H$9+'Residential Energy Coefficients'!$H$16*LN(Residential_Energy_Cost)+'Residential Energy Coefficients'!$H$20+'Residential Energy Coefficients'!$H$24*IFERROR(LOOKUP(Metro_Select,Energy_Metro_Lookup,HDD),0)),IF(B_Housing_Type="MH",EXP('Residential Energy Coefficients'!$K$3+'Residential Energy Coefficients'!$K$16*LN(Residential_Energy_Cost)+'Residential Energy Coefficients'!$K$24*IFERROR(LOOKUP(Metro_Select,Energy_Metro_Lookup,HDD),0)),0)))))/1000,0) -> 0 | CK14: =IFERROR(IF(B_Housing_Type="SF",EXP('Residential Energy Coefficients'!$C$3+'Residential Energy Coefficients'!$C$4*LN(B_Net_Sq_Ft_per_Unit)+'Residential Energy Coefficients'!$C$10*LN(B_HH_Income)+'Residential Energy Coefficients'!$C$11*B_HH_Size+'Residential Energy Coefficients'!$C$16*LN(Residential_Energy_Cost)+'Residential Energy Coefficients'!$C$19+'Residential Energy Coefficients'!$C$22+'Residential Energy Coefficients'!$C$25*IFERROR(LOOKUP(Metro_Select,Energy_Metro_Lookup,CDD),0)),IF(B_Housing_Type="TH",EXP('Residential Energy Coefficients'!$F$3+'Residential Energy Coefficients'!$F$4*LN(B_Net_Sq_Ft_per_Unit)+'Residential Energy Coefficients'!$F$10*LN(B_HH_Income)+'Residential Energy Coefficients'!$F$11*B_HH_Size+IF(B_Pct_Owner=1,'Residential Energy Coefficients'!$F$12,0)+'Residential Energy Coefficients'!$F$16*LN(Residential_Energy_Cost)+'Residential Energy Coefficients'!$F$22+'Residential Energy Coefficients'!$F$25*IFERROR(LOOKUP(Metro_Select,Energy_Metro_Lookup,CDD),0)),IF(B_Housing_Type="MF",EXP('Residential Energy Coefficients'!$I$3+'Residential Energy Coefficients'!$I$4*LN(B_Net_Sq_Ft_per_Unit)+'Residential Energy Coefficients'!$I$9+'Residential Energy Coefficients'!$I$11*B_HH_Size+'Residential Energy Coefficients'!$I$16*LN(Residential_Energy_Cost)+'Residential Energy Coefficients'!$I$22+'Residential Energy Coefficients'!$I$25*IFERROR(LOOKUP(Metro_Select,Energy_Metro_Lookup,CDD),0)),IF(B_Hotel_Room_Acre>0,EXP('Residential Energy Coefficients'!$I$3+'Residential Energy Coefficients'!$I$4*LN(B_Hotel_Room_Net)+'Residential Energy Coefficients'!$I$9+'Residential Energy Coefficients'!$I$11*1.25+'Residential Energy Coefficients'!$I$16*LN(Residential_Energy_Cost)+'Residential Energy Coefficients'!$I$22+'Residential Energy Coefficients'!$I$25*IFERROR(LOOKUP(Metro_Select,Energy_Metro_Lookup,CDD),0)),IF(B_Housing_Type="MH",EXP('Residential Energy Coefficients'!$L$3+'Residential Energy Coefficients'!$L$11*B_HH_Size+'Residential Energy Coefficients'!$L$16*LN(Residential_Energy_Cost)+'Residential Energy Coefficients'!$L$22+'Residential Energy Coefficients'!$L$25*IFERROR(LOOKUP(Metro_Select,Energy_Metro_Lookup,CDD),0)),0)))))/1000,0) -> 0 | CL14: =IFERROR(IF(B_Housing_Type="SF",EXP('Residential Energy Coefficients'!$D$3+'Residential Energy Coefficients'!$D$4*LN(B_Net_Sq_Ft_per_Unit)+'Residential Energy Coefficients'!$D$9+'Residential Energy Coefficients'!$D$10*LN(B_HH_Income)+'Residential Energy Coefficients'!$D$11*B_HH_Size+IF(B_Pct_Owner=1,'Residential Energy Coefficients'!$D$12,0)+'Residential Energy Coefficients'!$D$16*LN(Residential_Energy_Cost)),IF(B_Housing_Type="TH",EXP('Residential Energy Coefficients'!$G$3+'Residential Energy Coefficients'!$G$4*LN(B_Net_Sq_Ft_per_Unit)+'Residential Energy Coefficients'!$G$10*LN(B_HH_Income)+'Residential Energy Coefficients'!$G$11*B_HH_Size+'Residential Energy Coefficients'!$G$16*LN(Residential_Energy_Cost)),IF(B_Housing_Type="MF",EXP('Residential Energy Coefficients'!$J$3+'Residential Energy Coefficients'!$J$4*LN(B_Net_Sq_Ft_per_Unit)+'Residential Energy Coefficients'!$J$10*LN(B_HH_Income)+'Residential Energy Coefficients'!$J$11*B_HH_Size+IF(B_Pct_Owner=1,'Residential Energy Coefficients'!$J$12,0)+'Residential Energy Coefficients'!$J$16*LN(Residential_Energy_Cost)+'Residential Energy Coefficients'!$J$19),IF(B_Hotel_Room_Acre>0,EXP('Residential Energy Coefficients'!$J$3+'Residential Energy Coefficients'!$J$4*LN(B_Hotel_Room_Net)+'Residential Energy Coefficients'!$J$16*LN(Residential_Energy_Cost)+'Residential Energy Coefficients'!$J$19),IF(B_Housing_Type="MH",EXP('Residential Energy Coefficients'!$M$3+'Residential Energy Coefficients'!$M$4*LN(B_Net_Sq_Ft_per_Unit)+'Residential Energy Coefficients'!$M$11*B_HH_Size+'Residential Energy Coefficients'!$M$16*LN(Residential_Energy_Cost)+'Residential Energy Coefficients'!$M$19),0)))))/1000,0) -> 0 | CM14: =SUM(CJ14:CL14) -> 0 | CN14: =(IFERROR(EXP('Commercial Energy Coefficients'!$B$3+LN(B_RET_Gross_Sq_Ft)*'Commercial Energy Coefficients'!$B$4+'Commercial Energy Coefficients'!$B$11+'Commercial Energy Coefficients'!$B$14+'Commercial Energy Coefficients'!$B$18*LN((B_Ret_Emp_Acre)*(B_Lot_Size/43560))+'Commercial Energy Coefficients'!$B$19*LN(40)+'Commercial Energy Coefficients'!$B$21+'Commercial Energy Coefficients'!$B$22*LN(Commercial_Energy_Cost)+'Commercial Energy Coefficients'!$B$23*IFERROR(LOOKUP(Metro_Select,Energy_Metro_Lookup,HDD),0)),0)+IFERROR(EXP('Commercial Energy Coefficients'!$E$3+LN(B_OFF_Gross_Sq_Ft)*'Commercial Energy Coefficients'!$E$4+'Commercial Energy Coefficients'!$E$11+'Commercial Energy Coefficients'!$E$14+'Commercial Energy Coefficients'!$E$18*LN((B_OFF_Emp_Acre)*(B_Lot_Size/43560))+'Commercial Energy Coefficients'!$E$19*LN(40)+'Commercial Energy Coefficients'!$E$21+'Commercial Energy Coefficients'!$E$22*LN(Commercial_Energy_Cost)+'Commercial Energy Coefficients'!$E$23*IFERROR(LOOKUP(Metro_Select,Energy_Metro_Lookup,HDD),0)),0)+IFERROR(EXP('Commercial Energy Coefficients'!$H$3+LN(B_PUB_Gross_Sq_Ft)*'Commercial Energy Coefficients'!$H$4+'Commercial Energy Coefficients'!$H$11+'Commercial Energy Coefficients'!$H$14+'Commercial Energy Coefficients'!$H$18*LN((B_Pub_Emp_Acre)*(B_Lot_Size/43560))+'Commercial Energy Coefficients'!$H$19*LN(40)+'Commercial Energy Coefficients'!$H$21+'Commercial Energy Coefficients'!$H$22*LN(Commercial_Energy_Cost)+'Commercial Energy Coefficients'!$H$23*IFERROR(LOOKUP(Metro_Select,Energy_Metro_Lookup,HDD),0)),0))/1000 -> 0 | CO14: =(IFERROR(EXP('Commercial Energy Coefficients'!$C$3+LN((B_RET_Gross_Sq_Ft))*'Commercial Energy Coefficients'!$C$4+'Commercial Energy Coefficients'!$C$11+'Commercial Energy Coefficients'!$C$14+'Commercial Energy Coefficients'!$C$18*LN((B_Ret_Emp_Acre)*(B_Lot_Size/43560))+'Commercial Energy Coefficients'!$C$19*LN(40)+'Commercial Energy Coefficients'!$C$21+'Commercial Energy Coefficients'!$C$22*LN(Commercial_Energy_Cost)+'Commercial Energy Coefficients'!$C$24*IFERROR(LOOKUP(Metro_Select,Energy_Metro_Lookup,CDD),0)),0)+IFERROR(EXP('Commercial Energy Coefficients'!$F$3+LN((B_OFF_Gross_Sq_Ft))*'Commercial Energy Coefficients'!$F$4+'Commercial Energy Coefficients'!$F$11+'Commercial Energy Coefficients'!$F$14+'Commercial Energy Coefficients'!$F$18*LN((B_OFF_Emp_Acre)*(B_Lot_Size/43560))+'Commercial Energy Coefficients'!$F$19*LN(40)+'Commercial Energy Coefficients'!$F$21+'Commercial Energy Coefficients'!$F$22*LN(Commercial_Energy_Cost)+'Commercial Energy Coefficients'!$F$24*IFERROR(LOOKUP(Metro_Select,Energy_Metro_Lookup,CDD),0)),0)+IFERROR(EXP('Commercial Energy Coefficients'!$I$3+LN((B_PUB_Gross_Sq_Ft))*'Commercial Energy Coefficients'!$I$4+'Commercial Energy Coefficients'!$I$11+'Commercial Energy Coefficients'!$I$14+'Commercial Energy Coefficients'!$I$18*LN((B_Pub_Emp_Acre)*(B_Lot_Size/43560))+'Commercial Energy Coefficients'!$I$19*LN(40)+'Commercial Energy Coefficients'!$I$21+'Commercial Energy Coefficients'!$I$22*LN(Commercial_Energy_Cost)+'Commercial Energy Coefficients'!$I$24*IFERROR(LOOKUP(Metro_Select,Energy_Metro_Lookup,CDD),0)),0))/1000 -> 0 | CP14: =(IFERROR(EXP('Commercial Energy Coefficients'!$D$3+LN((B_RET_Gross_Sq_Ft))*'Commercial Energy Coefficients'!$D$4+'Commercial Energy Coefficients'!$D$14+'Commercial Energy Coefficients'!$D$18*LN((B_Ret_Emp_Acre)*(B_Lot_Size/43560))+'Commercial Energy Coefficients'!$D$19*LN(40)+'Commercial Energy Coefficients'!$D$21+'Commercial Energy Coefficients'!$D$22*LN(Commercial_Energy_Cost)),0)+IFERROR(EXP('Commercial Energy Coefficients'!$G$3+LN((B_OFF_Gross_Sq_Ft))*'Commercial Energy Coefficients'!$G$4+'Commercial Energy Coefficients'!$G$14+'Commercial Energy Coefficients'!$G$18*LN((B_OFF_Emp_Acre)*(B_Lot_Size/43560))+'Commercial Energy Coefficients'!$G$19*LN(40)+'Commercial Energy Coefficients'!$G$21+'Commercial Energy Coefficients'!$G$22*LN(Commercial_Energy_Cost)),0)+IFERROR(EXP('Commercial Energy Coefficients'!$J$3+LN((B_PUB_Gross_Sq_Ft))*'Commercial Energy Coefficients'!$J$4+'Commercial Energy Coefficients'!$J$14+'Commercial Energy Coefficients'!$J$18*LN((B_Pub_Emp_Acre)*(B_Lot_Size/43560))+'Commercial Energy Coefficients'!$J$19*LN(40)+'Commercial Energy Coefficients'!$J$21+'Commercial Energy Coefficients'!$J$22*LN(Commercial_Energy_Cost)),0))/1000 -> 0 | CQ14: =SUM(CN14:CP14) -> 0 | CR14: 0 | CS14: 0 | CT14: 0 | CU14: 0 | CV14: 0 | CW14: 0 | CX14: 0 | CY14: 0 | CZ14: 0 | DA14: 0 | DB14: 0 | DC14: 0 | DD14: 0 | DE14: 0 | DF14: 0 | DG14: 0 | DH14: 0 | DI14: =IF(B_Housing_Type="",0,IF(B_Housing_Type="MF",'Project Info'!$B$160,IF(B_Housing_Type="TH",'Project Info'!$B$161,IF(AND(B_Housing_Type="SF",B_Net_Sq_Ft_per_Unit>0,B_Net_Sq_Ft_per_Unit<3000),'Project Info'!$B$162,IF(AND(B_Housing_Type="SF",B_Net_Sq_Ft_per_Unit>=3000),'Project Info'!$B$163))))) -> 0 | DJ14: 0 | DK14: 0 | DL14: 0 | DN14: 0 | DO14: 0 | DQ14: 0 | DR14: 0 | DT14: 0 | DY14: 0 | DZ14: 0 | EB14: 0 | EF14: 0 | EG14: 0 | EH14: 0 | EI14: 0 | EU14: 0 | EV14: 0 | EX14: 0 | EY14: 0 | EZ14: 0 | FA14: 0 | FB14: 0 | FC14: 0 | FE14: =Annual_Cooling_degree_days*24*(1/R_conventional_SF_F_hrs_BTU-1/R_green_roof_SF_F_hrs_Btu)/3412*'Building Inputs'!$EU14 -> 0 | FF14: 0 | FG14: =Annual_Heating_degree_days*24*(1/R_conventional_SF_F_hrs_BTU-1/R_green_roof_SF_F_hrs_Btu)*'Building Inputs'!$EU14 -> 0 | FH14: 0 | FI14: =Avg_Annual_NO2_uptake*'Building Inputs'!$EU14 -> 0 | FJ14: =Avg_Annual_O3_uptake*'Building Inputs'!$EU14 -> 0 | FK14: =Avg_Annual_SO2_uptake*'Building Inputs'!$EU14 -> 0 | FL14: =Avg_Annual_PM_10_uptake*'Building Inputs'!$EU14 -> 0 | FM14: 0 | FN14: 0 | FO14: 0 | FP14: 0 | FQ14: 0 | FR14: 0 | FS14: 0 | FT14: 0 | FU14: 0 | FV14: =Avg_amount_of_carbon_sequestered_lbs_SF*'Building Inputs'!$EU14*3.67 -> 0 | FW14: 0 | FX14: 0 | FY14: 0 | FZ14: =Average_annual_rainfall_in*($C14*(1-$E14)+$EM14-$EJ14-$ER14)*$C14/43560*'Building Inputs'!$EN14*144*0.00433 -> 0 | GB14: =Avg_Annual_NO2_uptake*'Building Inputs'!$EV14 -> 0 | GC14: =Avg_Annual_O3_uptake*'Building Inputs'!$EV14 -> 0 | GD14: =Avg_Annual_SO2_uptake*'Building Inputs'!$EV14 -> 0 | GE14: =Avg_Annual_PM_10_uptake*'Building Inputs'!$EV14 -> 0 | GF14: 0 | GG14: 0 | GH14: 0 | GI14: 0 | GJ14: 0 | GK14: =Avg_amount_of_carbon_sequestered_lbs_SF*'Building Inputs'!$EV14*3.67 -> 0 | GL14: 0 | GM14: =Average_annual_rainfall_in*('Building Inputs'!$EX14*'Building Inputs'!$EQ14+'Building Inputs'!$EY14*'Building Inputs'!$ES14)*144*0.00433 -> 0 | GO14: 0 | GQ14: 0 | GR14: 0 | GS14: 0 | GT14: 0 | GU14: 0 | GV14: 0 | GW14: 0 | GX14: 0 | GY14: 0 | GZ14: 0 | HA14: 0 | HB14: 0 | HC14: 0 | HF14: 0 | HG14: 0 | HH14: 0 | HQ14: 0 | HR14: 0 | HS14: 0 | HT14: 0 | HU14: 0 | HV14: 0 | HW14: 0 | HX14: 0
A15: 12 | I15: 0 | K15: 0 | L15: 0 | M15: 0 | N15: 0 | O15: 0 | P15: 0 | Q15: 0 | R15: 0 | AA15: 0 | AD15: 0 | AE15: 0 | AH15: 0 | AK15: 0 | AM15: 0 | AN15: 0 | AO15: 0 | AP15: 0 | AQ15: 0 | AR15: 0 | AS15: 0 | AT15: 0 | AU15: 0 | AV15: 0 | AW15: 0 | AX15: 0 | AY15: 0 | BB15: 0 | BC15: 0 | BF15: 0 | BG15: 0 | BJ15: 0 | BK15: 0 | BN15: 0 | BO15: 0 | BR15: 0 | BS15: 0 | BV15: 0 | BY15: 0 | BZ15: 0 | CA15: 0 | CD15: 0 | CI15: 0 | CJ15: =IFERROR(IF(B_Housing_Type="SF",EXP('Residential Energy Coefficients'!$B$3+'Residential Energy Coefficients'!$B$4*LN(B_Net_Sq_Ft_per_Unit)+'Residential Energy Coefficients'!$B$9+'Residential Energy Coefficients'!$B$10*LN(B_HH_Income)+'Residential Energy Coefficients'!$B$16*LN(Residential_Energy_Cost)+'Residential Energy Coefficients'!$B$20+'Residential Energy Coefficients'!$B$24*IFERROR(LOOKUP(Metro_Select,Energy_Metro_Lookup,HDD),0)),IF(B_Housing_Type="TH",EXP('Residential Energy Coefficients'!$E$3+'Residential Energy Coefficients'!$E$4*LN(B_Net_Sq_Ft_per_Unit)+'Residential Energy Coefficients'!$E$9+'Residential Energy Coefficients'!$E$16*LN(Residential_Energy_Cost)+'Residential Energy Coefficients'!$E$19+'Residential Energy Coefficients'!$E$20+'Residential Energy Coefficients'!$E$24*IFERROR(LOOKUP(Metro_Select,Energy_Metro_Lookup,HDD),0)),IF(B_Housing_Type="MF",EXP('Residential Energy Coefficients'!$H$3+'Residential Energy Coefficients'!$H$4*LN(B_Net_Sq_Ft_per_Unit)+'Residential Energy Coefficients'!$H$9+IF(B_Pct_Owner=1,'Residential Energy Coefficients'!$H$12,0)+'Residential Energy Coefficients'!$H$16*LN(Residential_Energy_Cost)+'Residential Energy Coefficients'!$H$20+'Residential Energy Coefficients'!$H$24*IFERROR(LOOKUP(Metro_Select,Energy_Metro_Lookup,HDD),0)),IF(B_Hotel_Room_Acre>0,EXP('Residential Energy Coefficients'!$H$3+'Residential Energy Coefficients'!$H$4*LN(B_Hotel_Room_Net)+'Residential Energy Coefficients'!$H$9+'Residential Energy Coefficients'!$H$16*LN(Residential_Energy_Cost)+'Residential Energy Coefficients'!$H$20+'Residential Energy Coefficients'!$H$24*IFERROR(LOOKUP(Metro_Select,Energy_Metro_Lookup,HDD),0)),IF(B_Housing_Type="MH",EXP('Residential Energy Coefficients'!$K$3+'Residential Energy Coefficients'!$K$16*LN(Residential_Energy_Cost)+'Residential Energy Coefficients'!$K$24*IFERROR(LOOKUP(Metro_Select,Energy_Metro_Lookup,HDD),0)),0)))))/1000,0) -> 0 | CK15: =IFERROR(IF(B_Housing_Type="SF",EXP('Residential Energy Coefficients'!$C$3+'Residential Energy Coefficients'!$C$4*LN(B_Net_Sq_Ft_per_Unit)+'Residential Energy Coefficients'!$C$10*LN(B_HH_Income)+'Residential Energy Coefficients'!$C$11*B_HH_Size+'Residential Energy Coefficients'!$C$16*LN(Residential_Energy_Cost)+'Residential Energy Coefficients'!$C$19+'Residential Energy Coefficients'!$C$22+'Residential Energy Coefficients'!$C$25*IFERROR(LOOKUP(Metro_Select,Energy_Metro_Lookup,CDD),0)),IF(B_Housing_Type="TH",EXP('Residential Energy Coefficients'!$F$3+'Residential Energy Coefficients'!$F$4*LN(B_Net_Sq_Ft_per_Unit)+'Residential Energy Coefficients'!$F$10*LN(B_HH_Income)+'Residential Energy Coefficients'!$F$11*B_HH_Size+IF(B_Pct_Owner=1,'Residential Energy Coefficients'!$F$12,0)+'Residential Energy Coefficients'!$F$16*LN(Residential_Energy_Cost)+'Residential Energy Coefficients'!$F$22+'Residential Energy Coefficients'!$F$25*IFERROR(LOOKUP(Metro_Select,Energy_Metro_Lookup,CDD),0)),IF(B_Housing_Type="MF",EXP('Residential Energy Coefficients'!$I$3+'Residential Energy Coefficients'!$I$4*LN(B_Net_Sq_Ft_per_Unit)+'Residential Energy Coefficients'!$I$9+'Residential Energy Coefficients'!$I$11*B_HH_Size+'Residential Energy Coefficients'!$I$16*LN(Residential_Energy_Cost)+'Residential Energy Coefficients'!$I$22+'Residential Energy Coefficients'!$I$25*IFERROR(LOOKUP(Metro_Select,Energy_Metro_Lookup,CDD),0)),IF(B_Hotel_Room_Acre>0,EXP('Residential Energy Coefficients'!$I$3+'Residential Energy Coefficients'!$I$4*LN(B_Hotel_Room_Net)+'Residential Energy Coefficients'!$I$9+'Residential Energy Coefficients'!$I$11*1.25+'Residential Energy Coefficients'!$I$16*LN(Residential_Energy_Cost)+'Residential Energy Coefficients'!$I$22+'Residential Energy Coefficients'!$I$25*IFERROR(LOOKUP(Metro_Select,Energy_Metro_Lookup,CDD),0)),IF(B_Housing_Type="MH",EXP('Residential Energy Coefficients'!$L$3+'Residential Energy Coefficients'!$L$11*B_HH_Size+'Residential Energy Coefficients'!$L$16*LN(Residential_Energy_Cost)+'Residential Energy Coefficients'!$L$22+'Residential Energy Coefficients'!$L$25*IFERROR(LOOKUP(Metro_Select,Energy_Metro_Lookup,CDD),0)),0)))))/1000,0) -> 0 | CL15: =IFERROR(IF(B_Housing_Type="SF",EXP('Residential Energy Coefficients'!$D$3+'Residential Energy Coefficients'!$D$4*LN(B_Net_Sq_Ft_per_Unit)+'Residential Energy Coefficients'!$D$9+'Residential Energy Coefficients'!$D$10*LN(B_HH_Income)+'Residential Energy Coefficients'!$D$11*B_HH_Size+IF(B_Pct_Owner=1,'Residential Energy Coefficients'!$D$12,0)+'Residential Energy Coefficients'!$D$16*LN(Residential_Energy_Cost)),IF(B_Housing_Type="TH",EXP('Residential Energy Coefficients'!$G$3+'Residential Energy Coefficients'!$G$4*LN(B_Net_Sq_Ft_per_Unit)+'Residential Energy Coefficients'!$G$10*LN(B_HH_Income)+'Residential Energy Coefficients'!$G$11*B_HH_Size+'Residential Energy Coefficients'!$G$16*LN(Residential_Energy_Cost)),IF(B_Housing_Type="MF",EXP('Residential Energy Coefficients'!$J$3+'Residential Energy Coefficients'!$J$4*LN(B_Net_Sq_Ft_per_Unit)+'Residential Energy Coefficients'!$J$10*LN(B_HH_Income)+'Residential Energy Coefficients'!$J$11*B_HH_Size+IF(B_Pct_Owner=1,'Residential Energy Coefficients'!$J$12,0)+'Residential Energy Coefficients'!$J$16*LN(Residential_Energy_Cost)+'Residential Energy Coefficients'!$J$19),IF(B_Hotel_Room_Acre>0,EXP('Residential Energy Coefficients'!$J$3+'Residential Energy Coefficients'!$J$4*LN(B_Hotel_Room_Net)+'Residential Energy Coefficients'!$J$16*LN(Residential_Energy_Cost)+'Residential Energy Coefficients'!$J$19),IF(B_Housing_Type="MH",EXP('Residential Energy Coefficients'!$M$3+'Residential Energy Coefficients'!$M$4*LN(B_Net_Sq_Ft_per_Unit)+'Residential Energy Coefficients'!$M$11*B_HH_Size+'Residential Energy Coefficients'!$M$16*LN(Residential_Energy_Cost)+'Residential Energy Coefficients'!$M$19),0)))))/1000,0) -> 0 | CM15: 0 | CN15: =(IFERROR(EXP('Commercial Energy Coefficients'!$B$3+LN(B_RET_Gross_Sq_Ft)*'Commercial Energy Coefficients'!$B$4+'Commercial Energy Coefficients'!$B$11+'Commercial Energy Coefficients'!$B$14+'Commercial Energy Coefficients'!$B$18*LN((B_Ret_Emp_Acre)*(B_Lot_Size/43560))+'Commercial Energy Coefficients'!$B$19*LN(40)+'Commercial Energy Coefficients'!$B$21+'Commercial Energy Coefficients'!$B$22*LN(Commercial_Energy_Cost)+'Commercial Energy Coefficients'!$B$23*IFERROR(LOOKUP(Metro_Select,Energy_Metro_Lookup,HDD),0)),0)+IFERROR(EXP('Commercial Energy Coefficients'!$E$3+LN(B_OFF_Gross_Sq_Ft)*'Commercial Energy Coefficients'!$E$4+'Commercial Energy Coefficients'!$E$11+'Commercial Energy Coefficients'!$E$14+'Commercial Energy Coefficients'!$E$18*LN((B_OFF_Emp_Acre)*(B_Lot_Size/43560))+'Commercial Energy Coefficients'!$E$19*LN(40)+'Commercial Energy Coefficients'!$E$21+'Commercial Energy Coefficients'!$E$22*LN(Commercial_Energy_Cost)+'Commercial Energy Coefficients'!$E$23*IFERROR(LOOKUP(Metro_Select,Energy_Metro_Lookup,HDD),0)),0)+IFERROR(EXP('Commercial Energy Coefficients'!$H$3+LN(B_PUB_Gross_Sq_Ft)*'Commercial Energy Coefficients'!$H$4+'Commercial Energy Coefficients'!$H$11+'Commercial Energy Coefficients'!$H$14+'Commercial Energy Coefficients'!$H$18*LN((B_Pub_Emp_Acre)*(B_Lot_Size/43560))+'Commercial Energy Coefficients'!$H$19*LN(40)+'Commercial Energy Coefficients'!$H$21+'Commercial Energy Coefficients'!$H$22*LN(Commercial_Energy_Cost)+'Commercial Energy Coefficients'!$H$23*IFERROR(LOOKUP(Metro_Select,Energy_Metro_Lookup,HDD),0)),0))/1000 -> 0 | CO15: =(IFERROR(EXP('Commercial Energy Coefficients'!$C$3+LN((B_RET_Gross_Sq_Ft))*'Commercial Energy Coefficients'!$C$4+'Commercial Energy Coefficients'!$C$11+'Commercial Energy Coefficients'!$C$14+'Commercial Energy Coefficients'!$C$18*LN((B_Ret_Emp_Acre)*(B_Lot_Size/43560))+'Commercial Energy Coefficients'!$C$19*LN(40)+'Commercial Energy Coefficients'!$C$21+'Commercial Energy Coefficients'!$C$22*LN(Commercial_Energy_Cost)+'Commercial Energy Coefficients'!$C$24*IFERROR(LOOKUP(Metro_Select,Energy_Metro_Lookup,CDD),0)),0)+IFERROR(EXP('Commercial Energy Coefficients'!$F$3+LN((B_OFF_Gross_Sq_Ft))*'Commercial Energy Coefficients'!$F$4+'Commercial Energy Coefficients'!$F$11+'Commercial Energy Coefficients'!$F$14+'Commercial Energy Coefficients'!$F$18*LN((B_OFF_Emp_Acre)*(B_Lot_Size/43560))+'Commercial Energy Coefficients'!$F$19*LN(40)+'Commercial Energy Coefficients'!$F$21+'Commercial Energy Coefficients'!$F$22*LN(Commercial_Energy_Cost)+'Commercial Energy Coefficients'!$F$24*IFERROR(LOOKUP(Metro_Select,Energy_Metro_Lookup,CDD),0)),0)+IFERROR(EXP('Commercial Energy Coefficients'!$I$3+LN((B_PUB_Gross_Sq_Ft))*'Commercial Energy Coefficients'!$I$4+'Commercial Energy Coefficients'!$I$11+'Commercial Energy Coefficients'!$I$14+'Commercial Energy Coefficients'!$I$18*LN((B_Pub_Emp_Acre)*(B_Lot_Size/43560))+'Commercial Energy Coefficients'!$I$19*LN(40)+'Commercial Energy Coefficients'!$I$21+'Commercial Energy Coefficients'!$I$22*LN(Commercial_Energy_Cost)+'Commercial Energy Coefficients'!$I$24*IFERROR(LOOKUP(Metro_Select,Energy_Metro_Lookup,CDD),0)),0))/1000 -> 0 | CP15: =(IFERROR(EXP('Commercial Energy Coefficients'!$D$3+LN((B_RET_Gross_Sq_Ft))*'Commercial Energy Coefficients'!$D$4+'Commercial Energy Coefficients'!$D$14+'Commercial Energy Coefficients'!$D$18*LN((B_Ret_Emp_Acre)*(B_Lot_Size/43560))+'Commercial Energy Coefficients'!$D$19*LN(40)+'Commercial Energy Coefficients'!$D$21+'Commercial Energy Coefficients'!$D$22*LN(Commercial_Energy_Cost)),0)+IFERROR(EXP('Commercial Energy Coefficients'!$G$3+LN((B_OFF_Gross_Sq_Ft))*'Commercial Energy Coefficients'!$G$4+'Commercial Energy Coefficients'!$G$14+'Commercial Energy Coefficients'!$G$18*LN((B_OFF_Emp_Acre)*(B_Lot_Size/43560))+'Commercial Energy Coefficients'!$G$19*LN(40)+'Commercial Energy Coefficients'!$G$21+'Commercial Energy Coefficients'!$G$22*LN(Commercial_Energy_Cost)),0)+IFERROR(EXP('Commercial Energy Coefficients'!$J$3+LN((B_PUB_Gross_Sq_Ft))*'Commercial Energy Coefficients'!$J$4+'Commercial Energy Coefficients'!$J$14+'Commercial Energy Coefficients'!$J$18*LN((B_Pub_Emp_Acre)*(B_Lot_Size/43560))+'Commercial Energy Coefficients'!$J$19*LN(40)+'Commercial Energy Coefficients'!$J$21+'Commercial Energy Coefficients'!$J$22*LN(Commercial_Energy_Cost)),0))/1000 -> 0 | CQ15: 0 | CR15: 0 | CS15: 0 | CT15: 0 | CU15: 0 | CV15: 0 | CW15: 0 | CX15: 0 | CY15: 0 | CZ15: 0 | DA15: 0 | DB15: 0 | DC15: 0 | DD15: 0 | DE15: 0 | DF15: 0 | DG15: 0 | DH15: 0 | DI15: =IF(B_Housing_Type="",0,IF(B_Housing_Type="MF",'Project Info'!$B$160,IF(B_Housing_Type="TH",'Project Info'!$B$161,IF(AND(B_Housing_Type="SF",B_Net_Sq_Ft_per_Unit>0,B_Net_Sq_Ft_per_Unit<3000),'Project Info'!$B$162,IF(AND(B_Housing_Type="SF",B_Net_Sq_Ft_per_Unit>=3000),'Project Info'!$B$163))))) -> 0 | DJ15: 0 | DK15: 0 | DL15: 0 | DN15: 0 | DO15: 0 | DQ15: 0 | DR15: 0 | DT15: 0 | DY15: 0 | DZ15: 0 | EB15: 0 | EF15: 0 | EG15: 0 | EH15: 0 | EI15: 0 | EU15: 0 | EV15: 0 | EX15: 0 | EY15: 0 | EZ15: 0 | FA15: 0 | FB15: 0 | FC15: 0 | FE15: =Annual_Cooling_degree_days*24*(1/R_conventional_SF_F_hrs_BTU-1/R_green_roof_SF_F_hrs_Btu)/3412*'Building Inputs'!$EU15 -> 0 | FF15: 0 | FG15: =Annual_Heating_degree_days*24*(1/R_conventional_SF_F_hrs_BTU-1/R_green_roof_SF_F_hrs_Btu)*'Building Inputs'!$EU15 -> 0 | FH15: 0 | FI15: =Avg_Annual_NO2_uptake*'Building Inputs'!$EU15 -> 0 | FJ15: =Avg_Annual_O3_uptake*'Building Inputs'!$EU15 -> 0 | FK15: =Avg_Annual_SO2_uptake*'Building Inputs'!$EU15 -> 0 | FL15: =Avg_Annual_PM_10_uptake*'Building Inputs'!$EU15 -> 0 | FM15: 0 | FN15: 0 | FO15: 0 | FP15: 0 | FQ15: 0 | FR15: 0 | FS15: 0 | FT15: 0 | FU15: 0 | FV15: =Avg_amount_of_carbon_sequestered_lbs_SF*'Building Inputs'!$EU15*3.67 -> 0 | FW15: 0 | FX15: 0 | FY15: 0 | FZ15: =Average_annual_rainfall_in*($C15*(1-$E15)+$EM15-$EJ15-$ER15)*$C15/43560*'Building Inputs'!$EN15*144*0.00433 -> 0 | GB15: =Avg_Annual_NO2_uptake*'Building Inputs'!$EV15 -> 0 | GC15: =Avg_Annual_O3_uptake*'Building Inputs'!$EV15 -> 0 | GD15: =Avg_Annual_SO2_uptake*'Building Inputs'!$EV15 -> 0 | GE15: =Avg_Annual_PM_10_uptake*'Building Inputs'!$EV15 -> 0 | GF15: 0 | GG15: 0 | GH15: 0 | GI15: 0 | GJ15: 0 | GK15: =Avg_amount_of_carbon_sequestered_lbs_SF*'Building Inputs'!$EV15*3.67 -> 0 | GL15: 0 | GM15: =Average_annual_rainfall_in*('Building Inputs'!$EX15*'Building Inputs'!$EQ15+'Building Inputs'!$EY15*'Building Inputs'!$ES15)*144*0.00433 -> 0 | GO15: 0 | GQ15: 0 | GR15: 0 | GS15: 0 | GT15: 0 | GU15: 0 | GV15: 0 | GW15: 0 | GX15: 0 | GY15: 0 | GZ15: 0 | HA15: 0 | HB15: 0 | HC15: 0 | HF15: 0 | HG15: 0 | HH15: 0 | HQ15: 0 | HR15: 0 | HS15: 0 | HT15: 0 | HU15: 0 | HV15: 0 | HW15: 0 | HX15: 0
A16: 13 | I16: 0 | K16: 0 | L16: 0 | M16: 0 | N16: 0 | O16: 0 | P16: 0 | Q16: 0 | R16: 0 | AA16: 0 | AD16: 0 | AE16: 0 | AH16: 0 | AK16: 0 | AM16: 0 | AN16: 0 | AO16: 0 | AP16: 0 | AQ16: 0 | AR16: 0 | AS16: 0 | AT16: 0 | AU16: 0 | AV16: 0 | AW16: 0 | AX16: 0 | AY16: 0 | BB16: 0 | BC16: 0 | BF16: 0 | BG16: 0 | BJ16: 0 | BK16: 0 | BN16: 0 | BO16: 0 | BR16: 0 | BS16: 0 | BV16: 0 | BY16: 0 | BZ16: 0 | CA16: 0 | CD16: 0 | CI16: 0 | CJ16: =IFERROR(IF(B_Housing_Type="SF",EXP('Residential Energy Coefficients'!$B$3+'Residential Energy Coefficients'!$B$4*LN(B_Net_Sq_Ft_per_Unit)+'Residential Energy Coefficients'!$B$9+'Residential Energy Coefficients'!$B$10*LN(B_HH_Income)+'Residential Energy Coefficients'!$B$16*LN(Residential_Energy_Cost)+'Residential Energy Coefficients'!$B$20+'Residential Energy Coefficients'!$B$24*IFERROR(LOOKUP(Metro_Select,Energy_Metro_Lookup,HDD),0)),IF(B_Housing_Type="TH",EXP('Residential Energy Coefficients'!$E$3+'Residential Energy Coefficients'!$E$4*LN(B_Net_Sq_Ft_per_Unit)+'Residential Energy Coefficients'!$E$9+'Residential Energy Coefficients'!$E$16*LN(Residential_Energy_Cost)+'Residential Energy Coefficients'!$E$19+'Residential Energy Coefficients'!$E$20+'Residential Energy Coefficients'!$E$24*IFERROR(LOOKUP(Metro_Select,Energy_Metro_Lookup,HDD),0)),IF(B_Housing_Type="MF",EXP('Residential Energy Coefficients'!$H$3+'Residential Energy Coefficients'!$H$4*LN(B_Net_Sq_Ft_per_Unit)+'Residential Energy Coefficients'!$H$9+IF(B_Pct_Owner=1,'Residential Energy Coefficients'!$H$12,0)+'Residential Energy Coefficients'!$H$16*LN(Residential_Energy_Cost)+'Residential Energy Coefficients'!$H$20+'Residential Energy Coefficients'!$H$24*IFERROR(LOOKUP(Metro_Select,Energy_Metro_Lookup,HDD),0)),IF(B_Hotel_Room_Acre>0,EXP('Residential Energy Coefficients'!$H$3+'Residential Energy Coefficients'!$H$4*LN(B_Hotel_Room_Net)+'Residential Energy Coefficients'!$H$9+'Residential Energy Coefficients'!$H$16*LN(Residential_Energy_Cost)+'Residential Energy Coefficients'!$H$20+'Residential Energy Coefficients'!$H$24*IFERROR(LOOKUP(Metro_Select,Energy_Metro_Lookup,HDD),0)),IF(B_Housing_Type="MH",EXP('Residential Energy Coefficients'!$K$3+'Residential Energy Coefficients'!$K$16*LN(Residential_Energy_Cost)+'Residential Energy Coefficients'!$K$24*IFERROR(LOOKUP(Metro_Select,Energy_Metro_Lookup,HDD),0)),0)))))/1000,0) -> 0 | CK16: =IFERROR(IF(B_Housing_Type="SF",EXP('Residential Energy Coefficients'!$C$3+'Residential Energy Coefficients'!$C$4*LN(B_Net_Sq_Ft_per_Unit)+'Residential Energy Coefficients'!$C$10*LN(B_HH_Income)+'Residential Energy Coefficients'!$C$11*B_HH_Size+'Residential Energy Coefficients'!$C$16*LN(Residential_Energy_Cost)+'Residential Energy Coefficients'!$C$19+'Residential Energy Coefficients'!$C$22+'Residential Energy Coefficients'!$C$25*IFERROR(LOOKUP(Metro_Select,Energy_Metro_Lookup,CDD),0)),IF(B_Housing_Type="TH",EXP('Residential Energy Coefficients'!$F$3+'Residential Energy Coefficients'!$F$4*LN(B_Net_Sq_Ft_per_Unit)+'Residential Energy Coefficients'!$F$10*LN(B_HH_Income)+'Residential Energy Coefficients'!$F$11*B_HH_Size+IF(B_Pct_Owner=1,'Residential Energy Coefficients'!$F$12,0)+'Residential Energy Coefficients'!$F$16*LN(Residential_Energy_Cost)+'Residential Energy Coefficients'!$F$22+'Residential Energy Coefficients'!$F$25*IFERROR(LOOKUP(Metro_Select,Energy_Metro_Lookup,CDD),0)),IF(B_Housing_Type="MF",EXP('Residential Energy Coefficients'!$I$3+'Residential Energy Coefficients'!$I$4*LN(B_Net_Sq_Ft_per_Unit)+'Residential Energy Coefficients'!$I$9+'Residential Energy Coefficients'!$I$11*B_HH_Size+'Residential Energy Coefficients'!$I$16*LN(Residential_Energy_Cost)+'Residential Energy Coefficients'!$I$22+'Residential Energy Coefficients'!$I$25*IFERROR(LOOKUP(Metro_Select,Energy_Metro_Lookup,CDD),0)),IF(B_Hotel_Room_Acre>0,EXP('Residential Energy Coefficients'!$I$3+'Residential Energy Coefficients'!$I$4*LN(B_Hotel_Room_Net)+'Residential Energy Coefficients'!$I$9+'Residential Energy Coefficients'!$I$11*1.25+'Residential Energy Coefficients'!$I$16*LN(Residential_Energy_Cost)+'Residential Energy Coefficients'!$I$22+'Residential Energy Coefficients'!$I$25*IFERROR(LOOKUP(Metro_Select,Energy_Metro_Lookup,CDD),0)),IF(B_Housing_Type="MH",EXP('Residential Energy Coefficients'!$L$3+'Residential Energy Coefficients'!$L$11*B_HH_Size+'Residential Energy Coefficients'!$L$16*LN(Residential_Energy_Cost)+'Residential Energy Coefficients'!$L$22+'Residential Energy Coefficients'!$L$25*IFERROR(LOOKUP(Metro_Select,Energy_Metro_Lookup,CDD),0)),0)))))/1000,0) -> 0 | CL16: =IFERROR(IF(B_Housing_Type="SF",EXP('Residential Energy Coefficients'!$D$3+'Residential Energy Coefficients'!$D$4*LN(B_Net_Sq_Ft_per_Unit)+'Residential Energy Coefficients'!$D$9+'Residential Energy Coefficients'!$D$10*LN(B_HH_Income)+'Residential Energy Coefficients'!$D$11*B_HH_Size+IF(B_Pct_Owner=1,'Residential Energy Coefficients'!$D$12,0)+'Residential Energy Coefficients'!$D$16*LN(Residential_Energy_Cost)),IF(B_Housing_Type="TH",EXP('Residential Energy Coefficients'!$G$3+'Residential Energy Coefficients'!$G$4*LN(B_Net_Sq_Ft_per_Unit)+'Residential Energy Coefficients'!$G$10*LN(B_HH_Income)+'Residential Energy Coefficients'!$G$11*B_HH_Size+'Residential Energy Coefficients'!$G$16*LN(Residential_Energy_Cost)),IF(B_Housing_Type="MF",EXP('Residential Energy Coefficients'!$J$3+'Residential Energy Coefficients'!$J$4*LN(B_Net_Sq_Ft_per_Unit)+'Residential Energy Coefficients'!$J$10*LN(B_HH_Income)+'Residential Energy Coefficients'!$J$11*B_HH_Size+IF(B_Pct_Owner=1,'Residential Energy Coefficients'!$J$12,0)+'Residential Energy Coefficients'!$J$16*LN(Residential_Energy_Cost)+'Residential Energy Coefficients'!$J$19),IF(B_Hotel_Room_Acre>0,EXP('Residential Energy Coefficients'!$J$3+'Residential Energy Coefficients'!$J$4*LN(B_Hotel_Room_Net)+'Residential Energy Coefficients'!$J$16*LN(Residential_Energy_Cost)+'Residential Energy Coefficients'!$J$19),IF(B_Housing_Type="MH",EXP('Residential Energy Coefficients'!$M$3+'Residential Energy Coefficients'!$M$4*LN(B_Net_Sq_Ft_per_Unit)+'Residential Energy Coefficients'!$M$11*B_HH_Size+'Residential Energy Coefficients'!$M$16*LN(Residential_Energy_Cost)+'Residential Energy Coefficients'!$M$19),0)))))/1000,0) -> 0 | CM16: 0 | CN16: =(IFERROR(EXP('Commercial Energy Coefficients'!$B$3+LN(B_RET_Gross_Sq_Ft)*'Commercial Energy Coefficients'!$B$4+'Commercial Energy Coefficients'!$B$11+'Commercial Energy Coefficients'!$B$14+'Commercial Energy Coefficients'!$B$18*LN((B_Ret_Emp_Acre)*(B_Lot_Size/43560))+'Commercial Energy Coefficients'!$B$19*LN(40)+'Commercial Energy Coefficients'!$B$21+'Commercial Energy Coefficients'!$B$22*LN(Commercial_Energy_Cost)+'Commercial Energy Coefficients'!$B$23*IFERROR(LOOKUP(Metro_Select,Energy_Metro_Lookup,HDD),0)),0)+IFERROR(EXP('Commercial Energy Coefficients'!$E$3+LN(B_OFF_Gross_Sq_Ft)*'Commercial Energy Coefficients'!$E$4+'Commercial Energy Coefficients'!$E$11+'Commercial Energy Coefficients'!$E$14+'Commercial Energy Coefficients'!$E$18*LN((B_OFF_Emp_Acre)*(B_Lot_Size/43560))+'Commercial Energy Coefficients'!$E$19*LN(40)+'Commercial Energy Coefficients'!$E$21+'Commercial Energy Coefficients'!$E$22*LN(Commercial_Energy_Cost)+'Commercial Energy Coefficients'!$E$23*IFERROR(LOOKUP(Metro_Select,Energy_Metro_Lookup,HDD),0)),0)+IFERROR(EXP('Commercial Energy Coefficients'!$H$3+LN(B_PUB_Gross_Sq_Ft)*'Commercial Energy Coefficients'!$H$4+'Commercial Energy Coefficients'!$H$11+'Commercial Energy Coefficients'!$H$14+'Commercial Energy Coefficients'!$H$18*LN((B_Pub_Emp_Acre)*(B_Lot_Size/43560))+'Commercial Energy Coefficients'!$H$19*LN(40)+'Commercial Energy Coefficients'!$H$21+'Commercial Energy Coefficients'!$H$22*LN(Commercial_Energy_Cost)+'Commercial Energy Coefficients'!$H$23*IFERROR(LOOKUP(Metro_Select,Energy_Metro_Lookup,HDD),0)),0))/1000 -> 0 | CO16: =(IFERROR(EXP('Commercial Energy Coefficients'!$C$3+LN((B_RET_Gross_Sq_Ft))*'Commercial Energy Coefficients'!$C$4+'Commercial Energy Coefficients'!$C$11+'Commercial Energy Coefficients'!$C$14+'Commercial Energy Coefficients'!$C$18*LN((B_Ret_Emp_Acre)*(B_Lot_Size/43560))+'Commercial Energy Coefficients'!$C$19*LN(40)+'Commercial Energy Coefficients'!$C$21+'Commercial Energy Coefficients'!$C$22*LN(Commercial_Energy_Cost)+'Commercial Energy Coefficients'!$C$24*IFERROR(LOOKUP(Metro_Select,Energy_Metro_Lookup,CDD),0)),0)+IFERROR(EXP('Commercial Energy Coefficients'!$F$3+LN((B_OFF_Gross_Sq_Ft))*'Commercial Energy Coefficients'!$F$4+'Commercial Energy Coefficients'!$F$11+'Commercial Energy Coefficients'!$F$14+'Commercial Energy Coefficients'!$F$18*LN((B_OFF_Emp_Acre)*(B_Lot_Size/43560))+'Commercial Energy Coefficients'!$F$19*LN(40)+'Commercial Energy Coefficients'!$F$21+'Commercial Energy Coefficients'!$F$22*LN(Commercial_Energy_Cost)+'Commercial Energy Coefficients'!$F$24*IFERROR(LOOKUP(Metro_Select,Energy_Metro_Lookup,CDD),0)),0)+IFERROR(EXP('Commercial Energy Coefficients'!$I$3+LN((B_PUB_Gross_Sq_Ft))*'Commercial Energy Coefficients'!$I$4+'Commercial Energy Coefficients'!$I$11+'Commercial Energy Coefficients'!$I$14+'Commercial Energy Coefficients'!$I$18*LN((B_Pub_Emp_Acre)*(B_Lot_Size/43560))+'Commercial Energy Coefficients'!$I$19*LN(40)+'Commercial Energy Coefficients'!$I$21+'Commercial Energy Coefficients'!$I$22*LN(Commercial_Energy_Cost)+'Commercial Energy Coefficients'!$I$24*IFERROR(LOOKUP(Metro_Select,Energy_Metro_Lookup,CDD),0)),0))/1000 -> 0 | CP16: =(IFERROR(EXP('Commercial Energy Coefficients'!$D$3+LN((B_RET_Gross_Sq_Ft))*'Commercial Energy Coefficients'!$D$4+'Commercial Energy Coefficients'!$D$14+'Commercial Energy Coefficients'!$D$18*LN((B_Ret_Emp_Acre)*(B_Lot_Size/43560))+'Commercial Energy Coefficients'!$D$19*LN(40)+'Commercial Energy Coefficients'!$D$21+'Commercial Energy Coefficients'!$D$22*LN(Commercial_Energy_Cost)),0)+IFERROR(EXP('Commercial Energy Coefficients'!$G$3+LN((B_OFF_Gross_Sq_Ft))*'Commercial Energy Coefficients'!$G$4+'Commercial Energy Coefficients'!$G$14+'Commercial Energy Coefficients'!$G$18*LN((B_OFF_Emp_Acre)*(B_Lot_Size/43560))+'Commercial Energy Coefficients'!$G$19*LN(40)+'Commercial Energy Coefficients'!$G$21+'Commercial Energy Coefficients'!$G$22*LN(Commercial_Energy_Cost)),0)+IFERROR(EXP('Commercial Energy Coefficients'!$J$3+LN((B_PUB_Gross_Sq_Ft))*'Commercial Energy Coefficients'!$J$4+'Commercial Energy Coefficients'!$J$14+'Commercial Energy Coefficients'!$J$18*LN((B_Pub_Emp_Acre)*(B_Lot_Size/43560))+'Commercial Energy Coefficients'!$J$19*LN(40)+'Commercial Energy Coefficients'!$J$21+'Commercial Energy Coefficients'!$J$22*LN(Commercial_Energy_Cost)),0))/1000 -> 0 | CQ16: 0 | CR16: 0 | CS16: 0 | CT16: 0 | CU16: 0 | CV16: 0 | CW16: 0 | CX16: 0 | CY16: 0 | CZ16: 0 | DA16: 0 | DB16: 0 | DC16: 0 | DD16: 0 | DE16: 0 | DF16: 0 | DG16: 0 | DH16: 0 | DI16: =IF(B_Housing_Type="",0,IF(B_Housing_Type="MF",'Project Info'!$B$160,IF(B_Housing_Type="TH",'Project Info'!$B$161,IF(AND(B_Housing_Type="SF",B_Net_Sq_Ft_per_Unit>0,B_Net_Sq_Ft_per_Unit<3000),'Project Info'!$B$162,IF(AND(B_Housing_Type="SF",B_Net_Sq_Ft_per_Unit>=3000),'Project Info'!$B$163))))) -> 0 | DJ16: 0 | DK16: 0 | DL16: 0 | DN16: 0 | DO16: 0 | DQ16: 0 | DR16: 0 | DT16: 0 | DY16: 0 | DZ16: 0 | EB16: 0 | EF16: 0 | EG16: 0 | EH16: 0 | EI16: 0 | EU16: 0 | EV16: 0 | EX16: 0 | EY16: 0 | EZ16: 0 | FA16: 0 | FB16: 0 | FC16: 0 | FE16: =Annual_Cooling_degree_days*24*(1/R_conventional_SF_F_hrs_BTU-1/R_green_roof_SF_F_hrs_Btu)/3412*'Building Inputs'!$EU16 -> 0 | FF16: 0 | FG16: =Annual_Heating_degree_days*24*(1/R_conventional_SF_F_hrs_BTU-1/R_green_roof_SF_F_hrs_Btu)*'Building Inputs'!$EU16 -> 0 | FH16: 0 | FI16: =Avg_Annual_NO2_uptake*'Building Inputs'!$EU16 -> 0 | FJ16: =Avg_Annual_O3_uptake*'Building Inputs'!$EU16 -> 0 | FK16: =Avg_Annual_SO2_uptake*'Building Inputs'!$EU16 -> 0 | FL16: =Avg_Annual_PM_10_uptake*'Building Inputs'!$EU16 -> 0 | FM16: 0 | FN16: 0 | FO16: 0 | FP16: 0 | FQ16: 0 | FR16: 0 | FS16: 0 | FT16: 0 | FU16: 0 | FV16: =Avg_amount_of_carbon_sequestered_lbs_SF*'Building Inputs'!$EU16*3.67 -> 0 | FW16: 0 | FX16: 0 | FY16: 0 | FZ16: =Average_annual_rainfall_in*($C16*(1-$E16)+$EM16-$EJ16-$ER16)*$C16/43560*'Building Inputs'!$EN16*144*0.00433 -> 0 | GB16: =Avg_Annual_NO2_uptake*'Building Inputs'!$EV16 -> 0 | GC16: =Avg_Annual_O3_uptake*'Building Inputs'!$EV16 -> 0 | GD16: =Avg_Annual_SO2_uptake*'Building Inputs'!$EV16 -> 0 | GE16: =Avg_Annual_PM_10_uptake*'Building Inputs'!$EV16 -> 0 | GF16: 0 | GG16: 0 | GH16: 0 | GI16: 0 | GJ16: 0 | GK16: =Avg_amount_of_carbon_sequestered_lbs_SF*'Building Inputs'!$EV16*3.67 -> 0 | GL16: 0 | GM16: =Average_annual_rainfall_in*('Building Inputs'!$EX16*'Building Inputs'!$EQ16+'Building Inputs'!$EY16*'Building Inputs'!$ES16)*144*0.00433 -> 0 | GO16: 0 | GQ16: 0 | GR16: 0 | GS16: 0 | GT16: 0 | GU16: 0 | GV16: 0 | GW16: 0 | GX16: 0 | GY16: 0 | GZ16: 0 | HA16: 0 | HB16: 0 | HC16: 0 | HF16: 0 | HG16: 0 | HH16: 0 | HQ16: 0 | HR16: 0 | HS16: 0 | HT16: 0 | HU16: 0 | HV16: 0 | HW16: 0 | HX16: 0
A17: 14 | I17: 0 | K17: 0 | L17: 0 | M17: 0 | N17: 0 | O17: 0 | P17: 0 | Q17: 0 | R17: 0 | AA17: 0 | AD17: 0 | AE17: 0 | AH17: 0 | AK17: 0 | AM17: 0 | AN17: 0 | AO17: 0 | AP17: 0 | AQ17: 0 | AR17: 0 | AS17: 0 | AT17: 0 | AU17: 0 | AV17: 0 | AW17: 0 | AX17: 0 | AY17: 0 | BB17: 0 | BC17: 0 | BF17: 0 | BG17: 0 | BJ17: 0 | BK17: 0 | BN17: 0 | BO17: 0 | BR17: 0 | BS17: 0 | BV17: 0 | BY17: 0 | BZ17: 0 | CA17: 0 | CD17: 0 | CI17: 0 | CJ17: =IFERROR(IF(B_Housing_Type="SF",EXP('Residential Energy Coefficients'!$B$3+'Residential Energy Coefficients'!$B$4*LN(B_Net_Sq_Ft_per_Unit)+'Residential Energy Coefficients'!$B$9+'Residential Energy Coefficients'!$B$10*LN(B_HH_Income)+'Residential Energy Coefficients'!$B$16*LN(Residential_Energy_Cost)+'Residential Energy Coefficients'!$B$20+'Residential Energy Coefficients'!$B$24*IFERROR(LOOKUP(Metro_Select,Energy_Metro_Lookup,HDD),0)),IF(B_Housing_Type="TH",EXP('Residential Energy Coefficients'!$E$3+'Residential Energy Coefficients'!$E$4*LN(B_Net_Sq_Ft_per_Unit)+'Residential Energy Coefficients'!$E$9+'Residential Energy Coefficients'!$E$16*LN(Residential_Energy_Cost)+'Residential Energy Coefficients'!$E$19+'Residential Energy Coefficients'!$E$20+'Residential Energy Coefficients'!$E$24*IFERROR(LOOKUP(Metro_Select,Energy_Metro_Lookup,HDD),0)),IF(B_Housing_Type="MF",EXP('Residential Energy Coefficients'!$H$3+'Residential Energy Coefficients'!$H$4*LN(B_Net_Sq_Ft_per_Unit)+'Residential Energy Coefficients'!$H$9+IF(B_Pct_Owner=1,'Residential Energy Coefficients'!$H$12,0)+'Residential Energy Coefficients'!$H$16*LN(Residential_Energy_Cost)+'Residential Energy Coefficients'!$H$20+'Residential Energy Coefficients'!$H$24*IFERROR(LOOKUP(Metro_Select,Energy_Metro_Lookup,HDD),0)),IF(B_Hotel_Room_Acre>0,EXP('Residential Energy Coefficients'!$H$3+'Residential Energy Coefficients'!$H$4*LN(B_Hotel_Room_Net)+'Residential Energy Coefficients'!$H$9+'Residential Energy Coefficients'!$H$16*LN(Residential_Energy_Cost)+'Residential Energy Coefficients'!$H$20+'Residential Energy Coefficients'!$H$24*IFERROR(LOOKUP(Metro_Select,Energy_Metro_Lookup,HDD),0)),IF(B_Housing_Type="MH",EXP('Residential Energy Coefficients'!$K$3+'Residential Energy Coefficients'!$K$16*LN(Residential_Energy_Cost)+'Residential Energy Coefficients'!$K$24*IFERROR(LOOKUP(Metro_Select,Energy_Metro_Lookup,HDD),0)),0)))))/1000,0) -> 0 | CK17: =IFERROR(IF(B_Housing_Type="SF",EXP('Residential Energy Coefficients'!$C$3+'Residential Energy Coefficients'!$C$4*LN(B_Net_Sq_Ft_per_Unit)+'Residential Energy Coefficients'!$C$10*LN(B_HH_Income)+'Residential Energy Coefficients'!$C$11*B_HH_Size+'Residential Energy Coefficients'!$C$16*LN(Residential_Energy_Cost)+'Residential Energy Coefficients'!$C$19+'Residential Energy Coefficients'!$C$22+'Residential Energy Coefficients'!$C$25*IFERROR(LOOKUP(Metro_Select,Energy_Metro_Lookup,CDD),0)),IF(B_Housing_Type="TH",EXP('Residential Energy Coefficients'!$F$3+'Residential Energy Coefficients'!$F$4*LN(B_Net_Sq_Ft_per_Unit)+'Residential Energy Coefficients'!$F$10*LN(B_HH_Income)+'Residential Energy Coefficients'!$F$11*B_HH_Size+IF(B_Pct_Owner=1,'Residential Energy Coefficients'!$F$12,0)+'Residential Energy Coefficients'!$F$16*LN(Residential_Energy_Cost)+'Residential Energy Coefficients'!$F$22+'Residential Energy Coefficients'!$F$25*IFERROR(LOOKUP(Metro_Select,Energy_Metro_Lookup,CDD),0)),IF(B_Housing_Type="MF",EXP('Residential Energy Coefficients'!$I$3+'Residential Energy Coefficients'!$I$4*LN(B_Net_Sq_Ft_per_Unit)+'Residential Energy Coefficients'!$I$9+'Residential Energy Coefficients'!$I$11*B_HH_Size+'Residential Energy Coefficients'!$I$16*LN(Residential_Energy_Cost)+'Residential Energy Coefficients'!$I$22+'Residential Energy Coefficients'!$I$25*IFERROR(LOOKUP(Metro_Select,Energy_Metro_Lookup,CDD),0)),IF(B_Hotel_Room_Acre>0,EXP('Residential Energy Coefficients'!$I$3+'Residential Energy Coefficients'!$I$4*LN(B_Hotel_Room_Net)+'Residential Energy Coefficients'!$I$9+'Residential Energy Coefficients'!$I$11*1.25+'Residential Energy Coefficients'!$I$16*LN(Residential_Energy_Cost)+'Residential Energy Coefficients'!$I$22+'Residential Energy Coefficients'!$I$25*IFERROR(LOOKUP(Metro_Select,Energy_Metro_Lookup,CDD),0)),IF(B_Housing_Type="MH",EXP('Residential Energy Coefficients'!$L$3+'Residential Energy Coefficients'!$L$11*B_HH_Size+'Residential Energy Coefficients'!$L$16*LN(Residential_Energy_Cost)+'Residential Energy Coefficients'!$L$22+'Residential Energy Coefficients'!$L$25*IFERROR(LOOKUP(Metro_Select,Energy_Metro_Lookup,CDD),0)),0)))))/1000,0) -> 0 | CL17: =IFERROR(IF(B_Housing_Type="SF",EXP('Residential Energy Coefficients'!$D$3+'Residential Energy Coefficients'!$D$4*LN(B_Net_Sq_Ft_per_Unit)+'Residential Energy Coefficients'!$D$9+'Residential Energy Coefficients'!$D$10*LN(B_HH_Income)+'Residential Energy Coefficients'!$D$11*B_HH_Size+IF(B_Pct_Owner=1,'Residential Energy Coefficients'!$D$12,0)+'Residential Energy Coefficients'!$D$16*LN(Residential_Energy_Cost)),IF(B_Housing_Type="TH",EXP('Residential Energy Coefficients'!$G$3+'Residential Energy Coefficients'!$G$4*LN(B_Net_Sq_Ft_per_Unit)+'Residential Energy Coefficients'!$G$10*LN(B_HH_Income)+'Residential Energy Coefficients'!$G$11*B_HH_Size+'Residential Energy Coefficients'!$G$16*LN(Residential_Energy_Cost)),IF(B_Housing_Type="MF",EXP('Residential Energy Coefficients'!$J$3+'Residential Energy Coefficients'!$J$4*LN(B_Net_Sq_Ft_per_Unit)+'Residential Energy Coefficients'!$J$10*LN(B_HH_Income)+'Residential Energy Coefficients'!$J$11*B_HH_Size+IF(B_Pct_Owner=1,'Residential Energy Coefficients'!$J$12,0)+'Residential Energy Coefficients'!$J$16*LN(Residential_Energy_Cost)+'Residential Energy Coefficients'!$J$19),IF(B_Hotel_Room_Acre>0,EXP('Residential Energy Coefficients'!$J$3+'Residential Energy Coefficients'!$J$4*LN(B_Hotel_Room_Net)+'Residential Energy Coefficients'!$J$16*LN(Residential_Energy_Cost)+'Residential Energy Coefficients'!$J$19),IF(B_Housing_Type="MH",EXP('Residential Energy Coefficients'!$M$3+'Residential Energy Coefficients'!$M$4*LN(B_Net_Sq_Ft_per_Unit)+'Residential Energy Coefficients'!$M$11*B_HH_Size+'Residential Energy Coefficients'!$M$16*LN(Residential_Energy_Cost)+'Residential Energy Coefficients'!$M$19),0)))))/1000,0) -> 0 | CM17: 0 | CN17: =(IFERROR(EXP('Commercial Energy Coefficients'!$B$3+LN(B_RET_Gross_Sq_Ft)*'Commercial Energy Coefficients'!$B$4+'Commercial Energy Coefficients'!$B$11+'Commercial Energy Coefficients'!$B$14+'Commercial Energy Coefficients'!$B$18*LN((B_Ret_Emp_Acre)*(B_Lot_Size/43560))+'Commercial Energy Coefficients'!$B$19*LN(40)+'Commercial Energy Coefficients'!$B$21+'Commercial Energy Coefficients'!$B$22*LN(Commercial_Energy_Cost)+'Commercial Energy Coefficients'!$B$23*IFERROR(LOOKUP(Metro_Select,Energy_Metro_Lookup,HDD),0)),0)+IFERROR(EXP('Commercial Energy Coefficients'!$E$3+LN(B_OFF_Gross_Sq_Ft)*'Commercial Energy Coefficients'!$E$4+'Commercial Energy Coefficients'!$E$11+'Commercial Energy Coefficients'!$E$14+'Commercial Energy Coefficients'!$E$18*LN((B_OFF_Emp_Acre)*(B_Lot_Size/43560))+'Commercial Energy Coefficients'!$E$19*LN(40)+'Commercial Energy Coefficients'!$E$21+'Commercial Energy Coefficients'!$E$22*LN(Commercial_Energy_Cost)+'Commercial Energy Coefficients'!$E$23*IFERROR(LOOKUP(Metro_Select,Energy_Metro_Lookup,HDD),0)),0)+IFERROR(EXP('Commercial Energy Coefficients'!$H$3+LN(B_PUB_Gross_Sq_Ft)*'Commercial Energy Coefficients'!$H$4+'Commercial Energy Coefficients'!$H$11+'Commercial Energy Coefficients'!$H$14+'Commercial Energy Coefficients'!$H$18*LN((B_Pub_Emp_Acre)*(B_Lot_Size/43560))+'Commercial Energy Coefficients'!$H$19*LN(40)+'Commercial Energy Coefficients'!$H$21+'Commercial Energy Coefficients'!$H$22*LN(Commercial_Energy_Cost)+'Commercial Energy Coefficients'!$H$23*IFERROR(LOOKUP(Metro_Select,Energy_Metro_Lookup,HDD),0)),0))/1000 -> 0 | CO17: =(IFERROR(EXP('Commercial Energy Coefficients'!$C$3+LN((B_RET_Gross_Sq_Ft))*'Commercial Energy Coefficients'!$C$4+'Commercial Energy Coefficients'!$C$11+'Commercial Energy Coefficients'!$C$14+'Commercial Energy Coefficients'!$C$18*LN((B_Ret_Emp_Acre)*(B_Lot_Size/43560))+'Commercial Energy Coefficients'!$C$19*LN(40)+'Commercial Energy Coefficients'!$C$21+'Commercial Energy Coefficients'!$C$22*LN(Commercial_Energy_Cost)+'Commercial Energy Coefficients'!$C$24*IFERROR(LOOKUP(Metro_Select,Energy_Metro_Lookup,CDD),0)),0)+IFERROR(EXP('Commercial Energy Coefficients'!$F$3+LN((B_OFF_Gross_Sq_Ft))*'Commercial Energy Coefficients'!$F$4+'Commercial Energy Coefficients'!$F$11+'Commercial Energy Coefficients'!$F$14+'Commercial Energy Coefficients'!$F$18*LN((B_OFF_Emp_Acre)*(B_Lot_Size/43560))+'Commercial Energy Coefficients'!$F$19*LN(40)+'Commercial Energy Coefficients'!$F$21+'Commercial Energy Coefficients'!$F$22*LN(Commercial_Energy_Cost)+'Commercial Energy Coefficients'!$F$24*IFERROR(LOOKUP(Metro_Select,Energy_Metro_Lookup,CDD),0)),0)+IFERROR(EXP('Commercial Energy Coefficients'!$I$3+LN((B_PUB_Gross_Sq_Ft))*'Commercial Energy Coefficients'!$I$4+'Commercial Energy Coefficients'!$I$11+'Commercial Energy Coefficients'!$I$14+'Commercial Energy Coefficients'!$I$18*LN((B_Pub_Emp_Acre)*(B_Lot_Size/43560))+'Commercial Energy Coefficients'!$I$19*LN(40)+'Commercial Energy Coefficients'!$I$21+'Commercial Energy Coefficients'!$I$22*LN(Commercial_Energy_Cost)+'Commercial Energy Coefficients'!$I$24*IFERROR(LOOKUP(Metro_Select,Energy_Metro_Lookup,CDD),0)),0))/1000 -> 0 | CP17: =(IFERROR(EXP('Commercial Energy Coefficients'!$D$3+LN((B_RET_Gross_Sq_Ft))*'Commercial Energy Coefficients'!$D$4+'Commercial Energy Coefficients'!$D$14+'Commercial Energy Coefficients'!$D$18*LN((B_Ret_Emp_Acre)*(B_Lot_Size/43560))+'Commercial Energy Coefficients'!$D$19*LN(40)+'Commercial Energy Coefficients'!$D$21+'Commercial Energy Coefficients'!$D$22*LN(Commercial_Energy_Cost)),0)+IFERROR(EXP('Commercial Energy Coefficients'!$G$3+LN((B_OFF_Gross_Sq_Ft))*'Commercial Energy Coefficients'!$G$4+'Commercial Energy Coefficients'!$G$14+'Commercial Energy Coefficients'!$G$18*LN((B_OFF_Emp_Acre)*(B_Lot_Size/43560))+'Commercial Energy Coefficients'!$G$19*LN(40)+'Commercial Energy Coefficients'!$G$21+'Commercial Energy Coefficients'!$G$22*LN(Commercial_Energy_Cost)),0)+IFERROR(EXP('Commercial Energy Coefficients'!$J$3+LN((B_PUB_Gross_Sq_Ft))*'Commercial Energy Coefficients'!$J$4+'Commercial Energy Coefficients'!$J$14+'Commercial Energy Coefficients'!$J$18*LN((B_Pub_Emp_Acre)*(B_Lot_Size/43560))+'Commercial Energy Coefficients'!$J$19*LN(40)+'Commercial Energy Coefficients'!$J$21+'Commercial Energy Coefficients'!$J$22*LN(Commercial_Energy_Cost)),0))/1000 -> 0 | CQ17: 0 | CR17: 0 | CS17: 0 | CT17: 0 | CU17: 0 | CV17: 0 | CW17: 0 | CX17: 0 | CY17: 0 | CZ17: 0 | DA17: 0 | DB17: 0 | DC17: 0 | DD17: 0 | DE17: 0 | DF17: 0 | DG17: 0 | DH17: 0 | DI17: =IF(B_Housing_Type="",0,IF(B_Housing_Type="MF",'Project Info'!$B$160,IF(B_Housing_Type="TH",'Project Info'!$B$161,IF(AND(B_Housing_Type="SF",B_Net_Sq_Ft_per_Unit>0,B_Net_Sq_Ft_per_Unit<3000),'Project Info'!$B$162,IF(AND(B_Housing_Type="SF",B_Net_Sq_Ft_per_Unit>=3000),'Project Info'!$B$163))))) -> 0 | DJ17: 0 | DK17: 0 | DL17: 0 | DN17: 0 | DO17: 0 | DQ17: 0 | DR17: 0 | DT17: 0 | DY17: 0 | DZ17: 0 | EB17: 0 | EF17: 0 | EG17: 0 | EH17: 0 | EI17: 0 | EU17: 0 | EV17: 0 | EX17: 0 | EY17: 0 | EZ17: 0 | FA17: 0 | FB17: 0 | FC17: 0 | FE17: =Annual_Cooling_degree_days*24*(1/R_conventional_SF_F_hrs_BTU-1/R_green_roof_SF_F_hrs_Btu)/3412*'Building Inputs'!$EU17 -> 0 | FF17: 0 | FG17: =Annual_Heating_degree_days*24*(1/R_conventional_SF_F_hrs_BTU-1/R_green_roof_SF_F_hrs_Btu)*'Building Inputs'!$EU17 -> 0 | FH17: 0 | FI17: =Avg_Annual_NO2_uptake*'Building Inputs'!$EU17 -> 0 | FJ17: =Avg_Annual_O3_uptake*'Building Inputs'!$EU17 -> 0 | FK17: =Avg_Annual_SO2_uptake*'Building Inputs'!$EU17 -> 0 | FL17: =Avg_Annual_PM_10_uptake*'Building Inputs'!$EU17 -> 0 | FM17: 0 | FN17: 0 | FO17: 0 | FP17: 0 | FQ17: 0 | FR17: 0 | FS17: 0 | FT17: 0 | FU17: 0 | FV17: =Avg_amount_of_carbon_sequestered_lbs_SF*'Building Inputs'!$EU17*3.67 -> 0 | FW17: 0 | FX17: 0 | FY17: 0 | FZ17: =Average_annual_rainfall_in*($C17*(1-$E17)+$EM17-$EJ17-$ER17)*$C17/43560*'Building Inputs'!$EN17*144*0.00433 -> 0 | GB17: =Avg_Annual_NO2_uptake*'Building Inputs'!$EV17 -> 0 | GC17: =Avg_Annual_O3_uptake*'Building Inputs'!$EV17 -> 0 | GD17: =Avg_Annual_SO2_uptake*'Building Inputs'!$EV17 -> 0 | GE17: =Avg_Annual_PM_10_uptake*'Building Inputs'!$EV17 -> 0 | GF17: 0 | GG17: 0 | GH17: 0 | GI17: 0 | GJ17: 0 | GK17: =Avg_amount_of_carbon_sequestered_lbs_SF*'Building Inputs'!$EV17*3.67 -> 0 | GL17: 0 | GM17: =Average_annual_rainfall_in*('Building Inputs'!$EX17*'Building Inputs'!$EQ17+'Building Inputs'!$EY17*'Building Inputs'!$ES17)*144*0.00433 -> 0 | GO17: 0 | GQ17: 0 | GR17: 0 | GS17: 0 | GT17: 0 | GU17: 0 | GV17: 0 | GW17: 0 | GX17: 0 | GY17: 0 | GZ17: 0 | HA17: 0 | HB17: 0 | HC17: 0 | HF17: 0 | HG17: 0 | HH17: 0 | HQ17: 0 | HR17: 0 | HS17: 0 | HT17: 0 | HU17: 0 | HV17: 0 | HW17: 0 | HX17: 0
A18: 15 | I18: 0 | K18: 0 | L18: 0 | M18: 0 | N18: 0 | O18: 0 | P18: 0 | Q18: 0 | R18: 0 | AA18: 0 | AD18: 0 | AE18: 0 | AH18: 0 | AK18: 0 | AM18: 0 | AN18: 0 | AO18: 0 | AP18: 0 | AQ18: 0 | AR18: 0 | AS18: 0 | AT18: 0 | AU18: 0 | AV18: 0 | AW18: 0 | AX18: 0 | AY18: 0 | BB18: 0 | BC18: 0 | BF18: 0 | BG18: 0 | BJ18: 0 | BK18: 0 | BN18: 0 | BO18: 0 | BR18: 0 | BS18: 0 | BV18: 0 | BY18: 0 | BZ18: 0 | CA18: 0 | CD18: 0 | CI18: 0 | CJ18: =IFERROR(IF(B_Housing_Type="SF",EXP('Residential Energy Coefficients'!$B$3+'Residential Energy Coefficients'!$B$4*LN(B_Net_Sq_Ft_per_Unit)+'Residential Energy Coefficients'!$B$9+'Residential Energy Coefficients'!$B$10*LN(B_HH_Income)+'Residential Energy Coefficients'!$B$16*LN(Residential_Energy_Cost)+'Residential Energy Coefficients'!$B$20+'Residential Energy Coefficients'!$B$24*IFERROR(LOOKUP(Metro_Select,Energy_Metro_Lookup,HDD),0)),IF(B_Housing_Type="TH",EXP('Residential Energy Coefficients'!$E$3+'Residential Energy Coefficients'!$E$4*LN(B_Net_Sq_Ft_per_Unit)+'Residential Energy Coefficients'!$E$9+'Residential Energy Coefficients'!$E$16*LN(Residential_Energy_Cost)+'Residential Energy Coefficients'!$E$19+'Residential Energy Coefficients'!$E$20+'Residential Energy Coefficients'!$E$24*IFERROR(LOOKUP(Metro_Select,Energy_Metro_Lookup,HDD),0)),IF(B_Housing_Type="MF",EXP('Residential Energy Coefficients'!$H$3+'Residential Energy Coefficients'!$H$4*LN(B_Net_Sq_Ft_per_Unit)+'Residential Energy Coefficients'!$H$9+IF(B_Pct_Owner=1,'Residential Energy Coefficients'!$H$12,0)+'Residential Energy Coefficients'!$H$16*LN(Residential_Energy_Cost)+'Residential Energy Coefficients'!$H$20+'Residential Energy Coefficients'!$H$24*IFERROR(LOOKUP(Metro_Select,Energy_Metro_Lookup,HDD),0)),IF(B_Hotel_Room_Acre>0,EXP('Residential Energy Coefficients'!$H$3+'Residential Energy Coefficients'!$H$4*LN(B_Hotel_Room_Net)+'Residential Energy Coefficients'!$H$9+'Residential Energy Coefficients'!$H$16*LN(Residential_Energy_Cost)+'Residential Energy Coefficients'!$H$20+'Residential Energy Coefficients'!$H$24*IFERROR(LOOKUP(Metro_Select,Energy_Metro_Lookup,HDD),0)),IF(B_Housing_Type="MH",EXP('Residential Energy Coefficients'!$K$3+'Residential Energy Coefficients'!$K$16*LN(Residential_Energy_Cost)+'Residential Energy Coefficients'!$K$24*IFERROR(LOOKUP(Metro_Select,Energy_Metro_Lookup,HDD),0)),0)))))/1000,0) -> 0 | CK18: =IFERROR(IF(B_Housing_Type="SF",EXP('Residential Energy Coefficients'!$C$3+'Residential Energy Coefficients'!$C$4*LN(B_Net_Sq_Ft_per_Unit)+'Residential Energy Coefficients'!$C$10*LN(B_HH_Income)+'Residential Energy Coefficients'!$C$11*B_HH_Size+'Residential Energy Coefficients'!$C$16*LN(Residential_Energy_Cost)+'Residential Energy Coefficients'!$C$19+'Residential Energy Coefficients'!$C$22+'Residential Energy Coefficients'!$C$25*IFERROR(LOOKUP(Metro_Select,Energy_Metro_Lookup,CDD),0)),IF(B_Housing_Type="TH",EXP('Residential Energy Coefficients'!$F$3+'Residential Energy Coefficients'!$F$4*LN(B_Net_Sq_Ft_per_Unit)+'Residential Energy Coefficients'!$F$10*LN(B_HH_Income)+'Residential Energy Coefficients'!$F$11*B_HH_Size+IF(B_Pct_Owner=1,'Residential Energy Coefficients'!$F$12,0)+'Residential Energy Coefficients'!$F$16*LN(Residential_Energy_Cost)+'Residential Energy Coefficients'!$F$22+'Residential Energy Coefficients'!$F$25*IFERROR(LOOKUP(Metro_Select,Energy_Metro_Lookup,CDD),0)),IF(B_Housing_Type="MF",EXP('Residential Energy Coefficients'!$I$3+'Residential Energy Coefficients'!$I$4*LN(B_Net_Sq_Ft_per_Unit)+'Residential Energy Coefficients'!$I$9+'Residential Energy Coefficients'!$I$11*B_HH_Size+'Residential Energy Coefficients'!$I$16*LN(Residential_Energy_Cost)+'Residential Energy Coefficients'!$I$22+'Residential Energy Coefficients'!$I$25*IFERROR(LOOKUP(Metro_Select,Energy_Metro_Lookup,CDD),0)),IF(B_Hotel_Room_Acre>0,EXP('Residential Energy Coefficients'!$I$3+'Residential Energy Coefficients'!$I$4*LN(B_Hotel_Room_Net)+'Residential Energy Coefficients'!$I$9+'Residential Energy Coefficients'!$I$11*1.25+'Residential Energy Coefficients'!$I$16*LN(Residential_Energy_Cost)+'Residential Energy Coefficients'!$I$22+'Residential Energy Coefficients'!$I$25*IFERROR(LOOKUP(Metro_Select,Energy_Metro_Lookup,CDD),0)),IF(B_Housing_Type="MH",EXP('Residential Energy Coefficients'!$L$3+'Residential Energy Coefficients'!$L$11*B_HH_Size+'Residential Energy Coefficients'!$L$16*LN(Residential_Energy_Cost)+'Residential Energy Coefficients'!$L$22+'Residential Energy Coefficients'!$L$25*IFERROR(LOOKUP(Metro_Select,Energy_Metro_Lookup,CDD),0)),0)))))/1000,0) -> 0 | CL18: =IFERROR(IF(B_Housing_Type="SF",EXP('Residential Energy Coefficients'!$D$3+'Residential Energy Coefficients'!$D$4*LN(B_Net_Sq_Ft_per_Unit)+'Residential Energy Coefficients'!$D$9+'Residential Energy Coefficients'!$D$10*LN(B_HH_Income)+'Residential Energy Coefficients'!$D$11*B_HH_Size+IF(B_Pct_Owner=1,'Residential Energy Coefficients'!$D$12,0)+'Residential Energy Coefficients'!$D$16*LN(Residential_Energy_Cost)),IF(B_Housing_Type="TH",EXP('Residential Energy Coefficients'!$G$3+'Residential Energy Coefficients'!$G$4*LN(B_Net_Sq_Ft_per_Unit)+'Residential Energy Coefficients'!$G$10*LN(B_HH_Income)+'Residential Energy Coefficients'!$G$11*B_HH_Size+'Residential Energy Coefficients'!$G$16*LN(Residential_Energy_Cost)),IF(B_Housing_Type="MF",EXP('Residential Energy Coefficients'!$J$3+'Residential Energy Coefficients'!$J$4*LN(B_Net_Sq_Ft_per_Unit)+'Residential Energy Coefficients'!$J$10*LN(B_HH_Income)+'Residential Energy Coefficients'!$J$11*B_HH_Size+IF(B_Pct_Owner=1,'Residential Energy Coefficients'!$J$12,0)+'Residential Energy Coefficients'!$J$16*LN(Residential_Energy_Cost)+'Residential Energy Coefficients'!$J$19),IF(B_Hotel_Room_Acre>0,EXP('Residential Energy Coefficients'!$J$3+'Residential Energy Coefficients'!$J$4*LN(B_Hotel_Room_Net)+'Residential Energy Coefficients'!$J$16*LN(Residential_Energy_Cost)+'Residential Energy Coefficients'!$J$19),IF(B_Housing_Type="MH",EXP('Residential Energy Coefficients'!$M$3+'Residential Energy Coefficients'!$M$4*LN(B_Net_Sq_Ft_per_Unit)+'Residential Energy Coefficients'!$M$11*B_HH_Size+'Residential Energy Coefficients'!$M$16*LN(Residential_Energy_Cost)+'Residential Energy Coefficients'!$M$19),0)))))/1000,0) -> 0 | CM18: 0 | CN18: =(IFERROR(EXP('Commercial Energy Coefficients'!$B$3+LN(B_RET_Gross_Sq_Ft)*'Commercial Energy Coefficients'!$B$4+'Commercial Energy Coefficients'!$B$11+'Commercial Energy Coefficients'!$B$14+'Commercial Energy Coefficients'!$B$18*LN((B_Ret_Emp_Acre)*(B_Lot_Size/43560))+'Commercial Energy Coefficients'!$B$19*LN(40)+'Commercial Energy Coefficients'!$B$21+'Commercial Energy Coefficients'!$B$22*LN(Commercial_Energy_Cost)+'Commercial Energy Coefficients'!$B$23*IFERROR(LOOKUP(Metro_Select,Energy_Metro_Lookup,HDD),0)),0)+IFERROR(EXP('Commercial Energy Coefficients'!$E$3+LN(B_OFF_Gross_Sq_Ft)*'Commercial Energy Coefficients'!$E$4+'Commercial Energy Coefficients'!$E$11+'Commercial Energy Coefficients'!$E$14+'Commercial Energy Coefficients'!$E$18*LN((B_OFF_Emp_Acre)*(B_Lot_Size/43560))+'Commercial Energy Coefficients'!$E$19*LN(40)+'Commercial Energy Coefficients'!$E$21+'Commercial Energy Coefficients'!$E$22*LN(Commercial_Energy_Cost)+'Commercial Energy Coefficients'!$E$23*IFERROR(LOOKUP(Metro_Select,Energy_Metro_Lookup,HDD),0)),0)+IFERROR(EXP('Commercial Energy Coefficients'!$H$3+LN(B_PUB_Gross_Sq_Ft)*'Commercial Energy Coefficients'!$H$4+'Commercial Energy Coefficients'!$H$11+'Commercial Energy Coefficients'!$H$14+'Commercial Energy Coefficients'!$H$18*LN((B_Pub_Emp_Acre)*(B_Lot_Size/43560))+'Commercial Energy Coefficients'!$H$19*LN(40)+'Commercial Energy Coefficients'!$H$21+'Commercial Energy Coefficients'!$H$22*LN(Commercial_Energy_Cost)+'Commercial Energy Coefficients'!$H$23*IFERROR(LOOKUP(Metro_Select,Energy_Metro_Lookup,HDD),0)),0))/1000 -> 0 | CO18: =(IFERROR(EXP('Commercial Energy Coefficients'!$C$3+LN((B_RET_Gross_Sq_Ft))*'Commercial Energy Coefficients'!$C$4+'Commercial Energy Coefficients'!$C$11+'Commercial Energy Coefficients'!$C$14+'Commercial Energy Coefficients'!$C$18*LN((B_Ret_Emp_Acre)*(B_Lot_Size/43560))+'Commercial Energy Coefficients'!$C$19*LN(40)+'Commercial Energy Coefficients'!$C$21+'Commercial Energy Coefficients'!$C$22*LN(Commercial_Energy_Cost)+'Commercial Energy Coefficients'!$C$24*IFERROR(LOOKUP(Metro_Select,Energy_Metro_Lookup,CDD),0)),0)+IFERROR(EXP('Commercial Energy Coefficients'!$F$3+LN((B_OFF_Gross_Sq_Ft))*'Commercial Energy Coefficients'!$F$4+'Commercial Energy Coefficients'!$F$11+'Commercial Energy Coefficients'!$F$14+'Commercial Energy Coefficients'!$F$18*LN((B_OFF_Emp_Acre)*(B_Lot_Size/43560))+'Commercial Energy Coefficients'!$F$19*LN(40)+'Commercial Energy Coefficients'!$F$21+'Commercial Energy Coefficients'!$F$22*LN(Commercial_Energy_Cost)+'Commercial Energy Coefficients'!$F$24*IFERROR(LOOKUP(Metro_Select,Energy_Metro_Lookup,CDD),0)),0)+IFERROR(EXP('Commercial Energy Coefficients'!$I$3+LN((B_PUB_Gross_Sq_Ft))*'Commercial Energy Coefficients'!$I$4+'Commercial Energy Coefficients'!$I$11+'Commercial Energy Coefficients'!$I$14+'Commercial Energy Coefficients'!$I$18*LN((B_Pub_Emp_Acre)*(B_Lot_Size/43560))+'Commercial Energy Coefficients'!$I$19*LN(40)+'Commercial Energy Coefficients'!$I$21+'Commercial Energy Coefficients'!$I$22*LN(Commercial_Energy_Cost)+'Commercial Energy Coefficients'!$I$24*IFERROR(LOOKUP(Metro_Select,Energy_Metro_Lookup,CDD),0)),0))/1000 -> 0 | CP18: =(IFERROR(EXP('Commercial Energy Coefficients'!$D$3+LN((B_RET_Gross_Sq_Ft))*'Commercial Energy Coefficients'!$D$4+'Commercial Energy Coefficients'!$D$14+'Commercial Energy Coefficients'!$D$18*LN((B_Ret_Emp_Acre)*(B_Lot_Size/43560))+'Commercial Energy Coefficients'!$D$19*LN(40)+'Commercial Energy Coefficients'!$D$21+'Commercial Energy Coefficients'!$D$22*LN(Commercial_Energy_Cost)),0)+IFERROR(EXP('Commercial Energy Coefficients'!$G$3+LN((B_OFF_Gross_Sq_Ft))*'Commercial Energy Coefficients'!$G$4+'Commercial Energy Coefficients'!$G$14+'Commercial Energy Coefficients'!$G$18*LN((B_OFF_Emp_Acre)*(B_Lot_Size/43560))+'Commercial Energy Coefficients'!$G$19*LN(40)+'Commercial Energy Coefficients'!$G$21+'Commercial Energy Coefficients'!$G$22*LN(Commercial_Energy_Cost)),0)+IFERROR(EXP('Commercial Energy Coefficients'!$J$3+LN((B_PUB_Gross_Sq_Ft))*'Commercial Energy Coefficients'!$J$4+'Commercial Energy Coefficients'!$J$14+'Commercial Energy Coefficients'!$J$18*LN((B_Pub_Emp_Acre)*(B_Lot_Size/43560))+'Commercial Energy Coefficients'!$J$19*LN(40)+'Commercial Energy Coefficients'!$J$21+'Commercial Energy Coefficients'!$J$22*LN(Commercial_Energy_Cost)),0))/1000 -> 0 | CQ18: 0 | CR18: 0 | CS18: 0 | CT18: 0 | CU18: 0 | CV18: 0 | CW18: 0 | CX18: 0 | CY18: 0 | CZ18: 0 | DA18: 0 | DB18: 0 | DC18: 0 | DD18: 0 | DE18: 0 | DF18: 0 | DG18: 0 | DH18: 0 | DI18: =IF(B_Housing_Type="",0,IF(B_Housing_Type="MF",'Project Info'!$B$160,IF(B_Housing_Type="TH",'Project Info'!$B$161,IF(AND(B_Housing_Type="SF",B_Net_Sq_Ft_per_Unit>0,B_Net_Sq_Ft_per_Unit<3000),'Project Info'!$B$162,IF(AND(B_Housing_Type="SF",B_Net_Sq_Ft_per_Unit>=3000),'Project Info'!$B$163))))) -> 0 | DJ18: 0 | DK18: 0 | DL18: 0 | DN18: 0 | DO18: 0 | DQ18: 0 | DR18: 0 | DT18: 0 | DY18: 0 | DZ18: 0 | EB18: 0 | EF18: 0 | EG18: 0 | EH18: 0 | EI18: 0 | EU18: 0 | EV18: 0 | EX18: 0 | EY18: 0 | EZ18: 0 | FA18: 0 | FB18: 0 | FC18: 0 | FE18: =Annual_Cooling_degree_days*24*(1/R_conventional_SF_F_hrs_BTU-1/R_green_roof_SF_F_hrs_Btu)/3412*'Building Inputs'!$EU18 -> 0 | FF18: 0 | FG18: =Annual_Heating_degree_days*24*(1/R_conventional_SF_F_hrs_BTU-1/R_green_roof_SF_F_hrs_Btu)*'Building Inputs'!$EU18 -> 0 | FH18: 0 | FI18: =Avg_Annual_NO2_uptake*'Building Inputs'!$EU18 -> 0 | FJ18: =Avg_Annual_O3_uptake*'Building Inputs'!$EU18 -> 0 | FK18: =Avg_Annual_SO2_uptake*'Building Inputs'!$EU18 -> 0 | FL18: =Avg_Annual_PM_10_uptake*'Building Inputs'!$EU18 -> 0 | FM18: 0 | FN18: 0 | FO18: 0 | FP18: 0 | FQ18: 0 | FR18: 0 | FS18: 0 | FT18: 0 | FU18: 0 | FV18: =Avg_amount_of_carbon_sequestered_lbs_SF*'Building Inputs'!$EU18*3.67 -> 0 | FW18: 0 | FX18: 0 | FY18: 0 | FZ18: =Average_annual_rainfall_in*($C18*(1-$E18)+$EM18-$EJ18-$ER18)*$C18/43560*'Building Inputs'!$EN18*144*0.00433 -> 0 | GB18: =Avg_Annual_NO2_uptake*'Building Inputs'!$EV18 -> 0 | GC18: =Avg_Annual_O3_uptake*'Building Inputs'!$EV18 -> 0 | GD18: =Avg_Annual_SO2_uptake*'Building Inputs'!$EV18 -> 0 | GE18: =Avg_Annual_PM_10_uptake*'Building Inputs'!$EV18 -> 0 | GF18: 0 | GG18: 0 | GH18: 0 | GI18: 0 | GJ18: 0 | GK18: =Avg_amount_of_carbon_sequestered_lbs_SF*'Building Inputs'!$EV18*3.67 -> 0 | GL18: 0 | GM18: =Average_annual_rainfall_in*('Building Inputs'!$EX18*'Building Inputs'!$EQ18+'Building Inputs'!$EY18*'Building Inputs'!$ES18)*144*0.00433 -> 0 | GO18: 0 | GQ18: 0 | GR18: 0 | GS18: 0 | GT18: 0 | GU18: 0 | GV18: 0 | GW18: 0 | GX18: 0 | GY18: 0 | GZ18: 0 | HA18: 0 | HB18: 0 | HC18: 0 | HF18: 0 | HG18: 0 | HH18: 0 | HQ18: 0 | HR18: 0 | HS18: 0 | HT18: 0 | HU18: 0 | HV18: 0 | HW18: 0 | HX18: 0
A19: 16 | I19: 0 | K19: 0 | L19: 0 | M19: 0 | N19: 0 | O19: 0 | P19: 0 | Q19: 0 | R19: 0 | AA19: 0 | AD19: 0 | AE19: 0 | AH19: 0 | AK19: 0 | AM19: 0 | AN19: 0 | AO19: 0 | AP19: 0 | AQ19: 0 | AR19: 0 | AS19: 0 | AT19: 0 | AU19: 0 | AV19: 0 | AW19: 0 | AX19: 0 | AY19: 0 | BB19: 0 | BC19: 0 | BF19: 0 | BG19: 0 | BJ19: 0 | BK19: 0 | BN19: 0 | BO19: 0 | BR19: 0 | BS19: 0 | BV19: 0 | BY19: 0 | BZ19: 0 | CA19: 0 | CD19: 0 | CI19: 0 | CJ19: =IFERROR(IF(B_Housing_Type="SF",EXP('Residential Energy Coefficients'!$B$3+'Residential Energy Coefficients'!$B$4*LN(B_Net_Sq_Ft_per_Unit)+'Residential Energy Coefficients'!$B$9+'Residential Energy Coefficients'!$B$10*LN(B_HH_Income)+'Residential Energy Coefficients'!$B$16*LN(Residential_Energy_Cost)+'Residential Energy Coefficients'!$B$20+'Residential Energy Coefficients'!$B$24*IFERROR(LOOKUP(Metro_Select,Energy_Metro_Lookup,HDD),0)),IF(B_Housing_Type="TH",EXP('Residential Energy Coefficients'!$E$3+'Residential Energy Coefficients'!$E$4*LN(B_Net_Sq_Ft_per_Unit)+'Residential Energy Coefficients'!$E$9+'Residential Energy Coefficients'!$E$16*LN(Residential_Energy_Cost)+'Residential Energy Coefficients'!$E$19+'Residential Energy Coefficients'!$E$20+'Residential Energy Coefficients'!$E$24*IFERROR(LOOKUP(Metro_Select,Energy_Metro_Lookup,HDD),0)),IF(B_Housing_Type="MF",EXP('Residential Energy Coefficients'!$H$3+'Residential Energy Coefficients'!$H$4*LN(B_Net_Sq_Ft_per_Unit)+'Residential Energy Coefficients'!$H$9+IF(B_Pct_Owner=1,'Residential Energy Coefficients'!$H$12,0)+'Residential Energy Coefficients'!$H$16*LN(Residential_Energy_Cost)+'Residential Energy Coefficients'!$H$20+'Residential Energy Coefficients'!$H$24*IFERROR(LOOKUP(Metro_Select,Energy_Metro_Lookup,HDD),0)),IF(B_Hotel_Room_Acre>0,EXP('Residential Energy Coefficients'!$H$3+'Residential Energy Coefficients'!$H$4*LN(B_Hotel_Room_Net)+'Residential Energy Coefficients'!$H$9+'Residential Energy Coefficients'!$H$16*LN(Residential_Energy_Cost)+'Residential Energy Coefficients'!$H$20+'Residential Energy Coefficients'!$H$24*IFERROR(LOOKUP(Metro_Select,Energy_Metro_Lookup,HDD),0)),IF(B_Housing_Type="MH",EXP('Residential Energy Coefficients'!$K$3+'Residential Energy Coefficients'!$K$16*LN(Residential_Energy_Cost)+'Residential Energy Coefficients'!$K$24*IFERROR(LOOKUP(Metro_Select,Energy_Metro_Lookup,HDD),0)),0)))))/1000,0) -> 0 | CK19: =IFERROR(IF(B_Housing_Type="SF",EXP('Residential Energy Coefficients'!$C$3+'Residential Energy Coefficients'!$C$4*LN(B_Net_Sq_Ft_per_Unit)+'Residential Energy Coefficients'!$C$10*LN(B_HH_Income)+'Residential Energy Coefficients'!$C$11*B_HH_Size+'Residential Energy Coefficients'!$C$16*LN(Residential_Energy_Cost)+'Residential Energy Coefficients'!$C$19+'Residential Energy Coefficients'!$C$22+'Residential Energy Coefficients'!$C$25*IFERROR(LOOKUP(Metro_Select,Energy_Metro_Lookup,CDD),0)),IF(B_Housing_Type="TH",EXP('Residential Energy Coefficients'!$F$3+'Residential Energy Coefficients'!$F$4*LN(B_Net_Sq_Ft_per_Unit)+'Residential Energy Coefficients'!$F$10*LN(B_HH_Income)+'Residential Energy Coefficients'!$F$11*B_HH_Size+IF(B_Pct_Owner=1,'Residential Energy Coefficients'!$F$12,0)+'Residential Energy Coefficients'!$F$16*LN(Residential_Energy_Cost)+'Residential Energy Coefficients'!$F$22+'Residential Energy Coefficients'!$F$25*IFERROR(LOOKUP(Metro_Select,Energy_Metro_Lookup,CDD),0)),IF(B_Housing_Type="MF",EXP('Residential Energy Coefficients'!$I$3+'Residential Energy Coefficients'!$I$4*LN(B_Net_Sq_Ft_per_Unit)+'Residential Energy Coefficients'!$I$9+'Residential Energy Coefficients'!$I$11*B_HH_Size+'Residential Energy Coefficients'!$I$16*LN(Residential_Energy_Cost)+'Residential Energy Coefficients'!$I$22+'Residential Energy Coefficients'!$I$25*IFERROR(LOOKUP(Metro_Select,Energy_Metro_Lookup,CDD),0)),IF(B_Hotel_Room_Acre>0,EXP('Residential Energy Coefficients'!$I$3+'Residential Energy Coefficients'!$I$4*LN(B_Hotel_Room_Net)+'Residential Energy Coefficients'!$I$9+'Residential Energy Coefficients'!$I$11*1.25+'Residential Energy Coefficients'!$I$16*LN(Residential_Energy_Cost)+'Residential Energy Coefficients'!$I$22+'Residential Energy Coefficients'!$I$25*IFERROR(LOOKUP(Metro_Select,Energy_Metro_Lookup,CDD),0)),IF(B_Housing_Type="MH",EXP('Residential Energy Coefficients'!$L$3+'Residential Energy Coefficients'!$L$11*B_HH_Size+'Residential Energy Coefficients'!$L$16*LN(Residential_Energy_Cost)+'Residential Energy Coefficients'!$L$22+'Residential Energy Coefficients'!$L$25*IFERROR(LOOKUP(Metro_Select,Energy_Metro_Lookup,CDD),0)),0)))))/1000,0) -> 0 | CL19: =IFERROR(IF(B_Housing_Type="SF",EXP('Residential Energy Coefficients'!$D$3+'Residential Energy Coefficients'!$D$4*LN(B_Net_Sq_Ft_per_Unit)+'Residential Energy Coefficients'!$D$9+'Residential Energy Coefficients'!$D$10*LN(B_HH_Income)+'Residential Energy Coefficients'!$D$11*B_HH_Size+IF(B_Pct_Owner=1,'Residential Energy Coefficients'!$D$12,0)+'Residential Energy Coefficients'!$D$16*LN(Residential_Energy_Cost)),IF(B_Housing_Type="TH",EXP('Residential Energy Coefficients'!$G$3+'Residential Energy Coefficients'!$G$4*LN(B_Net_Sq_Ft_per_Unit)+'Residential Energy Coefficients'!$G$10*LN(B_HH_Income)+'Residential Energy Coefficients'!$G$11*B_HH_Size+'Residential Energy Coefficients'!$G$16*LN(Residential_Energy_Cost)),IF(B_Housing_Type="MF",EXP('Residential Energy Coefficients'!$J$3+'Residential Energy Coefficients'!$J$4*LN(B_Net_Sq_Ft_per_Unit)+'Residential Energy Coefficients'!$J$10*LN(B_HH_Income)+'Residential Energy Coefficients'!$J$11*B_HH_Size+IF(B_Pct_Owner=1,'Residential Energy Coefficients'!$J$12,0)+'Residential Energy Coefficients'!$J$16*LN(Residential_Energy_Cost)+'Residential Energy Coefficients'!$J$19),IF(B_Hotel_Room_Acre>0,EXP('Residential Energy Coefficients'!$J$3+'Residential Energy Coefficients'!$J$4*LN(B_Hotel_Room_Net)+'Residential Energy Coefficients'!$J$16*LN(Residential_Energy_Cost)+'Residential Energy Coefficients'!$J$19),IF(B_Housing_Type="MH",EXP('Residential Energy Coefficients'!$M$3+'Residential Energy Coefficients'!$M$4*LN(B_Net_Sq_Ft_per_Unit)+'Residential Energy Coefficients'!$M$11*B_HH_Size+'Residential Energy Coefficients'!$M$16*LN(Residential_Energy_Cost)+'Residential Energy Coefficients'!$M$19),0)))))/1000,0) -> 0 | CM19: 0 | CN19: =(IFERROR(EXP('Commercial Energy Coefficients'!$B$3+LN(B_RET_Gross_Sq_Ft)*'Commercial Energy Coefficients'!$B$4+'Commercial Energy Coefficients'!$B$11+'Commercial Energy Coefficients'!$B$14+'Commercial Energy Coefficients'!$B$18*LN((B_Ret_Emp_Acre)*(B_Lot_Size/43560))+'Commercial Energy Coefficients'!$B$19*LN(40)+'Commercial Energy Coefficients'!$B$21+'Commercial Energy Coefficients'!$B$22*LN(Commercial_Energy_Cost)+'Commercial Energy Coefficients'!$B$23*IFERROR(LOOKUP(Metro_Select,Energy_Metro_Lookup,HDD),0)),0)+IFERROR(EXP('Commercial Energy Coefficients'!$E$3+LN(B_OFF_Gross_Sq_Ft)*'Commercial Energy Coefficients'!$E$4+'Commercial Energy Coefficients'!$E$11+'Commercial Energy Coefficients'!$E$14+'Commercial Energy Coefficients'!$E$18*LN((B_OFF_Emp_Acre)*(B_Lot_Size/43560))+'Commercial Energy Coefficients'!$E$19*LN(40)+'Commercial Energy Coefficients'!$E$21+'Commercial Energy Coefficients'!$E$22*LN(Commercial_Energy_Cost)+'Commercial Energy Coefficients'!$E$23*IFERROR(LOOKUP(Metro_Select,Energy_Metro_Lookup,HDD),0)),0)+IFERROR(EXP('Commercial Energy Coefficients'!$H$3+LN(B_PUB_Gross_Sq_Ft)*'Commercial Energy Coefficients'!$H$4+'Commercial Energy Coefficients'!$H$11+'Commercial Energy Coefficients'!$H$14+'Commercial Energy Coefficients'!$H$18*LN((B_Pub_Emp_Acre)*(B_Lot_Size/43560))+'Commercial Energy Coefficients'!$H$19*LN(40)+'Commercial Energy Coefficients'!$H$21+'Commercial Energy Coefficients'!$H$22*LN(Commercial_Energy_Cost)+'Commercial Energy Coefficients'!$H$23*IFERROR(LOOKUP(Metro_Select,Energy_Metro_Lookup,HDD),0)),0))/1000 -> 0 | CO19: =(IFERROR(EXP('Commercial Energy Coefficients'!$C$3+LN((B_RET_Gross_Sq_Ft))*'Commercial Energy Coefficients'!$C$4+'Commercial Energy Coefficients'!$C$11+'Commercial Energy Coefficients'!$C$14+'Commercial Energy Coefficients'!$C$18*LN((B_Ret_Emp_Acre)*(B_Lot_Size/43560))+'Commercial Energy Coefficients'!$C$19*LN(40)+'Commercial Energy Coefficients'!$C$21+'Commercial Energy Coefficients'!$C$22*LN(Commercial_Energy_Cost)+'Commercial Energy Coefficients'!$C$24*IFERROR(LOOKUP(Metro_Select,Energy_Metro_Lookup,CDD),0)),0)+IFERROR(EXP('Commercial Energy Coefficients'!$F$3+LN((B_OFF_Gross_Sq_Ft))*'Commercial Energy Coefficients'!$F$4+'Commercial Energy Coefficients'!$F$11+'Commercial Energy Coefficients'!$F$14+'Commercial Energy Coefficients'!$F$18*LN((B_OFF_Emp_Acre)*(B_Lot_Size/43560))+'Commercial Energy Coefficients'!$F$19*LN(40)+'Commercial Energy Coefficients'!$F$21+'Commercial Energy Coefficients'!$F$22*LN(Commercial_Energy_Cost)+'Commercial Energy Coefficients'!$F$24*IFERROR(LOOKUP(Metro_Select,Energy_Metro_Lookup,CDD),0)),0)+IFERROR(EXP('Commercial Energy Coefficients'!$I$3+LN((B_PUB_Gross_Sq_Ft))*'Commercial Energy Coefficients'!$I$4+'Commercial Energy Coefficients'!$I$11+'Commercial Energy Coefficients'!$I$14+'Commercial Energy Coefficients'!$I$18*LN((B_Pub_Emp_Acre)*(B_Lot_Size/43560))+'Commercial Energy Coefficients'!$I$19*LN(40)+'Commercial Energy Coefficients'!$I$21+'Commercial Energy Coefficients'!$I$22*LN(Commercial_Energy_Cost)+'Commercial Energy Coefficients'!$I$24*IFERROR(LOOKUP(Metro_Select,Energy_Metro_Lookup,CDD),0)),0))/1000 -> 0 | CP19: =(IFERROR(EXP('Commercial Energy Coefficients'!$D$3+LN((B_RET_Gross_Sq_Ft))*'Commercial Energy Coefficients'!$D$4+'Commercial Energy Coefficients'!$D$14+'Commercial Energy Coefficients'!$D$18*LN((B_Ret_Emp_Acre)*(B_Lot_Size/43560))+'Commercial Energy Coefficients'!$D$19*LN(40)+'Commercial Energy Coefficients'!$D$21+'Commercial Energy Coefficients'!$D$22*LN(Commercial_Energy_Cost)),0)+IFERROR(EXP('Commercial Energy Coefficients'!$G$3+LN((B_OFF_Gross_Sq_Ft))*'Commercial Energy Coefficients'!$G$4+'Commercial Energy Coefficients'!$G$14+'Commercial Energy Coefficients'!$G$18*LN((B_OFF_Emp_Acre)*(B_Lot_Size/43560))+'Commercial Energy Coefficients'!$G$19*LN(40)+'Commercial Energy Coefficients'!$G$21+'Commercial Energy Coefficients'!$G$22*LN(Commercial_Energy_Cost)),0)+IFERROR(EXP('Commercial Energy Coefficients'!$J$3+LN((B_PUB_Gross_Sq_Ft))*'Commercial Energy Coefficients'!$J$4+'Commercial Energy Coefficients'!$J$14+'Commercial Energy Coefficients'!$J$18*LN((B_Pub_Emp_Acre)*(B_Lot_Size/43560))+'Commercial Energy Coefficients'!$J$19*LN(40)+'Commercial Energy Coefficients'!$J$21+'Commercial Energy Coefficients'!$J$22*LN(Commercial_Energy_Cost)),0))/1000 -> 0 | CQ19: 0 | CR19: 0 | CS19: 0 | CT19: 0 | CU19: 0 | CV19: 0 | CW19: 0 | CX19: 0 | CY19: 0 | CZ19: 0 | DA19: 0 | DB19: 0 | DC19: 0 | DD19: 0 | DE19: 0 | DF19: 0 | DG19: 0 | DH19: 0 | DI19: =IF(B_Housing_Type="",0,IF(B_Housing_Type="MF",'Project Info'!$B$160,IF(B_Housing_Type="TH",'Project Info'!$B$161,IF(AND(B_Housing_Type="SF",B_Net_Sq_Ft_per_Unit>0,B_Net_Sq_Ft_per_Unit<3000),'Project Info'!$B$162,IF(AND(B_Housing_Type="SF",B_Net_Sq_Ft_per_Unit>=3000),'Project Info'!$B$163))))) -> 0 | DJ19: 0 | DK19: 0 | DL19: 0 | DN19: 0 | DO19: 0 | DQ19: 0 | DR19: 0 | DT19: 0 | DY19: 0 | DZ19: 0 | EB19: 0 | EF19: 0 | EG19: 0 | EH19: 0 | EI19: 0 | EU19: 0 | EV19: 0 | EX19: 0 | EY19: 0 | EZ19: 0 | FA19: 0 | FB19: 0 | FC19: 0 | FE19: =Annual_Cooling_degree_days*24*(1/R_conventional_SF_F_hrs_BTU-1/R_green_roof_SF_F_hrs_Btu)/3412*'Building Inputs'!$EU19 -> 0 | FF19: 0 | FG19: =Annual_Heating_degree_days*24*(1/R_conventional_SF_F_hrs_BTU-1/R_green_roof_SF_F_hrs_Btu)*'Building Inputs'!$EU19 -> 0 | FH19: 0 | FI19: =Avg_Annual_NO2_uptake*'Building Inputs'!$EU19 -> 0 | FJ19: =Avg_Annual_O3_uptake*'Building Inputs'!$EU19 -> 0 | FK19: =Avg_Annual_SO2_uptake*'Building Inputs'!$EU19 -> 0 | FL19: =Avg_Annual_PM_10_uptake*'Building Inputs'!$EU19 -> 0 | FM19: 0 | FN19: 0 | FO19: 0 | FP19: 0 | FQ19: 0 | FR19: 0 | FS19: 0 | FT19: 0 | FU19: 0 | FV19: =Avg_amount_of_carbon_sequestered_lbs_SF*'Building Inputs'!$EU19*3.67 -> 0 | FW19: 0 | FX19: 0 | FY19: 0 | FZ19: =Average_annual_rainfall_in*($C19*(1-$E19)+$EM19-$EJ19-$ER19)*$C19/43560*'Building Inputs'!$EN19*144*0.00433 -> 0 | GB19: =Avg_Annual_NO2_uptake*'Building Inputs'!$EV19 -> 0 | GC19: =Avg_Annual_O3_uptake*'Building Inputs'!$EV19 -> 0 | GD19: =Avg_Annual_SO2_uptake*'Building Inputs'!$EV19 -> 0 | GE19: =Avg_Annual_PM_10_uptake*'Building Inputs'!$EV19 -> 0 | GF19: 0 | GG19: 0 | GH19: 0 | GI19: 0 | GJ19: 0 | GK19: =Avg_amount_of_carbon_sequestered_lbs_SF*'Building Inputs'!$EV19*3.67 -> 0 | GL19: 0 | GM19: =Average_annual_rainfall_in*('Building Inputs'!$EX19*'Building Inputs'!$EQ19+'Building Inputs'!$EY19*'Building Inputs'!$ES19)*144*0.00433 -> 0 | GO19: 0 | GQ19: 0 | GR19: 0 | GS19: 0 | GT19: 0 | GU19: 0 | GV19: 0 | GW19: 0 | GX19: 0 | GY19: 0 | GZ19: 0 | HA19: 0 | HB19: 0 | HC19: 0 | HF19: 0 | HG19: 0 | HH19: 0 | HQ19: 0 | HR19: 0 | HS19: 0 | HT19: 0 | HU19: 0 | HV19: 0 | HW19: 0 | HX19: 0
A20: 17 | I20: 0 | K20: 0 | L20: 0 | M20: 0 | N20: 0 | O20: 0 | P20: 0 | Q20: 0 | R20: 0 | AA20: 0 | AD20: 0 | AE20: 0 | AH20: 0 | AK20: 0 | AM20: 0 | AN20: 0 | AO20: 0 | AP20: 0 | AQ20: 0 | AR20: 0 | AS20: 0 | AT20: 0 | AU20: 0 | AV20: 0 | AW20: 0 | AX20: 0 | AY20: 0 | BB20: 0 | BC20: 0 | BF20: 0 | BG20: 0 | BJ20: 0 | BK20: 0 | BN20: 0 | BO20: 0 | BR20: 0 | BS20: 0 | BV20: 0 | BY20: 0 | BZ20: 0 | CA20: 0 | CD20: 0 | CI20: 0 | CJ20: =IFERROR(IF(B_Housing_Type="SF",EXP('Residential Energy Coefficients'!$B$3+'Residential Energy Coefficients'!$B$4*LN(B_Net_Sq_Ft_per_Unit)+'Residential Energy Coefficients'!$B$9+'Residential Energy Coefficients'!$B$10*LN(B_HH_Income)+'Residential Energy Coefficients'!$B$16*LN(Residential_Energy_Cost)+'Residential Energy Coefficients'!$B$20+'Residential Energy Coefficients'!$B$24*IFERROR(LOOKUP(Metro_Select,Energy_Metro_Lookup,HDD),0)),IF(B_Housing_Type="TH",EXP('Residential Energy Coefficients'!$E$3+'Residential Energy Coefficients'!$E$4*LN(B_Net_Sq_Ft_per_Unit)+'Residential Energy Coefficients'!$E$9+'Residential Energy Coefficients'!$E$16*LN(Residential_Energy_Cost)+'Residential Energy Coefficients'!$E$19+'Residential Energy Coefficients'!$E$20+'Residential Energy Coefficients'!$E$24*IFERROR(LOOKUP(Metro_Select,Energy_Metro_Lookup,HDD),0)),IF(B_Housing_Type="MF",EXP('Residential Energy Coefficients'!$H$3+'Residential Energy Coefficients'!$H$4*LN(B_Net_Sq_Ft_per_Unit)+'Residential Energy Coefficients'!$H$9+IF(B_Pct_Owner=1,'Residential Energy Coefficients'!$H$12,0)+'Residential Energy Coefficients'!$H$16*LN(Residential_Energy_Cost)+'Residential Energy Coefficients'!$H$20+'Residential Energy Coefficients'!$H$24*IFERROR(LOOKUP(Metro_Select,Energy_Metro_Lookup,HDD),0)),IF(B_Hotel_Room_Acre>0,EXP('Residential Energy Coefficients'!$H$3+'Residential Energy Coefficients'!$H$4*LN(B_Hotel_Room_Net)+'Residential Energy Coefficients'!$H$9+'Residential Energy Coefficients'!$H$16*LN(Residential_Energy_Cost)+'Residential Energy Coefficients'!$H$20+'Residential Energy Coefficients'!$H$24*IFERROR(LOOKUP(Metro_Select,Energy_Metro_Lookup,HDD),0)),IF(B_Housing_Type="MH",EXP('Residential Energy Coefficients'!$K$3+'Residential Energy Coefficients'!$K$16*LN(Residential_Energy_Cost)+'Residential Energy Coefficients'!$K$24*IFERROR(LOOKUP(Metro_Select,Energy_Metro_Lookup,HDD),0)),0)))))/1000,0) -> 0 | CK20: =IFERROR(IF(B_Housing_Type="SF",EXP('Residential Energy Coefficients'!$C$3+'Residential Energy Coefficients'!$C$4*LN(B_Net_Sq_Ft_per_Unit)+'Residential Energy Coefficients'!$C$10*LN(B_HH_Income)+'Residential Energy Coefficients'!$C$11*B_HH_Size+'Residential Energy Coefficients'!$C$16*LN(Residential_Energy_Cost)+'Residential Energy Coefficients'!$C$19+'Residential Energy Coefficients'!$C$22+'Residential Energy Coefficients'!$C$25*IFERROR(LOOKUP(Metro_Select,Energy_Metro_Lookup,CDD),0)),IF(B_Housing_Type="TH",EXP('Residential Energy Coefficients'!$F$3+'Residential Energy Coefficients'!$F$4*LN(B_Net_Sq_Ft_per_Unit)+'Residential Energy Coefficients'!$F$10*LN(B_HH_Income)+'Residential Energy Coefficients'!$F$11*B_HH_Size+IF(B_Pct_Owner=1,'Residential Energy Coefficients'!$F$12,0)+'Residential Energy Coefficients'!$F$16*LN(Residential_Energy_Cost)+'Residential Energy Coefficients'!$F$22+'Residential Energy Coefficients'!$F$25*IFERROR(LOOKUP(Metro_Select,Energy_Metro_Lookup,CDD),0)),IF(B_Housing_Type="MF",EXP('Residential Energy Coefficients'!$I$3+'Residential Energy Coefficients'!$I$4*LN(B_Net_Sq_Ft_per_Unit)+'Residential Energy Coefficients'!$I$9+'Residential Energy Coefficients'!$I$11*B_HH_Size+'Residential Energy Coefficients'!$I$16*LN(Residential_Energy_Cost)+'Residential Energy Coefficients'!$I$22+'Residential Energy Coefficients'!$I$25*IFERROR(LOOKUP(Metro_Select,Energy_Metro_Lookup,CDD),0)),IF(B_Hotel_Room_Acre>0,EXP('Residential Energy Coefficients'!$I$3+'Residential Energy Coefficients'!$I$4*LN(B_Hotel_Room_Net)+'Residential Energy Coefficients'!$I$9+'Residential Energy Coefficients'!$I$11*1.25+'Residential Energy Coefficients'!$I$16*LN(Residential_Energy_Cost)+'Residential Energy Coefficients'!$I$22+'Residential Energy Coefficients'!$I$25*IFERROR(LOOKUP(Metro_Select,Energy_Metro_Lookup,CDD),0)),IF(B_Housing_Type="MH",EXP('Residential Energy Coefficients'!$L$3+'Residential Energy Coefficients'!$L$11*B_HH_Size+'Residential Energy Coefficients'!$L$16*LN(Residential_Energy_Cost)+'Residential Energy Coefficients'!$L$22+'Residential Energy Coefficients'!$L$25*IFERROR(LOOKUP(Metro_Select,Energy_Metro_Lookup,CDD),0)),0)))))/1000,0) -> 0 | CL20: =IFERROR(IF(B_Housing_Type="SF",EXP('Residential Energy Coefficients'!$D$3+'Residential Energy Coefficients'!$D$4*LN(B_Net_Sq_Ft_per_Unit)+'Residential Energy Coefficients'!$D$9+'Residential Energy Coefficients'!$D$10*LN(B_HH_Income)+'Residential Energy Coefficients'!$D$11*B_HH_Size+IF(B_Pct_Owner=1,'Residential Energy Coefficients'!$D$12,0)+'Residential Energy Coefficients'!$D$16*LN(Residential_Energy_Cost)),IF(B_Housing_Type="TH",EXP('Residential Energy Coefficients'!$G$3+'Residential Energy Coefficients'!$G$4*LN(B_Net_Sq_Ft_per_Unit)+'Residential Energy Coefficients'!$G$10*LN(B_HH_Income)+'Residential Energy Coefficients'!$G$11*B_HH_Size+'Residential Energy Coefficients'!$G$16*LN(Residential_Energy_Cost)),IF(B_Housing_Type="MF",EXP('Residential Energy Coefficients'!$J$3+'Residential Energy Coefficients'!$J$4*LN(B_Net_Sq_Ft_per_Unit)+'Residential Energy Coefficients'!$J$10*LN(B_HH_Income)+'Residential Energy Coefficients'!$J$11*B_HH_Size+IF(B_Pct_Owner=1,'Residential Energy Coefficients'!$J$12,0)+'Residential Energy Coefficients'!$J$16*LN(Residential_Energy_Cost)+'Residential Energy Coefficients'!$J$19),IF(B_Hotel_Room_Acre>0,EXP('Residential Energy Coefficients'!$J$3+'Residential Energy Coefficients'!$J$4*LN(B_Hotel_Room_Net)+'Residential Energy Coefficients'!$J$16*LN(Residential_Energy_Cost)+'Residential Energy Coefficients'!$J$19),IF(B_Housing_Type="MH",EXP('Residential Energy Coefficients'!$M$3+'Residential Energy Coefficients'!$M$4*LN(B_Net_Sq_Ft_per_Unit)+'Residential Energy Coefficients'!$M$11*B_HH_Size+'Residential Energy Coefficients'!$M$16*LN(Residential_Energy_Cost)+'Residential Energy Coefficients'!$M$19),0)))))/1000,0) -> 0 | CM20: 0 | CN20: =(IFERROR(EXP('Commercial Energy Coefficients'!$B$3+LN(B_RET_Gross_Sq_Ft)*'Commercial Energy Coefficients'!$B$4+'Commercial Energy Coefficients'!$B$11+'Commercial Energy Coefficients'!$B$14+'Commercial Energy Coefficients'!$B$18*LN((B_Ret_Emp_Acre)*(B_Lot_Size/43560))+'Commercial Energy Coefficients'!$B$19*LN(40)+'Commercial Energy Coefficients'!$B$21+'Commercial Energy Coefficients'!$B$22*LN(Commercial_Energy_Cost)+'Commercial Energy Coefficients'!$B$23*IFERROR(LOOKUP(Metro_Select,Energy_Metro_Lookup,HDD),0)),0)+IFERROR(EXP('Commercial Energy Coefficients'!$E$3+LN(B_OFF_Gross_Sq_Ft)*'Commercial Energy Coefficients'!$E$4+'Commercial Energy Coefficients'!$E$11+'Commercial Energy Coefficients'!$E$14+'Commercial Energy Coefficients'!$E$18*LN((B_OFF_Emp_Acre)*(B_Lot_Size/43560))+'Commercial Energy Coefficients'!$E$19*LN(40)+'Commercial Energy Coefficients'!$E$21+'Commercial Energy Coefficients'!$E$22*LN(Commercial_Energy_Cost)+'Commercial Energy Coefficients'!$E$23*IFERROR(LOOKUP(Metro_Select,Energy_Metro_Lookup,HDD),0)),0)+IFERROR(EXP('Commercial Energy Coefficients'!$H$3+LN(B_PUB_Gross_Sq_Ft)*'Commercial Energy Coefficients'!$H$4+'Commercial Energy Coefficients'!$H$11+'Commercial Energy Coefficients'!$H$14+'Commercial Energy Coefficients'!$H$18*LN((B_Pub_Emp_Acre)*(B_Lot_Size/43560))+'Commercial Energy Coefficients'!$H$19*LN(40)+'Commercial Energy Coefficients'!$H$21+'Commercial Energy Coefficients'!$H$22*LN(Commercial_Energy_Cost)+'Commercial Energy Coefficients'!$H$23*IFERROR(LOOKUP(Metro_Select,Energy_Metro_Lookup,HDD),0)),0))/1000 -> 0 | CO20: =(IFERROR(EXP('Commercial Energy Coefficients'!$C$3+LN((B_RET_Gross_Sq_Ft))*'Commercial Energy Coefficients'!$C$4+'Commercial Energy Coefficients'!$C$11+'Commercial Energy Coefficients'!$C$14+'Commercial Energy Coefficients'!$C$18*LN((B_Ret_Emp_Acre)*(B_Lot_Size/43560))+'Commercial Energy Coefficients'!$C$19*LN(40)+'Commercial Energy Coefficients'!$C$21+'Commercial Energy Coefficients'!$C$22*LN(Commercial_Energy_Cost)+'Commercial Energy Coefficients'!$C$24*IFERROR(LOOKUP(Metro_Select,Energy_Metro_Lookup,CDD),0)),0)+IFERROR(EXP('Commercial Energy Coefficients'!$F$3+LN((B_OFF_Gross_Sq_Ft))*'Commercial Energy Coefficients'!$F$4+'Commercial Energy Coefficients'!$F$11+'Commercial Energy Coefficients'!$F$14+'Commercial Energy Coefficients'!$F$18*LN((B_OFF_Emp_Acre)*(B_Lot_Size/43560))+'Commercial Energy Coefficients'!$F$19*LN(40)+'Commercial Energy Coefficients'!$F$21+'Commercial Energy Coefficients'!$F$22*LN(Commercial_Energy_Cost)+'Commercial Energy Coefficients'!$F$24*IFERROR(LOOKUP(Metro_Select,Energy_Metro_Lookup,CDD),0)),0)+IFERROR(EXP('Commercial Energy Coefficients'!$I$3+LN((B_PUB_Gross_Sq_Ft))*'Commercial Energy Coefficients'!$I$4+'Commercial Energy Coefficients'!$I$11+'Commercial Energy Coefficients'!$I$14+'Commercial Energy Coefficients'!$I$18*LN((B_Pub_Emp_Acre)*(B_Lot_Size/43560))+'Commercial Energy Coefficients'!$I$19*LN(40)+'Commercial Energy Coefficients'!$I$21+'Commercial Energy Coefficients'!$I$22*LN(Commercial_Energy_Cost)+'Commercial Energy Coefficients'!$I$24*IFERROR(LOOKUP(Metro_Select,Energy_Metro_Lookup,CDD),0)),0))/1000 -> 0 | CP20: =(IFERROR(EXP('Commercial Energy Coefficients'!$D$3+LN((B_RET_Gross_Sq_Ft))*'Commercial Energy Coefficients'!$D$4+'Commercial Energy Coefficients'!$D$14+'Commercial Energy Coefficients'!$D$18*LN((B_Ret_Emp_Acre)*(B_Lot_Size/43560))+'Commercial Energy Coefficients'!$D$19*LN(40)+'Commercial Energy Coefficients'!$D$21+'Commercial Energy Coefficients'!$D$22*LN(Commercial_Energy_Cost)),0)+IFERROR(EXP('Commercial Energy Coefficients'!$G$3+LN((B_OFF_Gross_Sq_Ft))*'Commercial Energy Coefficients'!$G$4+'Commercial Energy Coefficients'!$G$14+'Commercial Energy Coefficients'!$G$18*LN((B_OFF_Emp_Acre)*(B_Lot_Size/43560))+'Commercial Energy Coefficients'!$G$19*LN(40)+'Commercial Energy Coefficients'!$G$21+'Commercial Energy Coefficients'!$G$22*LN(Commercial_Energy_Cost)),0)+IFERROR(EXP('Commercial Energy Coefficients'!$J$3+LN((B_PUB_Gross_Sq_Ft))*'Commercial Energy Coefficients'!$J$4+'Commercial Energy Coefficients'!$J$14+'Commercial Energy Coefficients'!$J$18*LN((B_Pub_Emp_Acre)*(B_Lot_Size/43560))+'Commercial Energy Coefficients'!$J$19*LN(40)+'Commercial Energy Coefficients'!$J$21+'Commercial Energy Coefficients'!$J$22*LN(Commercial_Energy_Cost)),0))/1000 -> 0 | CQ20: 0 | CR20: 0 | CS20: 0 | CT20: 0 | CU20: 0 | CV20: 0 | CW20: 0 | CX20: 0 | CY20: 0 | CZ20: 0 | DA20: 0 | DB20: 0 | DC20: 0 | DD20: 0 | DE20: 0 | DF20: 0 | DG20: 0 | DH20: 0 | DI20: =IF(B_Housing_Type="",0,IF(B_Housing_Type="MF",'Project Info'!$B$160,IF(B_Housing_Type="TH",'Project Info'!$B$161,IF(AND(B_Housing_Type="SF",B_Net_Sq_Ft_per_Unit>0,B_Net_Sq_Ft_per_Unit<3000),'Project Info'!$B$162,IF(AND(B_Housing_Type="SF",B_Net_Sq_Ft_per_Unit>=3000),'Project Info'!$B$163))))) -> 0 | DJ20: 0 | DK20: 0 | DL20: 0 | DN20: 0 | DO20: 0 | DQ20: 0 | DR20: 0 | DT20: 0 | DY20: 0 | DZ20: 0 | EB20: 0 | EF20: 0 | EG20: 0 | EH20: 0 | EI20: 0 | EU20: 0 | EV20: 0 | EX20: 0 | EY20: 0 | EZ20: 0 | FA20: 0 | FB20: 0 | FC20: 0 | FE20: =Annual_Cooling_degree_days*24*(1/R_conventional_SF_F_hrs_BTU-1/R_green_roof_SF_F_hrs_Btu)/3412*'Building Inputs'!$EU20 -> 0 | FF20: 0 | FG20: =Annual_Heating_degree_days*24*(1/R_conventional_SF_F_hrs_BTU-1/R_green_roof_SF_F_hrs_Btu)*'Building Inputs'!$EU20 -> 0 | FH20: 0 | FI20: =Avg_Annual_NO2_uptake*'Building Inputs'!$EU20 -> 0 | FJ20: =Avg_Annual_O3_uptake*'Building Inputs'!$EU20 -> 0 | FK20: =Avg_Annual_SO2_uptake*'Building Inputs'!$EU20 -> 0 | FL20: =Avg_Annual_PM_10_uptake*'Building Inputs'!$EU20 -> 0 | FM20: 0 | FN20: 0 | FO20: 0 | FP20: 0 | FQ20: 0 | FR20: 0 | FS20: 0 | FT20: 0 | FU20: 0 | FV20: =Avg_amount_of_carbon_sequestered_lbs_SF*'Building Inputs'!$EU20*3.67 -> 0 | FW20: 0 | FX20: 0 | FY20: 0 | FZ20: =Average_annual_rainfall_in*($C20*(1-$E20)+$EM20-$EJ20-$ER20)*$C20/43560*'Building Inputs'!$EN20*144*0.00433 -> 0 | GB20: =Avg_Annual_NO2_uptake*'Building Inputs'!$EV20 -> 0 | GC20: =Avg_Annual_O3_uptake*'Building Inputs'!$EV20 -> 0 | GD20: =Avg_Annual_SO2_uptake*'Building Inputs'!$EV20 -> 0 | GE20: =Avg_Annual_PM_10_uptake*'Building Inputs'!$EV20 -> 0 | GF20: 0 | GG20: 0 | GH20: 0 | GI20: 0 | GJ20: 0 | GK20: =Avg_amount_of_carbon_sequestered_lbs_SF*'Building Inputs'!$EV20*3.67 -> 0 | GL20: 0 | GM20: =Average_annual_rainfall_in*('Building Inputs'!$EX20*'Building Inputs'!$EQ20+'Building Inputs'!$EY20*'Building Inputs'!$ES20)*144*0.00433 -> 0 | GO20: 0 | GQ20: 0 | GR20: 0 | GS20: 0 | GT20: 0 | GU20: 0 | GV20: 0 | GW20: 0 | GX20: 0 | GY20: 0 | GZ20: 0 | HA20: 0 | HB20: 0 | HC20: 0 | HF20: 0 | HG20: 0 | HH20: 0 | HQ20: =HI20*$C20/43560 -> 0 | HR20: 0 | HS20: 0 | HT20: 0 | HU20: 0 | HV20: 0 | HW20: 0 | HX20: 0
A21: 18 | I21: 0 | K21: 0 | L21: 0 | M21: 0 | N21: 0 | O21: 0 | P21: 0 | Q21: 0 | R21: 0 | AA21: 0 | AD21: 0 | AE21: 0 | AH21: 0 | AK21: 0 | AM21: 0 | AN21: 0 | AO21: 0 | AP21: 0 | AQ21: 0 | AR21: 0 | AS21: 0 | AT21: 0 | AU21: 0 | AV21: 0 | AW21: 0 | AX21: 0 | AY21: 0 | BB21: 0 | BC21: 0 | BF21: 0 | BG21: 0 | BJ21: 0 | BK21: 0 | BN21: 0 | BO21: 0 | BR21: 0 | BS21: 0 | BV21: 0 | BY21: 0 | BZ21: 0 | CA21: 0 | CD21: 0 | CI21: 0 | CJ21: =IFERROR(IF(B_Housing_Type="SF",EXP('Residential Energy Coefficients'!$B$3+'Residential Energy Coefficients'!$B$4*LN(B_Net_Sq_Ft_per_Unit)+'Residential Energy Coefficients'!$B$9+'Residential Energy Coefficients'!$B$10*LN(B_HH_Income)+'Residential Energy Coefficients'!$B$16*LN(Residential_Energy_Cost)+'Residential Energy Coefficients'!$B$20+'Residential Energy Coefficients'!$B$24*IFERROR(LOOKUP(Metro_Select,Energy_Metro_Lookup,HDD),0)),IF(B_Housing_Type="TH",EXP('Residential Energy Coefficients'!$E$3+'Residential Energy Coefficients'!$E$4*LN(B_Net_Sq_Ft_per_Unit)+'Residential Energy Coefficients'!$E$9+'Residential Energy Coefficients'!$E$16*LN(Residential_Energy_Cost)+'Residential Energy Coefficients'!$E$19+'Residential Energy Coefficients'!$E$20+'Residential Energy Coefficients'!$E$24*IFERROR(LOOKUP(Metro_Select,Energy_Metro_Lookup,HDD),0)),IF(B_Housing_Type="MF",EXP('Residential Energy Coefficients'!$H$3+'Residential Energy Coefficients'!$H$4*LN(B_Net_Sq_Ft_per_Unit)+'Residential Energy Coefficients'!$H$9+IF(B_Pct_Owner=1,'Residential Energy Coefficients'!$H$12,0)+'Residential Energy Coefficients'!$H$16*LN(Residential_Energy_Cost)+'Residential Energy Coefficients'!$H$20+'Residential Energy Coefficients'!$H$24*IFERROR(LOOKUP(Metro_Select,Energy_Metro_Lookup,HDD),0)),IF(B_Hotel_Room_Acre>0,EXP('Residential Energy Coefficients'!$H$3+'Residential Energy Coefficients'!$H$4*LN(B_Hotel_Room_Net)+'Residential Energy Coefficients'!$H$9+'Residential Energy Coefficients'!$H$16*LN(Residential_Energy_Cost)+'Residential Energy Coefficients'!$H$20+'Residential Energy Coefficients'!$H$24*IFERROR(LOOKUP(Metro_Select,Energy_Metro_Lookup,HDD),0)),IF(B_Housing_Type="MH",EXP('Residential Energy Coefficients'!$K$3+'Residential Energy Coefficients'!$K$16*LN(Residential_Energy_Cost)+'Residential Energy Coefficients'!$K$24*IFERROR(LOOKUP(Metro_Select,Energy_Metro_Lookup,HDD),0)),0)))))/1000,0) -> 0 | CK21: =IFERROR(IF(B_Housing_Type="SF",EXP('Residential Energy Coefficients'!$C$3+'Residential Energy Coefficients'!$C$4*LN(B_Net_Sq_Ft_per_Unit)+'Residential Energy Coefficients'!$C$10*LN(B_HH_Income)+'Residential Energy Coefficients'!$C$11*B_HH_Size+'Residential Energy Coefficients'!$C$16*LN(Residential_Energy_Cost)+'Residential Energy Coefficients'!$C$19+'Residential Energy Coefficients'!$C$22+'Residential Energy Coefficients'!$C$25*IFERROR(LOOKUP(Metro_Select,Energy_Metro_Lookup,CDD),0)),IF(B_Housing_Type="TH",EXP('Residential Energy Coefficients'!$F$3+'Residential Energy Coefficients'!$F$4*LN(B_Net_Sq_Ft_per_Unit)+'Residential Energy Coefficients'!$F$10*LN(B_HH_Income)+'Residential Energy Coefficients'!$F$11*B_HH_Size+IF(B_Pct_Owner=1,'Residential Energy Coefficients'!$F$12,0)+'Residential Energy Coefficients'!$F$16*LN(Residential_Energy_Cost)+'Residential Energy Coefficients'!$F$22+'Residential Energy Coefficients'!$F$25*IFERROR(LOOKUP(Metro_Select,Energy_Metro_Lookup,CDD),0)),IF(B_Housing_Type="MF",EXP('Residential Energy Coefficients'!$I$3+'Residential Energy Coefficients'!$I$4*LN(B_Net_Sq_Ft_per_Unit)+'Residential Energy Coefficients'!$I$9+'Residential Energy Coefficients'!$I$11*B_HH_Size+'Residential Energy Coefficients'!$I$16*LN(Residential_Energy_Cost)+'Residential Energy Coefficients'!$I$22+'Residential Energy Coefficients'!$I$25*IFERROR(LOOKUP(Metro_Select,Energy_Metro_Lookup,CDD),0)),IF(B_Hotel_Room_Acre>0,EXP('Residential Energy Coefficients'!$I$3+'Residential Energy Coefficients'!$I$4*LN(B_Hotel_Room_Net)+'Residential Energy Coefficients'!$I$9+'Residential Energy Coefficients'!$I$11*1.25+'Residential Energy Coefficients'!$I$16*LN(Residential_Energy_Cost)+'Residential Energy Coefficients'!$I$22+'Residential Energy Coefficients'!$I$25*IFERROR(LOOKUP(Metro_Select,Energy_Metro_Lookup,CDD),0)),IF(B_Housing_Type="MH",EXP('Residential Energy Coefficients'!$L$3+'Residential Energy Coefficients'!$L$11*B_HH_Size+'Residential Energy Coefficients'!$L$16*LN(Residential_Energy_Cost)+'Residential Energy Coefficients'!$L$22+'Residential Energy Coefficients'!$L$25*IFERROR(LOOKUP(Metro_Select,Energy_Metro_Lookup,CDD),0)),0)))))/1000,0) -> 0 | CL21: =IFERROR(IF(B_Housing_Type="SF",EXP('Residential Energy Coefficients'!$D$3+'Residential Energy Coefficients'!$D$4*LN(B_Net_Sq_Ft_per_Unit)+'Residential Energy Coefficients'!$D$9+'Residential Energy Coefficients'!$D$10*LN(B_HH_Income)+'Residential Energy Coefficients'!$D$11*B_HH_Size+IF(B_Pct_Owner=1,'Residential Energy Coefficients'!$D$12,0)+'Residential Energy Coefficients'!$D$16*LN(Residential_Energy_Cost)),IF(B_Housing_Type="TH",EXP('Residential Energy Coefficients'!$G$3+'Residential Energy Coefficients'!$G$4*LN(B_Net_Sq_Ft_per_Unit)+'Residential Energy Coefficients'!$G$10*LN(B_HH_Income)+'Residential Energy Coefficients'!$G$11*B_HH_Size+'Residential Energy Coefficients'!$G$16*LN(Residential_Energy_Cost)),IF(B_Housing_Type="MF",EXP('Residential Energy Coefficients'!$J$3+'Residential Energy Coefficients'!$J$4*LN(B_Net_Sq_Ft_per_Unit)+'Residential Energy Coefficients'!$J$10*LN(B_HH_Income)+'Residential Energy Coefficients'!$J$11*B_HH_Size+IF(B_Pct_Owner=1,'Residential Energy Coefficients'!$J$12,0)+'Residential Energy Coefficients'!$J$16*LN(Residential_Energy_Cost)+'Residential Energy Coefficients'!$J$19),IF(B_Hotel_Room_Acre>0,EXP('Residential Energy Coefficients'!$J$3+'Residential Energy Coefficients'!$J$4*LN(B_Hotel_Room_Net)+'Residential Energy Coefficients'!$J$16*LN(Residential_Energy_Cost)+'Residential Energy Coefficients'!$J$19),IF(B_Housing_Type="MH",EXP('Residential Energy Coefficients'!$M$3+'Residential Energy Coefficients'!$M$4*LN(B_Net_Sq_Ft_per_Unit)+'Residential Energy Coefficients'!$M$11*B_HH_Size+'Residential Energy Coefficients'!$M$16*LN(Residential_Energy_Cost)+'Residential Energy Coefficients'!$M$19),0)))))/1000,0) -> 0 | CM21: 0 | CN21: =(IFERROR(EXP('Commercial Energy Coefficients'!$B$3+LN(B_RET_Gross_Sq_Ft)*'Commercial Energy Coefficients'!$B$4+'Commercial Energy Coefficients'!$B$11+'Commercial Energy Coefficients'!$B$14+'Commercial Energy Coefficients'!$B$18*LN((B_Ret_Emp_Acre)*(B_Lot_Size/43560))+'Commercial Energy Coefficients'!$B$19*LN(40)+'Commercial Energy Coefficients'!$B$21+'Commercial Energy Coefficients'!$B$22*LN(Commercial_Energy_Cost)+'Commercial Energy Coefficients'!$B$23*IFERROR(LOOKUP(Metro_Select,Energy_Metro_Lookup,HDD),0)),0)+IFERROR(EXP('Commercial Energy Coefficients'!$E$3+LN(B_OFF_Gross_Sq_Ft)*'Commercial Energy Coefficients'!$E$4+'Commercial Energy Coefficients'!$E$11+'Commercial Energy Coefficients'!$E$14+'Commercial Energy Coefficients'!$E$18*LN((B_OFF_Emp_Acre)*(B_Lot_Size/43560))+'Commercial Energy Coefficients'!$E$19*LN(40)+'Commercial Energy Coefficients'!$E$21+'Commercial Energy Coefficients'!$E$22*LN(Commercial_Energy_Cost)+'Commercial Energy Coefficients'!$E$23*IFERROR(LOOKUP(Metro_Select,Energy_Metro_Lookup,HDD),0)),0)+IFERROR(EXP('Commercial Energy Coefficients'!$H$3+LN(B_PUB_Gross_Sq_Ft)*'Commercial Energy Coefficients'!$H$4+'Commercial Energy Coefficients'!$H$11+'Commercial Energy Coefficients'!$H$14+'Commercial Energy Coefficients'!$H$18*LN((B_Pub_Emp_Acre)*(B_Lot_Size/43560))+'Commercial Energy Coefficients'!$H$19*LN(40)+'Commercial Energy Coefficients'!$H$21+'Commercial Energy Coefficients'!$H$22*LN(Commercial_Energy_Cost)+'Commercial Energy Coefficients'!$H$23*IFERROR(LOOKUP(Metro_Select,Energy_Metro_Lookup,HDD),0)),0))/1000 -> 0 | CO21: =(IFERROR(EXP('Commercial Energy Coefficients'!$C$3+LN((B_RET_Gross_Sq_Ft))*'Commercial Energy Coefficients'!$C$4+'Commercial Energy Coefficients'!$C$11+'Commercial Energy Coefficients'!$C$14+'Commercial Energy Coefficients'!$C$18*LN((B_Ret_Emp_Acre)*(B_Lot_Size/43560))+'Commercial Energy Coefficients'!$C$19*LN(40)+'Commercial Energy Coefficients'!$C$21+'Commercial Energy Coefficients'!$C$22*LN(Commercial_Energy_Cost)+'Commercial Energy Coefficients'!$C$24*IFERROR(LOOKUP(Metro_Select,Energy_Metro_Lookup,CDD),0)),0)+IFERROR(EXP('Commercial Energy Coefficients'!$F$3+LN((B_OFF_Gross_Sq_Ft))*'Commercial Energy Coefficients'!$F$4+'Commercial Energy Coefficients'!$F$11+'Commercial Energy Coefficients'!$F$14+'Commercial Energy Coefficients'!$F$18*LN((B_OFF_Emp_Acre)*(B_Lot_Size/43560))+'Commercial Energy Coefficients'!$F$19*LN(40)+'Commercial Energy Coefficients'!$F$21+'Commercial Energy Coefficients'!$F$22*LN(Commercial_Energy_Cost)+'Commercial Energy Coefficients'!$F$24*IFERROR(LOOKUP(Metro_Select,Energy_Metro_Lookup,CDD),0)),0)+IFERROR(EXP('Commercial Energy Coefficients'!$I$3+LN((B_PUB_Gross_Sq_Ft))*'Commercial Energy Coefficients'!$I$4+'Commercial Energy Coefficients'!$I$11+'Commercial Energy Coefficients'!$I$14+'Commercial Energy Coefficients'!$I$18*LN((B_Pub_Emp_Acre)*(B_Lot_Size/43560))+'Commercial Energy Coefficients'!$I$19*LN(40)+'Commercial Energy Coefficients'!$I$21+'Commercial Energy Coefficients'!$I$22*LN(Commercial_Energy_Cost)+'Commercial Energy Coefficients'!$I$24*IFERROR(LOOKUP(Metro_Select,Energy_Metro_Lookup,CDD),0)),0))/1000 -> 0 | CP21: =(IFERROR(EXP('Commercial Energy Coefficients'!$D$3+LN((B_RET_Gross_Sq_Ft))*'Commercial Energy Coefficients'!$D$4+'Commercial Energy Coefficients'!$D$14+'Commercial Energy Coefficients'!$D$18*LN((B_Ret_Emp_Acre)*(B_Lot_Size/43560))+'Commercial Energy Coefficients'!$D$19*LN(40)+'Commercial Energy Coefficients'!$D$21+'Commercial Energy Coefficients'!$D$22*LN(Commercial_Energy_Cost)),0)+IFERROR(EXP('Commercial Energy Coefficients'!$G$3+LN((B_OFF_Gross_Sq_Ft))*'Commercial Energy Coefficients'!$G$4+'Commercial Energy Coefficients'!$G$14+'Commercial Energy Coefficients'!$G$18*LN((B_OFF_Emp_Acre)*(B_Lot_Size/43560))+'Commercial Energy Coefficients'!$G$19*LN(40)+'Commercial Energy Coefficients'!$G$21+'Commercial Energy Coefficients'!$G$22*LN(Commercial_Energy_Cost)),0)+IFERROR(EXP('Commercial Energy Coefficients'!$J$3+LN((B_PUB_Gross_Sq_Ft))*'Commercial Energy Coefficients'!$J$4+'Commercial Energy Coefficients'!$J$14+'Commercial Energy Coefficients'!$J$18*LN((B_Pub_Emp_Acre)*(B_Lot_Size/43560))+'Commercial Energy Coefficients'!$J$19*LN(40)+'Commercial Energy Coefficients'!$J$21+'Commercial Energy Coefficients'!$J$22*LN(Commercial_Energy_Cost)),0))/1000 -> 0 | CQ21: 0 | CR21: 0 | CS21: 0 | CT21: 0 | CU21: 0 | CV21: 0 | CW21: 0 | CX21: 0 | CY21: 0 | CZ21: 0 | DA21: 0 | DB21: 0 | DC21: 0 | DD21: 0 | DE21: 0 | DF21: 0 | DG21: 0 | DH21: 0 | DI21: =IF(B_Housing_Type="",0,IF(B_Housing_Type="MF",'Project Info'!$B$160,IF(B_Housing_Type="TH",'Project Info'!$B$161,IF(AND(B_Housing_Type="SF",B_Net_Sq_Ft_per_Unit>0,B_Net_Sq_Ft_per_Unit<3000),'Project Info'!$B$162,IF(AND(B_Housing_Type="SF",B_Net_Sq_Ft_per_Unit>=3000),'Project Info'!$B$163))))) -> 0 | DJ21: 0 | DK21: 0 | DL21: 0 | DN21: 0 | DO21: 0 | DQ21: 0 | DR21: 0 | DT21: 0 | DY21: 0 | DZ21: 0 | EB21: 0 | EF21: 0 | EG21: 0 | EH21: 0 | EI21: 0 | EU21: 0 | EV21: 0 | EX21: 0 | EY21: 0 | EZ21: 0 | FA21: 0 | FB21: 0 | FC21: 0 | FE21: =Annual_Cooling_degree_days*24*(1/R_conventional_SF_F_hrs_BTU-1/R_green_roof_SF_F_hrs_Btu)/3412*'Building Inputs'!$EU21 -> 0 | FF21: 0 | FG21: =Annual_Heating_degree_days*24*(1/R_conventional_SF_F_hrs_BTU-1/R_green_roof_SF_F_hrs_Btu)*'Building Inputs'!$EU21 -> 0 | FH21: 0 | FI21: =Avg_Annual_NO2_uptake*'Building Inputs'!$EU21 -> 0 | FJ21: =Avg_Annual_O3_uptake*'Building Inputs'!$EU21 -> 0 | FK21: =Avg_Annual_SO2_uptake*'Building Inputs'!$EU21 -> 0 | FL21: =Avg_Annual_PM_10_uptake*'Building Inputs'!$EU21 -> 0 | FM21: 0 | FN21: 0 | FO21: 0 | FP21: 0 | FQ21: 0 | FR21: 0 | FS21: 0 | FT21: 0 | FU21: 0 | FV21: =Avg_amount_of_carbon_sequestered_lbs_SF*'Building Inputs'!$EU21*3.67 -> 0 | FW21: 0 | FX21: 0 | FY21: 0 | FZ21: =Average_annual_rainfall_in*($C21*(1-$E21)+$EM21-$EJ21-$ER21)*$C21/43560*'Building Inputs'!$EN21*144*0.00433 -> 0 | GB21: =Avg_Annual_NO2_uptake*'Building Inputs'!$EV21 -> 0 | GC21: =Avg_Annual_O3_uptake*'Building Inputs'!$EV21 -> 0 | GD21: =Avg_Annual_SO2_uptake*'Building Inputs'!$EV21 -> 0 | GE21: =Avg_Annual_PM_10_uptake*'Building Inputs'!$EV21 -> 0 | GF21: 0 | GG21: 0 | GH21: 0 | GI21: 0 | GJ21: 0 | GK21: =Avg_amount_of_carbon_sequestered_lbs_SF*'Building Inputs'!$EV21*3.67 -> 0 | GL21: 0 | GM21: =Average_annual_rainfall_in*('Building Inputs'!$EX21*'Building Inputs'!$EQ21+'Building Inputs'!$EY21*'Building Inputs'!$ES21)*144*0.00433 -> 0 | GO21: 0 | GQ21: 0 | GR21: 0 | GS21: 0 | GT21: 0 | GU21: 0 | GV21: 0 | GW21: 0 | GX21: 0 | GY21: 0 | GZ21: 0 | HA21: 0 | HB21: 0 | HC21: 0 | HF21: 0 | HG21: 0 | HH21: 0 | HQ21: 0 | HR21: 0 | HS21: 0 | HT21: 0 | HU21: 0 | HV21: 0 | HW21: 0 | HX21: 0
A22: 19 | I22: 0 | K22: 0 | L22: 0 | M22: 0 | N22: 0 | O22: 0 | P22: 0 | Q22: 0 | R22: 0 | AA22: 0 | AD22: 0 | AE22: 0 | AH22: 0 | AK22: 0 | AM22: 0 | AN22: 0 | AO22: 0 | AP22: 0 | AQ22: 0 | AR22: 0 | AS22: 0 | AT22: 0 | AU22: 0 | AV22: 0 | AW22: 0 | AX22: 0 | AY22: 0 | BB22: 0 | BC22: 0 | BF22: 0 | BG22: 0 | BJ22: 0 | BK22: 0 | BN22: 0 | BO22: 0 | BR22: 0 | BS22: 0 | BV22: 0 | BY22: 0 | BZ22: 0 | CA22: 0 | CD22: 0 | CI22: 0 | CJ22: =IFERROR(IF(B_Housing_Type="SF",EXP('Residential Energy Coefficients'!$B$3+'Residential Energy Coefficients'!$B$4*LN(B_Net_Sq_Ft_per_Unit)+'Residential Energy Coefficients'!$B$9+'Residential Energy Coefficients'!$B$10*LN(B_HH_Income)+'Residential Energy Coefficients'!$B$16*LN(Residential_Energy_Cost)+'Residential Energy Coefficients'!$B$20+'Residential Energy Coefficients'!$B$24*IFERROR(LOOKUP(Metro_Select,Energy_Metro_Lookup,HDD),0)),IF(B_Housing_Type="TH",EXP('Residential Energy Coefficients'!$E$3+'Residential Energy Coefficients'!$E$4*LN(B_Net_Sq_Ft_per_Unit)+'Residential Energy Coefficients'!$E$9+'Residential Energy Coefficients'!$E$16*LN(Residential_Energy_Cost)+'Residential Energy Coefficients'!$E$19+'Residential Energy Coefficients'!$E$20+'Residential Energy Coefficients'!$E$24*IFERROR(LOOKUP(Metro_Select,Energy_Metro_Lookup,HDD),0)),IF(B_Housing_Type="MF",EXP('Residential Energy Coefficients'!$H$3+'Residential Energy Coefficients'!$H$4*LN(B_Net_Sq_Ft_per_Unit)+'Residential Energy Coefficients'!$H$9+IF(B_Pct_Owner=1,'Residential Energy Coefficients'!$H$12,0)+'Residential Energy Coefficients'!$H$16*LN(Residential_Energy_Cost)+'Residential Energy Coefficients'!$H$20+'Residential Energy Coefficients'!$H$24*IFERROR(LOOKUP(Metro_Select,Energy_Metro_Lookup,HDD),0)),IF(B_Hotel_Room_Acre>0,EXP('Residential Energy Coefficients'!$H$3+'Residential Energy Coefficients'!$H$4*LN(B_Hotel_Room_Net)+'Residential Energy Coefficients'!$H$9+'Residential Energy Coefficients'!$H$16*LN(Residential_Energy_Cost)+'Residential Energy Coefficients'!$H$20+'Residential Energy Coefficients'!$H$24*IFERROR(LOOKUP(Metro_Select,Energy_Metro_Lookup,HDD),0)),IF(B_Housing_Type="MH",EXP('Residential Energy Coefficients'!$K$3+'Residential Energy Coefficients'!$K$16*LN(Residential_Energy_Cost)+'Residential Energy Coefficients'!$K$24*IFERROR(LOOKUP(Metro_Select,Energy_Metro_Lookup,HDD),0)),0)))))/1000,0) -> 0 | CK22: =IFERROR(IF(B_Housing_Type="SF",EXP('Residential Energy Coefficients'!$C$3+'Residential Energy Coefficients'!$C$4*LN(B_Net_Sq_Ft_per_Unit)+'Residential Energy Coefficients'!$C$10*LN(B_HH_Income)+'Residential Energy Coefficients'!$C$11*B_HH_Size+'Residential Energy Coefficients'!$C$16*LN(Residential_Energy_Cost)+'Residential Energy Coefficients'!$C$19+'Residential Energy Coefficients'!$C$22+'Residential Energy Coefficients'!$C$25*IFERROR(LOOKUP(Metro_Select,Energy_Metro_Lookup,CDD),0)),IF(B_Housing_Type="TH",EXP('Residential Energy Coefficients'!$F$3+'Residential Energy Coefficients'!$F$4*LN(B_Net_Sq_Ft_per_Unit)+'Residential Energy Coefficients'!$F$10*LN(B_HH_Income)+'Residential Energy Coefficients'!$F$11*B_HH_Size+IF(B_Pct_Owner=1,'Residential Energy Coefficients'!$F$12,0)+'Residential Energy Coefficients'!$F$16*LN(Residential_Energy_Cost)+'Residential Energy Coefficients'!$F$22+'Residential Energy Coefficients'!$F$25*IFERROR(LOOKUP(Metro_Select,Energy_Metro_Lookup,CDD),0)),IF(B_Housing_Type="MF",EXP('Residential Energy Coefficients'!$I$3+'Residential Energy Coefficients'!$I$4*LN(B_Net_Sq_Ft_per_Unit)+'Residential Energy Coefficients'!$I$9+'Residential Energy Coefficients'!$I$11*B_HH_Size+'Residential Energy Coefficients'!$I$16*LN(Residential_Energy_Cost)+'Residential Energy Coefficients'!$I$22+'Residential Energy Coefficients'!$I$25*IFERROR(LOOKUP(Metro_Select,Energy_Metro_Lookup,CDD),0)),IF(B_Hotel_Room_Acre>0,EXP('Residential Energy Coefficients'!$I$3+'Residential Energy Coefficients'!$I$4*LN(B_Hotel_Room_Net)+'Residential Energy Coefficients'!$I$9+'Residential Energy Coefficients'!$I$11*1.25+'Residential Energy Coefficients'!$I$16*LN(Residential_Energy_Cost)+'Residential Energy Coefficients'!$I$22+'Residential Energy Coefficients'!$I$25*IFERROR(LOOKUP(Metro_Select,Energy_Metro_Lookup,CDD),0)),IF(B_Housing_Type="MH",EXP('Residential Energy Coefficients'!$L$3+'Residential Energy Coefficients'!$L$11*B_HH_Size+'Residential Energy Coefficients'!$L$16*LN(Residential_Energy_Cost)+'Residential Energy Coefficients'!$L$22+'Residential Energy Coefficients'!$L$25*IFERROR(LOOKUP(Metro_Select,Energy_Metro_Lookup,CDD),0)),0)))))/1000,0) -> 0 | CL22: =IFERROR(IF(B_Housing_Type="SF",EXP('Residential Energy Coefficients'!$D$3+'Residential Energy Coefficients'!$D$4*LN(B_Net_Sq_Ft_per_Unit)+'Residential Energy Coefficients'!$D$9+'Residential Energy Coefficients'!$D$10*LN(B_HH_Income)+'Residential Energy Coefficients'!$D$11*B_HH_Size+IF(B_Pct_Owner=1,'Residential Energy Coefficients'!$D$12,0)+'Residential Energy Coefficients'!$D$16*LN(Residential_Energy_Cost)),IF(B_Housing_Type="TH",EXP('Residential Energy Coefficients'!$G$3+'Residential Energy Coefficients'!$G$4*LN(B_Net_Sq_Ft_per_Unit)+'Residential Energy Coefficients'!$G$10*LN(B_HH_Income)+'Residential Energy Coefficients'!$G$11*B_HH_Size+'Residential Energy Coefficients'!$G$16*LN(Residential_Energy_Cost)),IF(B_Housing_Type="MF",EXP('Residential Energy Coefficients'!$J$3+'Residential Energy Coefficients'!$J$4*LN(B_Net_Sq_Ft_per_Unit)+'Residential Energy Coefficients'!$J$10*LN(B_HH_Income)+'Residential Energy Coefficients'!$J$11*B_HH_Size+IF(B_Pct_Owner=1,'Residential Energy Coefficients'!$J$12,0)+'Residential Energy Coefficients'!$J$16*LN(Residential_Energy_Cost)+'Residential Energy Coefficients'!$J$19),IF(B_Hotel_Room_Acre>0,EXP('Residential Energy Coefficients'!$J$3+'Residential Energy Coefficients'!$J$4*LN(B_Hotel_Room_Net)+'Residential Energy Coefficients'!$J$16*LN(Residential_Energy_Cost)+'Residential Energy Coefficients'!$J$19),IF(B_Housing_Type="MH",EXP('Residential Energy Coefficients'!$M$3+'Residential Energy Coefficients'!$M$4*LN(B_Net_Sq_Ft_per_Unit)+'Residential Energy Coefficients'!$M$11*B_HH_Size+'Residential Energy Coefficients'!$M$16*LN(Residential_Energy_Cost)+'Residential Energy Coefficients'!$M$19),0)))))/1000,0) -> 0 | CM22: 0 | CN22: =(IFERROR(EXP('Commercial Energy Coefficients'!$B$3+LN(B_RET_Gross_Sq_Ft)*'Commercial Energy Coefficients'!$B$4+'Commercial Energy Coefficients'!$B$11+'Commercial Energy Coefficients'!$B$14+'Commercial Energy Coefficients'!$B$18*LN((B_Ret_Emp_Acre)*(B_Lot_Size/43560))+'Commercial Energy Coefficients'!$B$19*LN(40)+'Commercial Energy Coefficients'!$B$21+'Commercial Energy Coefficients'!$B$22*LN(Commercial_Energy_Cost)+'Commercial Energy Coefficients'!$B$23*IFERROR(LOOKUP(Metro_Select,Energy_Metro_Lookup,HDD),0)),0)+IFERROR(EXP('Commercial Energy Coefficients'!$E$3+LN(B_OFF_Gross_Sq_Ft)*'Commercial Energy Coefficients'!$E$4+'Commercial Energy Coefficients'!$E$11+'Commercial Energy Coefficients'!$E$14+'Commercial Energy Coefficients'!$E$18*LN((B_OFF_Emp_Acre)*(B_Lot_Size/43560))+'Commercial Energy Coefficients'!$E$19*LN(40)+'Commercial Energy Coefficients'!$E$21+'Commercial Energy Coefficients'!$E$22*LN(Commercial_Energy_Cost)+'Commercial Energy Coefficients'!$E$23*IFERROR(LOOKUP(Metro_Select,Energy_Metro_Lookup,HDD),0)),0)+IFERROR(EXP('Commercial Energy Coefficients'!$H$3+LN(B_PUB_Gross_Sq_Ft)*'Commercial Energy Coefficients'!$H$4+'Commercial Energy Coefficients'!$H$11+'Commercial Energy Coefficients'!$H$14+'Commercial Energy Coefficients'!$H$18*LN((B_Pub_Emp_Acre)*(B_Lot_Size/43560))+'Commercial Energy Coefficients'!$H$19*LN(40)+'Commercial Energy Coefficients'!$H$21+'Commercial Energy Coefficients'!$H$22*LN(Commercial_Energy_Cost)+'Commercial Energy Coefficients'!$H$23*IFERROR(LOOKUP(Metro_Select,Energy_Metro_Lookup,HDD),0)),0))/1000 -> 0 | CO22: =(IFERROR(EXP('Commercial Energy Coefficients'!$C$3+LN((B_RET_Gross_Sq_Ft))*'Commercial Energy Coefficients'!$C$4+'Commercial Energy Coefficients'!$C$11+'Commercial Energy Coefficients'!$C$14+'Commercial Energy Coefficients'!$C$18*LN((B_Ret_Emp_Acre)*(B_Lot_Size/43560))+'Commercial Energy Coefficients'!$C$19*LN(40)+'Commercial Energy Coefficients'!$C$21+'Commercial Energy Coefficients'!$C$22*LN(Commercial_Energy_Cost)+'Commercial Energy Coefficients'!$C$24*IFERROR(LOOKUP(Metro_Select,Energy_Metro_Lookup,CDD),0)),0)+IFERROR(EXP('Commercial Energy Coefficients'!$F$3+LN((B_OFF_Gross_Sq_Ft))*'Commercial Energy Coefficients'!$F$4+'Commercial Energy Coefficients'!$F$11+'Commercial Energy Coefficients'!$F$14+'Commercial Energy Coefficients'!$F$18*LN((B_OFF_Emp_Acre)*(B_Lot_Size/43560))+'Commercial Energy Coefficients'!$F$19*LN(40)+'Commercial Energy Coefficients'!$F$21+'Commercial Energy Coefficients'!$F$22*LN(Commercial_Energy_Cost)+'Commercial Energy Coefficients'!$F$24*IFERROR(LOOKUP(Metro_Select,Energy_Metro_Lookup,CDD),0)),0)+IFERROR(EXP('Commercial Energy Coefficients'!$I$3+LN((B_PUB_Gross_Sq_Ft))*'Commercial Energy Coefficients'!$I$4+'Commercial Energy Coefficients'!$I$11+'Commercial Energy Coefficients'!$I$14+'Commercial Energy Coefficients'!$I$18*LN((B_Pub_Emp_Acre)*(B_Lot_Size/43560))+'Commercial Energy Coefficients'!$I$19*LN(40)+'Commercial Energy Coefficients'!$I$21+'Commercial Energy Coefficients'!$I$22*LN(Commercial_Energy_Cost)+'Commercial Energy Coefficients'!$I$24*IFERROR(LOOKUP(Metro_Select,Energy_Metro_Lookup,CDD),0)),0))/1000 -> 0 | CP22: =(IFERROR(EXP('Commercial Energy Coefficients'!$D$3+LN((B_RET_Gross_Sq_Ft))*'Commercial Energy Coefficients'!$D$4+'Commercial Energy Coefficients'!$D$14+'Commercial Energy Coefficients'!$D$18*LN((B_Ret_Emp_Acre)*(B_Lot_Size/43560))+'Commercial Energy Coefficients'!$D$19*LN(40)+'Commercial Energy Coefficients'!$D$21+'Commercial Energy Coefficients'!$D$22*LN(Commercial_Energy_Cost)),0)+IFERROR(EXP('Commercial Energy Coefficients'!$G$3+LN((B_OFF_Gross_Sq_Ft))*'Commercial Energy Coefficients'!$G$4+'Commercial Energy Coefficients'!$G$14+'Commercial Energy Coefficients'!$G$18*LN((B_OFF_Emp_Acre)*(B_Lot_Size/43560))+'Commercial Energy Coefficients'!$G$19*LN(40)+'Commercial Energy Coefficients'!$G$21+'Commercial Energy Coefficients'!$G$22*LN(Commercial_Energy_Cost)),0)+IFERROR(EXP('Commercial Energy Coefficients'!$J$3+LN((B_PUB_Gross_Sq_Ft))*'Commercial Energy Coefficients'!$J$4+'Commercial Energy Coefficients'!$J$14+'Commercial Energy Coefficients'!$J$18*LN((B_Pub_Emp_Acre)*(B_Lot_Size/43560))+'Commercial Energy Coefficients'!$J$19*LN(40)+'Commercial Energy Coefficients'!$J$21+'Commercial Energy Coefficients'!$J$22*LN(Commercial_Energy_Cost)),0))/1000 -> 0 | CQ22: 0 | CR22: 0 | CS22: 0 | CT22: 0 | CU22: 0 | CV22: 0 | CW22: 0 | CX22: 0 | CY22: 0 | CZ22: 0 | DA22: 0 | DB22: 0 | DC22: 0 | DD22: 0 | DE22: 0 | DF22: 0 | DG22: 0 | DH22: 0 | DI22: =IF(B_Housing_Type="",0,IF(B_Housing_Type="MF",'Project Info'!$B$160,IF(B_Housing_Type="TH",'Project Info'!$B$161,IF(AND(B_Housing_Type="SF",B_Net_Sq_Ft_per_Unit>0,B_Net_Sq_Ft_per_Unit<3000),'Project Info'!$B$162,IF(AND(B_Housing_Type="SF",B_Net_Sq_Ft_per_Unit>=3000),'Project Info'!$B$163))))) -> 0 | DJ22: 0 | DK22: 0 | DL22: 0 | DN22: 0 | DO22: 0 | DQ22: 0 | DR22: 0 | DT22: 0 | DY22: 0 | DZ22: 0 | EB22: 0 | EF22: 0 | EG22: 0 | EH22: 0 | EI22: 0 | EU22: 0 | EV22: 0 | EX22: 0 | EY22: 0 | EZ22: 0 | FA22: 0 | FB22: 0 | FC22: 0 | FE22: =Annual_Cooling_degree_days*24*(1/R_conventional_SF_F_hrs_BTU-1/R_green_roof_SF_F_hrs_Btu)/3412*'Building Inputs'!$EU22 -> 0 | FF22: 0 | FG22: =Annual_Heating_degree_days*24*(1/R_conventional_SF_F_hrs_BTU-1/R_green_roof_SF_F_hrs_Btu)*'Building Inputs'!$EU22 -> 0 | FH22: 0 | FI22: =Avg_Annual_NO2_uptake*'Building Inputs'!$EU22 -> 0 | FJ22: =Avg_Annual_O3_uptake*'Building Inputs'!$EU22 -> 0 | FK22: =Avg_Annual_SO2_uptake*'Building Inputs'!$EU22 -> 0 | FL22: =Avg_Annual_PM_10_uptake*'Building Inputs'!$EU22 -> 0 | FM22: 0 | FN22: 0 | FO22: 0 | FP22: 0 | FQ22: 0 | FR22: 0 | FS22: 0 | FT22: 0 | FU22: 0 | FV22: =Avg_amount_of_carbon_sequestered_lbs_SF*'Building Inputs'!$EU22*3.67 -> 0 | FW22: 0 | FX22: 0 | FY22: 0 | FZ22: =Average_annual_rainfall_in*($C22*(1-$E22)+$EM22-$EJ22-$ER22)*$C22/43560*'Building Inputs'!$EN22*144*0.00433 -> 0 | GB22: =Avg_Annual_NO2_uptake*'Building Inputs'!$EV22 -> 0 | GC22: =Avg_Annual_O3_uptake*'Building Inputs'!$EV22 -> 0 | GD22: =Avg_Annual_SO2_uptake*'Building Inputs'!$EV22 -> 0 | GE22: =Avg_Annual_PM_10_uptake*'Building Inputs'!$EV22 -> 0 | GF22: 0 | GG22: 0 | GH22: 0 | GI22: 0 | GJ22: 0 | GK22: =Avg_amount_of_carbon_sequestered_lbs_SF*'Building Inputs'!$EV22*3.67 -> 0 | GL22: 0 | GM22: =Average_annual_rainfall_in*('Building Inputs'!$EX22*'Building Inputs'!$EQ22+'Building Inputs'!$EY22*'Building Inputs'!$ES22)*144*0.00433 -> 0 | GO22: 0 | GQ22: 0 | GR22: 0 | GS22: 0 | GT22: 0 | GU22: 0 | GV22: 0 | GW22: 0 | GX22: 0 | GY22: 0 | GZ22: 0 | HA22: 0 | HB22: 0 | HC22: 0 | HF22: 0 | HG22: 0 | HH22: 0 | HQ22: 0 | HR22: 0 | HS22: 0 | HT22: 0 | HU22: 0 | HV22: 0 | HW22: 0 | HX22: 0
A23: 20 | I23: 0 | K23: 0 | L23: 0 | M23: 0 | N23: 0 | O23: 0 | P23: 0 | Q23: 0 | R23: 0 | AA23: 0 | AD23: 0 | AE23: 0 | AH23: 0 | AK23: 0 | AM23: 0 | AN23: 0 | AO23: 0 | AP23: 0 | AQ23: 0 | AR23: 0 | AS23: 0 | AT23: 0 | AU23: 0 | AV23: 0 | AW23: 0 | AX23: 0 | AY23: 0 | BB23: 0 | BC23: 0 | BF23: 0 | BG23: 0 | BJ23: 0 | BK23: 0 | BN23: 0 | BO23: 0 | BR23: 0 | BS23: 0 | BV23: 0 | BY23: 0 | BZ23: 0 | CA23: 0 | CD23: 0 | CI23: 0 | CJ23: =IFERROR(IF(B_Housing_Type="SF",EXP('Residential Energy Coefficients'!$B$3+'Residential Energy Coefficients'!$B$4*LN(B_Net_Sq_Ft_per_Unit)+'Residential Energy Coefficients'!$B$9+'Residential Energy Coefficients'!$B$10*LN(B_HH_Income)+'Residential Energy Coefficients'!$B$16*LN(Residential_Energy_Cost)+'Residential Energy Coefficients'!$B$20+'Residential Energy Coefficients'!$B$24*IFERROR(LOOKUP(Metro_Select,Energy_Metro_Lookup,HDD),0)),IF(B_Housing_Type="TH",EXP('Residential Energy Coefficients'!$E$3+'Residential Energy Coefficients'!$E$4*LN(B_Net_Sq_Ft_per_Unit)+'Residential Energy Coefficients'!$E$9+'Residential Energy Coefficients'!$E$16*LN(Residential_Energy_Cost)+'Residential Energy Coefficients'!$E$19+'Residential Energy Coefficients'!$E$20+'Residential Energy Coefficients'!$E$24*IFERROR(LOOKUP(Metro_Select,Energy_Metro_Lookup,HDD),0)),IF(B_Housing_Type="MF",EXP('Residential Energy Coefficients'!$H$3+'Residential Energy Coefficients'!$H$4*LN(B_Net_Sq_Ft_per_Unit)+'Residential Energy Coefficients'!$H$9+IF(B_Pct_Owner=1,'Residential Energy Coefficients'!$H$12,0)+'Residential Energy Coefficients'!$H$16*LN(Residential_Energy_Cost)+'Residential Energy Coefficients'!$H$20+'Residential Energy Coefficients'!$H$24*IFERROR(LOOKUP(Metro_Select,Energy_Metro_Lookup,HDD),0)),IF(B_Hotel_Room_Acre>0,EXP('Residential Energy Coefficients'!$H$3+'Residential Energy Coefficients'!$H$4*LN(B_Hotel_Room_Net)+'Residential Energy Coefficients'!$H$9+'Residential Energy Coefficients'!$H$16*LN(Residential_Energy_Cost)+'Residential Energy Coefficients'!$H$20+'Residential Energy Coefficients'!$H$24*IFERROR(LOOKUP(Metro_Select,Energy_Metro_Lookup,HDD),0)),IF(B_Housing_Type="MH",EXP('Residential Energy Coefficients'!$K$3+'Residential Energy Coefficients'!$K$16*LN(Residential_Energy_Cost)+'Residential Energy Coefficients'!$K$24*IFERROR(LOOKUP(Metro_Select,Energy_Metro_Lookup,HDD),0)),0)))))/1000,0) -> 0 | CK23: =IFERROR(IF(B_Housing_Type="SF",EXP('Residential Energy Coefficients'!$C$3+'Residential Energy Coefficients'!$C$4*LN(B_Net_Sq_Ft_per_Unit)+'Residential Energy Coefficients'!$C$10*LN(B_HH_Income)+'Residential Energy Coefficients'!$C$11*B_HH_Size+'Residential Energy Coefficients'!$C$16*LN(Residential_Energy_Cost)+'Residential Energy Coefficients'!$C$19+'Residential Energy Coefficients'!$C$22+'Residential Energy Coefficients'!$C$25*IFERROR(LOOKUP(Metro_Select,Energy_Metro_Lookup,CDD),0)),IF(B_Housing_Type="TH",EXP('Residential Energy Coefficients'!$F$3+'Residential Energy Coefficients'!$F$4*LN(B_Net_Sq_Ft_per_Unit)+'Residential Energy Coefficients'!$F$10*LN(B_HH_Income)+'Residential Energy Coefficients'!$F$11*B_HH_Size+IF(B_Pct_Owner=1,'Residential Energy Coefficients'!$F$12,0)+'Residential Energy Coefficients'!$F$16*LN(Residential_Energy_Cost)+'Residential Energy Coefficients'!$F$22+'Residential Energy Coefficients'!$F$25*IFERROR(LOOKUP(Metro_Select,Energy_Metro_Lookup,CDD),0)),IF(B_Housing_Type="MF",EXP('Residential Energy Coefficients'!$I$3+'Residential Energy Coefficients'!$I$4*LN(B_Net_Sq_Ft_per_Unit)+'Residential Energy Coefficients'!$I$9+'Residential Energy Coefficients'!$I$11*B_HH_Size+'Residential Energy Coefficients'!$I$16*LN(Residential_Energy_Cost)+'Residential Energy Coefficients'!$I$22+'Residential Energy Coefficients'!$I$25*IFERROR(LOOKUP(Metro_Select,Energy_Metro_Lookup,CDD),0)),IF(B_Hotel_Room_Acre>0,EXP('Residential Energy Coefficients'!$I$3+'Residential Energy Coefficients'!$I$4*LN(B_Hotel_Room_Net)+'Residential Energy Coefficients'!$I$9+'Residential Energy Coefficients'!$I$11*1.25+'Residential Energy Coefficients'!$I$16*LN(Residential_Energy_Cost)+'Residential Energy Coefficients'!$I$22+'Residential Energy Coefficients'!$I$25*IFERROR(LOOKUP(Metro_Select,Energy_Metro_Lookup,CDD),0)),IF(B_Housing_Type="MH",EXP('Residential Energy Coefficients'!$L$3+'Residential Energy Coefficients'!$L$11*B_HH_Size+'Residential Energy Coefficients'!$L$16*LN(Residential_Energy_Cost)+'Residential Energy Coefficients'!$L$22+'Residential Energy Coefficients'!$L$25*IFERROR(LOOKUP(Metro_Select,Energy_Metro_Lookup,CDD),0)),0)))))/1000,0) -> 0 | CL23: =IFERROR(IF(B_Housing_Type="SF",EXP('Residential Energy Coefficients'!$D$3+'Residential Energy Coefficients'!$D$4*LN(B_Net_Sq_Ft_per_Unit)+'Residential Energy Coefficients'!$D$9+'Residential Energy Coefficients'!$D$10*LN(B_HH_Income)+'Residential Energy Coefficients'!$D$11*B_HH_Size+IF(B_Pct_Owner=1,'Residential Energy Coefficients'!$D$12,0)+'Residential Energy Coefficients'!$D$16*LN(Residential_Energy_Cost)),IF(B_Housing_Type="TH",EXP('Residential Energy Coefficients'!$G$3+'Residential Energy Coefficients'!$G$4*LN(B_Net_Sq_Ft_per_Unit)+'Residential Energy Coefficients'!$G$10*LN(B_HH_Income)+'Residential Energy Coefficients'!$G$11*B_HH_Size+'Residential Energy Coefficients'!$G$16*LN(Residential_Energy_Cost)),IF(B_Housing_Type="MF",EXP('Residential Energy Coefficients'!$J$3+'Residential Energy Coefficients'!$J$4*LN(B_Net_Sq_Ft_per_Unit)+'Residential Energy Coefficients'!$J$10*LN(B_HH_Income)+'Residential Energy Coefficients'!$J$11*B_HH_Size+IF(B_Pct_Owner=1,'Residential Energy Coefficients'!$J$12,0)+'Residential Energy Coefficients'!$J$16*LN(Residential_Energy_Cost)+'Residential Energy Coefficients'!$J$19),IF(B_Hotel_Room_Acre>0,EXP('Residential Energy Coefficients'!$J$3+'Residential Energy Coefficients'!$J$4*LN(B_Hotel_Room_Net)+'Residential Energy Coefficients'!$J$16*LN(Residential_Energy_Cost)+'Residential Energy Coefficients'!$J$19),IF(B_Housing_Type="MH",EXP('Residential Energy Coefficients'!$M$3+'Residential Energy Coefficients'!$M$4*LN(B_Net_Sq_Ft_per_Unit)+'Residential Energy Coefficients'!$M$11*B_HH_Size+'Residential Energy Coefficients'!$M$16*LN(Residential_Energy_Cost)+'Residential Energy Coefficients'!$M$19),0)))))/1000,0) -> 0 | CM23: 0 | CN23: =(IFERROR(EXP('Commercial Energy Coefficients'!$B$3+LN(B_RET_Gross_Sq_Ft)*'Commercial Energy Coefficients'!$B$4+'Commercial Energy Coefficients'!$B$11+'Commercial Energy Coefficients'!$B$14+'Commercial Energy Coefficients'!$B$18*LN((B_Ret_Emp_Acre)*(B_Lot_Size/43560))+'Commercial Energy Coefficients'!$B$19*LN(40)+'Commercial Energy Coefficients'!$B$21+'Commercial Energy Coefficients'!$B$22*LN(Commercial_Energy_Cost)+'Commercial Energy Coefficients'!$B$23*IFERROR(LOOKUP(Metro_Select,Energy_Metro_Lookup,HDD),0)),0)+IFERROR(EXP('Commercial Energy Coefficients'!$E$3+LN(B_OFF_Gross_Sq_Ft)*'Commercial Energy Coefficients'!$E$4+'Commercial Energy Coefficients'!$E$11+'Commercial Energy Coefficients'!$E$14+'Commercial Energy Coefficients'!$E$18*LN((B_OFF_Emp_Acre)*(B_Lot_Size/43560))+'Commercial Energy Coefficients'!$E$19*LN(40)+'Commercial Energy Coefficients'!$E$21+'Commercial Energy Coefficients'!$E$22*LN(Commercial_Energy_Cost)+'Commercial Energy Coefficients'!$E$23*IFERROR(LOOKUP(Metro_Select,Energy_Metro_Lookup,HDD),0)),0)+IFERROR(EXP('Commercial Energy Coefficients'!$H$3+LN(B_PUB_Gross_Sq_Ft)*'Commercial Energy Coefficients'!$H$4+'Commercial Energy Coefficients'!$H$11+'Commercial Energy Coefficients'!$H$14+'Commercial Energy Coefficients'!$H$18*LN((B_Pub_Emp_Acre)*(B_Lot_Size/43560))+'Commercial Energy Coefficients'!$H$19*LN(40)+'Commercial Energy Coefficients'!$H$21+'Commercial Energy Coefficients'!$H$22*LN(Commercial_Energy_Cost)+'Commercial Energy Coefficients'!$H$23*IFERROR(LOOKUP(Metro_Select,Energy_Metro_Lookup,HDD),0)),0))/1000 -> 0 | CO23: =(IFERROR(EXP('Commercial Energy Coefficients'!$C$3+LN((B_RET_Gross_Sq_Ft))*'Commercial Energy Coefficients'!$C$4+'Commercial Energy Coefficients'!$C$11+'Commercial Energy Coefficients'!$C$14+'Commercial Energy Coefficients'!$C$18*LN((B_Ret_Emp_Acre)*(B_Lot_Size/43560))+'Commercial Energy Coefficients'!$C$19*LN(40)+'Commercial Energy Coefficients'!$C$21+'Commercial Energy Coefficients'!$C$22*LN(Commercial_Energy_Cost)+'Commercial Energy Coefficients'!$C$24*IFERROR(LOOKUP(Metro_Select,Energy_Metro_Lookup,CDD),0)),0)+IFERROR(EXP('Commercial Energy Coefficients'!$F$3+LN((B_OFF_Gross_Sq_Ft))*'Commercial Energy Coefficients'!$F$4+'Commercial Energy Coefficients'!$F$11+'Commercial Energy Coefficients'!$F$14+'Commercial Energy Coefficients'!$F$18*LN((B_OFF_Emp_Acre)*(B_Lot_Size/43560))+'Commercial Energy Coefficients'!$F$19*LN(40)+'Commercial Energy Coefficients'!$F$21+'Commercial Energy Coefficients'!$F$22*LN(Commercial_Energy_Cost)+'Commercial Energy Coefficients'!$F$24*IFERROR(LOOKUP(Metro_Select,Energy_Metro_Lookup,CDD),0)),0)+IFERROR(EXP('Commercial Energy Coefficients'!$I$3+LN((B_PUB_Gross_Sq_Ft))*'Commercial Energy Coefficients'!$I$4+'Commercial Energy Coefficients'!$I$11+'Commercial Energy Coefficients'!$I$14+'Commercial Energy Coefficients'!$I$18*LN((B_Pub_Emp_Acre)*(B_Lot_Size/43560))+'Commercial Energy Coefficients'!$I$19*LN(40)+'Commercial Energy Coefficients'!$I$21+'Commercial Energy Coefficients'!$I$22*LN(Commercial_Energy_Cost)+'Commercial Energy Coefficients'!$I$24*IFERROR(LOOKUP(Metro_Select,Energy_Metro_Lookup,CDD),0)),0))/1000 -> 0 | CP23: =(IFERROR(EXP('Commercial Energy Coefficients'!$D$3+LN((B_RET_Gross_Sq_Ft))*'Commercial Energy Coefficients'!$D$4+'Commercial Energy Coefficients'!$D$14+'Commercial Energy Coefficients'!$D$18*LN((B_Ret_Emp_Acre)*(B_Lot_Size/43560))+'Commercial Energy Coefficients'!$D$19*LN(40)+'Commercial Energy Coefficients'!$D$21+'Commercial Energy Coefficients'!$D$22*LN(Commercial_Energy_Cost)),0)+IFERROR(EXP('Commercial Energy Coefficients'!$G$3+LN((B_OFF_Gross_Sq_Ft))*'Commercial Energy Coefficients'!$G$4+'Commercial Energy Coefficients'!$G$14+'Commercial Energy Coefficients'!$G$18*LN((B_OFF_Emp_Acre)*(B_Lot_Size/43560))+'Commercial Energy Coefficients'!$G$19*LN(40)+'Commercial Energy Coefficients'!$G$21+'Commercial Energy Coefficients'!$G$22*LN(Commercial_Energy_Cost)),0)+IFERROR(EXP('Commercial Energy Coefficients'!$J$3+LN((B_PUB_Gross_Sq_Ft))*'Commercial Energy Coefficients'!$J$4+'Commercial Energy Coefficients'!$J$14+'Commercial Energy Coefficients'!$J$18*LN((B_Pub_Emp_Acre)*(B_Lot_Size/43560))+'Commercial Energy Coefficients'!$J$19*LN(40)+'Commercial Energy Coefficients'!$J$21+'Commercial Energy Coefficients'!$J$22*LN(Commercial_Energy_Cost)),0))/1000 -> 0 | CQ23: 0 | CR23: 0 | CS23: 0 | CT23: 0 | CU23: 0 | CV23: 0 | CW23: 0 | CX23: 0 | CY23: 0 | CZ23: 0 | DA23: 0 | DB23: 0 | DC23: 0 | DD23: 0 | DE23: 0 | DF23: 0 | DG23: 0 | DH23: 0 | DI23: =IF(B_Housing_Type="",0,IF(B_Housing_Type="MF",'Project Info'!$B$160,IF(B_Housing_Type="TH",'Project Info'!$B$161,IF(AND(B_Housing_Type="SF",B_Net_Sq_Ft_per_Unit>0,B_Net_Sq_Ft_per_Unit<3000),'Project Info'!$B$162,IF(AND(B_Housing_Type="SF",B_Net_Sq_Ft_per_Unit>=3000),'Project Info'!$B$163))))) -> 0 | DJ23: 0 | DK23: 0 | DL23: 0 | DN23: 0 | DO23: 0 | DQ23: 0 | DR23: 0 | DT23: 0 | DY23: 0 | DZ23: 0 | EB23: 0 | EF23: 0 | EG23: 0 | EH23: 0 | EI23: 0 | EU23: 0 | EV23: 0 | EX23: 0 | EY23: 0 | EZ23: 0 | FA23: 0 | FB23: 0 | FC23: 0 | FE23: =Annual_Cooling_degree_days*24*(1/R_conventional_SF_F_hrs_BTU-1/R_green_roof_SF_F_hrs_Btu)/3412*'Building Inputs'!$EU23 -> 0 | FF23: 0 | FG23: =Annual_Heating_degree_days*24*(1/R_conventional_SF_F_hrs_BTU-1/R_green_roof_SF_F_hrs_Btu)*'Building Inputs'!$EU23 -> 0 | FH23: 0 | FI23: =Avg_Annual_NO2_uptake*'Building Inputs'!$EU23 -> 0 | FJ23: =Avg_Annual_O3_uptake*'Building Inputs'!$EU23 -> 0 | FK23: =Avg_Annual_SO2_uptake*'Building Inputs'!$EU23 -> 0 | FL23: =Avg_Annual_PM_10_uptake*'Building Inputs'!$EU23 -> 0 | FM23: 0 | FN23: 0 | FO23: 0 | FP23: 0 | FQ23: 0 | FR23: 0 | FS23: 0 | FT23: 0 | FU23: 0 | FV23: =Avg_amount_of_carbon_sequestered_lbs_SF*'Building Inputs'!$EU23*3.67 -> 0 | FW23: 0 | FX23: 0 | FY23: 0 | FZ23: =Average_annual_rainfall_in*($C23*(1-$E23)+$EM23-$EJ23-$ER23)*$C23/43560*'Building Inputs'!$EN23*144*0.00433 -> 0 | GB23: =Avg_Annual_NO2_uptake*'Building Inputs'!$EV23 -> 0 | GC23: =Avg_Annual_O3_uptake*'Building Inputs'!$EV23 -> 0 | GD23: =Avg_Annual_SO2_uptake*'Building Inputs'!$EV23 -> 0 | GE23: =Avg_Annual_PM_10_uptake*'Building Inputs'!$EV23 -> 0 | GF23: 0 | GG23: 0 | GH23: 0 | GI23: 0 | GJ23: 0 | GK23: =Avg_amount_of_carbon_sequestered_lbs_SF*'Building Inputs'!$EV23*3.67 -> 0 | GL23: 0 | GM23: =Average_annual_rainfall_in*('Building Inputs'!$EX23*'Building Inputs'!$EQ23+'Building Inputs'!$EY23*'Building Inputs'!$ES23)*144*0.00433 -> 0 | GO23: 0 | GQ23: 0 | GR23: 0 | GS23: 0 | GT23: 0 | GU23: 0 | GV23: 0 | GW23: 0 | GX23: 0 | GY23: 0 | GZ23: 0 | HA23: 0 | HB23: 0 | HC23: 0 | HF23: 0 | HG23: 0 | HH23: 0 | HQ23: 0 | HR23: 0 | HS23: 0 | HT23: 0 | HU23: 0 | HV23: 0 | HW23: 0 | HX23: 0
